Workbook

Sheet Guidance
C1: THE CONTENTS OF THE WORKBOOK INCLUDE ESTIMATES
C2: BASED ON SMALL SAMPLE SIZES WHICH MAY BE UNRELIABLE
C3: THEY ARE PROVIDED ON A CAVEAT EMPTOR BASIS
G5: Users should follow the guidelines set out in general terms below
G6: and in more detail in the Working Futures technical documentation available on line at:
G7: https://www.gov.uk/government/publications/working-futures-2012-to-2022
G9: If in doubt about what to do please contact:
G11: UKCES: Peter Glover, UK Commission for Employment and Skills, email: peter.glover@ukces.org.uk, tel: 01709 774942
G12: All other enquiries: Rob Wilson, IER, University of Warwick, email: r.a.wilson@warwick.ac.uk, tel: 024 7652 3530
G14: Copyright: Warwick Institute for Employment Research / Cambridge Econometrics, 2013
G17: REPORTING
G18: The projections presented in this Workbook are calculated from a number of different data sources, using
G19: a variety of econometric and statistical techniques. As a result, precise margins of error cannot be assigned
G20: to the estimates. For further details, see the Working Futures Technical Report.
G22: However, as a general rule of thumb, it is not advisable to use any statistics or analyses in published reports etc which are not
G23: based on data for at least 10,000 individuals. This should provide a reasonable degree of statistical robustness to
G24: the estimates whether historic or forecast.
G26: For unpublished analyses, a more lenient criterion can be used. However, the uncertainties associated with
G27: projections involving fewer than 1,000 individuals are probably too great to make such estimates useful.
G28: However, there is inevitably some degree of judgement required on the part of the researcher.
G30: For cases in between 1,000 and 10,000 individuals, it is difficult to prescribe general rules, and an element of
G31: judgement by on behalf of the user is needed.
G33: Thus, in summary, CE/IER advise:
G35: PUBLISHED ANALYSIS: Ideally, a minimum of 10,000 individuals per cell
G36: UNPUBLISHED ANALYSIS: A minimum of 1,000 individuals per cell

Sheet Info
A1: Scotland
A2: c132 | B2: <-MDM forecast identifier
A3: Occupational forecast: Friday, 9 October 2013 at 17:09

Sheet Table 6.x.2a CD
A1: Table 6.x.2a | B1: Employment Status
A2: =names!A3 -> All industries | E2: 000s | I2: Labels for graphs (DO NOT REMOVE!) | M2: - for :- | N2: Figure 6.x.7
A3: =All!N7 -> 2002 | N3: Figure 6.x.8
A4: Employment by Gender | B4: FT | C4: =I4 -> PT 2002 | D4: SE | E4: Total | I4: =CONCATENATE(" PT ",A3) -> PT 2002 | K4: =CONCATENATE(" PT ",All!I7,"-",RIGHT(TEXT(A3,"0"),2)) -> PT 1997-02 | N4: Figure 6.x.9
A5: Male employment | B5: =MalesFT!$N$8/1000 -> 961.416 | C5: =MalesPT!$N$8/1000 -> 153.698 | D5: =MalesSE!$N$8/1000 -> 161.933 | E5: =Males!$N$8/1000 -> 1277.047
A6: Female employment | B6: =FemalesFT!$N$8/1000 -> 621.317 | C6: =FemalesPT!$N$8/1000 -> 589.299 | D6: =FemalesSE!$N$8/1000 -> 62.417 | E6: =Females!$N$8/1000 -> 1273.033
A7: Total employment | B7: =FT!$N$8/1000 -> 1582.733 | C7: =PT!$N$8/1000 -> 742.997 | D7: =SE!$N$8/1000 -> 224.35 | E7: =All!$N$8/1000 -> 2550.08
A9: =All!S7 -> 2007
A10: Employment by Gender | B10: FT | C10: =I10 -> PT 2007 | D10: SE | E10: Total | I10: =CONCATENATE(" PT ",A9) -> PT 2007 | K10: =CONCATENATE(" PT ",A3,"-",RIGHT(TEXT(A9,"0"),2)) -> PT 2002-07
A11: Male employment | B11: =MalesFT!$S$8/1000 -> 1037.168 | C11: =MalesPT!$S$8/1000 -> 189.633 | D11: =MalesSE!$S$8/1000 -> 179.629 | E11: =Males!$S$8/1000 -> 1406.43
A12: Female employment | B12: =FemalesFT!$S$8/1000 -> 642.599 | C12: =FemalesPT!$S$8/1000 -> 589.281 | D12: =FemalesSE!$S$8/1000 -> 79.079 | E12: =Females!$S$8/1000 -> 1310.959
A13: Total employment | B13: =FT!$S$8/1000 -> 1679.767 | C13: =PT!$S$8/1000 -> 778.914 | D13: =SE!$S$8/1000 -> 258.708 | E13: =All!$S$8/1000 -> 2717.389
A15: =All!X7 -> 2012
A16: Employment by Gender | B16: FT | C16: =I16 -> PT 2012 | D16: SE | E16: Total | I16: =CONCATENATE(" PT ",A15) -> PT 2012 | K16: =CONCATENATE(" PT ",A9,"-",RIGHT(TEXT(A15,"0"),2)) -> PT 2007-12
A17: Male employment | B17: =MalesFT!$X$8/1000 -> 982.206 | C17: =MalesPT!$X$8/1000 -> 188.74 | D17: =MalesSE!$X$8/1000 -> 205.87 | E17: =Males!$X$8/1000 -> 1376.816
A18: Female employment | B18: =FemalesFT!$X$8/1000 -> 606.671 | C18: =FemalesPT!$X$8/1000 -> 556.551 | D18: =FemalesSE!$X$8/1000 -> 105.711 | E18: =Females!$X$8/1000 -> 1268.933
A19: Total employment | B19: =FT!$X$8/1000 -> 1588.877 | C19: =PT!$X$8/1000 -> 745.291 | D19: =SE!$X$8/1000 -> 311.581 | E19: =All!$X$8/1000 -> 2645.749
A21: =All!AC7 -> 2017
A22: Employment by Gender | B22: FT | C22: =I22 -> PT 2017 | D22: SE | E22: Total | I22: =CONCATENATE(" PT ",A21) -> PT 2017 | K22: =CONCATENATE(" PT ",A15,"-",RIGHT(TEXT(A21,"0"),2)) -> PT 2012-17
A23: Male employment | B23: =MalesFT!$AC$8/1000 -> 985.779 | C23: =MalesPT!$AC$8/1000 -> 204.067 | D23: =MalesSE!$AC$8/1000 -> 203.464 | E23: =Males!$AC$8/1000 -> 1393.31
A24: Female employment | B24: =FemalesFT!$AC$8/1000 -> 624.651 | C24: =FemalesPT!$AC$8/1000 -> 567.429 | D24: =FemalesSE!$AC$8/1000 -> 106.423 | E24: =Females!$AC$8/1000 -> 1298.503
A25: Total employment | B25: =FT!$AC$8/1000 -> 1610.43 | C25: =PT!$AC$8/1000 -> 771.496 | D25: =SE!$AC$8/1000 -> 309.887 | E25: =All!$AC$8/1000 -> 2691.813
A27: =All!AH7 -> 2022
A28: Employment by Gender | B28: FT | C28: =I28 -> PT 2022 | D28: SE | E28: Total | I28: =CONCATENATE(" PT ",A27) -> PT 2022 | K28: =CONCATENATE(" PT ",A21,"-",RIGHT(TEXT(A27,"0"),2)) -> PT 2017-22
A29: Male employment | B29: =MalesFT!$AH$8/1000 -> 1003.391 | C29: =MalesPT!$AH$8/1000 -> 222.63 | D29: =MalesSE!$AH$8/1000 -> 202.837 | E29: =Males!$AH$8/1000 -> 1428.858
A30: Female employment | B30: =FemalesFT!$AH$8/1000 -> 656.432 | C30: =FemalesPT!$AH$8/1000 -> 592.851 | D30: =FemalesSE!$AH$8/1000 -> 108 | E30: =Females!$AH$8/1000 -> 1357.283
A31: Total employment | B31: =FT!$AH$8/1000 -> 1659.823 | C31: =PT!$AH$8/1000 -> 815.481 | D31: =SE!$AH$8/1000 -> 310.837 | E31: =All!$AH$8/1000 -> 2786.141
A34: Table 6.x.2a | B34: Employment Status
A35: =names!A4 -> Agriculture | E35: 000s
A36: =A$3 -> 2002
A37: Employment by Gender | B37: FT | C37: PT | D37: SE | E37: Total
A38: Male employment | B38: =MalesFT!$N$36/1000 -> 27.068 | C38: =MalesPT!$N$36/1000 -> 0.961 | D38: =MalesSE!$N$36/1000 -> 14.031 | E38: =Males!$N$36/1000 -> 42.06
A39: Female employment | B39: =FemalesFT!$N$36/1000 -> 6.029 | C39: =FemalesPT!$N$36/1000 -> 1.029 | D39: =FemalesSE!$N$36/1000 -> 2.15 | E39: =Females!$N$36/1000 -> 9.208
A40: Total employment | B40: =FT!$N$36/1000 -> 33.097 | C40: =PT!$N$36/1000 -> 1.99 | D40: =SE!$N$36/1000 -> 16.181 | E40: =All!$N$36/1000 -> 51.268
A42: =A$9 -> 2007
A43: Employment by Gender | B43: FT | C43: PT | D43: SE | E43: Total
A44: Male employment | B44: =MalesFT!$S$36/1000 -> 24.328 | C44: =MalesPT!$S$36/1000 -> 8.118 | D44: =MalesSE!$S$36/1000 -> 16.456 | E44: =Males!$S$36/1000 -> 48.902
A45: Female employment | B45: =FemalesFT!$S$36/1000 -> 1.992 | C45: =FemalesPT!$S$36/1000 -> 6.483 | D45: =FemalesSE!$S$36/1000 -> 4.043 | E45: =Females!$S$36/1000 -> 12.518
A46: Total employment | B46: =FT!$S$36/1000 -> 26.32 | C46: =PT!$S$36/1000 -> 14.601 | D46: =SE!$S$36/1000 -> 20.499 | E46: =All!$S$36/1000 -> 61.42
A48: =A$15 -> 2012
A49: Employment by Gender | B49: FT | C49: PT | D49: SE | E49: Total
A50: Male employment | B50: =MalesFT!$X$36/1000 -> 22.137 | C50: =MalesPT!$X$36/1000 -> 2.863 | D50: =MalesSE!$X$36/1000 -> 16.244 | E50: =Males!$X$36/1000 -> 41.244
A51: Female employment | B51: =FemalesFT!$X$36/1000 -> 6.982 | C51: =FemalesPT!$X$36/1000 -> 0.986 | D51: =FemalesSE!$X$36/1000 -> 4.021 | E51: =Females!$X$36/1000 -> 11.989
A52: Total employment | B52: =FT!$X$36/1000 -> 29.119 | C52: =PT!$X$36/1000 -> 3.849 | D52: =SE!$X$36/1000 -> 20.265 | E52: =All!$X$36/1000 -> 53.233
A54: =A$21 -> 2017
A55: Employment by Gender | B55: FT | C55: PT | D55: SE | E55: Total
A56: Male employment | B56: =MalesFT!$AC$36/1000 -> 18.644 | C56: =MalesPT!$AC$36/1000 -> 2.464 | D56: =MalesSE!$AC$36/1000 -> 13.572 | E56: =Males!$AC$36/1000 -> 34.68
A57: Female employment | B57: =FemalesFT!$AC$36/1000 -> 6.468 | C57: =FemalesPT!$AC$36/1000 -> 0.983 | D57: =FemalesSE!$AC$36/1000 -> 3.449 | E57: =Females!$AC$36/1000 -> 10.9
A58: Total employment | B58: =FT!$AC$36/1000 -> 25.112 | C58: =PT!$AC$36/1000 -> 3.447 | D58: =SE!$AC$36/1000 -> 17.021 | E58: =All!$AC$36/1000 -> 45.58
A60: =A$27 -> 2022
A61: Employment by Gender | B61: FT | C61: PT | D61: SE | E61: Total
A62: Male employment | B62: =MalesFT!$AH$36/1000 -> 17.952 | C62: =MalesPT!$AH$36/1000 -> 2.513 | D62: =MalesSE!$AH$36/1000 -> 13.041 | E62: =Males!$AH$36/1000 -> 33.506
A63: Female employment | B63: =FemalesFT!$AH$36/1000 -> 7.087 | C63: =FemalesPT!$AH$36/1000 -> 1.158 | D63: =FemalesSE!$AH$36/1000 -> 3.552 | E63: =Females!$AH$36/1000 -> 11.797
A64: Total employment | B64: =FT!$AH$36/1000 -> 25.039 | C64: =PT!$AH$36/1000 -> 3.671 | D64: =SE!$AH$36/1000 -> 16.593 | E64: =All!$AH$36/1000 -> 45.303
A67: Table 6.x.2a | B67: Employment Status
A68: =names!A5 -> Mining and quarrying | E68: 000s
A69: =A$3 -> 2002
A70: Employment by Gender | B70: FT | C70: PT | D70: SE | E70: Total
A71: Male employment | B71: =MalesFT!$N$64/1000 -> 17.661 | C71: =MalesPT!$N$64/1000 -> 0.11 | D71: =MalesSE!$N$64/1000 -> 1.028 | E71: =Males!$N$64/1000 -> 18.799
A72: Female employment | B72: =FemalesFT!$N$64/1000 -> 3.412 | C72: =FemalesPT!$N$64/1000 -> 0.159 | D72: =FemalesSE!$N$64/1000 -> 0.084 | E72: =Females!$N$64/1000 -> 3.655
A73: Total employment | B73: =FT!$N$64/1000 -> 21.073 | C73: =PT!$N$64/1000 -> 0.269 | D73: =SE!$N$64/1000 -> 1.112 | E73: =All!$N$64/1000 -> 22.454
A75: =A$9 -> 2007
A76: Employment by Gender | B76: FT | C76: PT | D76: SE | E76: Total
A77: Male employment | B77: =MalesFT!$S$64/1000 -> 22.508 | C77: =MalesPT!$S$64/1000 -> 0.112 | D77: =MalesSE!$S$64/1000 -> 3.041 | E77: =Males!$S$64/1000 -> 25.661
A78: Female employment | B78: =FemalesFT!$S$64/1000 -> 3.088 | C78: =FemalesPT!$S$64/1000 -> 1.711 | D78: =FemalesSE!$S$64/1000 -> 0.001 | E78: =Females!$S$64/1000 -> 4.8
A79: Total employment | B79: =FT!$S$64/1000 -> 25.596 | C79: =PT!$S$64/1000 -> 1.823 | D79: =SE!$S$64/1000 -> 3.042 | E79: =All!$S$64/1000 -> 30.461
A81: =A$15 -> 2012
A82: Employment by Gender | B82: FT | C82: PT | D82: SE | E82: Total
A83: Male employment | B83: =MalesFT!$X$64/1000 -> 24.307 | C83: =MalesPT!$X$64/1000 -> 0.111 | D83: =MalesSE!$X$64/1000 -> 2.823 | E83: =Males!$X$64/1000 -> 27.241
A84: Female employment | B84: =FemalesFT!$X$64/1000 -> 4.929 | C84: =FemalesPT!$X$64/1000 -> 1.758 | D84: =FemalesSE!$X$64/1000 -> 0 | E84: =Females!$X$64/1000 -> 6.687
A85: Total employment | B85: =FT!$X$64/1000 -> 29.236 | C85: =PT!$X$64/1000 -> 1.869 | D85: =SE!$X$64/1000 -> 2.823 | E85: =All!$X$64/1000 -> 33.928
A87: =A$21 -> 2017
A88: Employment by Gender | B88: FT | C88: PT | D88: SE | E88: Total
A89: Male employment | B89: =MalesFT!$AC$64/1000 -> 22.293 | C89: =MalesPT!$AC$64/1000 -> 0.128 | D89: =MalesSE!$AC$64/1000 -> 2.46 | E89: =Males!$AC$64/1000 -> 24.881
A90: Female employment | B90: =FemalesFT!$AC$64/1000 -> 4.683 | C90: =FemalesPT!$AC$64/1000 -> 1.688 | D90: =FemalesSE!$AC$64/1000 -> 0 | E90: =Females!$AC$64/1000 -> 6.371
A91: Total employment | B91: =FT!$AC$64/1000 -> 26.976 | C91: =PT!$AC$64/1000 -> 1.816 | D91: =SE!$AC$64/1000 -> 2.46 | E91: =All!$AC$64/1000 -> 31.252
A93: =A$27 -> 2022
A94: Employment by Gender | B94: FT | C94: PT | D94: SE | E94: Total
A95: Male employment | B95: =MalesFT!$AH$64/1000 -> 21.723 | C95: =MalesPT!$AH$64/1000 -> 0.15 | D95: =MalesSE!$AH$64/1000 -> 2.368 | E95: =Males!$AH$64/1000 -> 24.241
A96: Female employment | B96: =FemalesFT!$AH$64/1000 -> 4.588 | C96: =FemalesPT!$AH$64/1000 -> 1.625 | D96: =FemalesSE!$AH$64/1000 -> 0 | E96: =Females!$AH$64/1000 -> 6.213
A97: Total employment | B97: =FT!$AH$64/1000 -> 26.311 | C97: =PT!$AH$64/1000 -> 1.775 | D97: =SE!$AH$64/1000 -> 2.368 | E97: =All!$AH$64/1000 -> 30.454
A100: Table 6.x.2a | B100: Employment Status
A101: =names!A6 -> Food drink and tobacco | E101: 000s
A102: =A$3 -> 2002
A103: Employment by Gender | B103: FT | C103: PT | D103: SE | E103: Total
A104: Male employment | B104: =MalesFT!$N$92/1000 -> 31.295 | C104: =MalesPT!$N$92/1000 -> 1.702 | D104: =MalesSE!$N$92/1000 -> 0.614 | E104: =Males!$N$92/1000 -> 33.611
A105: Female employment | B105: =FemalesFT!$N$92/1000 -> 14.362 | C105: =FemalesPT!$N$92/1000 -> 6.197 | D105: =FemalesSE!$N$92/1000 -> 0.681 | E105: =Females!$N$92/1000 -> 21.24
A106: Total employment | B106: =FT!$N$92/1000 -> 45.657 | C106: =PT!$N$92/1000 -> 7.899 | D106: =SE!$N$92/1000 -> 1.295 | E106: =All!$N$92/1000 -> 54.851
A108: =A$9 -> 2007
A109: Employment by Gender | B109: FT | C109: PT | D109: SE | E109: Total
A110: Male employment | B110: =MalesFT!$S$92/1000 -> 27.656 | C110: =MalesPT!$S$92/1000 -> 1.526 | D110: =MalesSE!$S$92/1000 -> 1.167 | E110: =Males!$S$92/1000 -> 30.349
A111: Female employment | B111: =FemalesFT!$S$92/1000 -> 12.138 | C111: =FemalesPT!$S$92/1000 -> 4.789 | D111: =FemalesSE!$S$92/1000 -> 0.996 | E111: =Females!$S$92/1000 -> 17.923
A112: Total employment | B112: =FT!$S$92/1000 -> 39.794 | C112: =PT!$S$92/1000 -> 6.315 | D112: =SE!$S$92/1000 -> 2.163 | E112: =All!$S$92/1000 -> 48.272
A114: =A$15 -> 2012
A115: Employment by Gender | B115: FT | C115: PT | D115: SE | E115: Total
A116: Male employment | B116: =MalesFT!$X$92/1000 -> 26.968 | C116: =MalesPT!$X$92/1000 -> 2.026 | D116: =MalesSE!$X$92/1000 -> 0.952 | E116: =Males!$X$92/1000 -> 29.946
A117: Female employment | B117: =FemalesFT!$X$92/1000 -> 12.142 | C117: =FemalesPT!$X$92/1000 -> 5.147 | D117: =FemalesSE!$X$92/1000 -> 1.487 | E117: =Females!$X$92/1000 -> 18.776
A118: Total employment | B118: =FT!$X$92/1000 -> 39.11 | C118: =PT!$X$92/1000 -> 7.173 | D118: =SE!$X$92/1000 -> 2.439 | E118: =All!$X$92/1000 -> 48.722
A120: =A$21 -> 2017
A121: Employment by Gender | B121: FT | C121: PT | D121: SE | E121: Total
A122: Male employment | B122: =MalesFT!$AC$92/1000 -> 26.002 | C122: =MalesPT!$AC$92/1000 -> 2.386 | D122: =MalesSE!$AC$92/1000 -> 0.939 | E122: =Males!$AC$92/1000 -> 29.327
A123: Female employment | B123: =FemalesFT!$AC$92/1000 -> 11.94 | C123: =FemalesPT!$AC$92/1000 -> 5.158 | D123: =FemalesSE!$AC$92/1000 -> 1.435 | E123: =Females!$AC$92/1000 -> 18.533
A124: Total employment | B124: =FT!$AC$92/1000 -> 37.942 | C124: =PT!$AC$92/1000 -> 7.544 | D124: =SE!$AC$92/1000 -> 2.374 | E124: =All!$AC$92/1000 -> 47.86
A126: =A$27 -> 2022
A127: Employment by Gender | B127: FT | C127: PT | D127: SE | E127: Total
A128: Male employment | B128: =MalesFT!$AH$92/1000 -> 24.063 | C128: =MalesPT!$AH$92/1000 -> 2.599 | D128: =MalesSE!$AH$92/1000 -> 0.883 | E128: =Males!$AH$92/1000 -> 27.545
A129: Female employment | B129: =FemalesFT!$AH$92/1000 -> 11.231 | C129: =FemalesPT!$AH$92/1000 -> 4.939 | D129: =FemalesSE!$AH$92/1000 -> 1.326 | E129: =Females!$AH$92/1000 -> 17.496
A130: Total employment | B130: =FT!$AH$92/1000 -> 35.294 | C130: =PT!$AH$92/1000 -> 7.538 | D130: =SE!$AH$92/1000 -> 2.209 | E130: =All!$AH$92/1000 -> 45.041
A133: Table 6.x.2a | B133: Employment Status
A134: =names!A7 -> Engineering | E134: 000s
A135: =A$3 -> 2002
A136: Employment by Gender | B136: FT | C136: PT | D136: SE | E136: Total
A137: Male employment | B137: =MalesFT!$N$120/1000 -> 39.221 | C137: =MalesPT!$N$120/1000 -> 0.488 | D137: =MalesSE!$N$120/1000 -> 1.109 | E137: =Males!$N$120/1000 -> 40.818
A138: Female employment | B138: =FemalesFT!$N$120/1000 -> 14.831 | C138: =FemalesPT!$N$120/1000 -> 1.661 | D138: =FemalesSE!$N$120/1000 -> 0.118 | E138: =Females!$N$120/1000 -> 16.61
A139: Total employment | B139: =FT!$N$120/1000 -> 54.052 | C139: =PT!$N$120/1000 -> 2.149 | D139: =SE!$N$120/1000 -> 1.227 | E139: =All!$N$120/1000 -> 57.428
A141: =A$9 -> 2007
A142: Employment by Gender | B142: FT | C142: PT | D142: SE | E142: Total
A143: Male employment | B143: =MalesFT!$S$120/1000 -> 31.078 | C143: =MalesPT!$S$120/1000 -> 0.399 | D143: =MalesSE!$S$120/1000 -> 1.769 | E143: =Males!$S$120/1000 -> 33.246
A144: Female employment | B144: =FemalesFT!$S$120/1000 -> 7.869 | C144: =FemalesPT!$S$120/1000 -> 1.414 | D144: =FemalesSE!$S$120/1000 -> 0.657 | E144: =Females!$S$120/1000 -> 9.94
A145: Total employment | B145: =FT!$S$120/1000 -> 38.947 | C145: =PT!$S$120/1000 -> 1.813 | D145: =SE!$S$120/1000 -> 2.426 | E145: =All!$S$120/1000 -> 43.186
A147: =A$15 -> 2012
A148: Employment by Gender | B148: FT | C148: PT | D148: SE | E148: Total
A149: Male employment | B149: =MalesFT!$X$120/1000 -> 21.212 | C149: =MalesPT!$X$120/1000 -> 0.404 | D149: =MalesSE!$X$120/1000 -> 1.122 | E149: =Males!$X$120/1000 -> 22.738
A150: Female employment | B150: =FemalesFT!$X$120/1000 -> 4.879 | C150: =FemalesPT!$X$120/1000 -> 1.879 | D150: =FemalesSE!$X$120/1000 -> 0.281 | E150: =Females!$X$120/1000 -> 7.039
A151: Total employment | B151: =FT!$X$120/1000 -> 26.091 | C151: =PT!$X$120/1000 -> 2.283 | D151: =SE!$X$120/1000 -> 1.403 | E151: =All!$X$120/1000 -> 29.777
A153: =A$21 -> 2017
A154: Employment by Gender | B154: FT | C154: PT | D154: SE | E154: Total
A155: Male employment | B155: =MalesFT!$AC$120/1000 -> 20.612 | C155: =MalesPT!$AC$120/1000 -> 0.526 | D155: =MalesSE!$AC$120/1000 -> 1.228 | E155: =Males!$AC$120/1000 -> 22.366
A156: Female employment | B156: =FemalesFT!$AC$120/1000 -> 5.102 | C156: =FemalesPT!$AC$120/1000 -> 2.154 | D156: =FemalesSE!$AC$120/1000 -> 0.328 | E156: =Females!$AC$120/1000 -> 7.584
A157: Total employment | B157: =FT!$AC$120/1000 -> 25.714 | C157: =PT!$AC$120/1000 -> 2.68 | D157: =SE!$AC$120/1000 -> 1.556 | E157: =All!$AC$120/1000 -> 29.95
A159: =A$27 -> 2022
A160: Employment by Gender | B160: FT | C160: PT | D160: SE | E160: Total
A161: Male employment | B161: =MalesFT!$AH$120/1000 -> 20.38 | C161: =MalesPT!$AH$120/1000 -> 0.673 | D161: =MalesSE!$AH$120/1000 -> 1.374 | E161: =Males!$AH$120/1000 -> 22.427
A162: Female employment | B162: =FemalesFT!$AH$120/1000 -> 5.384 | C162: =FemalesPT!$AH$120/1000 -> 2.535 | D162: =FemalesSE!$AH$120/1000 -> 0.387 | E162: =Females!$AH$120/1000 -> 8.306
A163: Total employment | B163: =FT!$AH$120/1000 -> 25.764 | C163: =PT!$AH$120/1000 -> 3.208 | D163: =SE!$AH$120/1000 -> 1.761 | E163: =All!$AH$120/1000 -> 30.733
A166: Table 6.x.2a | B166: Employment Status
A167: =names!A8 -> Rest of manufacturing | E167: 000s
A168: =A$3 -> 2002
A169: Employment by Gender | B169: FT | C169: PT | D169: SE | E169: Total
A170: Male employment | B170: =MalesFT!$N$148/1000 -> 105.08 | C170: =MalesPT!$N$148/1000 -> 5.853 | D170: =MalesSE!$N$148/1000 -> 8.443 | E170: =Males!$N$148/1000 -> 119.376
A171: Female employment | B171: =FemalesFT!$N$148/1000 -> 32.873 | C171: =FemalesPT!$N$148/1000 -> 8.224 | D171: =FemalesSE!$N$148/1000 -> 2.363 | E171: =Females!$N$148/1000 -> 43.46
A172: Total employment | B172: =FT!$N$148/1000 -> 137.953 | C172: =PT!$N$148/1000 -> 14.077 | D172: =SE!$N$148/1000 -> 10.806 | E172: =All!$N$148/1000 -> 162.836
A174: =A$9 -> 2007
A175: Employment by Gender | B175: FT | C175: PT | D175: SE | E175: Total
A176: Male employment | B176: =MalesFT!$S$148/1000 -> 95.508 | C176: =MalesPT!$S$148/1000 -> 3.103 | D176: =MalesSE!$S$148/1000 -> 7.398 | E176: =Males!$S$148/1000 -> 106.009
A177: Female employment | B177: =FemalesFT!$S$148/1000 -> 21.002 | C177: =FemalesPT!$S$148/1000 -> 6.963 | D177: =FemalesSE!$S$148/1000 -> 3.235 | E177: =Females!$S$148/1000 -> 31.2
A178: Total employment | B178: =FT!$S$148/1000 -> 116.51 | C178: =PT!$S$148/1000 -> 10.066 | D178: =SE!$S$148/1000 -> 10.633 | E178: =All!$S$148/1000 -> 137.209
A180: =A$15 -> 2012
A181: Employment by Gender | B181: FT | C181: PT | D181: SE | E181: Total
A182: Male employment | B182: =MalesFT!$X$148/1000 -> 85.002 | C182: =MalesPT!$X$148/1000 -> 2.556 | D182: =MalesSE!$X$148/1000 -> 9.665 | E182: =Males!$X$148/1000 -> 97.223
A183: Female employment | B183: =FemalesFT!$X$148/1000 -> 17.963 | C183: =FemalesPT!$X$148/1000 -> 5.073 | D183: =FemalesSE!$X$148/1000 -> 3.596 | E183: =Females!$X$148/1000 -> 26.632
A184: Total employment | B184: =FT!$X$148/1000 -> 102.965 | C184: =PT!$X$148/1000 -> 7.629 | D184: =SE!$X$148/1000 -> 13.261 | E184: =All!$X$148/1000 -> 123.855
A186: =A$21 -> 2017
A187: Employment by Gender | B187: FT | C187: PT | D187: SE | E187: Total
A188: Male employment | B188: =MalesFT!$AC$148/1000 -> 79.424 | C188: =MalesPT!$AC$148/1000 -> 2.799 | D188: =MalesSE!$AC$148/1000 -> 9.297 | E188: =Males!$AC$148/1000 -> 91.52
A189: Female employment | B189: =FemalesFT!$AC$148/1000 -> 17.025 | C189: =FemalesPT!$AC$148/1000 -> 4.975 | D189: =FemalesSE!$AC$148/1000 -> 3.126 | E189: =Females!$AC$148/1000 -> 25.126
A190: Total employment | B190: =FT!$AC$148/1000 -> 96.449 | C190: =PT!$AC$148/1000 -> 7.774 | D190: =SE!$AC$148/1000 -> 12.423 | E190: =All!$AC$148/1000 -> 116.646
A192: =A$27 -> 2022
A193: Employment by Gender | B193: FT | C193: PT | D193: SE | E193: Total
A194: Male employment | B194: =MalesFT!$AH$148/1000 -> 72.619 | C194: =MalesPT!$AH$148/1000 -> 2.978 | D194: =MalesSE!$AH$148/1000 -> 8.753 | E194: =Males!$AH$148/1000 -> 84.35
A195: Female employment | B195: =FemalesFT!$AH$148/1000 -> 16.417 | C195: =FemalesPT!$AH$148/1000 -> 4.988 | D195: =FemalesSE!$AH$148/1000 -> 2.813 | E195: =Females!$AH$148/1000 -> 24.218
A196: Total employment | B196: =FT!$AH$148/1000 -> 89.036 | C196: =PT!$AH$148/1000 -> 7.966 | D196: =SE!$AH$148/1000 -> 11.566 | E196: =All!$AH$148/1000 -> 108.568
A199: Table 6.x.2a | B199: Employment Status
A200: =names!A9 -> Electricity and gas | E200: 000s
A201: =A$3 -> 2002
A202: Employment by Gender | B202: FT | C202: PT | D202: SE | E202: Total
A203: Male employment | B203: =MalesFT!$N$176/1000 -> 8.02 | C203: =MalesPT!$N$176/1000 -> 0.997 | D203: =MalesSE!$N$176/1000 -> 0 | E203: =Males!$N$176/1000 -> 9.017
A204: Female employment | B204: =FemalesFT!$N$176/1000 -> 3.862 | C204: =FemalesPT!$N$176/1000 -> 1.499 | D204: =FemalesSE!$N$176/1000 -> 0.085 | E204: =Females!$N$176/1000 -> 5.446
A205: Total employment | B205: =FT!$N$176/1000 -> 11.882 | C205: =PT!$N$176/1000 -> 2.496 | D205: =SE!$N$176/1000 -> 0.085 | E205: =All!$N$176/1000 -> 14.463
A207: =A$9 -> 2007
A208: Employment by Gender | B208: FT | C208: PT | D208: SE | E208: Total
A209: Male employment | B209: =MalesFT!$S$176/1000 -> 8.909 | C209: =MalesPT!$S$176/1000 -> 0.084 | D209: =MalesSE!$S$176/1000 -> 0 | E209: =Males!$S$176/1000 -> 8.993
A210: Female employment | B210: =FemalesFT!$S$176/1000 -> 3.101 | C210: =FemalesPT!$S$176/1000 -> 1.03 | D210: =FemalesSE!$S$176/1000 -> 0.031 | E210: =Females!$S$176/1000 -> 4.162
A211: Total employment | B211: =FT!$S$176/1000 -> 12.01 | C211: =PT!$S$176/1000 -> 1.114 | D211: =SE!$S$176/1000 -> 0.031 | E211: =All!$S$176/1000 -> 13.155
A213: =A$15 -> 2012
A214: Employment by Gender | B214: FT | C214: PT | D214: SE | E214: Total
A215: Male employment | B215: =MalesFT!$X$176/1000 -> 11.708 | C215: =MalesPT!$X$176/1000 -> 1.99 | D215: =MalesSE!$X$176/1000 -> 0.924 | E215: =Males!$X$176/1000 -> 14.622
A216: Female employment | B216: =FemalesFT!$X$176/1000 -> 4.965 | C216: =FemalesPT!$X$176/1000 -> 0.802 | D216: =FemalesSE!$X$176/1000 -> 0.042 | E216: =Females!$X$176/1000 -> 5.809
A217: Total employment | B217: =FT!$X$176/1000 -> 16.673 | C217: =PT!$X$176/1000 -> 2.792 | D217: =SE!$X$176/1000 -> 0.966 | E217: =All!$X$176/1000 -> 20.431
A219: =A$21 -> 2017
A220: Employment by Gender | B220: FT | C220: PT | D220: SE | E220: Total
A221: Male employment | B221: =MalesFT!$AC$176/1000 -> 13.717 | C221: =MalesPT!$AC$176/1000 -> 2.044 | D221: =MalesSE!$AC$176/1000 -> 1.02 | E221: =Males!$AC$176/1000 -> 16.781
A222: Female employment | B222: =FemalesFT!$AC$176/1000 -> 4.972 | C222: =FemalesPT!$AC$176/1000 -> 0.899 | D222: =FemalesSE!$AC$176/1000 -> 0.047 | E222: =Females!$AC$176/1000 -> 5.918
A223: Total employment | B223: =FT!$AC$176/1000 -> 18.689 | C223: =PT!$AC$176/1000 -> 2.943 | D223: =SE!$AC$176/1000 -> 1.067 | E223: =All!$AC$176/1000 -> 22.699
A225: =A$27 -> 2022
A226: Employment by Gender | B226: FT | C226: PT | D226: SE | E226: Total
A227: Male employment | B227: =MalesFT!$AH$176/1000 -> 14.82 | C227: =MalesPT!$AH$176/1000 -> 1.879 | D227: =MalesSE!$AH$176/1000 -> 1.051 | E227: =Males!$AH$176/1000 -> 17.75
A228: Female employment | B228: =FemalesFT!$AH$176/1000 -> 4.456 | C228: =FemalesPT!$AH$176/1000 -> 0.924 | D228: =FemalesSE!$AH$176/1000 -> 0.049 | E228: =Females!$AH$176/1000 -> 5.429
A229: Total employment | B229: =FT!$AH$176/1000 -> 19.276 | C229: =PT!$AH$176/1000 -> 2.803 | D229: =SE!$AH$176/1000 -> 1.1 | E229: =All!$AH$176/1000 -> 23.179
A232: Table 6.x.2a | B232: Employment Status
A233: =names!A10 -> Water and sewerage | E233: 000s
A234: =A$3 -> 2002
A235: Employment by Gender | B235: FT | C235: PT | D235: SE | E235: Total
A236: Male employment | B236: =MalesFT!$N$204/1000 -> 13.195 | C236: =MalesPT!$N$204/1000 -> 0.903 | D236: =MalesSE!$N$204/1000 -> 0 | E236: =Males!$N$204/1000 -> 14.098
A237: Female employment | B237: =FemalesFT!$N$204/1000 -> 3.416 | C237: =FemalesPT!$N$204/1000 -> 3.009 | D237: =FemalesSE!$N$204/1000 -> 0.067 | E237: =Females!$N$204/1000 -> 6.492
A238: Total employment | B238: =FT!$N$204/1000 -> 16.611 | C238: =PT!$N$204/1000 -> 3.912 | D238: =SE!$N$204/1000 -> 0.067 | E238: =All!$N$204/1000 -> 20.59
A240: =A$9 -> 2007
A241: Employment by Gender | B241: FT | C241: PT | D241: SE | E241: Total
A242: Male employment | B242: =MalesFT!$S$204/1000 -> 14.001 | C242: =MalesPT!$S$204/1000 -> 0 | D242: =MalesSE!$S$204/1000 -> 0 | E242: =Males!$S$204/1000 -> 14.001
A243: Female employment | B243: =FemalesFT!$S$204/1000 -> 2.122 | C243: =FemalesPT!$S$204/1000 -> 0.897 | D243: =FemalesSE!$S$204/1000 -> 1.725 | E243: =Females!$S$204/1000 -> 4.744
... 265 more rows

Sheet Table 6.x.2b CD
A1: Table 6.x.2b | B1: Employment Shares
A2: ='Table 6.x.2a CD'!A2 -> All industries | E2: per cent
A3: ='Table 6.x.2a CD'!A3 -> 2002
A4: Employment by Gender | B4: FT | C4: PT | D4: SE | E4: Total
A5: Male employment | B5: ='Table 6.x.2a CD'!B5/'Table 6.x.2a CD'!E7*100 -> 37.70140545 | C5: ='Table 6.x.2a CD'!C5/'Table 6.x.2a CD'!E7*100 -> 6.027183461 | D5: ='Table 6.x.2a CD'!D5/'Table 6.x.2a CD'!E7*100 -> 6.350114506 | E5: ='Table 6.x.2a CD'!E5/'Table 6.x.2a CD'!E7*100 -> 50.07870341
A6: Female employment | B6: ='Table 6.x.2a CD'!B6/'Table 6.x.2a CD'!E7*100 -> 24.36460817 | C6: ='Table 6.x.2a CD'!C6/'Table 6.x.2a CD'!E7*100 -> 23.10903972 | D6: ='Table 6.x.2a CD'!D6/'Table 6.x.2a CD'!E7*100 -> 2.447648701 | E6: ='Table 6.x.2a CD'!E6/'Table 6.x.2a CD'!E7*100 -> 49.92129659
A7: Total employment | B7: ='Table 6.x.2a CD'!B7/'Table 6.x.2a CD'!E7*100 -> 62.06601362 | C7: ='Table 6.x.2a CD'!C7/'Table 6.x.2a CD'!E7*100 -> 29.13622318 | D7: ='Table 6.x.2a CD'!D7/'Table 6.x.2a CD'!E7*100 -> 8.797763207 | E7: ='Table 6.x.2a CD'!E7/'Table 6.x.2a CD'!E7*100 -> 100
A9: ='Table 6.x.2a CD'!A9 -> 2007
A10: Employment by Gender | B10: FT | C10: PT | D10: SE | E10: Total
A11: Male employment | B11: ='Table 6.x.2a CD'!B11/'Table 6.x.2a CD'!E13*100 -> 38.16781477 | C11: ='Table 6.x.2a CD'!C11/'Table 6.x.2a CD'!E13*100 -> 6.978500318 | D11: ='Table 6.x.2a CD'!D11/'Table 6.x.2a CD'!E13*100 -> 6.610352806 | E11: ='Table 6.x.2a CD'!E11/'Table 6.x.2a CD'!E13*100 -> 51.75666789
A12: Female employment | B12: ='Table 6.x.2a CD'!B12/'Table 6.x.2a CD'!E13*100 -> 23.64766325 | C12: ='Table 6.x.2a CD'!C12/'Table 6.x.2a CD'!E13*100 -> 21.68555919 | D12: ='Table 6.x.2a CD'!D12/'Table 6.x.2a CD'!E13*100 -> 2.910109668 | E12: ='Table 6.x.2a CD'!E12/'Table 6.x.2a CD'!E13*100 -> 48.24333211
A13: Total employment | B13: ='Table 6.x.2a CD'!B13/'Table 6.x.2a CD'!E13*100 -> 61.81547802 | C13: ='Table 6.x.2a CD'!C13/'Table 6.x.2a CD'!E13*100 -> 28.66405951 | D13: ='Table 6.x.2a CD'!D13/'Table 6.x.2a CD'!E13*100 -> 9.520462473 | E13: ='Table 6.x.2a CD'!E13/'Table 6.x.2a CD'!E13*100 -> 100
A15: ='Table 6.x.2a CD'!A15 -> 2012
A16: Employment by Gender | B16: FT | C16: PT | D16: SE | E16: Total
A17: Male employment | B17: ='Table 6.x.2a CD'!B17/'Table 6.x.2a CD'!E19*100 -> 37.12392975 | C17: ='Table 6.x.2a CD'!C17/'Table 6.x.2a CD'!E19*100 -> 7.133707695 | D17: ='Table 6.x.2a CD'!D17/'Table 6.x.2a CD'!E19*100 -> 7.781161403 | E17: ='Table 6.x.2a CD'!E17/'Table 6.x.2a CD'!E19*100 -> 52.03879884
A18: Female employment | B18: ='Table 6.x.2a CD'!B18/'Table 6.x.2a CD'!E19*100 -> 22.93002851 | C18: ='Table 6.x.2a CD'!C18/'Table 6.x.2a CD'!E19*100 -> 21.03566892 | D18: ='Table 6.x.2a CD'!D18/'Table 6.x.2a CD'!E19*100 -> 3.995503731 | E18: ='Table 6.x.2a CD'!E18/'Table 6.x.2a CD'!E19*100 -> 47.96120116
A19: Total employment | B19: ='Table 6.x.2a CD'!B19/'Table 6.x.2a CD'!E19*100 -> 60.05395826 | C19: ='Table 6.x.2a CD'!C19/'Table 6.x.2a CD'!E19*100 -> 28.16937661 | D19: ='Table 6.x.2a CD'!D19/'Table 6.x.2a CD'!E19*100 -> 11.77666513 | E19: ='Table 6.x.2a CD'!E19/'Table 6.x.2a CD'!E19*100 -> 100
A21: ='Table 6.x.2a CD'!A21 -> 2017
A22: Employment by Gender | B22: FT | C22: PT | D22: SE | E22: Total
A23: Male employment | B23: ='Table 6.x.2a CD'!B23/'Table 6.x.2a CD'!E25*100 -> 36.62137749 | C23: ='Table 6.x.2a CD'!C23/'Table 6.x.2a CD'!E25*100 -> 7.581024388 | D23: ='Table 6.x.2a CD'!D23/'Table 6.x.2a CD'!E25*100 -> 7.558623129 | E23: ='Table 6.x.2a CD'!E23/'Table 6.x.2a CD'!E25*100 -> 51.761025
A24: Female employment | B24: ='Table 6.x.2a CD'!B24/'Table 6.x.2a CD'!E25*100 -> 23.20558672 | C24: ='Table 6.x.2a CD'!C24/'Table 6.x.2a CD'!E25*100 -> 21.07980755 | D24: ='Table 6.x.2a CD'!D24/'Table 6.x.2a CD'!E25*100 -> 3.953580728 | E24: ='Table 6.x.2a CD'!E24/'Table 6.x.2a CD'!E25*100 -> 48.238975
A25: Total employment | B25: ='Table 6.x.2a CD'!B25/'Table 6.x.2a CD'!E25*100 -> 59.82696421 | C25: ='Table 6.x.2a CD'!C25/'Table 6.x.2a CD'!E25*100 -> 28.66083194 | D25: ='Table 6.x.2a CD'!D25/'Table 6.x.2a CD'!E25*100 -> 11.51220386 | E25: ='Table 6.x.2a CD'!E25/'Table 6.x.2a CD'!E25*100 -> 100
A27: ='Table 6.x.2a CD'!A27 -> 2022
A28: Employment by Gender | B28: FT | C28: PT | D28: SE | E28: Total
A29: Male employment | B29: ='Table 6.x.2a CD'!B29/'Table 6.x.2a CD'!E31*100 -> 36.01364755 | C29: ='Table 6.x.2a CD'!C29/'Table 6.x.2a CD'!E31*100 -> 7.990622154 | D29: ='Table 6.x.2a CD'!D29/'Table 6.x.2a CD'!E31*100 -> 7.280213026 | E29: ='Table 6.x.2a CD'!E29/'Table 6.x.2a CD'!E31*100 -> 51.28448273
A30: Female employment | B30: ='Table 6.x.2a CD'!B30/'Table 6.x.2a CD'!E31*100 -> 23.56061664 | C30: ='Table 6.x.2a CD'!C30/'Table 6.x.2a CD'!E31*100 -> 21.27857133 | D30: ='Table 6.x.2a CD'!D30/'Table 6.x.2a CD'!E31*100 -> 3.876329303 | E30: ='Table 6.x.2a CD'!E30/'Table 6.x.2a CD'!E31*100 -> 48.71551727
A31: Total employment | B31: ='Table 6.x.2a CD'!B31/'Table 6.x.2a CD'!E31*100 -> 59.57426419 | C31: ='Table 6.x.2a CD'!C31/'Table 6.x.2a CD'!E31*100 -> 29.26919348 | D31: ='Table 6.x.2a CD'!D31/'Table 6.x.2a CD'!E31*100 -> 11.15654233 | E31: ='Table 6.x.2a CD'!E31/'Table 6.x.2a CD'!E31*100 -> 100
A34: Table 6.x.2b | B34: Employment Status
A35: ='Table 6.x.2a CD'!A35 -> Agriculture | E35: per cent
A36: ='Table 6.x.2a CD'!A36 -> 2002
A37: Employment by Gender | B37: FT | C37: PT | D37: SE | E37: Total
A38: Male employment | B38: ='Table 6.x.2a CD'!B38/'Table 6.x.2a CD'!E40*100 -> 52.7970664 | C38: ='Table 6.x.2a CD'!C38/'Table 6.x.2a CD'!E40*100 -> 1.874463603 | D38: ='Table 6.x.2a CD'!D38/'Table 6.x.2a CD'!E40*100 -> 27.36794882 | E38: ='Table 6.x.2a CD'!E38/'Table 6.x.2a CD'!E40*100 -> 82.03947882
A39: Female employment | B39: ='Table 6.x.2a CD'!B39/'Table 6.x.2a CD'!E40*100 -> 11.75977218 | C39: ='Table 6.x.2a CD'!C39/'Table 6.x.2a CD'!E40*100 -> 2.007099945 | D39: ='Table 6.x.2a CD'!D39/'Table 6.x.2a CD'!E40*100 -> 4.19364906 | E39: ='Table 6.x.2a CD'!E39/'Table 6.x.2a CD'!E40*100 -> 17.96052118
A40: Total employment | B40: ='Table 6.x.2a CD'!B40/'Table 6.x.2a CD'!E40*100 -> 64.55683857 | C40: ='Table 6.x.2a CD'!C40/'Table 6.x.2a CD'!E40*100 -> 3.881563548 | D40: ='Table 6.x.2a CD'!D40/'Table 6.x.2a CD'!E40*100 -> 31.56159788 | E40: ='Table 6.x.2a CD'!E40/'Table 6.x.2a CD'!E40*100 -> 100
A42: ='Table 6.x.2a CD'!A42 -> 2007
A43: Employment by Gender | B43: FT | C43: PT | D43: SE | E43: Total
A44: Male employment | B44: ='Table 6.x.2a CD'!B44/'Table 6.x.2a CD'!E46*100 -> 39.6092478 | C44: ='Table 6.x.2a CD'!C44/'Table 6.x.2a CD'!E46*100 -> 13.2171931 | D44: ='Table 6.x.2a CD'!D44/'Table 6.x.2a CD'!E46*100 -> 26.79257571 | E44: ='Table 6.x.2a CD'!E44/'Table 6.x.2a CD'!E46*100 -> 79.61901661
A45: Female employment | B45: ='Table 6.x.2a CD'!B45/'Table 6.x.2a CD'!E46*100 -> 3.243243243 | C45: ='Table 6.x.2a CD'!C45/'Table 6.x.2a CD'!E46*100 -> 10.55519375 | D45: ='Table 6.x.2a CD'!D45/'Table 6.x.2a CD'!E46*100 -> 6.582546402 | E45: ='Table 6.x.2a CD'!E45/'Table 6.x.2a CD'!E46*100 -> 20.38098339
A46: Total employment | B46: ='Table 6.x.2a CD'!B46/'Table 6.x.2a CD'!E46*100 -> 42.85249105 | C46: ='Table 6.x.2a CD'!C46/'Table 6.x.2a CD'!E46*100 -> 23.77238684 | D46: ='Table 6.x.2a CD'!D46/'Table 6.x.2a CD'!E46*100 -> 33.37512211 | E46: ='Table 6.x.2a CD'!E46/'Table 6.x.2a CD'!E46*100 -> 100
A48: ='Table 6.x.2a CD'!A48 -> 2012
A49: Employment by Gender | B49: FT | C49: PT | D49: SE | E49: Total
A50: Male employment | B50: ='Table 6.x.2a CD'!B50/'Table 6.x.2a CD'!E52*100 -> 41.58510698 | C50: ='Table 6.x.2a CD'!C50/'Table 6.x.2a CD'!E52*100 -> 5.378242819 | D50: ='Table 6.x.2a CD'!D50/'Table 6.x.2a CD'!E52*100 -> 30.51490617 | E50: ='Table 6.x.2a CD'!E50/'Table 6.x.2a CD'!E52*100 -> 77.47825597
A51: Female employment | B51: ='Table 6.x.2a CD'!B51/'Table 6.x.2a CD'!E52*100 -> 13.11592433 | C51: ='Table 6.x.2a CD'!C51/'Table 6.x.2a CD'!E52*100 -> 1.852234516 | D51: ='Table 6.x.2a CD'!D51/'Table 6.x.2a CD'!E52*100 -> 7.553585182 | E51: ='Table 6.x.2a CD'!E51/'Table 6.x.2a CD'!E52*100 -> 22.52174403
A52: Total employment | B52: ='Table 6.x.2a CD'!B52/'Table 6.x.2a CD'!E52*100 -> 54.70103132 | C52: ='Table 6.x.2a CD'!C52/'Table 6.x.2a CD'!E52*100 -> 7.230477335 | D52: ='Table 6.x.2a CD'!D52/'Table 6.x.2a CD'!E52*100 -> 38.06849135 | E52: ='Table 6.x.2a CD'!E52/'Table 6.x.2a CD'!E52*100 -> 100
A54: ='Table 6.x.2a CD'!A54 -> 2017
A55: Employment by Gender | B55: FT | C55: PT | D55: SE | E55: Total
A56: Male employment | B56: ='Table 6.x.2a CD'!B56/'Table 6.x.2a CD'!E58*100 -> 40.90390522 | C56: ='Table 6.x.2a CD'!C56/'Table 6.x.2a CD'!E58*100 -> 5.405879772 | D56: ='Table 6.x.2a CD'!D56/'Table 6.x.2a CD'!E58*100 -> 29.77621764 | E56: ='Table 6.x.2a CD'!E56/'Table 6.x.2a CD'!E58*100 -> 76.08600263
A57: Female employment | B57: ='Table 6.x.2a CD'!B57/'Table 6.x.2a CD'!E58*100 -> 14.1904344 | C57: ='Table 6.x.2a CD'!C57/'Table 6.x.2a CD'!E58*100 -> 2.156647652 | D57: ='Table 6.x.2a CD'!D57/'Table 6.x.2a CD'!E58*100 -> 7.566915314 | E57: ='Table 6.x.2a CD'!E57/'Table 6.x.2a CD'!E58*100 -> 23.91399737
A58: Total employment | B58: ='Table 6.x.2a CD'!B58/'Table 6.x.2a CD'!E58*100 -> 55.09433962 | C58: ='Table 6.x.2a CD'!C58/'Table 6.x.2a CD'!E58*100 -> 7.562527424 | D58: ='Table 6.x.2a CD'!D58/'Table 6.x.2a CD'!E58*100 -> 37.34313295 | E58: ='Table 6.x.2a CD'!E58/'Table 6.x.2a CD'!E58*100 -> 100
A60: ='Table 6.x.2a CD'!A60 -> 2022
A61: Employment by Gender | B61: FT | C61: PT | D61: SE | E61: Total
A62: Male employment | B62: ='Table 6.x.2a CD'!B62/'Table 6.x.2a CD'!E64*100 -> 39.6265148 | C62: ='Table 6.x.2a CD'!C62/'Table 6.x.2a CD'!E64*100 -> 5.547094011 | D62: ='Table 6.x.2a CD'!D62/'Table 6.x.2a CD'!E64*100 -> 28.7861731 | E62: ='Table 6.x.2a CD'!E62/'Table 6.x.2a CD'!E64*100 -> 73.95978191
A63: Female employment | B63: ='Table 6.x.2a CD'!B63/'Table 6.x.2a CD'!E64*100 -> 15.64355561 | C63: ='Table 6.x.2a CD'!C63/'Table 6.x.2a CD'!E64*100 -> 2.556122111 | D63: ='Table 6.x.2a CD'!D63/'Table 6.x.2a CD'!E64*100 -> 7.840540362 | E63: ='Table 6.x.2a CD'!E63/'Table 6.x.2a CD'!E64*100 -> 26.04021809
A64: Total employment | B64: ='Table 6.x.2a CD'!B64/'Table 6.x.2a CD'!E64*100 -> 55.27007041 | C64: ='Table 6.x.2a CD'!C64/'Table 6.x.2a CD'!E64*100 -> 8.103216123 | D64: ='Table 6.x.2a CD'!D64/'Table 6.x.2a CD'!E64*100 -> 36.62671346 | E64: ='Table 6.x.2a CD'!E64/'Table 6.x.2a CD'!E64*100 -> 100
A67: Table 6.x.2b | B67: Employment Status
A68: ='Table 6.x.2a CD'!A68 -> Mining and quarrying | E68: per cent
A69: ='Table 6.x.2a CD'!A69 -> 2002
A70: Employment by Gender | B70: FT | C70: PT | D70: SE | E70: Total
A71: Male employment | B71: ='Table 6.x.2a CD'!B71/'Table 6.x.2a CD'!E73*100 -> 78.65413735 | C71: ='Table 6.x.2a CD'!C71/'Table 6.x.2a CD'!E73*100 -> 0.4898904427 | D71: ='Table 6.x.2a CD'!D71/'Table 6.x.2a CD'!E73*100 -> 4.578248864 | E71: ='Table 6.x.2a CD'!E71/'Table 6.x.2a CD'!E73*100 -> 83.72227665
A72: Female employment | B72: ='Table 6.x.2a CD'!B72/'Table 6.x.2a CD'!E73*100 -> 15.19551082 | C72: ='Table 6.x.2a CD'!C72/'Table 6.x.2a CD'!E73*100 -> 0.7081143672 | D72: ='Table 6.x.2a CD'!D72/'Table 6.x.2a CD'!E73*100 -> 0.3740981562 | E72: ='Table 6.x.2a CD'!E72/'Table 6.x.2a CD'!E73*100 -> 16.27772335
A73: Total employment | B73: ='Table 6.x.2a CD'!B73/'Table 6.x.2a CD'!E73*100 -> 93.84964817 | C73: ='Table 6.x.2a CD'!C73/'Table 6.x.2a CD'!E73*100 -> 1.19800481 | D73: ='Table 6.x.2a CD'!D73/'Table 6.x.2a CD'!E73*100 -> 4.952347021 | E73: ='Table 6.x.2a CD'!E73/'Table 6.x.2a CD'!E73*100 -> 100
A75: ='Table 6.x.2a CD'!A75 -> 2007
A76: Employment by Gender | B76: FT | C76: PT | D76: SE | E76: Total
A77: Male employment | B77: ='Table 6.x.2a CD'!B77/'Table 6.x.2a CD'!E79*100 -> 73.89120515 | C77: ='Table 6.x.2a CD'!C77/'Table 6.x.2a CD'!E79*100 -> 0.3676832671 | D77: ='Table 6.x.2a CD'!D77/'Table 6.x.2a CD'!E79*100 -> 9.98325728 | E77: ='Table 6.x.2a CD'!E77/'Table 6.x.2a CD'!E79*100 -> 84.24214569
A78: Female employment | B78: ='Table 6.x.2a CD'!B78/'Table 6.x.2a CD'!E79*100 -> 10.13755294 | C78: ='Table 6.x.2a CD'!C78/'Table 6.x.2a CD'!E79*100 -> 5.617018483 | D78: ='Table 6.x.2a CD'!D78/'Table 6.x.2a CD'!E79*100 -> 0.003282886314 | E78: ='Table 6.x.2a CD'!E78/'Table 6.x.2a CD'!E79*100 -> 15.75785431
A79: Total employment | B79: ='Table 6.x.2a CD'!B79/'Table 6.x.2a CD'!E79*100 -> 84.02875808 | C79: ='Table 6.x.2a CD'!C79/'Table 6.x.2a CD'!E79*100 -> 5.98470175 | D79: ='Table 6.x.2a CD'!D79/'Table 6.x.2a CD'!E79*100 -> 9.986540166 | E79: ='Table 6.x.2a CD'!E79/'Table 6.x.2a CD'!E79*100 -> 100
A81: ='Table 6.x.2a CD'!A81 -> 2012
A82: Employment by Gender | B82: FT | C82: PT | D82: SE | E82: Total
A83: Male employment | B83: ='Table 6.x.2a CD'!B83/'Table 6.x.2a CD'!E85*100 -> 71.64289083 | C83: ='Table 6.x.2a CD'!C83/'Table 6.x.2a CD'!E85*100 -> 0.3271634049 | D83: ='Table 6.x.2a CD'!D83/'Table 6.x.2a CD'!E85*100 -> 8.320561188 | E83: ='Table 6.x.2a CD'!E83/'Table 6.x.2a CD'!E85*100 -> 80.29061542
A84: Female employment | B84: ='Table 6.x.2a CD'!B84/'Table 6.x.2a CD'!E85*100 -> 14.52782363 | C84: ='Table 6.x.2a CD'!C84/'Table 6.x.2a CD'!E85*100 -> 5.181560953 | D84: ='Table 6.x.2a CD'!D84/'Table 6.x.2a CD'!E85*100 -> 0 | E84: ='Table 6.x.2a CD'!E84/'Table 6.x.2a CD'!E85*100 -> 19.70938458
A85: Total employment | B85: ='Table 6.x.2a CD'!B85/'Table 6.x.2a CD'!E85*100 -> 86.17071445 | C85: ='Table 6.x.2a CD'!C85/'Table 6.x.2a CD'!E85*100 -> 5.508724357 | D85: ='Table 6.x.2a CD'!D85/'Table 6.x.2a CD'!E85*100 -> 8.320561188 | E85: ='Table 6.x.2a CD'!E85/'Table 6.x.2a CD'!E85*100 -> 100
A87: ='Table 6.x.2a CD'!A87 -> 2017
A88: Employment by Gender | B88: FT | C88: PT | D88: SE | E88: Total
A89: Male employment | B89: ='Table 6.x.2a CD'!B89/'Table 6.x.2a CD'!E91*100 -> 71.33303469 | C89: ='Table 6.x.2a CD'!C89/'Table 6.x.2a CD'!E91*100 -> 0.4095737873 | D89: ='Table 6.x.2a CD'!D89/'Table 6.x.2a CD'!E91*100 -> 7.871496224 | E89: ='Table 6.x.2a CD'!E89/'Table 6.x.2a CD'!E91*100 -> 79.6141047
A90: Female employment | B90: ='Table 6.x.2a CD'!B90/'Table 6.x.2a CD'!E91*100 -> 14.98464098 | C90: ='Table 6.x.2a CD'!C90/'Table 6.x.2a CD'!E91*100 -> 5.40125432 | D90: ='Table 6.x.2a CD'!D90/'Table 6.x.2a CD'!E91*100 -> 0 | E90: ='Table 6.x.2a CD'!E90/'Table 6.x.2a CD'!E91*100 -> 20.3858953
A91: Total employment | B91: ='Table 6.x.2a CD'!B91/'Table 6.x.2a CD'!E91*100 -> 86.31767567 | C91: ='Table 6.x.2a CD'!C91/'Table 6.x.2a CD'!E91*100 -> 5.810828107 | D91: ='Table 6.x.2a CD'!D91/'Table 6.x.2a CD'!E91*100 -> 7.871496224 | E91: ='Table 6.x.2a CD'!E91/'Table 6.x.2a CD'!E91*100 -> 100
A93: ='Table 6.x.2a CD'!A93 -> 2022
A94: Employment by Gender | B94: FT | C94: PT | D94: SE | E94: Total
A95: Male employment | B95: ='Table 6.x.2a CD'!B95/'Table 6.x.2a CD'!E97*100 -> 71.33053129 | C95: ='Table 6.x.2a CD'!C95/'Table 6.x.2a CD'!E97*100 -> 0.4925461352 | D95: ='Table 6.x.2a CD'!D95/'Table 6.x.2a CD'!E97*100 -> 7.775661654 | E95: ='Table 6.x.2a CD'!E95/'Table 6.x.2a CD'!E97*100 -> 79.59873908
A96: Female employment | B96: ='Table 6.x.2a CD'!B96/'Table 6.x.2a CD'!E97*100 -> 15.06534445 | C96: ='Table 6.x.2a CD'!C96/'Table 6.x.2a CD'!E97*100 -> 5.335916464 | D96: ='Table 6.x.2a CD'!D96/'Table 6.x.2a CD'!E97*100 -> 0 | E96: ='Table 6.x.2a CD'!E96/'Table 6.x.2a CD'!E97*100 -> 20.40126092
A97: Total employment | B97: ='Table 6.x.2a CD'!B97/'Table 6.x.2a CD'!E97*100 -> 86.39587575 | C97: ='Table 6.x.2a CD'!C97/'Table 6.x.2a CD'!E97*100 -> 5.828462599 | D97: ='Table 6.x.2a CD'!D97/'Table 6.x.2a CD'!E97*100 -> 7.775661654 | E97: ='Table 6.x.2a CD'!E97/'Table 6.x.2a CD'!E97*100 -> 100
A100: Table 6.x.2b | B100: Employment Status
A101: ='Table 6.x.2a CD'!A101 -> Food drink and tobacco | E101: per cent
A102: ='Table 6.x.2a CD'!A102 -> 2002
A103: Employment by Gender | B103: FT | C103: PT | D103: SE | E103: Total
A104: Male employment | B104: ='Table 6.x.2a CD'!B104/'Table 6.x.2a CD'!E106*100 -> 57.05456601 | C104: ='Table 6.x.2a CD'!C104/'Table 6.x.2a CD'!E106*100 -> 3.102951633 | D104: ='Table 6.x.2a CD'!D104/'Table 6.x.2a CD'!E106*100 -> 1.119396182 | E104: ='Table 6.x.2a CD'!E104/'Table 6.x.2a CD'!E106*100 -> 61.27691382
A105: Female employment | B105: ='Table 6.x.2a CD'!B105/'Table 6.x.2a CD'!E106*100 -> 26.18366119 | C105: ='Table 6.x.2a CD'!C105/'Table 6.x.2a CD'!E106*100 -> 11.29787971 | D105: ='Table 6.x.2a CD'!D105/'Table 6.x.2a CD'!E106*100 -> 1.241545277 | E105: ='Table 6.x.2a CD'!E105/'Table 6.x.2a CD'!E106*100 -> 38.72308618
A106: Total employment | B106: ='Table 6.x.2a CD'!B106/'Table 6.x.2a CD'!E106*100 -> 83.2382272 | C106: ='Table 6.x.2a CD'!C106/'Table 6.x.2a CD'!E106*100 -> 14.40083134 | D106: ='Table 6.x.2a CD'!D106/'Table 6.x.2a CD'!E106*100 -> 2.36094146 | E106: ='Table 6.x.2a CD'!E106/'Table 6.x.2a CD'!E106*100 -> 100
A108: ='Table 6.x.2a CD'!A108 -> 2007
A109: Employment by Gender | B109: FT | C109: PT | D109: SE | E109: Total
A110: Male employment | B110: ='Table 6.x.2a CD'!B110/'Table 6.x.2a CD'!E112*100 -> 57.29201193 | C110: ='Table 6.x.2a CD'!C110/'Table 6.x.2a CD'!E112*100 -> 3.1612529 | D110: ='Table 6.x.2a CD'!D110/'Table 6.x.2a CD'!E112*100 -> 2.417550547 | E110: ='Table 6.x.2a CD'!E110/'Table 6.x.2a CD'!E112*100 -> 62.87081538
A111: Female employment | B111: ='Table 6.x.2a CD'!B111/'Table 6.x.2a CD'!E112*100 -> 25.1450116 | C111: ='Table 6.x.2a CD'!C111/'Table 6.x.2a CD'!E112*100 -> 9.920865098 | D111: ='Table 6.x.2a CD'!D111/'Table 6.x.2a CD'!E112*100 -> 2.063307922 | E111: ='Table 6.x.2a CD'!E111/'Table 6.x.2a CD'!E112*100 -> 37.12918462
A112: Total employment | B112: ='Table 6.x.2a CD'!B112/'Table 6.x.2a CD'!E112*100 -> 82.43702353 | C112: ='Table 6.x.2a CD'!C112/'Table 6.x.2a CD'!E112*100 -> 13.082118 | D112: ='Table 6.x.2a CD'!D112/'Table 6.x.2a CD'!E112*100 -> 4.480858469 | E112: ='Table 6.x.2a CD'!E112/'Table 6.x.2a CD'!E112*100 -> 100
A114: ='Table 6.x.2a CD'!A114 -> 2012
A115: Employment by Gender | B115: FT | C115: PT | D115: SE | E115: Total
A116: Male employment | B116: ='Table 6.x.2a CD'!B116/'Table 6.x.2a CD'!E118*100 -> 55.35076557 | C116: ='Table 6.x.2a CD'!C116/'Table 6.x.2a CD'!E118*100 -> 4.158285785 | D116: ='Table 6.x.2a CD'!D116/'Table 6.x.2a CD'!E118*100 -> 1.953942777 | E116: ='Table 6.x.2a CD'!E116/'Table 6.x.2a CD'!E118*100 -> 61.46299413
A117: Female employment | B117: ='Table 6.x.2a CD'!B117/'Table 6.x.2a CD'!E118*100 -> 24.92098026 | C117: ='Table 6.x.2a CD'!C117/'Table 6.x.2a CD'!E118*100 -> 10.56401626 | D117: ='Table 6.x.2a CD'!D117/'Table 6.x.2a CD'!E118*100 -> 3.052009359 | E117: ='Table 6.x.2a CD'!E117/'Table 6.x.2a CD'!E118*100 -> 38.53700587
A118: Total employment | B118: ='Table 6.x.2a CD'!B118/'Table 6.x.2a CD'!E118*100 -> 80.27174582 | C118: ='Table 6.x.2a CD'!C118/'Table 6.x.2a CD'!E118*100 -> 14.72230204 | D118: ='Table 6.x.2a CD'!D118/'Table 6.x.2a CD'!E118*100 -> 5.005952137 | E118: ='Table 6.x.2a CD'!E118/'Table 6.x.2a CD'!E118*100 -> 100
A120: ='Table 6.x.2a CD'!A120 -> 2017
A121: Employment by Gender | B121: FT | C121: PT | D121: SE | E121: Total
A122: Male employment | B122: ='Table 6.x.2a CD'!B122/'Table 6.x.2a CD'!E124*100 -> 54.32929377 | C122: ='Table 6.x.2a CD'!C122/'Table 6.x.2a CD'!E124*100 -> 4.985374008 | D122: ='Table 6.x.2a CD'!D122/'Table 6.x.2a CD'!E124*100 -> 1.96197242 | E122: ='Table 6.x.2a CD'!E122/'Table 6.x.2a CD'!E124*100 -> 61.2766402
A123: Female employment | B123: ='Table 6.x.2a CD'!B123/'Table 6.x.2a CD'!E124*100 -> 24.94776431 | C123: ='Table 6.x.2a CD'!C123/'Table 6.x.2a CD'!E124*100 -> 10.77726703 | D123: ='Table 6.x.2a CD'!D123/'Table 6.x.2a CD'!E124*100 -> 2.998328458 | E123: ='Table 6.x.2a CD'!E123/'Table 6.x.2a CD'!E124*100 -> 38.7233598
A124: Total employment | B124: ='Table 6.x.2a CD'!B124/'Table 6.x.2a CD'!E124*100 -> 79.27705809 | C124: ='Table 6.x.2a CD'!C124/'Table 6.x.2a CD'!E124*100 -> 15.76264104 | D124: ='Table 6.x.2a CD'!D124/'Table 6.x.2a CD'!E124*100 -> 4.960300878 | E124: ='Table 6.x.2a CD'!E124/'Table 6.x.2a CD'!E124*100 -> 100
A126: ='Table 6.x.2a CD'!A126 -> 2022
A127: Employment by Gender | B127: FT | C127: PT | D127: SE | E127: Total
A128: Male employment | B128: ='Table 6.x.2a CD'!B128/'Table 6.x.2a CD'!E130*100 -> 53.42465753 | C128: ='Table 6.x.2a CD'!C128/'Table 6.x.2a CD'!E130*100 -> 5.770298173 | D128: ='Table 6.x.2a CD'!D128/'Table 6.x.2a CD'!E130*100 -> 1.960436047 | E128: ='Table 6.x.2a CD'!E128/'Table 6.x.2a CD'!E130*100 -> 61.15539175
A129: Female employment | B129: ='Table 6.x.2a CD'!B129/'Table 6.x.2a CD'!E130*100 -> 24.93505917 | C129: ='Table 6.x.2a CD'!C129/'Table 6.x.2a CD'!E130*100 -> 10.96556471 | D129: ='Table 6.x.2a CD'!D129/'Table 6.x.2a CD'!E130*100 -> 2.94398437 | E129: ='Table 6.x.2a CD'!E129/'Table 6.x.2a CD'!E130*100 -> 38.84460825
A130: Total employment | B130: ='Table 6.x.2a CD'!B130/'Table 6.x.2a CD'!E130*100 -> 78.3597167 | C130: ='Table 6.x.2a CD'!C130/'Table 6.x.2a CD'!E130*100 -> 16.73586288 | D130: ='Table 6.x.2a CD'!D130/'Table 6.x.2a CD'!E130*100 -> 4.904420417 | E130: ='Table 6.x.2a CD'!E130/'Table 6.x.2a CD'!E130*100 -> 100
A133: Table 6.x.2b | B133: Employment Status
A134: ='Table 6.x.2a CD'!A134 -> Engineering | E134: per cent
A135: ='Table 6.x.2a CD'!A135 -> 2002
A136: Employment by Gender | B136: FT | C136: PT | D136: SE | E136: Total
A137: Male employment | B137: ='Table 6.x.2a CD'!B137/'Table 6.x.2a CD'!E139*100 -> 68.29595319 | C137: ='Table 6.x.2a CD'!C137/'Table 6.x.2a CD'!E139*100 -> 0.8497596991 | D137: ='Table 6.x.2a CD'!D137/'Table 6.x.2a CD'!E139*100 -> 1.931113742 | E137: ='Table 6.x.2a CD'!E137/'Table 6.x.2a CD'!E139*100 -> 71.07682664
A138: Female employment | B138: ='Table 6.x.2a CD'!B138/'Table 6.x.2a CD'!E139*100 -> 25.82538135 | C138: ='Table 6.x.2a CD'!C138/'Table 6.x.2a CD'!E139*100 -> 2.892317336 | D138: ='Table 6.x.2a CD'!D138/'Table 6.x.2a CD'!E139*100 -> 0.2054746813 | E138: ='Table 6.x.2a CD'!E138/'Table 6.x.2a CD'!E139*100 -> 28.92317336
A139: Total employment | B139: ='Table 6.x.2a CD'!B139/'Table 6.x.2a CD'!E139*100 -> 94.12133454 | C139: ='Table 6.x.2a CD'!C139/'Table 6.x.2a CD'!E139*100 -> 3.742077036 | D139: ='Table 6.x.2a CD'!D139/'Table 6.x.2a CD'!E139*100 -> 2.136588424 | E139: ='Table 6.x.2a CD'!E139/'Table 6.x.2a CD'!E139*100 -> 100
A141: ='Table 6.x.2a CD'!A141 -> 2007
A142: Employment by Gender | B142: FT | C142: PT | D142: SE | E142: Total
A143: Male employment | B143: ='Table 6.x.2a CD'!B143/'Table 6.x.2a CD'!E145*100 -> 71.9631362 | C143: ='Table 6.x.2a CD'!C143/'Table 6.x.2a CD'!E145*100 -> 0.9239105266 | D143: ='Table 6.x.2a CD'!D143/'Table 6.x.2a CD'!E145*100 -> 4.096234891 | E143: ='Table 6.x.2a CD'!E143/'Table 6.x.2a CD'!E145*100 -> 76.98328162
A144: Female employment | B144: ='Table 6.x.2a CD'!B144/'Table 6.x.2a CD'!E145*100 -> 18.22118279 | C144: ='Table 6.x.2a CD'!C144/'Table 6.x.2a CD'!E145*100 -> 3.274209234 | D144: ='Table 6.x.2a CD'!D144/'Table 6.x.2a CD'!E145*100 -> 1.521326356 | E144: ='Table 6.x.2a CD'!E144/'Table 6.x.2a CD'!E145*100 -> 23.01671838
A145: Total employment | B145: ='Table 6.x.2a CD'!B145/'Table 6.x.2a CD'!E145*100 -> 90.18431899 | C145: ='Table 6.x.2a CD'!C145/'Table 6.x.2a CD'!E145*100 -> 4.198119761 | D145: ='Table 6.x.2a CD'!D145/'Table 6.x.2a CD'!E145*100 -> 5.617561247 | E145: ='Table 6.x.2a CD'!E145/'Table 6.x.2a CD'!E145*100 -> 100
A147: ='Table 6.x.2a CD'!A147 -> 2012
A148: Employment by Gender | B148: FT | C148: PT | D148: SE | E148: Total
A149: Male employment | B149: ='Table 6.x.2a CD'!B149/'Table 6.x.2a CD'!E151*100 -> 71.236189 | C149: ='Table 6.x.2a CD'!C149/'Table 6.x.2a CD'!E151*100 -> 1.356751855 | D149: ='Table 6.x.2a CD'!D149/'Table 6.x.2a CD'!E151*100 -> 3.768008866 | E149: ='Table 6.x.2a CD'!E149/'Table 6.x.2a CD'!E151*100 -> 76.36094973
A150: Female employment | B150: ='Table 6.x.2a CD'!B150/'Table 6.x.2a CD'!E151*100 -> 16.38512946 | C150: ='Table 6.x.2a CD'!C150/'Table 6.x.2a CD'!E151*100 -> 6.310239447 | D150: ='Table 6.x.2a CD'!D150/'Table 6.x.2a CD'!E151*100 -> 0.9436813648 | E150: ='Table 6.x.2a CD'!E150/'Table 6.x.2a CD'!E151*100 -> 23.63905027
A151: Total employment | B151: ='Table 6.x.2a CD'!B151/'Table 6.x.2a CD'!E151*100 -> 87.62131847 | C151: ='Table 6.x.2a CD'!C151/'Table 6.x.2a CD'!E151*100 -> 7.666991302 | D151: ='Table 6.x.2a CD'!D151/'Table 6.x.2a CD'!E151*100 -> 4.711690231 | E151: ='Table 6.x.2a CD'!E151/'Table 6.x.2a CD'!E151*100 -> 100
A153: ='Table 6.x.2a CD'!A153 -> 2017
A154: Employment by Gender | B154: FT | C154: PT | D154: SE | E154: Total
A155: Male employment | B155: ='Table 6.x.2a CD'!B155/'Table 6.x.2a CD'!E157*100 -> 68.82136895 | C155: ='Table 6.x.2a CD'!C155/'Table 6.x.2a CD'!E157*100 -> 1.756260434 | D155: ='Table 6.x.2a CD'!D155/'Table 6.x.2a CD'!E157*100 -> 4.100166945 | E155: ='Table 6.x.2a CD'!E155/'Table 6.x.2a CD'!E157*100 -> 74.67779633
A156: Female employment | B156: ='Table 6.x.2a CD'!B156/'Table 6.x.2a CD'!E157*100 -> 17.03505843 | C156: ='Table 6.x.2a CD'!C156/'Table 6.x.2a CD'!E157*100 -> 7.191986644 | D156: ='Table 6.x.2a CD'!D156/'Table 6.x.2a CD'!E157*100 -> 1.095158598 | E156: ='Table 6.x.2a CD'!E156/'Table 6.x.2a CD'!E157*100 -> 25.32220367
A157: Total employment | B157: ='Table 6.x.2a CD'!B157/'Table 6.x.2a CD'!E157*100 -> 85.85642738 | C157: ='Table 6.x.2a CD'!C157/'Table 6.x.2a CD'!E157*100 -> 8.948247078 | D157: ='Table 6.x.2a CD'!D157/'Table 6.x.2a CD'!E157*100 -> 5.195325543 | E157: ='Table 6.x.2a CD'!E157/'Table 6.x.2a CD'!E157*100 -> 100
A159: ='Table 6.x.2a CD'!A159 -> 2022
A160: Employment by Gender | B160: FT | C160: PT | D160: SE | E160: Total
A161: Male employment | B161: ='Table 6.x.2a CD'!B161/'Table 6.x.2a CD'!E163*100 -> 66.31308366 | C161: ='Table 6.x.2a CD'!C161/'Table 6.x.2a CD'!E163*100 -> 2.189828523 | D161: ='Table 6.x.2a CD'!D161/'Table 6.x.2a CD'!E163*100 -> 4.470764325 | E161: ='Table 6.x.2a CD'!E161/'Table 6.x.2a CD'!E163*100 -> 72.9736765
A162: Female employment | B162: ='Table 6.x.2a CD'!B162/'Table 6.x.2a CD'!E163*100 -> 17.51862818 | C162: ='Table 6.x.2a CD'!C162/'Table 6.x.2a CD'!E163*100 -> 8.248462565 | D162: ='Table 6.x.2a CD'!D162/'Table 6.x.2a CD'!E163*100 -> 1.259232747 | E162: ='Table 6.x.2a CD'!E162/'Table 6.x.2a CD'!E163*100 -> 27.0263235
A163: Total employment | B163: ='Table 6.x.2a CD'!B163/'Table 6.x.2a CD'!E163*100 -> 83.83171184 | C163: ='Table 6.x.2a CD'!C163/'Table 6.x.2a CD'!E163*100 -> 10.43829109 | D163: ='Table 6.x.2a CD'!D163/'Table 6.x.2a CD'!E163*100 -> 5.729997072 | E163: ='Table 6.x.2a CD'!E163/'Table 6.x.2a CD'!E163*100 -> 100
A166: Table 6.x.2b | B166: Employment Status
A167: ='Table 6.x.2a CD'!A167 -> Rest of manufacturing | E167: per cent
A168: ='Table 6.x.2a CD'!A168 -> 2002
A169: Employment by Gender | B169: FT | C169: PT | D169: SE | E169: Total
A170: Male employment | B170: ='Table 6.x.2a CD'!B170/'Table 6.x.2a CD'!E172*100 -> 64.53118475 | C170: ='Table 6.x.2a CD'!C170/'Table 6.x.2a CD'!E172*100 -> 3.594414012 | D170: ='Table 6.x.2a CD'!D170/'Table 6.x.2a CD'!E172*100 -> 5.184971382 | E170: ='Table 6.x.2a CD'!E170/'Table 6.x.2a CD'!E172*100 -> 73.31057014
A171: Female employment | B171: ='Table 6.x.2a CD'!B171/'Table 6.x.2a CD'!E172*100 -> 20.18779631 | C171: ='Table 6.x.2a CD'!C171/'Table 6.x.2a CD'!E172*100 -> 5.050480238 | D171: ='Table 6.x.2a CD'!D171/'Table 6.x.2a CD'!E172*100 -> 1.451153308 | E171: ='Table 6.x.2a CD'!E171/'Table 6.x.2a CD'!E172*100 -> 26.68942986
A172: Total employment | B172: ='Table 6.x.2a CD'!B172/'Table 6.x.2a CD'!E172*100 -> 84.71898106 | C172: ='Table 6.x.2a CD'!C172/'Table 6.x.2a CD'!E172*100 -> 8.644894249 | D172: ='Table 6.x.2a CD'!D172/'Table 6.x.2a CD'!E172*100 -> 6.63612469 | E172: ='Table 6.x.2a CD'!E172/'Table 6.x.2a CD'!E172*100 -> 100
A174: ='Table 6.x.2a CD'!A174 -> 2007
A175: Employment by Gender | B175: FT | C175: PT | D175: SE | E175: Total
A176: Male employment | B176: ='Table 6.x.2a CD'!B176/'Table 6.x.2a CD'!E178*100 -> 69.6076788 | C176: ='Table 6.x.2a CD'!C176/'Table 6.x.2a CD'!E178*100 -> 2.261513458 | D176: ='Table 6.x.2a CD'!D176/'Table 6.x.2a CD'!E178*100 -> 5.391774592 | E176: ='Table 6.x.2a CD'!E176/'Table 6.x.2a CD'!E178*100 -> 77.26096685
A177: Female employment | B177: ='Table 6.x.2a CD'!B177/'Table 6.x.2a CD'!E178*100 -> 15.3065761 | C177: ='Table 6.x.2a CD'!C177/'Table 6.x.2a CD'!E178*100 -> 5.074739995 | D177: ='Table 6.x.2a CD'!D177/'Table 6.x.2a CD'!E178*100 -> 2.357717059 | E177: ='Table 6.x.2a CD'!E177/'Table 6.x.2a CD'!E178*100 -> 22.73903315
A178: Total employment | B178: ='Table 6.x.2a CD'!B178/'Table 6.x.2a CD'!E178*100 -> 84.9142549 | C178: ='Table 6.x.2a CD'!C178/'Table 6.x.2a CD'!E178*100 -> 7.336253453 | D178: ='Table 6.x.2a CD'!D178/'Table 6.x.2a CD'!E178*100 -> 7.749491651 | E178: ='Table 6.x.2a CD'!E178/'Table 6.x.2a CD'!E178*100 -> 100
A180: ='Table 6.x.2a CD'!A180 -> 2012
A181: Employment by Gender | B181: FT | C181: PT | D181: SE | E181: Total
A182: Male employment | B182: ='Table 6.x.2a CD'!B182/'Table 6.x.2a CD'!E184*100 -> 68.63025312 | C182: ='Table 6.x.2a CD'!C182/'Table 6.x.2a CD'!E184*100 -> 2.063703524 | D182: ='Table 6.x.2a CD'!D182/'Table 6.x.2a CD'!E184*100 -> 7.803479876 | E182: ='Table 6.x.2a CD'!E182/'Table 6.x.2a CD'!E184*100 -> 78.49743652
A183: Female employment | B183: ='Table 6.x.2a CD'!B183/'Table 6.x.2a CD'!E184*100 -> 14.50324977 | C183: ='Table 6.x.2a CD'!C183/'Table 6.x.2a CD'!E184*100 -> 4.095918615 | D183: ='Table 6.x.2a CD'!D183/'Table 6.x.2a CD'!E184*100 -> 2.903395099 | E183: ='Table 6.x.2a CD'!E183/'Table 6.x.2a CD'!E184*100 -> 21.50256348
A184: Total employment | B184: ='Table 6.x.2a CD'!B184/'Table 6.x.2a CD'!E184*100 -> 83.13350289 | C184: ='Table 6.x.2a CD'!C184/'Table 6.x.2a CD'!E184*100 -> 6.159622139 | D184: ='Table 6.x.2a CD'!D184/'Table 6.x.2a CD'!E184*100 -> 10.70687497 | E184: ='Table 6.x.2a CD'!E184/'Table 6.x.2a CD'!E184*100 -> 100
A186: ='Table 6.x.2a CD'!A186 -> 2017
A187: Employment by Gender | B187: FT | C187: PT | D187: SE | E187: Total
A188: Male employment | B188: ='Table 6.x.2a CD'!B188/'Table 6.x.2a CD'!E190*100 -> 68.0897759 | C188: ='Table 6.x.2a CD'!C188/'Table 6.x.2a CD'!E190*100 -> 2.399567923 | D188: ='Table 6.x.2a CD'!D188/'Table 6.x.2a CD'!E190*100 -> 7.970269019 | E188: ='Table 6.x.2a CD'!E188/'Table 6.x.2a CD'!E190*100 -> 78.45961285
A189: Female employment | B189: ='Table 6.x.2a CD'!B189/'Table 6.x.2a CD'!E190*100 -> 14.59544262 | C189: ='Table 6.x.2a CD'!C189/'Table 6.x.2a CD'!E190*100 -> 4.265041236 | D189: ='Table 6.x.2a CD'!D189/'Table 6.x.2a CD'!E190*100 -> 2.679903297 | E189: ='Table 6.x.2a CD'!E189/'Table 6.x.2a CD'!E190*100 -> 21.54038715
A190: Total employment | B190: ='Table 6.x.2a CD'!B190/'Table 6.x.2a CD'!E190*100 -> 82.68521852 | C190: ='Table 6.x.2a CD'!C190/'Table 6.x.2a CD'!E190*100 -> 6.664609159 | D190: ='Table 6.x.2a CD'!D190/'Table 6.x.2a CD'!E190*100 -> 10.65017232 | E190: ='Table 6.x.2a CD'!E190/'Table 6.x.2a CD'!E190*100 -> 100
A192: ='Table 6.x.2a CD'!A192 -> 2022
A193: Employment by Gender | B193: FT | C193: PT | D193: SE | E193: Total
A194: Male employment | B194: ='Table 6.x.2a CD'!B194/'Table 6.x.2a CD'!E196*100 -> 66.88803331 | C194: ='Table 6.x.2a CD'!C194/'Table 6.x.2a CD'!E196*100 -> 2.742981357 | D194: ='Table 6.x.2a CD'!D194/'Table 6.x.2a CD'!E196*100 -> 8.062228281 | E194: ='Table 6.x.2a CD'!E194/'Table 6.x.2a CD'!E196*100 -> 77.69324294
A195: Female employment | B195: ='Table 6.x.2a CD'!B195/'Table 6.x.2a CD'!E196*100 -> 15.12139857 | C195: ='Table 6.x.2a CD'!C195/'Table 6.x.2a CD'!E196*100 -> 4.594355611 | D195: ='Table 6.x.2a CD'!D195/'Table 6.x.2a CD'!E196*100 -> 2.591002874 | E195: ='Table 6.x.2a CD'!E195/'Table 6.x.2a CD'!E196*100 -> 22.30675706
A196: Total employment | B196: ='Table 6.x.2a CD'!B196/'Table 6.x.2a CD'!E196*100 -> 82.00943188 | C196: ='Table 6.x.2a CD'!C196/'Table 6.x.2a CD'!E196*100 -> 7.337336969 | D196: ='Table 6.x.2a CD'!D196/'Table 6.x.2a CD'!E196*100 -> 10.65323115 | E196: ='Table 6.x.2a CD'!E196/'Table 6.x.2a CD'!E196*100 -> 100
A199: Table 6.x.2b | B199: Employment Status
A200: ='Table 6.x.2a CD'!A200 -> Electricity and gas | E200: per cent
A201: ='Table 6.x.2a CD'!A201 -> 2002
A202: Employment by Gender | B202: FT | C202: PT | D202: SE | E202: Total
A203: Male employment | B203: ='Table 6.x.2a CD'!B203/'Table 6.x.2a CD'!E205*100 -> 55.45184263 | C203: ='Table 6.x.2a CD'!C203/'Table 6.x.2a CD'!E205*100 -> 6.893452257 | D203: ='Table 6.x.2a CD'!D203/'Table 6.x.2a CD'!E205*100 -> 0 | E203: ='Table 6.x.2a CD'!E203/'Table 6.x.2a CD'!E205*100 -> 62.34529489
A204: Female employment | B204: ='Table 6.x.2a CD'!B204/'Table 6.x.2a CD'!E205*100 -> 26.70262048 | C204: ='Table 6.x.2a CD'!C204/'Table 6.x.2a CD'!E205*100 -> 10.36437807 | D204: ='Table 6.x.2a CD'!D204/'Table 6.x.2a CD'!E205*100 -> 0.5877065616 | E204: ='Table 6.x.2a CD'!E204/'Table 6.x.2a CD'!E205*100 -> 37.65470511
A205: Total employment | B205: ='Table 6.x.2a CD'!B205/'Table 6.x.2a CD'!E205*100 -> 82.15446311 | C205: ='Table 6.x.2a CD'!C205/'Table 6.x.2a CD'!E205*100 -> 17.25783033 | D205: ='Table 6.x.2a CD'!D205/'Table 6.x.2a CD'!E205*100 -> 0.5877065616 | E205: ='Table 6.x.2a CD'!E205/'Table 6.x.2a CD'!E205*100 -> 100
A207: ='Table 6.x.2a CD'!A207 -> 2007
A208: Employment by Gender | B208: FT | C208: PT | D208: SE | E208: Total
A209: Male employment | B209: ='Table 6.x.2a CD'!B209/'Table 6.x.2a CD'!E211*100 -> 67.72329913 | C209: ='Table 6.x.2a CD'!C209/'Table 6.x.2a CD'!E211*100 -> 0.6385404789 | D209: ='Table 6.x.2a CD'!D209/'Table 6.x.2a CD'!E211*100 -> 0 | E209: ='Table 6.x.2a CD'!E209/'Table 6.x.2a CD'!E211*100 -> 68.3618396
A210: Female employment | B210: ='Table 6.x.2a CD'!B210/'Table 6.x.2a CD'!E211*100 -> 23.57278601 | C210: ='Table 6.x.2a CD'!C210/'Table 6.x.2a CD'!E211*100 -> 7.829722539 | D210: ='Table 6.x.2a CD'!D210/'Table 6.x.2a CD'!E211*100 -> 0.2356518434 | E210: ='Table 6.x.2a CD'!E210/'Table 6.x.2a CD'!E211*100 -> 31.6381604
A211: Total employment | B211: ='Table 6.x.2a CD'!B211/'Table 6.x.2a CD'!E211*100 -> 91.29608514 | C211: ='Table 6.x.2a CD'!C211/'Table 6.x.2a CD'!E211*100 -> 8.468263018 | D211: ='Table 6.x.2a CD'!D211/'Table 6.x.2a CD'!E211*100 -> 0.2356518434 | E211: ='Table 6.x.2a CD'!E211/'Table 6.x.2a CD'!E211*100 -> 100
A213: ='Table 6.x.2a CD'!A213 -> 2012
A214: Employment by Gender | B214: FT | C214: PT | D214: SE | E214: Total
A215: Male employment | B215: ='Table 6.x.2a CD'!B215/'Table 6.x.2a CD'!E217*100 -> 57.30507562 | C215: ='Table 6.x.2a CD'!C215/'Table 6.x.2a CD'!E217*100 -> 9.740100827 | D215: ='Table 6.x.2a CD'!D215/'Table 6.x.2a CD'!E217*100 -> 4.522539279 | E215: ='Table 6.x.2a CD'!E215/'Table 6.x.2a CD'!E217*100 -> 71.56771573
A216: Female employment | B216: ='Table 6.x.2a CD'!B216/'Table 6.x.2a CD'!E217*100 -> 24.30130684 | C216: ='Table 6.x.2a CD'!C216/'Table 6.x.2a CD'!E217*100 -> 3.925407469 | D216: ='Table 6.x.2a CD'!D216/'Table 6.x.2a CD'!E217*100 -> 0.2055699672 | E216: ='Table 6.x.2a CD'!E216/'Table 6.x.2a CD'!E217*100 -> 28.43228427
A217: Total employment | B217: ='Table 6.x.2a CD'!B217/'Table 6.x.2a CD'!E217*100 -> 81.60638246 | C217: ='Table 6.x.2a CD'!C217/'Table 6.x.2a CD'!E217*100 -> 13.6655083 | D217: ='Table 6.x.2a CD'!D217/'Table 6.x.2a CD'!E217*100 -> 4.728109246 | E217: ='Table 6.x.2a CD'!E217/'Table 6.x.2a CD'!E217*100 -> 100
A219: ='Table 6.x.2a CD'!A219 -> 2017
A220: Employment by Gender | B220: FT | C220: PT | D220: SE | E220: Total
A221: Male employment | B221: ='Table 6.x.2a CD'!B221/'Table 6.x.2a CD'!E223*100 -> 60.42997489 | C221: ='Table 6.x.2a CD'!C221/'Table 6.x.2a CD'!E223*100 -> 9.004801974 | D221: ='Table 6.x.2a CD'!D221/'Table 6.x.2a CD'!E223*100 -> 4.493590026 | E221: ='Table 6.x.2a CD'!E221/'Table 6.x.2a CD'!E223*100 -> 73.92836689
A222: Female employment | B222: ='Table 6.x.2a CD'!B222/'Table 6.x.2a CD'!E223*100 -> 21.90404864 | C222: ='Table 6.x.2a CD'!C222/'Table 6.x.2a CD'!E223*100 -> 3.960526895 | D222: ='Table 6.x.2a CD'!D222/'Table 6.x.2a CD'!E223*100 -> 0.2070575796 | E222: ='Table 6.x.2a CD'!E222/'Table 6.x.2a CD'!E223*100 -> 26.07163311
A223: Total employment | B223: ='Table 6.x.2a CD'!B223/'Table 6.x.2a CD'!E223*100 -> 82.33402353 | C223: ='Table 6.x.2a CD'!C223/'Table 6.x.2a CD'!E223*100 -> 12.96532887 | D223: ='Table 6.x.2a CD'!D223/'Table 6.x.2a CD'!E223*100 -> 4.700647606 | E223: ='Table 6.x.2a CD'!E223/'Table 6.x.2a CD'!E223*100 -> 100
A225: ='Table 6.x.2a CD'!A225 -> 2022
A226: Employment by Gender | B226: FT | C226: PT | D226: SE | E226: Total
A227: Male employment | B227: ='Table 6.x.2a CD'!B227/'Table 6.x.2a CD'!E229*100 -> 63.93718452 | C227: ='Table 6.x.2a CD'!C227/'Table 6.x.2a CD'!E229*100 -> 8.106475689 | D227: ='Table 6.x.2a CD'!D227/'Table 6.x.2a CD'!E229*100 -> 4.534276716 | E227: ='Table 6.x.2a CD'!E227/'Table 6.x.2a CD'!E229*100 -> 76.57793693
A228: Female employment | B228: ='Table 6.x.2a CD'!B228/'Table 6.x.2a CD'!E229*100 -> 19.22429786 | C228: ='Table 6.x.2a CD'!C228/'Table 6.x.2a CD'!E229*100 -> 3.98636697 | D228: ='Table 6.x.2a CD'!D228/'Table 6.x.2a CD'!E229*100 -> 0.2113982484 | E228: ='Table 6.x.2a CD'!E228/'Table 6.x.2a CD'!E229*100 -> 23.42206307
A229: Total employment | B229: ='Table 6.x.2a CD'!B229/'Table 6.x.2a CD'!E229*100 -> 83.16148238 | C229: ='Table 6.x.2a CD'!C229/'Table 6.x.2a CD'!E229*100 -> 12.09284266 | D229: ='Table 6.x.2a CD'!D229/'Table 6.x.2a CD'!E229*100 -> 4.745674964 | E229: ='Table 6.x.2a CD'!E229/'Table 6.x.2a CD'!E229*100 -> 100
A232: Table 6.x.2b | B232: Employment Status
A233: ='Table 6.x.2a CD'!A233 -> Water and sewerage | E233: per cent
A234: ='Table 6.x.2a CD'!A234 -> 2002
A235: Employment by Gender | B235: FT | C235: PT | D235: SE | E235: Total
A236: Male employment | B236: ='Table 6.x.2a CD'!B236/'Table 6.x.2a CD'!E238*100 -> 64.08450704 | C236: ='Table 6.x.2a CD'!C236/'Table 6.x.2a CD'!E238*100 -> 4.385624089 | D236: ='Table 6.x.2a CD'!D236/'Table 6.x.2a CD'!E238*100 -> 0 | E236: ='Table 6.x.2a CD'!E236/'Table 6.x.2a CD'!E238*100 -> 68.47013113
A237: Female employment | B237: ='Table 6.x.2a CD'!B237/'Table 6.x.2a CD'!E238*100 -> 16.59057795 | C237: ='Table 6.x.2a CD'!C237/'Table 6.x.2a CD'!E238*100 -> 14.61389024 | D237: ='Table 6.x.2a CD'!D237/'Table 6.x.2a CD'!E238*100 -> 0.3254006799 | E237: ='Table 6.x.2a CD'!E237/'Table 6.x.2a CD'!E238*100 -> 31.52986887
A238: Total employment | B238: ='Table 6.x.2a CD'!B238/'Table 6.x.2a CD'!E238*100 -> 80.67508499 | C238: ='Table 6.x.2a CD'!C238/'Table 6.x.2a CD'!E238*100 -> 18.99951433 | D238: ='Table 6.x.2a CD'!D238/'Table 6.x.2a CD'!E238*100 -> 0.3254006799 | E238: ='Table 6.x.2a CD'!E238/'Table 6.x.2a CD'!E238*100 -> 100
A240: ='Table 6.x.2a CD'!A240 -> 2007
A241: Employment by Gender | B241: FT | C241: PT | D241: SE | E241: Total
A242: Male employment | B242: ='Table 6.x.2a CD'!B242/'Table 6.x.2a CD'!E244*100 -> 74.69191784 | C242: ='Table 6.x.2a CD'!C242/'Table 6.x.2a CD'!E244*100 -> 0 | D242: ='Table 6.x.2a CD'!D242/'Table 6.x.2a CD'!E244*100 -> 0 | E242: ='Table 6.x.2a CD'!E242/'Table 6.x.2a CD'!E244*100 -> 74.69191784
A243: Female employment | B243: ='Table 6.x.2a CD'!B243/'Table 6.x.2a CD'!E244*100 -> 11.32035209 | C243: ='Table 6.x.2a CD'!C243/'Table 6.x.2a CD'!E244*100 -> 4.785276074 | D243: ='Table 6.x.2a CD'!D243/'Table 6.x.2a CD'!E244*100 -> 9.202453988 | E243: ='Table 6.x.2a CD'!E243/'Table 6.x.2a CD'!E244*100 -> 25.30808216
... 265 more rows

Sheet Table 6.x.2c CD
A1: Table 6.x.2c | B1: Employment changes
A2: ='Table 6.x.2a CD'!A2 -> All industries | E2: 000s | I2: Labels for graphs (DO NOT REMOVE!)
A3: =CONCATENATE(All!I7,"-",All!N7) -> 1997-2002
A4: Employment by Gender | B4: FT | C4: =I4 -> PT 1997 | D4: =K4 -> SE -02 | E4: Total | I4: =CONCATENATE(" PT ",LEFT(A3,4)) -> PT 1997 | K4: =CONCATENATE(" SE -",RIGHT(A3,2)) -> SE -02
A5: Male employment | B5: =(MalesFT!$N$8-MalesFT!$I$8)/1000 -> 27.609 | C5: =(MalesPT!$N$8-MalesPT!$I$8)/1000 -> 35.565 | D5: =(MalesSE!$N$8-MalesSE!$I$8)/1000 -> -12.872 | E5: =(Males!$N$8-Males!$I$8)/1000 -> 50.302
A6: Female employment | B6: =(FemalesFT!$N$8-FemalesFT!$I$8)/1000 -> 22.318 | C6: =(FemalesPT!$N$8-FemalesPT!$I$8)/1000 -> 41.821 | D6: =(FemalesSE!$N$8-FemalesSE!$I$8)/1000 -> -1.801 | E6: =(Females!$N$8-Females!$I$8)/1000 -> 62.338
A7: Total employment | B7: =(FT!$N$8-FT!$I$8)/1000 -> 49.927 | C7: =(PT!$N$8-PT!$I$8)/1000 -> 77.386 | D7: =(SE!$N$8-SE!$I$8)/1000 -> -14.673 | E7: =(All!$N$8-All!$I$8)/1000 -> 112.64
A9: =CONCATENATE(All!N7,"-",All!S7) -> 2002-2007
A10: Employment by Gender | B10: FT | C10: =I10 -> PT 2002 | D10: =K10 -> SE -07 | E10: Total | I10: =CONCATENATE(" PT ",LEFT(A9,4)) -> PT 2002 | K10: =CONCATENATE(" SE -",RIGHT(A9,2)) -> SE -07
A11: Male employment | B11: =(MalesFT!$S$8-MalesFT!$N$8)/1000 -> 75.752 | C11: =(MalesPT!$S$8-MalesPT!$N$8)/1000 -> 35.935 | D11: =(MalesSE!$S$8-MalesSE!$N$8)/1000 -> 17.696 | E11: =(Males!$S$8-Males!$N$8)/1000 -> 129.383
A12: Female employment | B12: =(FemalesFT!$S$8-FemalesFT!$N$8)/1000 -> 21.282 | C12: =(FemalesPT!$S$8-FemalesPT!$N$8)/1000 -> -0.018 | D12: =(FemalesSE!$S$8-FemalesSE!$N$8)/1000 -> 16.662 | E12: =(Females!$S$8-Females!$N$8)/1000 -> 37.926
A13: Total employment | B13: =(FT!$S$8-FT!$N$8)/1000 -> 97.034 | C13: =(PT!$S$8-PT!$N$8)/1000 -> 35.917 | D13: =(SE!$S$8-SE!$N$8)/1000 -> 34.358 | E13: =(All!$S$8-All!$N$8)/1000 -> 167.309
A15: =CONCATENATE(All!S7,,"-",All!X7) -> 2007-2012
A16: Employment by Gender | B16: FT | C16: =I16 -> PT 2007 | D16: =K16 -> SE -12 | E16: Total | I16: =CONCATENATE(" PT ",LEFT(A15,4)) -> PT 2007 | K16: =CONCATENATE(" SE -",RIGHT(A15,2)) -> SE -12
A17: Male employment | B17: =(MalesFT!$X$8-MalesFT!$S$8)/1000 -> -54.962 | C17: =(MalesPT!$X$8-MalesPT!$S$8)/1000 -> -0.893 | D17: =(MalesSE!$X$8-MalesSE!$S$8)/1000 -> 26.241 | E17: =(Males!$X$8-Males!$S$8)/1000 -> -29.614
A18: Female employment | B18: =(FemalesFT!$X$8-FemalesFT!$S$8)/1000 -> -35.928 | C18: =(FemalesPT!$X$8-FemalesPT!$S$8)/1000 -> -32.73 | D18: =(FemalesSE!$X$8-FemalesSE!$S$8)/1000 -> 26.632 | E18: =(Females!$X$8-Females!$S$8)/1000 -> -42.026
A19: Total employment | B19: =(FT!$X$8-FT!$S$8)/1000 -> -90.89 | C19: =(PT!$X$8-PT!$S$8)/1000 -> -33.623 | D19: =(SE!$X$8-SE!$S$8)/1000 -> 52.873 | E19: =(All!$X$8-All!$S$8)/1000 -> -71.64
A21: =CONCATENATE(All!X7,"-",All!AC7) -> 2012-2017
A22: Employment by Gender | B22: FT | C22: =I22 -> PT 2012 | D22: =K22 -> SE -17 | E22: Total | I22: =CONCATENATE(" PT ",LEFT(A21,4)) -> PT 2012 | K22: =CONCATENATE(" SE -",RIGHT(A21,2)) -> SE -17
A23: Male employment | B23: =(MalesFT!$AC$8-MalesFT!$X$8)/1000 -> 3.573 | C23: =(MalesPT!$AC$8-MalesPT!$X$8)/1000 -> 15.327 | D23: =(MalesSE!$AC$8-MalesSE!$X$8)/1000 -> -2.406 | E23: =(Males!$AC$8-Males!$X$8)/1000 -> 16.494
A24: Female employment | B24: =(FemalesFT!$AC$8-FemalesFT!$X$8)/1000 -> 17.98 | C24: =(FemalesPT!$AC$8-FemalesPT!$X$8)/1000 -> 10.878 | D24: =(FemalesSE!$AC$8-FemalesSE!$X$8)/1000 -> 0.712 | E24: =(Females!$AC$8-Females!$X$8)/1000 -> 29.57
A25: Total employment | B25: =(FT!$AC$8-FT!$X$8)/1000 -> 21.553 | C25: =(PT!$AC$8-PT!$X$8)/1000 -> 26.205 | D25: =(SE!$AC$8-SE!$X$8)/1000 -> -1.694 | E25: =(All!$AC$8-All!$X$8)/1000 -> 46.064
A27: =CONCATENATE(All!AC7,"-",All!AH7) -> 2017-2022
A28: Employment by Gender | B28: FT | C28: =I28 -> PT 2017 | D28: =K28 -> SE -22 | E28: Total | I28: =CONCATENATE(" PT ",LEFT(A27,4)) -> PT 2017 | K28: =CONCATENATE(" SE -",RIGHT(A27,2)) -> SE -22
A29: Male employment | B29: =(MalesFT!$AH$8-MalesFT!$AC$8)/1000 -> 17.612 | C29: =(MalesPT!$AH$8-MalesPT!$AC$8)/1000 -> 18.563 | D29: =(MalesSE!$AH$8-MalesSE!$AC$8)/1000 -> -0.627 | E29: =(Males!$AH$8-Males!$AC$8)/1000 -> 35.548
A30: Female employment | B30: =(FemalesFT!$AH$8-FemalesFT!$AC$8)/1000 -> 31.781 | C30: =(FemalesPT!$AH$8-FemalesPT!$AC$8)/1000 -> 25.422 | D30: =(FemalesSE!$AH$8-FemalesSE!$AC$8)/1000 -> 1.577 | E30: =(Females!$AH$8-Females!$AC$8)/1000 -> 58.78
A31: Total employment | B31: =(FT!$AH$8-FT!$AC$8)/1000 -> 49.393 | C31: =(PT!$AH$8-PT!$AC$8)/1000 -> 43.985 | D31: =(SE!$AH$8-SE!$AC$8)/1000 -> 0.95 | E31: =(All!$AH$8-All!$AC$8)/1000 -> 94.328
A34: Table 6.x.2c | B34: Employment changes
A35: ='Table 6.x.2a CD'!A35 -> Agriculture | E35: 000s
A36: =A$3 -> 1997-2002
A37: Employment by Gender | B37: FT | C37: PT | D37: SE | E37: Total
A38: Male employment | B38: =(MalesFT!$N$36-MalesFT!$I$36)/1000 -> 2.209 | C38: =(MalesPT!$N$36-MalesPT!$I$36)/1000 -> -1.084 | D38: =(MalesSE!$N$36-MalesSE!$I$36)/1000 -> -8.459 | E38: =(Males!$N$36-Males!$I$36)/1000 -> -7.334
A39: Female employment | B39: =(FemalesFT!$N$36-FemalesFT!$I$36)/1000 -> 3.029 | C39: =(FemalesPT!$N$36-FemalesPT!$I$36)/1000 -> -1.864 | D39: =(FemalesSE!$N$36-FemalesSE!$I$36)/1000 -> -2.132 | E39: =(Females!$N$36-Females!$I$36)/1000 -> -0.967
A40: Total employment | B40: =(FT!$N$36-FT!$I$36)/1000 -> 5.238 | C40: =(PT!$N$36-PT!$I$36)/1000 -> -2.948 | D40: =(SE!$N$36-SE!$I$36)/1000 -> -10.591 | E40: =(All!$N$36-All!$I$36)/1000 -> -8.301
A42: =A$9 -> 2002-2007
A43: Employment by Gender | B43: FT | C43: PT | D43: SE | E43: Total
A44: Male employment | B44: =(MalesFT!$S$36-MalesFT!$N$36)/1000 -> -2.74 | C44: =(MalesPT!$S$36-MalesPT!$N$36)/1000 -> 7.157 | D44: =(MalesSE!$S$36-MalesSE!$N$36)/1000 -> 2.425 | E44: =(Males!$S$36-Males!$N$36)/1000 -> 6.842
A45: Female employment | B45: =(FemalesFT!$S$36-FemalesFT!$N$36)/1000 -> -4.037 | C45: =(FemalesPT!$S$36-FemalesPT!$N$36)/1000 -> 5.454 | D45: =(FemalesSE!$S$36-FemalesSE!$N$36)/1000 -> 1.893 | E45: =(Females!$S$36-Females!$N$36)/1000 -> 3.31
A46: Total employment | B46: =(FT!$S$36-FT!$N$36)/1000 -> -6.777 | C46: =(PT!$S$36-PT!$N$36)/1000 -> 12.611 | D46: =(SE!$S$36-SE!$N$36)/1000 -> 4.318 | E46: =(All!$S$36-All!$N$36)/1000 -> 10.152
A48: =A$15 -> 2007-2012
A49: Employment by Gender | B49: FT | C49: PT | D49: SE | E49: Total
A50: Male employment | B50: =(MalesFT!$X$36-MalesFT!$S$36)/1000 -> -2.191 | C50: =(MalesPT!$X$36-MalesPT!$S$36)/1000 -> -5.255 | D50: =(MalesSE!$X$36-MalesSE!$S$36)/1000 -> -0.212 | E50: =(Males!$X$36-Males!$S$36)/1000 -> -7.658
A51: Female employment | B51: =(FemalesFT!$X$36-FemalesFT!$S$36)/1000 -> 4.99 | C51: =(FemalesPT!$X$36-FemalesPT!$S$36)/1000 -> -5.497 | D51: =(FemalesSE!$X$36-FemalesSE!$S$36)/1000 -> -0.022 | E51: =(Females!$X$36-Females!$S$36)/1000 -> -0.529
A52: Total employment | B52: =(FT!$X$36-FT!$S$36)/1000 -> 2.799 | C52: =(PT!$X$36-PT!$S$36)/1000 -> -10.752 | D52: =(SE!$X$36-SE!$S$36)/1000 -> -0.234 | E52: =(All!$X$36-All!$S$36)/1000 -> -8.187
A54: =A$21 -> 2012-2017
A55: Employment by Gender | B55: FT | C55: PT | D55: SE | E55: Total
A56: Male employment | B56: =(MalesFT!$AC$36-MalesFT!$X$36)/1000 -> -3.493 | C56: =(MalesPT!$AC$36-MalesPT!$X$36)/1000 -> -0.399 | D56: =(MalesSE!$AC$36-MalesSE!$X$36)/1000 -> -2.672 | E56: =(Males!$AC$36-Males!$X$36)/1000 -> -6.564
A57: Female employment | B57: =(FemalesFT!$AC$36-FemalesFT!$X$36)/1000 -> -0.514 | C57: =(FemalesPT!$AC$36-FemalesPT!$X$36)/1000 -> -0.003 | D57: =(FemalesSE!$AC$36-FemalesSE!$X$36)/1000 -> -0.572 | E57: =(Females!$AC$36-Females!$X$36)/1000 -> -1.089
A58: Total employment | B58: =(FT!$AC$36-FT!$X$36)/1000 -> -4.007 | C58: =(PT!$AC$36-PT!$X$36)/1000 -> -0.402 | D58: =(SE!$AC$36-SE!$X$36)/1000 -> -3.244 | E58: =(All!$AC$36-All!$X$36)/1000 -> -7.653
A60: =A$27 -> 2017-2022
A61: Employment by Gender | B61: FT | C61: PT | D61: SE | E61: Total
A62: Male employment | B62: =(MalesFT!$AH$36-MalesFT!$AC$36)/1000 -> -0.692 | C62: =(MalesPT!$AH$36-MalesPT!$AC$36)/1000 -> 0.049 | D62: =(MalesSE!$AH$36-MalesSE!$AC$36)/1000 -> -0.531 | E62: =(Males!$AH$36-Males!$AC$36)/1000 -> -1.174
A63: Female employment | B63: =(FemalesFT!$AH$36-FemalesFT!$AC$36)/1000 -> 0.619 | C63: =(FemalesPT!$AH$36-FemalesPT!$AC$36)/1000 -> 0.175 | D63: =(FemalesSE!$AH$36-FemalesSE!$AC$36)/1000 -> 0.103 | E63: =(Females!$AH$36-Females!$AC$36)/1000 -> 0.897
A64: Total employment | B64: =(FT!$AH$36-FT!$AC$36)/1000 -> -0.073 | C64: =(PT!$AH$36-PT!$AC$36)/1000 -> 0.224 | D64: =(SE!$AH$36-SE!$AC$36)/1000 -> -0.428 | E64: =(All!$AH$36-All!$AC$36)/1000 -> -0.277
A67: Table 6.x.2c | B67: Employment changes
A68: ='Table 6.x.2a CD'!A68 -> Mining and quarrying | E68: 000s
A69: =A$3 -> 1997-2002
A70: Employment by Gender | B70: FT | C70: PT | D70: SE | E70: Total
A71: Male employment | B71: =(MalesFT!$N$64-MalesFT!$I$64)/1000 -> -4.588 | C71: =(MalesPT!$N$64-MalesPT!$I$64)/1000 -> 0 | D71: =(MalesSE!$N$64-MalesSE!$I$64)/1000 -> 0.119 | E71: =(Males!$N$64-Males!$I$64)/1000 -> -4.469
A72: Female employment | B72: =(FemalesFT!$N$64-FemalesFT!$I$64)/1000 -> 0.316 | C72: =(FemalesPT!$N$64-FemalesPT!$I$64)/1000 -> 0.046 | D72: =(FemalesSE!$N$64-FemalesSE!$I$64)/1000 -> -0.031 | E72: =(Females!$N$64-Females!$I$64)/1000 -> 0.331
A73: Total employment | B73: =(FT!$N$64-FT!$I$64)/1000 -> -4.272 | C73: =(PT!$N$64-PT!$I$64)/1000 -> 0.046 | D73: =(SE!$N$64-SE!$I$64)/1000 -> 0.088 | E73: =(All!$N$64-All!$I$64)/1000 -> -4.138
A75: =A$9 -> 2002-2007
A76: Employment by Gender | B76: FT | C76: PT | D76: SE | E76: Total
A77: Male employment | B77: =(MalesFT!$S$64-MalesFT!$N$64)/1000 -> 4.847 | C77: =(MalesPT!$S$64-MalesPT!$N$64)/1000 -> 0.002 | D77: =(MalesSE!$S$64-MalesSE!$N$64)/1000 -> 2.013 | E77: =(Males!$S$64-Males!$N$64)/1000 -> 6.862
A78: Female employment | B78: =(FemalesFT!$S$64-FemalesFT!$N$64)/1000 -> -0.324 | C78: =(FemalesPT!$S$64-FemalesPT!$N$64)/1000 -> 1.552 | D78: =(FemalesSE!$S$64-FemalesSE!$N$64)/1000 -> -0.083 | E78: =(Females!$S$64-Females!$N$64)/1000 -> 1.145
A79: Total employment | B79: =(FT!$S$64-FT!$N$64)/1000 -> 4.523 | C79: =(PT!$S$64-PT!$N$64)/1000 -> 1.554 | D79: =(SE!$S$64-SE!$N$64)/1000 -> 1.93 | E79: =(All!$S$64-All!$N$64)/1000 -> 8.007
A81: =A$15 -> 2007-2012
A82: Employment by Gender | B82: FT | C82: PT | D82: SE | E82: Total
A83: Male employment | B83: =(MalesFT!$X$64-MalesFT!$S$64)/1000 -> 1.799 | C83: =(MalesPT!$X$64-MalesPT!$S$64)/1000 -> -0.001 | D83: =(MalesSE!$X$64-MalesSE!$S$64)/1000 -> -0.218 | E83: =(Males!$X$64-Males!$S$64)/1000 -> 1.58
A84: Female employment | B84: =(FemalesFT!$X$64-FemalesFT!$S$64)/1000 -> 1.841 | C84: =(FemalesPT!$X$64-FemalesPT!$S$64)/1000 -> 0.047 | D84: =(FemalesSE!$X$64-FemalesSE!$S$64)/1000 -> -0.001 | E84: =(Females!$X$64-Females!$S$64)/1000 -> 1.887
A85: Total employment | B85: =(FT!$X$64-FT!$S$64)/1000 -> 3.64 | C85: =(PT!$X$64-PT!$S$64)/1000 -> 0.046 | D85: =(SE!$X$64-SE!$S$64)/1000 -> -0.219 | E85: =(All!$X$64-All!$S$64)/1000 -> 3.467
A87: =A$21 -> 2012-2017
A88: Employment by Gender | B88: FT | C88: PT | D88: SE | E88: Total
A89: Male employment | B89: =(MalesFT!$AC$64-MalesFT!$X$64)/1000 -> -2.014 | C89: =(MalesPT!$AC$64-MalesPT!$X$64)/1000 -> 0.017 | D89: =(MalesSE!$AC$64-MalesSE!$X$64)/1000 -> -0.363 | E89: =(Males!$AC$64-Males!$X$64)/1000 -> -2.36
A90: Female employment | B90: =(FemalesFT!$AC$64-FemalesFT!$X$64)/1000 -> -0.246 | C90: =(FemalesPT!$AC$64-FemalesPT!$X$64)/1000 -> -0.07 | D90: =(FemalesSE!$AC$64-FemalesSE!$X$64)/1000 -> 0 | E90: =(Females!$AC$64-Females!$X$64)/1000 -> -0.316
A91: Total employment | B91: =(FT!$AC$64-FT!$X$64)/1000 -> -2.26 | C91: =(PT!$AC$64-PT!$X$64)/1000 -> -0.053 | D91: =(SE!$AC$64-SE!$X$64)/1000 -> -0.363 | E91: =(All!$AC$64-All!$X$64)/1000 -> -2.676
A93: =A$27 -> 2017-2022
A94: Employment by Gender | B94: FT | C94: PT | D94: SE | E94: Total
A95: Male employment | B95: =(MalesFT!$AH$64-MalesFT!$AC$64)/1000 -> -0.57 | C95: =(MalesPT!$AH$64-MalesPT!$AC$64)/1000 -> 0.022 | D95: =(MalesSE!$AH$64-MalesSE!$AC$64)/1000 -> -0.092 | E95: =(Males!$AH$64-Males!$AC$64)/1000 -> -0.64
A96: Female employment | B96: =(FemalesFT!$AH$64-FemalesFT!$AC$64)/1000 -> -0.095 | C96: =(FemalesPT!$AH$64-FemalesPT!$AC$64)/1000 -> -0.063 | D96: =(FemalesSE!$AH$64-FemalesSE!$AC$64)/1000 -> 0 | E96: =(Females!$AH$64-Females!$AC$64)/1000 -> -0.158
A97: Total employment | B97: =(FT!$AH$64-FT!$AC$64)/1000 -> -0.665 | C97: =(PT!$AH$64-PT!$AC$64)/1000 -> -0.041 | D97: =(SE!$AH$64-SE!$AC$64)/1000 -> -0.092 | E97: =(All!$AH$64-All!$AC$64)/1000 -> -0.798
A100: Table 6.x.2c | B100: Employment changes
A101: ='Table 6.x.2a CD'!A101 -> Food drink and tobacco | E101: 000s
A102: =A$3 -> 1997-2002
A103: Employment by Gender | B103: FT | C103: PT | D103: SE | E103: Total
A104: Male employment | B104: =(MalesFT!$N$92-MalesFT!$I$92)/1000 -> 1.9 | C104: =(MalesPT!$N$92-MalesPT!$I$92)/1000 -> -0.876 | D104: =(MalesSE!$N$92-MalesSE!$I$92)/1000 -> -0.246 | E104: =(Males!$N$92-Males!$I$92)/1000 -> 0.778
A105: Female employment | B105: =(FemalesFT!$N$92-FemalesFT!$I$92)/1000 -> -0.23 | C105: =(FemalesPT!$N$92-FemalesPT!$I$92)/1000 -> -6.018 | D105: =(FemalesSE!$N$92-FemalesSE!$I$92)/1000 -> -0.056 | E105: =(Females!$N$92-Females!$I$92)/1000 -> -6.304
A106: Total employment | B106: =(FT!$N$92-FT!$I$92)/1000 -> 1.67 | C106: =(PT!$N$92-PT!$I$92)/1000 -> -6.894 | D106: =(SE!$N$92-SE!$I$92)/1000 -> -0.302 | E106: =(All!$N$92-All!$I$92)/1000 -> -5.526
A108: =A$9 -> 2002-2007
A109: Employment by Gender | B109: FT | C109: PT | D109: SE | E109: Total
A110: Male employment | B110: =(MalesFT!$S$92-MalesFT!$N$92)/1000 -> -3.639 | C110: =(MalesPT!$S$92-MalesPT!$N$92)/1000 -> -0.176 | D110: =(MalesSE!$S$92-MalesSE!$N$92)/1000 -> 0.553 | E110: =(Males!$S$92-Males!$N$92)/1000 -> -3.262
A111: Female employment | B111: =(FemalesFT!$S$92-FemalesFT!$N$92)/1000 -> -2.224 | C111: =(FemalesPT!$S$92-FemalesPT!$N$92)/1000 -> -1.408 | D111: =(FemalesSE!$S$92-FemalesSE!$N$92)/1000 -> 0.315 | E111: =(Females!$S$92-Females!$N$92)/1000 -> -3.317
A112: Total employment | B112: =(FT!$S$92-FT!$N$92)/1000 -> -5.863 | C112: =(PT!$S$92-PT!$N$92)/1000 -> -1.584 | D112: =(SE!$S$92-SE!$N$92)/1000 -> 0.868 | E112: =(All!$S$92-All!$N$92)/1000 -> -6.579
A114: =A$15 -> 2007-2012
A115: Employment by Gender | B115: FT | C115: PT | D115: SE | E115: Total
A116: Male employment | B116: =(MalesFT!$X$92-MalesFT!$S$92)/1000 -> -0.688 | C116: =(MalesPT!$X$92-MalesPT!$S$92)/1000 -> 0.5 | D116: =(MalesSE!$X$92-MalesSE!$S$92)/1000 -> -0.215 | E116: =(Males!$X$92-Males!$S$92)/1000 -> -0.403
A117: Female employment | B117: =(FemalesFT!$X$92-FemalesFT!$S$92)/1000 -> 0.004 | C117: =(FemalesPT!$X$92-FemalesPT!$S$92)/1000 -> 0.358 | D117: =(FemalesSE!$X$92-FemalesSE!$S$92)/1000 -> 0.491 | E117: =(Females!$X$92-Females!$S$92)/1000 -> 0.853
A118: Total employment | B118: =(FT!$X$92-FT!$S$92)/1000 -> -0.684 | C118: =(PT!$X$92-PT!$S$92)/1000 -> 0.858 | D118: =(SE!$X$92-SE!$S$92)/1000 -> 0.276 | E118: =(All!$X$92-All!$S$92)/1000 -> 0.45
A120: =A$21 -> 2012-2017
A121: Employment by Gender | B121: FT | C121: PT | D121: SE | E121: Total
A122: Male employment | B122: =(MalesFT!$AC$92-MalesFT!$X$92)/1000 -> -0.966 | C122: =(MalesPT!$AC$92-MalesPT!$X$92)/1000 -> 0.36 | D122: =(MalesSE!$AC$92-MalesSE!$X$92)/1000 -> -0.013 | E122: =(Males!$AC$92-Males!$X$92)/1000 -> -0.619
A123: Female employment | B123: =(FemalesFT!$AC$92-FemalesFT!$X$92)/1000 -> -0.202 | C123: =(FemalesPT!$AC$92-FemalesPT!$X$92)/1000 -> 0.011 | D123: =(FemalesSE!$AC$92-FemalesSE!$X$92)/1000 -> -0.052 | E123: =(Females!$AC$92-Females!$X$92)/1000 -> -0.243
A124: Total employment | B124: =(FT!$AC$92-FT!$X$92)/1000 -> -1.168 | C124: =(PT!$AC$92-PT!$X$92)/1000 -> 0.371 | D124: =(SE!$AC$92-SE!$X$92)/1000 -> -0.065 | E124: =(All!$AC$92-All!$X$92)/1000 -> -0.862
A126: =A$27 -> 2017-2022
A127: Employment by Gender | B127: FT | C127: PT | D127: SE | E127: Total
A128: Male employment | B128: =(MalesFT!$AH$92-MalesFT!$AC$92)/1000 -> -1.939 | C128: =(MalesPT!$AH$92-MalesPT!$AC$92)/1000 -> 0.213 | D128: =(MalesSE!$AH$92-MalesSE!$AC$92)/1000 -> -0.056 | E128: =(Males!$AH$92-Males!$AC$92)/1000 -> -1.782
A129: Female employment | B129: =(FemalesFT!$AH$92-FemalesFT!$AC$92)/1000 -> -0.709 | C129: =(FemalesPT!$AH$92-FemalesPT!$AC$92)/1000 -> -0.219 | D129: =(FemalesSE!$AH$92-FemalesSE!$AC$92)/1000 -> -0.109 | E129: =(Females!$AH$92-Females!$AC$92)/1000 -> -1.037
A130: Total employment | B130: =(FT!$AH$92-FT!$AC$92)/1000 -> -2.648 | C130: =(PT!$AH$92-PT!$AC$92)/1000 -> -0.006 | D130: =(SE!$AH$92-SE!$AC$92)/1000 -> -0.165 | E130: =(All!$AH$92-All!$AC$92)/1000 -> -2.819
A133: Table 6.x.2c | B133: Employment changes
A134: ='Table 6.x.2a CD'!A134 -> Engineering | E134: 000s
A135: =A$3 -> 1997-2002
A136: Employment by Gender | B136: FT | C136: PT | D136: SE | E136: Total
A137: Male employment | B137: =(MalesFT!$N$120-MalesFT!$I$120)/1000 -> -8.954 | C137: =(MalesPT!$N$120-MalesPT!$I$120)/1000 -> 0.227 | D137: =(MalesSE!$N$120-MalesSE!$I$120)/1000 -> -1.337 | E137: =(Males!$N$120-Males!$I$120)/1000 -> -10.064
A138: Female employment | B138: =(FemalesFT!$N$120-FemalesFT!$I$120)/1000 -> -2.998 | C138: =(FemalesPT!$N$120-FemalesPT!$I$120)/1000 -> 0.219 | D138: =(FemalesSE!$N$120-FemalesSE!$I$120)/1000 -> 0.018 | E138: =(Females!$N$120-Females!$I$120)/1000 -> -2.761
A139: Total employment | B139: =(FT!$N$120-FT!$I$120)/1000 -> -11.952 | C139: =(PT!$N$120-PT!$I$120)/1000 -> 0.446 | D139: =(SE!$N$120-SE!$I$120)/1000 -> -1.319 | E139: =(All!$N$120-All!$I$120)/1000 -> -12.825
A141: =A$9 -> 2002-2007
A142: Employment by Gender | B142: FT | C142: PT | D142: SE | E142: Total
A143: Male employment | B143: =(MalesFT!$S$120-MalesFT!$N$120)/1000 -> -8.143 | C143: =(MalesPT!$S$120-MalesPT!$N$120)/1000 -> -0.089 | D143: =(MalesSE!$S$120-MalesSE!$N$120)/1000 -> 0.66 | E143: =(Males!$S$120-Males!$N$120)/1000 -> -7.572
A144: Female employment | B144: =(FemalesFT!$S$120-FemalesFT!$N$120)/1000 -> -6.962 | C144: =(FemalesPT!$S$120-FemalesPT!$N$120)/1000 -> -0.247 | D144: =(FemalesSE!$S$120-FemalesSE!$N$120)/1000 -> 0.539 | E144: =(Females!$S$120-Females!$N$120)/1000 -> -6.67
A145: Total employment | B145: =(FT!$S$120-FT!$N$120)/1000 -> -15.105 | C145: =(PT!$S$120-PT!$N$120)/1000 -> -0.336 | D145: =(SE!$S$120-SE!$N$120)/1000 -> 1.199 | E145: =(All!$S$120-All!$N$120)/1000 -> -14.242
A147: =A$15 -> 2007-2012
A148: Employment by Gender | B148: FT | C148: PT | D148: SE | E148: Total
A149: Male employment | B149: =(MalesFT!$X$120-MalesFT!$S$120)/1000 -> -9.866 | C149: =(MalesPT!$X$120-MalesPT!$S$120)/1000 -> 0.005 | D149: =(MalesSE!$X$120-MalesSE!$S$120)/1000 -> -0.647 | E149: =(Males!$X$120-Males!$S$120)/1000 -> -10.508
A150: Female employment | B150: =(FemalesFT!$X$120-FemalesFT!$S$120)/1000 -> -2.99 | C150: =(FemalesPT!$X$120-FemalesPT!$S$120)/1000 -> 0.465 | D150: =(FemalesSE!$X$120-FemalesSE!$S$120)/1000 -> -0.376 | E150: =(Females!$X$120-Females!$S$120)/1000 -> -2.901
A151: Total employment | B151: =(FT!$X$120-FT!$S$120)/1000 -> -12.856 | C151: =(PT!$X$120-PT!$S$120)/1000 -> 0.47 | D151: =(SE!$X$120-SE!$S$120)/1000 -> -1.023 | E151: =(All!$X$120-All!$S$120)/1000 -> -13.409
A153: =A$21 -> 2012-2017
A154: Employment by Gender | B154: FT | C154: PT | D154: SE | E154: Total
A155: Male employment | B155: =(MalesFT!$AC$120-MalesFT!$X$120)/1000 -> -0.6 | C155: =(MalesPT!$AC$120-MalesPT!$X$120)/1000 -> 0.122 | D155: =(MalesSE!$AC$120-MalesSE!$X$120)/1000 -> 0.106 | E155: =(Males!$AC$120-Males!$X$120)/1000 -> -0.372
A156: Female employment | B156: =(FemalesFT!$AC$120-FemalesFT!$X$120)/1000 -> 0.223 | C156: =(FemalesPT!$AC$120-FemalesPT!$X$120)/1000 -> 0.275 | D156: =(FemalesSE!$AC$120-FemalesSE!$X$120)/1000 -> 0.047 | E156: =(Females!$AC$120-Females!$X$120)/1000 -> 0.545
A157: Total employment | B157: =(FT!$AC$120-FT!$X$120)/1000 -> -0.377 | C157: =(PT!$AC$120-PT!$X$120)/1000 -> 0.397 | D157: =(SE!$AC$120-SE!$X$120)/1000 -> 0.153 | E157: =(All!$AC$120-All!$X$120)/1000 -> 0.173
A159: =A$27 -> 2017-2022
A160: Employment by Gender | B160: FT | C160: PT | D160: SE | E160: Total
A161: Male employment | B161: =(MalesFT!$AH$120-MalesFT!$AC$120)/1000 -> -0.232 | C161: =(MalesPT!$AH$120-MalesPT!$AC$120)/1000 -> 0.147 | D161: =(MalesSE!$AH$120-MalesSE!$AC$120)/1000 -> 0.146 | E161: =(Males!$AH$120-Males!$AC$120)/1000 -> 0.061
A162: Female employment | B162: =(FemalesFT!$AH$120-FemalesFT!$AC$120)/1000 -> 0.282 | C162: =(FemalesPT!$AH$120-FemalesPT!$AC$120)/1000 -> 0.381 | D162: =(FemalesSE!$AH$120-FemalesSE!$AC$120)/1000 -> 0.059 | E162: =(Females!$AH$120-Females!$AC$120)/1000 -> 0.722
A163: Total employment | B163: =(FT!$AH$120-FT!$AC$120)/1000 -> 0.05 | C163: =(PT!$AH$120-PT!$AC$120)/1000 -> 0.528 | D163: =(SE!$AH$120-SE!$AC$120)/1000 -> 0.205 | E163: =(All!$AH$120-All!$AC$120)/1000 -> 0.783
A166: Table 6.x.2c | B166: Employment changes
A167: ='Table 6.x.2a CD'!A167 -> Rest of manufacturing | E167: 000s
A168: =A$3 -> 1997-2002
A169: Employment by Gender | B169: FT | C169: PT | D169: SE | E169: Total
A170: Male employment | B170: =(MalesFT!$N$148-MalesFT!$I$148)/1000 -> -33.442 | C170: =(MalesPT!$N$148-MalesPT!$I$148)/1000 -> 3.52 | D170: =(MalesSE!$N$148-MalesSE!$I$148)/1000 -> 2.302 | E170: =(Males!$N$148-Males!$I$148)/1000 -> -27.62
A171: Female employment | B171: =(FemalesFT!$N$148-FemalesFT!$I$148)/1000 -> -21.53 | C171: =(FemalesPT!$N$148-FemalesPT!$I$148)/1000 -> -2.17 | D171: =(FemalesSE!$N$148-FemalesSE!$I$148)/1000 -> 1.169 | E171: =(Females!$N$148-Females!$I$148)/1000 -> -22.531
A172: Total employment | B172: =(FT!$N$148-FT!$I$148)/1000 -> -54.972 | C172: =(PT!$N$148-PT!$I$148)/1000 -> 1.35 | D172: =(SE!$N$148-SE!$I$148)/1000 -> 3.471 | E172: =(All!$N$148-All!$I$148)/1000 -> -50.151
A174: =A$9 -> 2002-2007
A175: Employment by Gender | B175: FT | C175: PT | D175: SE | E175: Total
A176: Male employment | B176: =(MalesFT!$S$148-MalesFT!$N$148)/1000 -> -9.572 | C176: =(MalesPT!$S$148-MalesPT!$N$148)/1000 -> -2.75 | D176: =(MalesSE!$S$148-MalesSE!$N$148)/1000 -> -1.045 | E176: =(Males!$S$148-Males!$N$148)/1000 -> -13.367
A177: Female employment | B177: =(FemalesFT!$S$148-FemalesFT!$N$148)/1000 -> -11.871 | C177: =(FemalesPT!$S$148-FemalesPT!$N$148)/1000 -> -1.261 | D177: =(FemalesSE!$S$148-FemalesSE!$N$148)/1000 -> 0.872 | E177: =(Females!$S$148-Females!$N$148)/1000 -> -12.26
A178: Total employment | B178: =(FT!$S$148-FT!$N$148)/1000 -> -21.443 | C178: =(PT!$S$148-PT!$N$148)/1000 -> -4.011 | D178: =(SE!$S$148-SE!$N$148)/1000 -> -0.173 | E178: =(All!$S$148-All!$N$148)/1000 -> -25.627
A180: =A$15 -> 2007-2012
A181: Employment by Gender | B181: FT | C181: PT | D181: SE | E181: Total
A182: Male employment | B182: =(MalesFT!$X$148-MalesFT!$S$148)/1000 -> -10.506 | C182: =(MalesPT!$X$148-MalesPT!$S$148)/1000 -> -0.547 | D182: =(MalesSE!$X$148-MalesSE!$S$148)/1000 -> 2.267 | E182: =(Males!$X$148-Males!$S$148)/1000 -> -8.786
A183: Female employment | B183: =(FemalesFT!$X$148-FemalesFT!$S$148)/1000 -> -3.039 | C183: =(FemalesPT!$X$148-FemalesPT!$S$148)/1000 -> -1.89 | D183: =(FemalesSE!$X$148-FemalesSE!$S$148)/1000 -> 0.361 | E183: =(Females!$X$148-Females!$S$148)/1000 -> -4.568
A184: Total employment | B184: =(FT!$X$148-FT!$S$148)/1000 -> -13.545 | C184: =(PT!$X$148-PT!$S$148)/1000 -> -2.437 | D184: =(SE!$X$148-SE!$S$148)/1000 -> 2.628 | E184: =(All!$X$148-All!$S$148)/1000 -> -13.354
A186: =A$21 -> 2012-2017
A187: Employment by Gender | B187: FT | C187: PT | D187: SE | E187: Total
A188: Male employment | B188: =(MalesFT!$AC$148-MalesFT!$X$148)/1000 -> -5.578 | C188: =(MalesPT!$AC$148-MalesPT!$X$148)/1000 -> 0.243 | D188: =(MalesSE!$AC$148-MalesSE!$X$148)/1000 -> -0.368 | E188: =(Males!$AC$148-Males!$X$148)/1000 -> -5.703
A189: Female employment | B189: =(FemalesFT!$AC$148-FemalesFT!$X$148)/1000 -> -0.938 | C189: =(FemalesPT!$AC$148-FemalesPT!$X$148)/1000 -> -0.098 | D189: =(FemalesSE!$AC$148-FemalesSE!$X$148)/1000 -> -0.47 | E189: =(Females!$AC$148-Females!$X$148)/1000 -> -1.506
A190: Total employment | B190: =(FT!$AC$148-FT!$X$148)/1000 -> -6.516 | C190: =(PT!$AC$148-PT!$X$148)/1000 -> 0.145 | D190: =(SE!$AC$148-SE!$X$148)/1000 -> -0.838 | E190: =(All!$AC$148-All!$X$148)/1000 -> -7.209
A192: =A$27 -> 2017-2022
A193: Employment by Gender | B193: FT | C193: PT | D193: SE | E193: Total
A194: Male employment | B194: =(MalesFT!$AH$148-MalesFT!$AC$148)/1000 -> -6.805 | C194: =(MalesPT!$AH$148-MalesPT!$AC$148)/1000 -> 0.179 | D194: =(MalesSE!$AH$148-MalesSE!$AC$148)/1000 -> -0.544 | E194: =(Males!$AH$148-Males!$AC$148)/1000 -> -7.17
A195: Female employment | B195: =(FemalesFT!$AH$148-FemalesFT!$AC$148)/1000 -> -0.608 | C195: =(FemalesPT!$AH$148-FemalesPT!$AC$148)/1000 -> 0.013 | D195: =(FemalesSE!$AH$148-FemalesSE!$AC$148)/1000 -> -0.313 | E195: =(Females!$AH$148-Females!$AC$148)/1000 -> -0.908
A196: Total employment | B196: =(FT!$AH$148-FT!$AC$148)/1000 -> -7.413 | C196: =(PT!$AH$148-PT!$AC$148)/1000 -> 0.192 | D196: =(SE!$AH$148-SE!$AC$148)/1000 -> -0.857 | E196: =(All!$AH$148-All!$AC$148)/1000 -> -8.078
A199: Table 6.x.2c | B199: Employment changes
A200: ='Table 6.x.2a CD'!A200 -> Electricity and gas | E200: 000s
A201: =A$3 -> 1997-2002
A202: Employment by Gender | B202: FT | C202: PT | D202: SE | E202: Total
A203: Male employment | B203: =(MalesFT!$N$176-MalesFT!$I$176)/1000 -> -3.799 | C203: =(MalesPT!$N$176-MalesPT!$I$176)/1000 -> 0.96 | D203: =(MalesSE!$N$176-MalesSE!$I$176)/1000 -> 0 | E203: =(Males!$N$176-Males!$I$176)/1000 -> -2.839
A204: Female employment | B204: =(FemalesFT!$N$176-FemalesFT!$I$176)/1000 -> 0.9 | C204: =(FemalesPT!$N$176-FemalesPT!$I$176)/1000 -> 1.328 | D204: =(FemalesSE!$N$176-FemalesSE!$I$176)/1000 -> 0.038 | E204: =(Females!$N$176-Females!$I$176)/1000 -> 2.266
A205: Total employment | B205: =(FT!$N$176-FT!$I$176)/1000 -> -2.899 | C205: =(PT!$N$176-PT!$I$176)/1000 -> 2.288 | D205: =(SE!$N$176-SE!$I$176)/1000 -> 0.038 | E205: =(All!$N$176-All!$I$176)/1000 -> -0.573
A207: =A$9 -> 2002-2007
A208: Employment by Gender | B208: FT | C208: PT | D208: SE | E208: Total
A209: Male employment | B209: =(MalesFT!$S$176-MalesFT!$N$176)/1000 -> 0.889 | C209: =(MalesPT!$S$176-MalesPT!$N$176)/1000 -> -0.913 | D209: =(MalesSE!$S$176-MalesSE!$N$176)/1000 -> 0 | E209: =(Males!$S$176-Males!$N$176)/1000 -> -0.024
A210: Female employment | B210: =(FemalesFT!$S$176-FemalesFT!$N$176)/1000 -> -0.761 | C210: =(FemalesPT!$S$176-FemalesPT!$N$176)/1000 -> -0.469 | D210: =(FemalesSE!$S$176-FemalesSE!$N$176)/1000 -> -0.054 | E210: =(Females!$S$176-Females!$N$176)/1000 -> -1.284
A211: Total employment | B211: =(FT!$S$176-FT!$N$176)/1000 -> 0.128 | C211: =(PT!$S$176-PT!$N$176)/1000 -> -1.382 | D211: =(SE!$S$176-SE!$N$176)/1000 -> -0.054 | E211: =(All!$S$176-All!$N$176)/1000 -> -1.308
A213: =A$15 -> 2007-2012
A214: Employment by Gender | B214: FT | C214: PT | D214: SE | E214: Total
A215: Male employment | B215: =(MalesFT!$X$176-MalesFT!$S$176)/1000 -> 2.799 | C215: =(MalesPT!$X$176-MalesPT!$S$176)/1000 -> 1.906 | D215: =(MalesSE!$X$176-MalesSE!$S$176)/1000 -> 0.924 | E215: =(Males!$X$176-Males!$S$176)/1000 -> 5.629
A216: Female employment | B216: =(FemalesFT!$X$176-FemalesFT!$S$176)/1000 -> 1.864 | C216: =(FemalesPT!$X$176-FemalesPT!$S$176)/1000 -> -0.228 | D216: =(FemalesSE!$X$176-FemalesSE!$S$176)/1000 -> 0.011 | E216: =(Females!$X$176-Females!$S$176)/1000 -> 1.647
A217: Total employment | B217: =(FT!$X$176-FT!$S$176)/1000 -> 4.663 | C217: =(PT!$X$176-PT!$S$176)/1000 -> 1.678 | D217: =(SE!$X$176-SE!$S$176)/1000 -> 0.935 | E217: =(All!$X$176-All!$S$176)/1000 -> 7.276
A219: =A$21 -> 2012-2017
A220: Employment by Gender | B220: FT | C220: PT | D220: SE | E220: Total
A221: Male employment | B221: =(MalesFT!$AC$176-MalesFT!$X$176)/1000 -> 2.009 | C221: =(MalesPT!$AC$176-MalesPT!$X$176)/1000 -> 0.054 | D221: =(MalesSE!$AC$176-MalesSE!$X$176)/1000 -> 0.096 | E221: =(Males!$AC$176-Males!$X$176)/1000 -> 2.159
A222: Female employment | B222: =(FemalesFT!$AC$176-FemalesFT!$X$176)/1000 -> 0.007 | C222: =(FemalesPT!$AC$176-FemalesPT!$X$176)/1000 -> 0.097 | D222: =(FemalesSE!$AC$176-FemalesSE!$X$176)/1000 -> 0.005 | E222: =(Females!$AC$176-Females!$X$176)/1000 -> 0.109
A223: Total employment | B223: =(FT!$AC$176-FT!$X$176)/1000 -> 2.016 | C223: =(PT!$AC$176-PT!$X$176)/1000 -> 0.151 | D223: =(SE!$AC$176-SE!$X$176)/1000 -> 0.101 | E223: =(All!$AC$176-All!$X$176)/1000 -> 2.268
A225: =A$27 -> 2017-2022
A226: Employment by Gender | B226: FT | C226: PT | D226: SE | E226: Total
A227: Male employment | B227: =(MalesFT!$AH$176-MalesFT!$AC$176)/1000 -> 1.103 | C227: =(MalesPT!$AH$176-MalesPT!$AC$176)/1000 -> -0.165 | D227: =(MalesSE!$AH$176-MalesSE!$AC$176)/1000 -> 0.031 | E227: =(Males!$AH$176-Males!$AC$176)/1000 -> 0.969
A228: Female employment | B228: =(FemalesFT!$AH$176-FemalesFT!$AC$176)/1000 -> -0.516 | C228: =(FemalesPT!$AH$176-FemalesPT!$AC$176)/1000 -> 0.025 | D228: =(FemalesSE!$AH$176-FemalesSE!$AC$176)/1000 -> 0.002 | E228: =(Females!$AH$176-Females!$AC$176)/1000 -> -0.489
A229: Total employment | B229: =(FT!$AH$176-FT!$AC$176)/1000 -> 0.587 | C229: =(PT!$AH$176-PT!$AC$176)/1000 -> -0.14 | D229: =(SE!$AH$176-SE!$AC$176)/1000 -> 0.033 | E229: =(All!$AH$176-All!$AC$176)/1000 -> 0.48
A232: Table 6.x.2c | B232: Employment changes
A233: ='Table 6.x.2a CD'!A233 -> Water and sewerage | E233: 000s
A234: =A$3 -> 1997-2002
A235: Employment by Gender | B235: FT | C235: PT | D235: SE | E235: Total
A236: Male employment | B236: =(MalesFT!$N$204-MalesFT!$I$204)/1000 -> 2.151 | C236: =(MalesPT!$N$204-MalesPT!$I$204)/1000 -> -0.034 | D236: =(MalesSE!$N$204-MalesSE!$I$204)/1000 -> 0 | E236: =(Males!$N$204-Males!$I$204)/1000 -> 2.117
A237: Female employment | B237: =(FemalesFT!$N$204-FemalesFT!$I$204)/1000 -> 1.416 | C237: =(FemalesPT!$N$204-FemalesPT!$I$204)/1000 -> 1.926 | D237: =(FemalesSE!$N$204-FemalesSE!$I$204)/1000 -> -0.056 | E237: =(Females!$N$204-Females!$I$204)/1000 -> 3.286
A238: Total employment | B238: =(FT!$N$204-FT!$I$204)/1000 -> 3.567 | C238: =(PT!$N$204-PT!$I$204)/1000 -> 1.892 | D238: =(SE!$N$204-SE!$I$204)/1000 -> -0.056 | E238: =(All!$N$204-All!$I$204)/1000 -> 5.403
A240: =A$9 -> 2002-2007
A241: Employment by Gender | B241: FT | C241: PT | D241: SE | E241: Total
A242: Male employment | B242: =(MalesFT!$S$204-MalesFT!$N$204)/1000 -> 0.806 | C242: =(MalesPT!$S$204-MalesPT!$N$204)/1000 -> -0.903 | D242: =(MalesSE!$S$204-MalesSE!$N$204)/1000 -> 0 | E242: =(Males!$S$204-Males!$N$204)/1000 -> -0.097
A243: Female employment | B243: =(FemalesFT!$S$204-FemalesFT!$N$204)/1000 -> -1.294 | C243: =(FemalesPT!$S$204-FemalesPT!$N$204)/1000 -> -2.112 | D243: =(FemalesSE!$S$204-FemalesSE!$N$204)/1000 -> 1.658 | E243: =(Females!$S$204-Females!$N$204)/1000 -> -1.748
... 265 more rows

Sheet Figure 6.x.7
N2: Graph titles - do not remove:-
N3: Employment levels by gender and status,
N4: =CONCATENATE(N3,'Table 6.x.2a CD'!A3,"-",'Table 6.x.2a CD'!A27) -> Employment levels by gender and status, 2002-2022
N6: =CONCATENATE($N$4,CHAR(13),names!$A$3) -> Employment levels by gender and status, 2002-2022 All industries
N28: =CONCATENATE($N$4,CHAR(13),names!$A$4) -> Employment levels by gender and status, 2002-2022 Agriculture
N50: =CONCATENATE($N$4,CHAR(13),names!$A$5) -> Employment levels by gender and status, 2002-2022 Mining and quarrying
N72: =CONCATENATE($N$4,CHAR(13),names!$A$6) -> Employment levels by gender and status, 2002-2022 Food drink and tobacco
N94: =CONCATENATE($N$4,CHAR(13),names!$A$7) -> Employment levels by gender and status, 2002-2022 Engineering
N116: =CONCATENATE($N$4,CHAR(13),names!$A$8) -> Employment levels by gender and status, 2002-2022 Rest of manufacturing
N138: =CONCATENATE($N$4,CHAR(13),names!$A$9) -> Employment levels by gender and status, 2002-2022 Electricity and gas
N160: =CONCATENATE($N$4,CHAR(13),names!$A$10) -> Employment levels by gender and status, 2002-2022 Water and sewerage
N182: =CONCATENATE($N$4,CHAR(13),names!$A$11) -> Employment levels by gender and status, 2002-2022 Construction
N204: =CONCATENATE($N$4,CHAR(13),names!$A$12) -> Employment levels by gender and status, 2002-2022 Wholesale and retail trade
N226: =CONCATENATE($N$4,CHAR(13),names!$A$13) -> Employment levels by gender and status, 2002-2022 Transport and storage
N248: =CONCATENATE($N$4,CHAR(13),names!$A$14) -> Employment levels by gender and status, 2002-2022 Accommodation and food
N270: =CONCATENATE($N$4,CHAR(13),names!$A$15) -> Employment levels by gender and status, 2002-2022 Media
N292: =CONCATENATE($N$4,CHAR(13),names!$A$16) -> Employment levels by gender and status, 2002-2022 Information technology
N314: =CONCATENATE($N$4,CHAR(13),names!$A$17) -> Employment levels by gender and status, 2002-2022 Finance and insurance
N336: =CONCATENATE($N$4,CHAR(13),names!$A$18) -> Employment levels by gender and status, 2002-2022 Real estate
N358: =CONCATENATE($N$4,CHAR(13),names!$A$19) -> Employment levels by gender and status, 2002-2022 Professional services
N380: =CONCATENATE($N$4,CHAR(13),names!$A$20) -> Employment levels by gender and status, 2002-2022 Support services
N402: =CONCATENATE($N$4,CHAR(13),names!$A$21) -> Employment levels by gender and status, 2002-2022 Public admin. and defence
N424: =CONCATENATE($N$4,CHAR(13),names!$A$22) -> Employment levels by gender and status, 2002-2022 Education
N446: =CONCATENATE($N$4,CHAR(13),names!$A$23) -> Employment levels by gender and status, 2002-2022 Health and social work
N468: =CONCATENATE($N$4,CHAR(13),names!$A$24) -> Employment levels by gender and status, 2002-2022 Arts and entertainment
N489: =CONCATENATE($N$4,CHAR(13),names!$A$25) -> Employment levels by gender and status, 2002-2022 Other services

Sheet Figure 6.x.8
C7: Do NOT remove.
C8: ="Employment shares by gender and status, "&'Table 6.x.2b CD'!A3&"-"&'Table 6.x.2b CD'!A27 -> Employment shares by gender and status, 2002-2022

Sheet Figure 6.x.9
C7: Do NOT remove
C8: =CONCATENATE("Employment changes by gender and status, ",All!I7,"-",'Table 6.x.2b CD'!A27) -> Employment changes by gender and status, 1997-2022

Sheet Figure 6.x.10
P1: ="Occupational Composition, "&P2&", "&Q2&"-"&U2 -> Occupational Composition, All industries, 2002-2022
P2: =names!A3 -> All industries | Q2: =All!N7 -> 2002 | R2: =All!S7 -> 2007 | S2: =All!X7 -> 2012 | T2: =All!AC7 -> 2017 | U2: =All!AH7 -> 2022
P3: =names!B4 -> Managers, directors and senior officials | Q3: =(All!N9+All!N10)/1000 -> 197.133646 | R3: =(All!S9+All!S10)/1000 -> 222.613278 | S3: =(All!X9+All!X10)/1000 -> 235.976753 | T3: =(All!AC9+All!AC10)/1000 -> 253.420396 | U3: =(All!AH9+All!AH10)/1000 -> 277.449746
P4: =names!B5 -> Professional occupations | Q4: =(All!N11+All!N12+All!N13+All!N14)/1000 -> 431.36483 | R4: =(All!S11+All!S12+All!S13+All!S14)/1000 -> 487.750827 | S4: =(All!X11+All!X12+All!X13+All!X14)/1000 -> 513.96653 | T4: =(All!AC11+All!AC12+All!AC13+All!AC14)/1000 -> 571.909831 | U4: =(All!AH11+All!AH12+All!AH13+All!AH14)/1000 -> 620.764895
P5: =names!B6 -> Associate professional and technical | Q5: =(All!N15+All!N16+All!N17+All!N18+All!N19)/1000 -> 289.433107 | R5: =(All!S15+All!S16+All!S17+All!S18+All!S19)/1000 -> 319.628489 | S5: =(All!X15+All!X16+All!X17+All!X18+All!X19)/1000 -> 316.700133 | T5: =(All!AC15+All!AC16+All!AC17+All!AC18+All!AC19)/1000 -> 336.730862 | U5: =(All!AH15+All!AH16+All!AH17+All!AH18+All!AH19)/1000 -> 363.711999
P6: =names!B7 -> Administrative and secretarial | Q6: =(All!N20+All!N21)/1000 -> 361.677903 | R6: =(All!S20+All!S21)/1000 -> 364.923568 | S6: =(All!X20+All!X21)/1000 -> 332.561241 | T6: =(All!AC20+All!AC21)/1000 -> 312.449479 | U6: =(All!AH20+All!AH21)/1000 -> 296.696661
P7: =names!B8 -> Skilled trades occupations | Q7: =(All!N22+All!N23+All!N24+All!N25)/1000 -> 317.083971 | R7: =(All!S22+All!S23+All!S24+All!S25)/1000 -> 337.422861 | S7: =(All!X22+All!X23+All!X24+All!X25)/1000 -> 316.287703 | T7: =(All!AC22+All!AC23+All!AC24+All!AC25)/1000 -> 295.106893 | U7: =(All!AH22+All!AH23+All!AH24+All!AH25)/1000 -> 285.155595
P8: =names!B9 -> Caring, leisure and other service | Q8: =(All!N26+All!N27)/1000 -> 182.365521 | R8: =(All!S26+All!S27)/1000 -> 197.386749 | S8: =(All!X26+All!X27)/1000 -> 196.237159 | T8: =(All!AC26+All!AC27)/1000 -> 222.930895 | U8: =(All!AH26+All!AH27)/1000 -> 250.89655
P9: =names!B10 -> Sales and customer service | Q9: =(All!N28+All!N29)/1000 -> 228.401548 | R9: =(All!S28+All!S29)/1000 -> 226.139039 | S9: =(All!X28+All!X29)/1000 -> 230.910084 | T9: =(All!AC28+All!AC29)/1000 -> 223.101508 | U9: =(All!AH28+All!AH29)/1000 -> 223.454705
P10: =names!B11 -> Process, plant and machine operatives | Q10: =(All!N30+All!N31)/1000 -> 184.688859 | R10: =(All!S30+All!S31)/1000 -> 188.173127 | S10: =(All!X30+All!X31)/1000 -> 167.388872 | T10: =(All!AC30+All!AC31)/1000 -> 153.402968 | U10: =(All!AH30+All!AH31)/1000 -> 143.591441
P11: =names!B12 -> Elementary occupations | Q11: =(All!N32+All!N33)/1000 -> 357.930615 | R11: =(All!S32+All!S33)/1000 -> 373.351063 | S11: =(All!X32+All!X33)/1000 -> 335.720524 | T11: =(All!AC32+All!AC33)/1000 -> 322.760168 | U11: =(All!AH32+All!AH33)/1000 -> 324.419408
P29: ="Occupational Composition, "&P30&", "&Q30&"-"&U30 -> Occupational Composition, Agriculture, 2002-2022
P30: =names!A4 -> Agriculture | Q30: =Q$2 -> 2002 | R30: =R$2 -> 2007 | S30: =S$2 -> 2012 | T30: =T$2 -> 2017 | U30: =U$2 -> 2022
P31: =P$3 -> Managers, directors and senior officials | Q31: =(All!N37+All!N38)/1000 -> 3.846826 | R31: =(All!S37+All!S38)/1000 -> 3.694429 | S31: =(All!X37+All!X38)/1000 -> 3.754864 | T31: =(All!AC37+All!AC38)/1000 -> 3.31814 | U31: =(All!AH37+All!AH38)/1000 -> 3.366974
P32: =P$4 -> Professional occupations | Q32: =(All!N39+All!N40+All!N41+All!N42)/1000 -> 2.120314 | R32: =(All!S39+All!S40+All!S41+All!S42)/1000 -> 2.011029 | S32: =(All!X39+All!X40+All!X41+All!X42)/1000 -> 1.69442 | T32: =(All!AC39+All!AC40+All!AC41+All!AC42)/1000 -> 1.600277 | U32: =(All!AH39+All!AH40+All!AH41+All!AH42)/1000 -> 1.74145
P33: =P$5 -> Associate professional and technical | Q33: =(All!N43+All!N44+All!N45+All!N46+All!N47)/1000 -> 1.543287 | R33: =(All!S43+All!S44+All!S45+All!S46+All!S47)/1000 -> 1.489413 | S33: =(All!X43+All!X44+All!X45+All!X46+All!X47)/1000 -> 1.488141 | T33: =(All!AC43+All!AC44+All!AC45+All!AC46+All!AC47)/1000 -> 1.330277 | U33: =(All!AH43+All!AH44+All!AH45+All!AH46+All!AH47)/1000 -> 1.388736
P34: =P$6 -> Administrative and secretarial | Q34: =(All!N48+All!N49)/1000 -> 2.338318 | R34: =(All!S48+All!S49)/1000 -> 2.576196 | S34: =(All!X48+All!X49)/1000 -> 1.951482 | T34: =(All!AC48+All!AC49)/1000 -> 1.543542 | U34: =(All!AH48+All!AH49)/1000 -> 1.516171
P35: =P$7 -> Skilled trades occupations | Q35: =(All!N50+All!N51+All!N52+All!N53)/1000 -> 21.653052 | R35: =(All!S50+All!S51+All!S52+All!S53)/1000 -> 30.401121 | S35: =(All!X50+All!X51+All!X52+All!X53)/1000 -> 27.788722 | T35: =(All!AC50+All!AC51+All!AC52+All!AC53)/1000 -> 23.807336 | U35: =(All!AH50+All!AH51+All!AH52+All!AH53)/1000 -> 23.738626
P36: =P$8 -> Caring, leisure and other service | Q36: =(All!N54+All!N55)/1000 -> 2.846497 | R36: =(All!S54+All!S55)/1000 -> 2.88653 | S36: =(All!X54+All!X55)/1000 -> 2.505646 | T36: =(All!AC54+All!AC55)/1000 -> 2.482192 | U36: =(All!AH54+All!AH55)/1000 -> 2.653956
P37: =P$9 -> Sales and customer service | Q37: =(All!N56+All!N57)/1000 -> 0.637255 | R37: =(All!S56+All!S57)/1000 -> 0.775238 | S37: =(All!X56+All!X57)/1000 -> 0.592178 | T37: =(All!AC56+All!AC57)/1000 -> 0.50547 | U37: =(All!AH56+All!AH57)/1000 -> 0.503154
P38: =P$10 -> Process, plant and machine operatives | Q38: =(All!N58+All!N59)/1000 -> 3.837931 | R38: =(All!S58+All!S59)/1000 -> 4.431107 | S38: =(All!X58+All!X59)/1000 -> 3.092995 | T38: =(All!AC58+All!AC59)/1000 -> 2.508412 | U38: =(All!AH58+All!AH59)/1000 -> 2.301438
P39: =P$11 -> Elementary occupations | Q39: =(All!N60+All!N61)/1000 -> 12.44452 | R39: =(All!S60+All!S61)/1000 -> 13.154936 | S39: =(All!X60+All!X61)/1000 -> 10.364552 | T39: =(All!AC60+All!AC61)/1000 -> 8.484355 | U39: =(All!AH60+All!AH61)/1000 -> 8.092493
P57: ="Occupational Composition, "&P58&", "&Q58&"-"&U58 -> Occupational Composition, Mining and quarrying, 2002-2022
P58: =names!A5 -> Mining and quarrying | Q58: =Q$2 -> 2002 | R58: =R$2 -> 2007 | S58: =S$2 -> 2012 | T58: =T$2 -> 2017 | U58: =U$2 -> 2022
P59: =P$3 -> Managers, directors and senior officials | Q59: =(All!N65+All!N66)/1000 -> 1.644616 | R59: =(All!S65+All!S66)/1000 -> 2.480915 | S59: =(All!X65+All!X66)/1000 -> 3.332675 | T59: =(All!AC65+All!AC66)/1000 -> 3.248434 | U59: =(All!AH65+All!AH66)/1000 -> 3.383902
P60: =P$4 -> Professional occupations | Q60: =(All!N67+All!N68+All!N69+All!N70)/1000 -> 4.886003 | R60: =(All!S67+All!S68+All!S69+All!S70)/1000 -> 7.010866 | S60: =(All!X67+All!X68+All!X69+All!X70)/1000 -> 8.692501 | T60: =(All!AC67+All!AC68+All!AC69+All!AC70)/1000 -> 8.767498 | U60: =(All!AH67+All!AH68+All!AH69+All!AH70)/1000 -> 9.048277
P61: =P$5 -> Associate professional and technical | Q61: =(All!N71+All!N72+All!N73+All!N74+All!N75)/1000 -> 3.736274 | R61: =(All!S71+All!S72+All!S73+All!S74+All!S75)/1000 -> 4.258405 | S61: =(All!X71+All!X72+All!X73+All!X74+All!X75)/1000 -> 4.749079 | T61: =(All!AC71+All!AC72+All!AC73+All!AC74+All!AC75)/1000 -> 4.561386 | U61: =(All!AH71+All!AH72+All!AH73+All!AH74+All!AH75)/1000 -> 4.622588
P62: =P$6 -> Administrative and secretarial | Q62: =(All!N76+All!N77)/1000 -> 2.394489 | R62: =(All!S76+All!S77)/1000 -> 3.064208 | S62: =(All!X76+All!X77)/1000 -> 3.655193 | T62: =(All!AC76+All!AC77)/1000 -> 3.10634 | U62: =(All!AH76+All!AH77)/1000 -> 2.771256
P63: =P$7 -> Skilled trades occupations | Q63: =(All!N78+All!N79+All!N80+All!N81)/1000 -> 3.408759 | R63: =(All!S78+All!S79+All!S80+All!S81)/1000 -> 4.934286 | S63: =(All!X78+All!X79+All!X80+All!X81)/1000 -> 5.266408 | T63: =(All!AC78+All!AC79+All!AC80+All!AC81)/1000 -> 4.39101 | U63: =(All!AH78+All!AH79+All!AH80+All!AH81)/1000 -> 3.976278
P64: =P$8 -> Caring, leisure and other service | Q64: =(All!N82+All!N83)/1000 -> 0.123103 | R64: =(All!S82+All!S83)/1000 -> 0.336637 | S64: =(All!X82+All!X83)/1000 -> 0.429959 | T64: =(All!AC82+All!AC83)/1000 -> 0.488797 | U64: =(All!AH82+All!AH83)/1000 -> 0.520337
P65: =P$9 -> Sales and customer service | Q65: =(All!N84+All!N85)/1000 -> 0.359332 | R65: =(All!S84+All!S85)/1000 -> 0.664612 | S65: =(All!X84+All!X85)/1000 -> 0.762416 | T65: =(All!AC84+All!AC85)/1000 -> 0.684249 | U65: =(All!AH84+All!AH85)/1000 -> 0.664983
P66: =P$10 -> Process, plant and machine operatives | Q66: =(All!N86+All!N87)/1000 -> 5.03371 | R66: =(All!S86+All!S87)/1000 -> 6.72463 | S66: =(All!X86+All!X87)/1000 -> 6.305396 | T66: =(All!AC86+All!AC87)/1000 -> 5.390372 | U66: =(All!AH86+All!AH87)/1000 -> 4.885139
P67: =P$11 -> Elementary occupations | Q67: =(All!N88+All!N89)/1000 -> 0.867717 | R67: =(All!S88+All!S89)/1000 -> 0.986441 | S67: =(All!X88+All!X89)/1000 -> 0.734375 | T67: =(All!AC88+All!AC89)/1000 -> 0.613913 | U67: =(All!AH88+All!AH89)/1000 -> 0.58124
P84: ="Occupational Composition, "&P85&", "&Q85&"-"&U85 -> Occupational Composition, Food drink and tobacco, 2002-2022
P85: =names!A6 -> Food drink and tobacco | Q85: =Q$2 -> 2002 | R85: =R$2 -> 2007 | S85: =S$2 -> 2012 | T85: =T$2 -> 2017 | U85: =U$2 -> 2022
P86: =P$3 -> Managers, directors and senior officials | Q86: =(All!N93+All!N94)/1000 -> 3.94097 | R86: =(All!S93+All!S94)/1000 -> 4.384532 | S86: =(All!X93+All!X94)/1000 -> 4.006751 | T86: =(All!AC93+All!AC94)/1000 -> 4.573264 | U86: =(All!AH93+All!AH94)/1000 -> 4.873233
P87: =P$4 -> Professional occupations | Q87: =(All!N95+All!N96+All!N97+All!N98)/1000 -> 2.92078 | R87: =(All!S95+All!S96+All!S97+All!S98)/1000 -> 3.205332 | S87: =(All!X95+All!X96+All!X97+All!X98)/1000 -> 2.857099 | T87: =(All!AC95+All!AC96+All!AC97+All!AC98)/1000 -> 3.284955 | U87: =(All!AH95+All!AH96+All!AH97+All!AH98)/1000 -> 3.436715
P88: =P$5 -> Associate professional and technical | Q88: =(All!N99+All!N100+All!N101+All!N102+All!N103)/1000 -> 4.697994 | R88: =(All!S99+All!S100+All!S101+All!S102+All!S103)/1000 -> 4.014915 | S88: =(All!X99+All!X100+All!X101+All!X102+All!X103)/1000 -> 4.608861 | T88: =(All!AC99+All!AC100+All!AC101+All!AC102+All!AC103)/1000 -> 4.998025 | U88: =(All!AH99+All!AH100+All!AH101+All!AH102+All!AH103)/1000 -> 5.110724
P89: =P$6 -> Administrative and secretarial | Q89: =(All!N104+All!N105)/1000 -> 4.978364 | R89: =(All!S104+All!S105)/1000 -> 4.356503 | S89: =(All!X104+All!X105)/1000 -> 4.447711 | T89: =(All!AC104+All!AC105)/1000 -> 4.593628 | U89: =(All!AH104+All!AH105)/1000 -> 4.353302
P90: =P$7 -> Skilled trades occupations | Q90: =(All!N106+All!N107+All!N108+All!N109)/1000 -> 10.111244 | R90: =(All!S106+All!S107+All!S108+All!S109)/1000 -> 8.670081 | S90: =(All!X106+All!X107+All!X108+All!X109)/1000 -> 8.004943 | T90: =(All!AC106+All!AC107+All!AC108+All!AC109)/1000 -> 6.832243 | U90: =(All!AH106+All!AH107+All!AH108+All!AH109)/1000 -> 5.754606
P91: =P$8 -> Caring, leisure and other service | Q91: =(All!N110+All!N111)/1000 -> 0.441483 | R91: =(All!S110+All!S111)/1000 -> 0.421055 | S91: =(All!X110+All!X111)/1000 -> 0.410722 | T91: =(All!AC110+All!AC111)/1000 -> 0.493377 | U91: =(All!AH110+All!AH111)/1000 -> 0.531537
P92: =P$9 -> Sales and customer service | Q92: =(All!N112+All!N113)/1000 -> 2.256623 | R92: =(All!S112+All!S113)/1000 -> 2.067824 | S92: =(All!X112+All!X113)/1000 -> 2.796154 | T92: =(All!AC112+All!AC113)/1000 -> 3.103401 | U92: =(All!AH112+All!AH113)/1000 -> 3.141435
P93: =P$10 -> Process, plant and machine operatives | Q93: =(All!N114+All!N115)/1000 -> 16.953928 | R93: =(All!S114+All!S115)/1000 -> 14.118257 | S93: =(All!X114+All!X115)/1000 -> 12.832355 | T93: =(All!AC114+All!AC115)/1000 -> 11.265567 | U93: =(All!AH114+All!AH115)/1000 -> 9.268882
P94: =P$11 -> Elementary occupations | Q94: =(All!N116+All!N117)/1000 -> 8.549613 | R94: =(All!S116+All!S117)/1000 -> 7.033502 | S94: =(All!X116+All!X117)/1000 -> 8.757405 | T94: =(All!AC116+All!AC117)/1000 -> 8.715538 | U94: =(All!AH116+All!AH117)/1000 -> 8.570564
P112: ="Occupational Composition, "&P113&", "&Q113&"-"&U113 -> Occupational Composition, Engineering, 2002-2022
P113: =names!A7 -> Engineering | Q113: =Q$2 -> 2002 | R113: =R$2 -> 2007 | S113: =S$2 -> 2012 | T113: =T$2 -> 2017 | U113: =U$2 -> 2022
P114: =P$3 -> Managers, directors and senior officials | Q114: =(All!N121+All!N122)/1000 -> 4.905306 | R114: =(All!S121+All!S122)/1000 -> 4.179977 | S114: =(All!X121+All!X122)/1000 -> 3.243661 | T114: =(All!AC121+All!AC122)/1000 -> 3.45673 | U114: =(All!AH121+All!AH122)/1000 -> 3.772205
P115: =P$4 -> Professional occupations | Q115: =(All!N123+All!N124+All!N125+All!N126)/1000 -> 10.814078 | R115: =(All!S123+All!S124+All!S125+All!S126)/1000 -> 9.428784 | S115: =(All!X123+All!X124+All!X125+All!X126)/1000 -> 7.173195 | T115: =(All!AC123+All!AC124+All!AC125+All!AC126)/1000 -> 7.990248 | U115: =(All!AH123+All!AH124+All!AH125+All!AH126)/1000 -> 8.655996
P116: =P$5 -> Associate professional and technical | Q116: =(All!N127+All!N128+All!N129+All!N130+All!N131)/1000 -> 8.355536 | R116: =(All!S127+All!S128+All!S129+All!S130+All!S131)/1000 -> 6.530487 | S116: =(All!X127+All!X128+All!X129+All!X130+All!X131)/1000 -> 4.270633 | T116: =(All!AC127+All!AC128+All!AC129+All!AC130+All!AC131)/1000 -> 4.524372 | U116: =(All!AH127+All!AH128+All!AH129+All!AH130+All!AH131)/1000 -> 4.823873
P117: =P$6 -> Administrative and secretarial | Q117: =(All!N132+All!N133)/1000 -> 4.625846 | R117: =(All!S132+All!S133)/1000 -> 2.84147 | S117: =(All!X132+All!X133)/1000 -> 2.064216 | T117: =(All!AC132+All!AC133)/1000 -> 2.06802 | U117: =(All!AH132+All!AH133)/1000 -> 2.122777
P118: =P$7 -> Skilled trades occupations | Q118: =(All!N134+All!N135+All!N136+All!N137)/1000 -> 13.668326 | R118: =(All!S134+All!S135+All!S136+All!S137)/1000 -> 9.627339 | S118: =(All!X134+All!X135+All!X136+All!X137)/1000 -> 6.154433 | T118: =(All!AC134+All!AC135+All!AC136+All!AC137)/1000 -> 5.492627 | U118: =(All!AH134+All!AH135+All!AH136+All!AH137)/1000 -> 5.200073
P119: =P$8 -> Caring, leisure and other service | Q119: =(All!N138+All!N139)/1000 -> 0.490445 | R119: =(All!S138+All!S139)/1000 -> 0.412654 | S119: =(All!X138+All!X139)/1000 -> 0.345901 | T119: =(All!AC138+All!AC139)/1000 -> 0.429393 | U119: =(All!AH138+All!AH139)/1000 -> 0.515246
P120: =P$9 -> Sales and customer service | Q120: =(All!N140+All!N141)/1000 -> 1.077678 | R120: =(All!S140+All!S141)/1000 -> 0.865349 | S120: =(All!X140+All!X141)/1000 -> 0.789145 | T120: =(All!AC140+All!AC141)/1000 -> 0.853269 | U120: =(All!AH140+All!AH141)/1000 -> 0.937181
P121: =P$10 -> Process, plant and machine operatives | Q121: =(All!N142+All!N143)/1000 -> 10.255617 | R121: =(All!S142+All!S143)/1000 -> 6.48918 | S121: =(All!X142+All!X143)/1000 -> 3.572515 | T121: =(All!AC142+All!AC143)/1000 -> 3.03137 | U121: =(All!AH142+All!AH143)/1000 -> 2.564268
P122: =P$11 -> Elementary occupations | Q122: =(All!N144+All!N145)/1000 -> 3.235169 | R122: =(All!S144+All!S145)/1000 -> 2.81076 | S122: =(All!X144+All!X145)/1000 -> 2.163303 | T122: =(All!AC144+All!AC145)/1000 -> 2.103972 | U122: =(All!AH144+All!AH145)/1000 -> 2.141378
P140: ="Occupational Composition, "&P141&", "&Q141&"-"&U141 -> Occupational Composition, Rest of manufacturing, 2002-2022
P141: =names!A8 -> Rest of manufacturing | Q141: =Q$2 -> 2002 | R141: =R$2 -> 2007 | S141: =S$2 -> 2012 | T141: =T$2 -> 2017 | U141: =U$2 -> 2022
P142: =P$3 -> Managers, directors and senior officials | Q142: =(All!N149+All!N150)/1000 -> 13.044954 | R142: =(All!S149+All!S150)/1000 -> 11.885324 | S142: =(All!X149+All!X150)/1000 -> 11.357663 | T142: =(All!AC149+All!AC150)/1000 -> 11.709557 | U142: =(All!AH149+All!AH150)/1000 -> 11.833013
P143: =P$4 -> Professional occupations | Q143: =(All!N151+All!N152+All!N153+All!N154)/1000 -> 17.439352 | R143: =(All!S151+All!S152+All!S153+All!S154)/1000 -> 18.238914 | S143: =(All!X151+All!X152+All!X153+All!X154)/1000 -> 19.015502 | T143: =(All!AC151+All!AC152+All!AC153+All!AC154)/1000 -> 20.732898 | U143: =(All!AH151+All!AH152+All!AH153+All!AH154)/1000 -> 21.034965
P144: =P$5 -> Associate professional and technical | Q144: =(All!N155+All!N156+All!N157+All!N158+All!N159)/1000 -> 19.4058 | R144: =(All!S155+All!S156+All!S157+All!S158+All!S159)/1000 -> 16.424908 | S144: =(All!X155+All!X156+All!X157+All!X158+All!X159)/1000 -> 14.935265 | T144: =(All!AC155+All!AC156+All!AC157+All!AC158+All!AC159)/1000 -> 15.291967 | U144: =(All!AH155+All!AH156+All!AH157+All!AH158+All!AH159)/1000 -> 15.25208
P145: =P$6 -> Administrative and secretarial | Q145: =(All!N160+All!N161)/1000 -> 13.314845 | R145: =(All!S160+All!S161)/1000 -> 10.644393 | S145: =(All!X160+All!X161)/1000 -> 8.626214 | T145: =(All!AC160+All!AC161)/1000 -> 7.940619 | U145: =(All!AH160+All!AH161)/1000 -> 7.263415
P146: =P$7 -> Skilled trades occupations | Q146: =(All!N162+All!N163+All!N164+All!N165)/1000 -> 44.569198 | R146: =(All!S162+All!S163+All!S164+All!S165)/1000 -> 37.834759 | S146: =(All!X162+All!X163+All!X164+All!X165)/1000 -> 33.88938 | T146: =(All!AC162+All!AC163+All!AC164+All!AC165)/1000 -> 29.840731 | U146: =(All!AH162+All!AH163+All!AH164+All!AH165)/1000 -> 26.008265
P147: =P$8 -> Caring, leisure and other service | Q147: =(All!N166+All!N167)/1000 -> 1.449949 | R147: =(All!S166+All!S167)/1000 -> 1.348865 | S147: =(All!X166+All!X167)/1000 -> 1.297278 | T147: =(All!AC166+All!AC167)/1000 -> 1.59268 | U147: =(All!AH166+All!AH167)/1000 -> 1.69838
P148: =P$9 -> Sales and customer service | Q148: =(All!N168+All!N169)/1000 -> 3.922392 | R148: =(All!S168+All!S169)/1000 -> 3.213153 | S148: =(All!X168+All!X169)/1000 -> 3.251061 | T148: =(All!AC168+All!AC169)/1000 -> 3.104643 | U148: =(All!AH168+All!AH169)/1000 -> 3.025112
P149: =P$10 -> Process, plant and machine operatives | Q149: =(All!N170+All!N171)/1000 -> 34.392449 | R149: =(All!S170+All!S171)/1000 -> 25.717198 | S149: =(All!X170+All!X171)/1000 -> 20.093388 | T149: =(All!AC170+All!AC171)/1000 -> 16.275279 | U149: =(All!AH170+All!AH171)/1000 -> 13.186934
P150: =P$11 -> Elementary occupations | Q150: =(All!N172+All!N173)/1000 -> 15.297062 | R150: =(All!S172+All!S173)/1000 -> 11.901484 | S150: =(All!X172+All!X173)/1000 -> 11.389248 | T150: =(All!AC172+All!AC173)/1000 -> 10.157629 | U150: =(All!AH172+All!AH173)/1000 -> 9.265834
P168: ="Occupational Composition, "&P169&", "&Q169&"-"&U169 -> Occupational Composition, Electricity and gas, 2002-2022
P169: =names!A9 -> Electricity and gas | Q169: =Q$2 -> 2002 | R169: =R$2 -> 2007 | S169: =S$2 -> 2012 | T169: =T$2 -> 2017 | U169: =U$2 -> 2022
P170: =P$3 -> Managers, directors and senior officials | Q170: =(All!N177+All!N178)/1000 -> 0.850519 | R170: =(All!S177+All!S178)/1000 -> 1.068482 | S170: =(All!X177+All!X178)/1000 -> 1.567831 | T170: =(All!AC177+All!AC178)/1000 -> 1.830057 | U170: =(All!AH177+All!AH178)/1000 -> 1.985192
P171: =P$4 -> Professional occupations | Q171: =(All!N179+All!N180+All!N181+All!N182)/1000 -> 2.420102 | R171: =(All!S179+All!S180+All!S181+All!S182)/1000 -> 2.998348 | S171: =(All!X179+All!X180+All!X181+All!X182)/1000 -> 4.471643 | T171: =(All!AC179+All!AC180+All!AC181+All!AC182)/1000 -> 5.505912 | U171: =(All!AH179+All!AH180+All!AH181+All!AH182)/1000 -> 6.018915
P172: =P$5 -> Associate professional and technical | Q172: =(All!N183+All!N184+All!N185+All!N186+All!N187)/1000 -> 1.526744 | R172: =(All!S183+All!S184+All!S185+All!S186+All!S187)/1000 -> 1.36522 | S172: =(All!X183+All!X184+All!X185+All!X186+All!X187)/1000 -> 2.241352 | T172: =(All!AC183+All!AC184+All!AC185+All!AC186+All!AC187)/1000 -> 2.530915 | U172: =(All!AH183+All!AH184+All!AH185+All!AH186+All!AH187)/1000 -> 2.640606
P173: =P$6 -> Administrative and secretarial | Q173: =(All!N188+All!N189)/1000 -> 2.505084 | R173: =(All!S188+All!S189)/1000 -> 1.942241 | S173: =(All!X188+All!X189)/1000 -> 3.021403 | T173: =(All!AC188+All!AC189)/1000 -> 3.052167 | U173: =(All!AH188+All!AH189)/1000 -> 2.779097
P174: =P$7 -> Skilled trades occupations | Q174: =(All!N190+All!N191+All!N192+All!N193)/1000 -> 2.818656 | R174: =(All!S190+All!S191+All!S192+All!S193)/1000 -> 2.598278 | S174: =(All!X190+All!X191+All!X192+All!X193)/1000 -> 3.73374 | T174: =(All!AC190+All!AC191+All!AC192+All!AC193)/1000 -> 3.891838 | U174: =(All!AH190+All!AH191+All!AH192+All!AH193)/1000 -> 3.833734
P175: =P$8 -> Caring, leisure and other service | Q175: =(All!N194+All!N195)/1000 -> 0.529169 | R175: =(All!S194+All!S195)/1000 -> 0.308066 | S175: =(All!X194+All!X195)/1000 -> 0.558466 | T175: =(All!AC194+All!AC195)/1000 -> 0.622103 | U175: =(All!AH194+All!AH195)/1000 -> 0.613515
P176: =P$9 -> Sales and customer service | Q176: =(All!N196+All!N197)/1000 -> 2.618995 | R176: =(All!S196+All!S197)/1000 -> 2.04191 | S176: =(All!X196+All!X197)/1000 -> 3.248719 | T176: =(All!AC196+All!AC197)/1000 -> 3.608736 | U176: =(All!AH196+All!AH197)/1000 -> 3.708545
P177: =P$10 -> Process, plant and machine operatives | Q177: =(All!N198+All!N199)/1000 -> 0.771487 | R177: =(All!S198+All!S199)/1000 -> 0.528281 | S177: =(All!X198+All!X199)/1000 -> 1.159446 | T177: =(All!AC198+All!AC199)/1000 -> 1.225118 | U177: =(All!AH198+All!AH199)/1000 -> 1.175112
P178: =P$11 -> Elementary occupations | Q178: =(All!N200+All!N201)/1000 -> 0.422244 | R178: =(All!S200+All!S201)/1000 -> 0.304172 | S178: =(All!X200+All!X201)/1000 -> 0.428399 | T178: =(All!AC200+All!AC201)/1000 -> 0.432153 | U178: =(All!AH200+All!AH201)/1000 -> 0.424285
P196: ="Occupational Composition, "&P197&", "&Q197&"-"&U197 -> Occupational Composition, Water and sewerage, 2002-2022
P197: =names!A10 -> Water and sewerage | Q197: =Q$2 -> 2002 | R197: =R$2 -> 2007 | S197: =S$2 -> 2012 | T197: =T$2 -> 2017 | U197: =U$2 -> 2022
P198: =P$3 -> Managers, directors and senior officials | Q198: =(All!N205+All!N206)/1000 -> 0.993328 | R198: =(All!S205+All!S206)/1000 -> 1.069849 | S198: =(All!X205+All!X206)/1000 -> 1.324041 | T198: =(All!AC205+All!AC206)/1000 -> 1.512538 | U198: =(All!AH205+All!AH206)/1000 -> 1.709367
P199: =P$4 -> Professional occupations | Q199: =(All!N207+All!N208+All!N209+All!N210)/1000 -> 1.533955 | R199: =(All!S207+All!S208+All!S209+All!S210)/1000 -> 1.707733 | S199: =(All!X207+All!X208+All!X209+All!X210)/1000 -> 1.415376 | T199: =(All!AC207+All!AC208+All!AC209+All!AC210)/1000 -> 1.649472 | U199: =(All!AH207+All!AH208+All!AH209+All!AH210)/1000 -> 1.857562
P200: =P$5 -> Associate professional and technical | Q200: =(All!N211+All!N212+All!N213+All!N214+All!N215)/1000 -> 2.518951 | R200: =(All!S211+All!S212+All!S213+All!S214+All!S215)/1000 -> 1.72155 | S200: =(All!X211+All!X212+All!X213+All!X214+All!X215)/1000 -> 1.972671 | T200: =(All!AC211+All!AC212+All!AC213+All!AC214+All!AC215)/1000 -> 2.174955 | U200: =(All!AH211+All!AH212+All!AH213+All!AH214+All!AH215)/1000 -> 2.409233
P201: =P$6 -> Administrative and secretarial | Q201: =(All!N216+All!N217)/1000 -> 2.26158 | R201: =(All!S216+All!S217)/1000 -> 1.444889 | S201: =(All!X216+All!X217)/1000 -> 1.794575 | T201: =(All!AC216+All!AC217)/1000 -> 1.720059 | U201: =(All!AH216+All!AH217)/1000 -> 1.626887
P202: =P$7 -> Skilled trades occupations | Q202: =(All!N218+All!N219+All!N220+All!N221)/1000 -> 1.636523 | R202: =(All!S218+All!S219+All!S220+All!S221)/1000 -> 2.165571 | S202: =(All!X218+All!X219+All!X220+All!X221)/1000 -> 1.997168 | T202: =(All!AC218+All!AC219+All!AC220+All!AC221)/1000 -> 2.063223 | U202: =(All!AH218+All!AH219+All!AH220+All!AH221)/1000 -> 2.117761
P203: =P$8 -> Caring, leisure and other service | Q203: =(All!N222+All!N223)/1000 -> 0.374442 | R203: =(All!S222+All!S223)/1000 -> 0.372337 | S203: =(All!X222+All!X223)/1000 -> 0.280357 | T203: =(All!AC222+All!AC223)/1000 -> 0.361459 | U203: =(All!AH222+All!AH223)/1000 -> 0.420222
P204: =P$9 -> Sales and customer service | Q204: =(All!N224+All!N225)/1000 -> 0.788819 | R204: =(All!S224+All!S225)/1000 -> 0.504496 | S204: =(All!X224+All!X225)/1000 -> 0.533044 | T204: =(All!AC224+All!AC225)/1000 -> 0.568838 | U204: =(All!AH224+All!AH225)/1000 -> 0.617715
P205: =P$10 -> Process, plant and machine operatives | Q205: =(All!N226+All!N227)/1000 -> 5.077091 | R205: =(All!S226+All!S227)/1000 -> 5.445886 | S205: =(All!X226+All!X227)/1000 -> 3.859667 | T205: =(All!AC226+All!AC227)/1000 -> 3.795715 | U205: =(All!AH226+All!AH227)/1000 -> 3.765297
P206: =P$11 -> Elementary occupations | Q206: =(All!N228+All!N229)/1000 -> 5.40531 | R206: =(All!S228+All!S229)/1000 -> 4.312689 | S206: =(All!X228+All!X229)/1000 -> 3.620101 | T206: =(All!AC228+All!AC229)/1000 -> 3.750741 | U206: =(All!AH228+All!AH229)/1000 -> 4.008957
P224: ="Occupational Composition, "&P225&", "&Q225&"-"&U225 -> Occupational Composition, Construction, 2002-2022
P225: =names!A11 -> Construction | Q225: =Q$2 -> 2002 | R225: =R$2 -> 2007 | S225: =S$2 -> 2012 | T225: =T$2 -> 2017 | U225: =U$2 -> 2022
P226: =P$3 -> Managers, directors and senior officials | Q226: =(All!N233+All!N234)/1000 -> 11.433801 | R226: =(All!S233+All!S234)/1000 -> 16.263654 | S226: =(All!X233+All!X234)/1000 -> 15.638693 | T226: =(All!AC233+All!AC234)/1000 -> 18.772984 | U226: =(All!AH233+All!AH234)/1000 -> 21.695554
P227: =P$4 -> Professional occupations | Q227: =(All!N235+All!N236+All!N237+All!N238)/1000 -> 12.029814 | R227: =(All!S235+All!S236+All!S237+All!S238)/1000 -> 15.611317 | S227: =(All!X235+All!X236+All!X237+All!X238)/1000 -> 13.834923 | T227: =(All!AC235+All!AC236+All!AC237+All!AC238)/1000 -> 16.561098 | U227: =(All!AH235+All!AH236+All!AH237+All!AH238)/1000 -> 18.865639
P228: =P$5 -> Associate professional and technical | Q228: =(All!N239+All!N240+All!N241+All!N242+All!N243)/1000 -> 11.109777 | R228: =(All!S239+All!S240+All!S241+All!S242+All!S243)/1000 -> 14.090023 | S228: =(All!X239+All!X240+All!X241+All!X242+All!X243)/1000 -> 12.629737 | T228: =(All!AC239+All!AC240+All!AC241+All!AC242+All!AC243)/1000 -> 14.97338 | U228: =(All!AH239+All!AH240+All!AH241+All!AH242+All!AH243)/1000 -> 16.993656
P229: =P$6 -> Administrative and secretarial | Q229: =(All!N244+All!N245)/1000 -> 15.83294 | R229: =(All!S244+All!S245)/1000 -> 15.077732 | S229: =(All!X244+All!X245)/1000 -> 13.313535 | T229: =(All!AC244+All!AC245)/1000 -> 13.407666 | U229: =(All!AH244+All!AH245)/1000 -> 13.390388
P230: =P$7 -> Skilled trades occupations | Q230: =(All!N246+All!N247+All!N248+All!N249)/1000 -> 79.986827 | R230: =(All!S246+All!S247+All!S248+All!S249)/1000 -> 100.60268 | S230: =(All!X246+All!X247+All!X248+All!X249)/1000 -> 86.422717 | T230: =(All!AC246+All!AC247+All!AC248+All!AC249)/1000 -> 87.914788 | U230: =(All!AH246+All!AH247+All!AH248+All!AH249)/1000 -> 90.911901
P231: =P$8 -> Caring, leisure and other service | Q231: =(All!N250+All!N251)/1000 -> 0.193597 | R231: =(All!S250+All!S251)/1000 -> 0.282559 | S231: =(All!X250+All!X251)/1000 -> 0.345702 | T231: =(All!AC250+All!AC251)/1000 -> 0.459349 | U231: =(All!AH250+All!AH251)/1000 -> 0.525177
P232: =P$9 -> Sales and customer service | Q232: =(All!N252+All!N253)/1000 -> 2.090273 | R232: =(All!S252+All!S253)/1000 -> 2.479771 | S232: =(All!X252+All!X253)/1000 -> 2.730563 | T232: =(All!AC252+All!AC253)/1000 -> 3.066269 | U232: =(All!AH252+All!AH253)/1000 -> 3.443958
P233: =P$10 -> Process, plant and machine operatives | Q233: =(All!N254+All!N255)/1000 -> 17.795987 | R233: =(All!S254+All!S255)/1000 -> 20.420591 | S233: =(All!X254+All!X255)/1000 -> 16.039519 | T233: =(All!AC254+All!AC255)/1000 -> 16.420334 | U233: =(All!AH254+All!AH255)/1000 -> 16.406215
P234: =P$11 -> Elementary occupations | Q234: =(All!N256+All!N257)/1000 -> 13.960984 | R234: =(All!S256+All!S257)/1000 -> 16.845673 | S234: =(All!X256+All!X257)/1000 -> 10.391612 | T234: =(All!AC256+All!AC257)/1000 -> 10.362132 | U234: =(All!AH256+All!AH257)/1000 -> 10.579514
... 127 more rows

Sheet Figure 6.x.11
P1: ="Occupational employment, "&CHAR(13)&P2 -> Occupational employment, All industries
P2: =names!A3 -> All industries | Q2: =All!D7 -> 1992 | R2: =All!E7 -> 1993 | S2: =All!F7 -> 1994 | T2: =All!G7 -> 1995 | U2: =All!H7 -> 1996 | V2: =All!I7 -> 1997 | W2: =All!J7 -> 1998 | X2: =All!K7 -> 1999 | Y2: =All!L7 -> 2000 | Z2: =All!M7 -> 2001 | AA2: =All!N7 -> 2002 | AB2: =All!O7 -> 2003 | AC2: =All!P7 -> 2004 | AD2: =All!Q7 -> 2005 | AE2: =All!R7 -> 2006 | AF2: =All!S7 -> 2007 | AG2: =All!T7 -> 2008 | AH2: =All!U7 -> 2009 | AI2: =All!V7 -> 2010 | AJ2: =All!W7 -> 2011 | AK2: =All!X7 -> 2012 | AL2: =All!Y7 -> 2013 | AM2: =All!Z7 -> 2014 | AN2: =All!AA7 -> 2015 | AO2: =All!AB7 -> 2016 | AP2: =All!AC7 -> 2017 | AQ2: =All!AD7 -> 2018 | AR2: =All!AE7 -> 2019 | AS2: =All!AF7 -> 2020 | AT2: =All!AG7 -> 2021 | AU2: =All!AH7 -> 2022
P3: =names!B4 -> Managers, directors and senior officials | Q3: =(All!D9+All!D10)/1000 -> 171.093813 | R3: =(All!E9+All!E10)/1000 -> 169.694307 | S3: =(All!F9+All!F10)/1000 -> 172.480221 | T3: =(All!G9+All!G10)/1000 -> 174.969063 | U3: =(All!H9+All!H10)/1000 -> 173.731664 | V3: =(All!I9+All!I10)/1000 -> 174.769993 | W3: =(All!J9+All!J10)/1000 -> 175.565127 | X3: =(All!K9+All!K10)/1000 -> 180.317841 | Y3: =(All!L9+All!L10)/1000 -> 185.622773 | Z3: =(All!M9+All!M10)/1000 -> 195.24605 | AA3: =(All!N9+All!N10)/1000 -> 197.133646 | AB3: =(All!O9+All!O10)/1000 -> 202.229772 | AC3: =(All!P9+All!P10)/1000 -> 205.968227 | AD3: =(All!Q9+All!Q10)/1000 -> 210.292357 | AE3: =(All!R9+All!R10)/1000 -> 213.84612 | AF3: =(All!S9+All!S10)/1000 -> 222.613278 | AG3: =(All!T9+All!T10)/1000 -> 233.931335 | AH3: =(All!U9+All!U10)/1000 -> 235.535116 | AI3: =(All!V9+All!V10)/1000 -> 223.888015 | AJ3: =(All!W9+All!W10)/1000 -> 223.536436 | AK3: =(All!X9+All!X10)/1000 -> 235.976753 | AL3: =(All!Y9+All!Y10)/1000 -> 238.250519 | AM3: =(All!Z9+All!Z10)/1000 -> 241.125502 | AN3: =(All!AA9+All!AA10)/1000 -> 244.935689 | AO3: =(All!AB9+All!AB10)/1000 -> 248.897659 | AP3: =(All!AC9+All!AC10)/1000 -> 253.420396 | AQ3: =(All!AD9+All!AD10)/1000 -> 258.0725 | AR3: =(All!AE9+All!AE10)/1000 -> 263.027234 | AS3: =(All!AF9+All!AF10)/1000 -> 268.015589 | AT3: =(All!AG9+All!AG10)/1000 -> 272.687997 | AU3: =(All!AH9+All!AH10)/1000 -> 277.449746
P4: =names!B5 -> Professional occupations | Q4: =(All!D11+All!D12+All!D13+All!D14)/1000 -> 358.062222 | R4: =(All!E11+All!E12+All!E13+All!E14)/1000 -> 351.96169 | S4: =(All!F11+All!F12+All!F13+All!F14)/1000 -> 356.250812 | T4: =(All!G11+All!G12+All!G13+All!G14)/1000 -> 365.654746 | U4: =(All!H11+All!H12+All!H13+All!H14)/1000 -> 378.119721 | V4: =(All!I11+All!I12+All!I13+All!I14)/1000 -> 378.581376 | W4: =(All!J11+All!J12+All!J13+All!J14)/1000 -> 385.322329 | X4: =(All!K11+All!K12+All!K13+All!K14)/1000 -> 380.719651 | Y4: =(All!L11+All!L12+All!L13+All!L14)/1000 -> 386.889001 | Z4: =(All!M11+All!M12+All!M13+All!M14)/1000 -> 423.058046 | AA4: =(All!N11+All!N12+All!N13+All!N14)/1000 -> 431.36483 | AB4: =(All!O11+All!O12+All!O13+All!O14)/1000 -> 441.999089 | AC4: =(All!P11+All!P12+All!P13+All!P14)/1000 -> 458.772982 | AD4: =(All!Q11+All!Q12+All!Q13+All!Q14)/1000 -> 473.331151 | AE4: =(All!R11+All!R12+All!R13+All!R14)/1000 -> 488.236269 | AF4: =(All!S11+All!S12+All!S13+All!S14)/1000 -> 487.750827 | AG4: =(All!T11+All!T12+All!T13+All!T14)/1000 -> 506.493303 | AH4: =(All!U11+All!U12+All!U13+All!U14)/1000 -> 495.880713 | AI4: =(All!V11+All!V12+All!V13+All!V14)/1000 -> 487.07239 | AJ4: =(All!W11+All!W12+All!W13+All!W14)/1000 -> 494.461327 | AK4: =(All!X11+All!X12+All!X13+All!X14)/1000 -> 513.96653 | AL4: =(All!Y11+All!Y12+All!Y13+All!Y14)/1000 -> 534.977329 | AM4: =(All!Z11+All!Z12+All!Z13+All!Z14)/1000 -> 545.871019 | AN4: =(All!AA11+All!AA12+All!AA13+All!AA14)/1000 -> 556.843878 | AO4: =(All!AB11+All!AB12+All!AB13+All!AB14)/1000 -> 563.700974 | AP4: =(All!AC11+All!AC12+All!AC13+All!AC14)/1000 -> 571.909831 | AQ4: =(All!AD11+All!AD12+All!AD13+All!AD14)/1000 -> 581.800956 | AR4: =(All!AE11+All!AE12+All!AE13+All!AE14)/1000 -> 590.429386 | AS4: =(All!AF11+All!AF12+All!AF13+All!AF14)/1000 -> 599.335257 | AT4: =(All!AG11+All!AG12+All!AG13+All!AG14)/1000 -> 609.793708 | AU4: =(All!AH11+All!AH12+All!AH13+All!AH14)/1000 -> 620.764895
P5: =names!B6 -> Associate professional and technical | Q5: =(All!D15+All!D16+All!D17+All!D18+All!D19)/1000 -> 248.2685 | R5: =(All!E15+All!E16+All!E17+All!E18+All!E19)/1000 -> 243.234572 | S5: =(All!F15+All!F16+All!F17+All!F18+All!F19)/1000 -> 249.146714 | T5: =(All!G15+All!G16+All!G17+All!G18+All!G19)/1000 -> 256.482944 | U5: =(All!H15+All!H16+All!H17+All!H18+All!H19)/1000 -> 261.346361 | V5: =(All!I15+All!I16+All!I17+All!I18+All!I19)/1000 -> 266.666078 | W5: =(All!J15+All!J16+All!J17+All!J18+All!J19)/1000 -> 269.12918 | X5: =(All!K15+All!K16+All!K17+All!K18+All!K19)/1000 -> 272.502737 | Y5: =(All!L15+All!L16+All!L17+All!L18+All!L19)/1000 -> 276.948058 | Z5: =(All!M15+All!M16+All!M17+All!M18+All!M19)/1000 -> 289.564036 | AA5: =(All!N15+All!N16+All!N17+All!N18+All!N19)/1000 -> 289.433107 | AB5: =(All!O15+All!O16+All!O17+All!O18+All!O19)/1000 -> 290.81912 | AC5: =(All!P15+All!P16+All!P17+All!P18+All!P19)/1000 -> 296.408287 | AD5: =(All!Q15+All!Q16+All!Q17+All!Q18+All!Q19)/1000 -> 308.593201 | AE5: =(All!R15+All!R16+All!R17+All!R18+All!R19)/1000 -> 314.124418 | AF5: =(All!S15+All!S16+All!S17+All!S18+All!S19)/1000 -> 319.628489 | AG5: =(All!T15+All!T16+All!T17+All!T18+All!T19)/1000 -> 331.804767 | AH5: =(All!U15+All!U16+All!U17+All!U18+All!U19)/1000 -> 314.828529 | AI5: =(All!V15+All!V16+All!V17+All!V18+All!V19)/1000 -> 303.600706 | AJ5: =(All!W15+All!W16+All!W17+All!W18+All!W19)/1000 -> 304.676518 | AK5: =(All!X15+All!X16+All!X17+All!X18+All!X19)/1000 -> 316.700133 | AL5: =(All!Y15+All!Y16+All!Y17+All!Y18+All!Y19)/1000 -> 324.391598 | AM5: =(All!Z15+All!Z16+All!Z17+All!Z18+All!Z19)/1000 -> 325.831389 | AN5: =(All!AA15+All!AA16+All!AA17+All!AA18+All!AA19)/1000 -> 328.928698 | AO5: =(All!AB15+All!AB16+All!AB17+All!AB18+All!AB19)/1000 -> 331.646994 | AP5: =(All!AC15+All!AC16+All!AC17+All!AC18+All!AC19)/1000 -> 336.730862 | AQ5: =(All!AD15+All!AD16+All!AD17+All!AD18+All!AD19)/1000 -> 342.53392 | AR5: =(All!AE15+All!AE16+All!AE17+All!AE18+All!AE19)/1000 -> 347.934754 | AS5: =(All!AF15+All!AF16+All!AF17+All!AF18+All!AF19)/1000 -> 353.118263 | AT5: =(All!AG15+All!AG16+All!AG17+All!AG18+All!AG19)/1000 -> 358.377232 | AU5: =(All!AH15+All!AH16+All!AH17+All!AH18+All!AH19)/1000 -> 363.711999
P6: =names!B7 -> Administrative and secretarial | Q6: =(All!D20+All!D21)/1000 -> 366.170097 | R6: =(All!E20+All!E21)/1000 -> 358.674948 | S6: =(All!F20+All!F21)/1000 -> 364.001172 | T6: =(All!G20+All!G21)/1000 -> 362.727325 | U6: =(All!H20+All!H21)/1000 -> 360.310269 | V6: =(All!I20+All!I21)/1000 -> 353.481933 | W6: =(All!J20+All!J21)/1000 -> 347.524411 | X6: =(All!K20+All!K21)/1000 -> 351.666611 | Y6: =(All!L20+All!L21)/1000 -> 348.657086 | Z6: =(All!M20+All!M21)/1000 -> 361.473023 | AA6: =(All!N20+All!N21)/1000 -> 361.677903 | AB6: =(All!O20+All!O21)/1000 -> 363.217075 | AC6: =(All!P20+All!P21)/1000 -> 367.53264 | AD6: =(All!Q20+All!Q21)/1000 -> 373.343323 | AE6: =(All!R20+All!R21)/1000 -> 377.598929 | AF6: =(All!S20+All!S21)/1000 -> 364.923568 | AG6: =(All!T20+All!T21)/1000 -> 364.019823 | AH6: =(All!U20+All!U21)/1000 -> 337.883602 | AI6: =(All!V20+All!V21)/1000 -> 337.210461 | AJ6: =(All!W20+All!W21)/1000 -> 336.211304 | AK6: =(All!X20+All!X21)/1000 -> 332.561241 | AL6: =(All!Y20+All!Y21)/1000 -> 331.759332 | AM6: =(All!Z20+All!Z21)/1000 -> 326.249159 | AN6: =(All!AA20+All!AA21)/1000 -> 321.5481 | AO6: =(All!AB20+All!AB21)/1000 -> 315.943872 | AP6: =(All!AC20+All!AC21)/1000 -> 312.449479 | AQ6: =(All!AD20+All!AD21)/1000 -> 309.090291 | AR6: =(All!AE20+All!AE21)/1000 -> 305.903906 | AS6: =(All!AF20+All!AF21)/1000 -> 302.288701 | AT6: =(All!AG20+All!AG21)/1000 -> 299.508189 | AU6: =(All!AH20+All!AH21)/1000 -> 296.696661
P7: =names!B8 -> Skilled trades occupations | Q7: =(All!D22+All!D23+All!D24+All!D25)/1000 -> 372.706541 | R7: =(All!E22+All!E23+All!E24+All!E25)/1000 -> 350.519405 | S7: =(All!F22+All!F23+All!F24+All!F25)/1000 -> 350.636648 | T7: =(All!G22+All!G23+All!G24+All!G25)/1000 -> 337.848609 | U7: =(All!H22+All!H23+All!H24+All!H25)/1000 -> 343.652663 | V7: =(All!I22+All!I23+All!I24+All!I25)/1000 -> 331.619475 | W7: =(All!J22+All!J23+All!J24+All!J25)/1000 -> 331.096825 | X7: =(All!K22+All!K23+All!K24+All!K25)/1000 -> 328.312224 | Y7: =(All!L22+All!L23+All!L24+All!L25)/1000 -> 334.927073 | Z7: =(All!M22+All!M23+All!M24+All!M25)/1000 -> 334.067481 | AA7: =(All!N22+All!N23+All!N24+All!N25)/1000 -> 317.083971 | AB7: =(All!O22+All!O23+All!O24+All!O25)/1000 -> 323.5876 | AC7: =(All!P22+All!P23+All!P24+All!P25)/1000 -> 321.66069 | AD7: =(All!Q22+All!Q23+All!Q24+All!Q25)/1000 -> 314.177465 | AE7: =(All!R22+All!R23+All!R24+All!R25)/1000 -> 318.109946 | AF7: =(All!S22+All!S23+All!S24+All!S25)/1000 -> 337.422861 | AG7: =(All!T22+All!T23+All!T24+All!T25)/1000 -> 332.536887 | AH7: =(All!U22+All!U23+All!U24+All!U25)/1000 -> 323.511726 | AI7: =(All!V22+All!V23+All!V24+All!V25)/1000 -> 307.28995 | AJ7: =(All!W22+All!W23+All!W24+All!W25)/1000 -> 306.008548 | AK7: =(All!X22+All!X23+All!X24+All!X25)/1000 -> 316.287703 | AL7: =(All!Y22+All!Y23+All!Y24+All!Y25)/1000 -> 303.098098 | AM7: =(All!Z22+All!Z23+All!Z24+All!Z25)/1000 -> 300.711752 | AN7: =(All!AA22+All!AA23+All!AA24+All!AA25)/1000 -> 297.823736 | AO7: =(All!AB22+All!AB23+All!AB24+All!AB25)/1000 -> 296.615611 | AP7: =(All!AC22+All!AC23+All!AC24+All!AC25)/1000 -> 295.106893 | AQ7: =(All!AD22+All!AD23+All!AD24+All!AD25)/1000 -> 293.537289 | AR7: =(All!AE22+All!AE23+All!AE24+All!AE25)/1000 -> 293.08497 | AS7: =(All!AF22+All!AF23+All!AF24+All!AF25)/1000 -> 292.33565 | AT7: =(All!AG22+All!AG23+All!AG24+All!AG25)/1000 -> 288.700627 | AU7: =(All!AH22+All!AH23+All!AH24+All!AH25)/1000 -> 285.155595
P8: =names!B9 -> Caring, leisure and other service | Q8: =(All!D26+All!D27)/1000 -> 129.083794 | R8: =(All!E26+All!E27)/1000 -> 131.521307 | S8: =(All!F26+All!F27)/1000 -> 135.698138 | T8: =(All!G26+All!G27)/1000 -> 140.274256 | U8: =(All!H26+All!H27)/1000 -> 144.446447 | V8: =(All!I26+All!I27)/1000 -> 148.375884 | W8: =(All!J26+All!J27)/1000 -> 153.415541 | X8: =(All!K26+All!K27)/1000 -> 156.376986 | Y8: =(All!L26+All!L27)/1000 -> 156.193153 | Z8: =(All!M26+All!M27)/1000 -> 176.490789 | AA8: =(All!N26+All!N27)/1000 -> 182.365521 | AB8: =(All!O26+All!O27)/1000 -> 185.221145 | AC8: =(All!P26+All!P27)/1000 -> 186.197445 | AD8: =(All!Q26+All!Q27)/1000 -> 194.851219 | AE8: =(All!R26+All!R27)/1000 -> 204.572562 | AF8: =(All!S26+All!S27)/1000 -> 197.386749 | AG8: =(All!T26+All!T27)/1000 -> 199.761431 | AH8: =(All!U26+All!U27)/1000 -> 186.288982 | AI8: =(All!V26+All!V27)/1000 -> 188.486529 | AJ8: =(All!W26+All!W27)/1000 -> 193.786124 | AK8: =(All!X26+All!X27)/1000 -> 196.237159 | AL8: =(All!Y26+All!Y27)/1000 -> 207.072615 | AM8: =(All!Z26+All!Z27)/1000 -> 211.47391 | AN8: =(All!AA26+All!AA27)/1000 -> 215.728898 | AO8: =(All!AB26+All!AB27)/1000 -> 218.73507 | AP8: =(All!AC26+All!AC27)/1000 -> 222.930895 | AQ8: =(All!AD26+All!AD27)/1000 -> 229.238551 | AR8: =(All!AE26+All!AE27)/1000 -> 234.387278 | AS8: =(All!AF26+All!AF27)/1000 -> 239.089228 | AT8: =(All!AG26+All!AG27)/1000 -> 244.847154 | AU8: =(All!AH26+All!AH27)/1000 -> 250.89655
P9: =names!B10 -> Sales and customer service | Q9: =(All!D28+All!D29)/1000 -> 202.394635 | R9: =(All!E28+All!E29)/1000 -> 200.643483 | S9: =(All!F28+All!F29)/1000 -> 208.444728 | T9: =(All!G28+All!G29)/1000 -> 217.692434 | U9: =(All!H28+All!H29)/1000 -> 218.976797 | V9: =(All!I28+All!I29)/1000 -> 226.196774 | W9: =(All!J28+All!J29)/1000 -> 218.699479 | X9: =(All!K28+All!K29)/1000 -> 213.144446 | Y9: =(All!L28+All!L29)/1000 -> 208.236355 | Z9: =(All!M28+All!M29)/1000 -> 221.568454 | AA9: =(All!N28+All!N29)/1000 -> 228.401548 | AB9: =(All!O28+All!O29)/1000 -> 224.531241 | AC9: =(All!P28+All!P29)/1000 -> 223.106849 | AD9: =(All!Q28+All!Q29)/1000 -> 226.708185 | AE9: =(All!R28+All!R29)/1000 -> 233.99408 | AF9: =(All!S28+All!S29)/1000 -> 226.139039 | AG9: =(All!T28+All!T29)/1000 -> 230.470369 | AH9: =(All!U28+All!U29)/1000 -> 233.025689 | AI9: =(All!V28+All!V29)/1000 -> 229.778849 | AJ9: =(All!W28+All!W29)/1000 -> 232.6697 | AK9: =(All!X28+All!X29)/1000 -> 230.910084 | AL9: =(All!Y28+All!Y29)/1000 -> 229.438089 | AM9: =(All!Z28+All!Z29)/1000 -> 226.217877 | AN9: =(All!AA28+All!AA29)/1000 -> 222.59047 | AO9: =(All!AB28+All!AB29)/1000 -> 222.767255 | AP9: =(All!AC28+All!AC29)/1000 -> 223.101508 | AQ9: =(All!AD28+All!AD29)/1000 -> 223.463705 | AR9: =(All!AE28+All!AE29)/1000 -> 224.162447 | AS9: =(All!AF28+All!AF29)/1000 -> 225.002261 | AT9: =(All!AG28+All!AG29)/1000 -> 224.456585 | AU9: =(All!AH28+All!AH29)/1000 -> 223.454705
P10: =names!B11 -> Process, plant and machine operatives | Q10: =(All!D30+All!D31)/1000 -> 225.540332 | R10: =(All!E30+All!E31)/1000 -> 214.540983 | S10: =(All!F30+All!F31)/1000 -> 210.076716 | T10: =(All!G30+All!G31)/1000 -> 206.542999 | U10: =(All!H30+All!H31)/1000 -> 215.417213 | V10: =(All!I30+All!I31)/1000 -> 217.711797 | W10: =(All!J30+All!J31)/1000 -> 212.2284 | X10: =(All!K30+All!K31)/1000 -> 206.514538 | Y10: =(All!L30+All!L31)/1000 -> 197.92504 | Z10: =(All!M30+All!M31)/1000 -> 197.59224 | AA10: =(All!N30+All!N31)/1000 -> 184.688859 | AB10: =(All!O30+All!O31)/1000 -> 186.378237 | AC10: =(All!P30+All!P31)/1000 -> 180.724851 | AD10: =(All!Q30+All!Q31)/1000 -> 185.347388 | AE10: =(All!R30+All!R31)/1000 -> 181.397016 | AF10: =(All!S30+All!S31)/1000 -> 188.173127 | AG10: =(All!T30+All!T31)/1000 -> 180.201912 | AH10: =(All!U30+All!U31)/1000 -> 171.414743 | AI10: =(All!V30+All!V31)/1000 -> 164.506436 | AJ10: =(All!W30+All!W31)/1000 -> 163.417431 | AK10: =(All!X30+All!X31)/1000 -> 167.388872 | AL10: =(All!Y30+All!Y31)/1000 -> 163.84535 | AM10: =(All!Z30+All!Z31)/1000 -> 160.547151 | AN10: =(All!AA30+All!AA31)/1000 -> 156.870604 | AO10: =(All!AB30+All!AB31)/1000 -> 155.064715 | AP10: =(All!AC30+All!AC31)/1000 -> 153.402968 | AQ10: =(All!AD30+All!AD31)/1000 -> 151.740475 | AR10: =(All!AE30+All!AE31)/1000 -> 150.230625 | AS10: =(All!AF30+All!AF31)/1000 -> 148.712053 | AT10: =(All!AG30+All!AG31)/1000 -> 146.169803 | AU10: =(All!AH30+All!AH31)/1000 -> 143.591441
P11: =names!B12 -> Elementary occupations | Q11: =(All!D32+All!D33)/1000 -> 345.663067 | R11: =(All!E32+All!E33)/1000 -> 337.225306 | S11: =(All!F32+All!F33)/1000 -> 336.027851 | T11: =(All!G32+All!G33)/1000 -> 330.301623 | U11: =(All!H32+All!H33)/1000 -> 345.931865 | V11: =(All!I32+All!I33)/1000 -> 340.036689 | W11: =(All!J32+All!J33)/1000 -> 343.57471 | X11: =(All!K32+All!K33)/1000 -> 338.08297 | Y11: =(All!L32+All!L33)/1000 -> 342.046461 | Z11: =(All!M32+All!M33)/1000 -> 359.373882 | AA11: =(All!N32+All!N33)/1000 -> 357.930615 | AB11: =(All!O32+All!O33)/1000 -> 355.470721 | AC11: =(All!P32+All!P33)/1000 -> 354.49503 | AD11: =(All!Q32+All!Q33)/1000 -> 366.64271 | AE11: =(All!R32+All!R33)/1000 -> 380.511657 | AF11: =(All!S32+All!S33)/1000 -> 373.351063 | AG11: =(All!T32+All!T33)/1000 -> 381.392173 | AH11: =(All!U32+All!U33)/1000 -> 346.517895 | AI11: =(All!V32+All!V33)/1000 -> 327.577663 | AJ11: =(All!W32+All!W33)/1000 -> 329.824614 | AK11: =(All!X32+All!X33)/1000 -> 335.720524 | AL11: =(All!Y32+All!Y33)/1000 -> 326.18207 | AM11: =(All!Z32+All!Z33)/1000 -> 326.124243 | AN11: =(All!AA32+All!AA33)/1000 -> 324.198925 | AO11: =(All!AB32+All!AB33)/1000 -> 323.576851 | AP11: =(All!AC32+All!AC33)/1000 -> 322.760168 | AQ11: =(All!AD32+All!AD33)/1000 -> 321.760311 | AR11: =(All!AE32+All!AE33)/1000 -> 321.923398 | AS11: =(All!AF32+All!AF33)/1000 -> 322.212 | AT11: =(All!AG32+All!AG33)/1000 -> 323.390705 | AU11: =(All!AH32+All!AH33)/1000 -> 324.419408
P37: ="Occupational employment, "&CHAR(13)&P38 -> Occupational employment, Agriculture
P38: =names!A4 -> Agriculture | Q38: =Q2 -> 1992 | R38: 1993 | S38: 1994 | T38: 1995 | U38: 1996 | V38: 1997 | W38: 1998 | X38: 1999 | Y38: 2000 | Z38: 2001 | AA38: 2002 | AB38: 2003 | AC38: 2004 | AD38: 2005 | AE38: 2006 | AF38: 2007 | AG38: 2008 | AH38: 2009 | AI38: 2010 | AJ38: 2011 | AK38: 2012 | AL38: 2013 | AM38: 2014 | AN38: 2015 | AO38: 2016 | AP38: 2017 | AQ38: 2018 | AR38: 2019 | AS38: 2020 | AT38: 2021 | AU38: 2022
P39: =P3 -> Managers, directors and senior officials | Q39: =(All!D37+All!D38)/1000 -> 4.275014 | R39: =(All!E37+All!E38)/1000 -> 4.764571 | S39: =(All!F37+All!F38)/1000 -> 4.680756 | T39: =(All!G37+All!G38)/1000 -> 4.132639 | U39: =(All!H37+All!H38)/1000 -> 4.608036 | V39: =(All!I37+All!I38)/1000 -> 4.468799 | W39: =(All!J37+All!J38)/1000 -> 4.310475 | X39: =(All!K37+All!K38)/1000 -> 3.79167 | Y39: =(All!L37+All!L38)/1000 -> 3.975954 | Z39: =(All!M37+All!M38)/1000 -> 3.775254 | AA39: =(All!N37+All!N38)/1000 -> 3.846826 | AB39: =(All!O37+All!O38)/1000 -> 3.91735 | AC39: =(All!P37+All!P38)/1000 -> 3.003672 | AD39: =(All!Q37+All!Q38)/1000 -> 3.423733 | AE39: =(All!R37+All!R38)/1000 -> 3.369365 | AF39: =(All!S37+All!S38)/1000 -> 3.694429 | AG39: =(All!T37+All!T38)/1000 -> 3.718535 | AH39: =(All!U37+All!U38)/1000 -> 3.40165 | AI39: =(All!V37+All!V38)/1000 -> 4.143553 | AJ39: =(All!W37+All!W38)/1000 -> 3.336508 | AK39: =(All!X37+All!X38)/1000 -> 3.754864 | AL39: =(All!Y37+All!Y38)/1000 -> 3.310739 | AM39: =(All!Z37+All!Z38)/1000 -> 3.327809 | AN39: =(All!AA37+All!AA38)/1000 -> 3.309922 | AO39: =(All!AB37+All!AB38)/1000 -> 3.310753 | AP39: =(All!AC37+All!AC38)/1000 -> 3.31814 | AQ39: =(All!AD37+All!AD38)/1000 -> 3.297793 | AR39: =(All!AE37+All!AE38)/1000 -> 3.308968 | AS39: =(All!AF37+All!AF38)/1000 -> 3.326499 | AT39: =(All!AG37+All!AG38)/1000 -> 3.341789 | AU39: =(All!AH37+All!AH38)/1000 -> 3.366974
P40: Professional occupations | Q40: =(All!D39+All!D40+All!D41+All!D42)/1000 -> 2.234571 | R40: =(All!E39+All!E40+All!E41+All!E42)/1000 -> 2.323528 | S40: =(All!F39+All!F40+All!F41+All!F42)/1000 -> 2.233987 | T40: =(All!G39+All!G40+All!G41+All!G42)/1000 -> 2.061499 | U40: =(All!H39+All!H40+All!H41+All!H42)/1000 -> 2.105037 | V40: =(All!I39+All!I40+All!I41+All!I42)/1000 -> 1.974533 | W40: =(All!J39+All!J40+All!J41+All!J42)/1000 -> 1.976363 | X40: =(All!K39+All!K40+All!K41+All!K42)/1000 -> 1.832427 | Y40: =(All!L39+All!L40+All!L41+All!L42)/1000 -> 1.816209 | Z40: =(All!M39+All!M40+All!M41+All!M42)/1000 -> 1.750686 | AA40: =(All!N39+All!N40+All!N41+All!N42)/1000 -> 2.120314 | AB40: =(All!O39+All!O40+All!O41+All!O42)/1000 -> 1.814361 | AC40: =(All!P39+All!P40+All!P41+All!P42)/1000 -> 1.600231 | AD40: =(All!Q39+All!Q40+All!Q41+All!Q42)/1000 -> 1.685136 | AE40: =(All!R39+All!R40+All!R41+All!R42)/1000 -> 1.680791 | AF40: =(All!S39+All!S40+All!S41+All!S42)/1000 -> 2.011029 | AG40: =(All!T39+All!T40+All!T41+All!T42)/1000 -> 1.951708 | AH40: =(All!U39+All!U40+All!U41+All!U42)/1000 -> 1.981017 | AI40: =(All!V39+All!V40+All!V41+All!V42)/1000 -> 1.847808 | AJ40: =(All!W39+All!W40+All!W41+All!W42)/1000 -> 1.552197 | AK40: =(All!X39+All!X40+All!X41+All!X42)/1000 -> 1.69442 | AL40: =(All!Y39+All!Y40+All!Y41+All!Y42)/1000 -> 1.525437 | AM40: =(All!Z39+All!Z40+All!Z41+All!Z42)/1000 -> 1.545628 | AN40: =(All!AA39+All!AA40+All!AA41+All!AA42)/1000 -> 1.555668 | AO40: =(All!AB39+All!AB40+All!AB41+All!AB42)/1000 -> 1.57572 | AP40: =(All!AC39+All!AC40+All!AC41+All!AC42)/1000 -> 1.600277 | AQ40: =(All!AD39+All!AD40+All!AD41+All!AD42)/1000 -> 1.61476 | AR40: =(All!AE39+All!AE40+All!AE41+All!AE42)/1000 -> 1.643377 | AS40: =(All!AF39+All!AF40+All!AF41+All!AF42)/1000 -> 1.684786 | AT40: =(All!AG39+All!AG40+All!AG41+All!AG42)/1000 -> 1.71207 | AU40: =(All!AH39+All!AH40+All!AH41+All!AH42)/1000 -> 1.74145
P41: Associate professional and technical | Q41: =(All!D43+All!D44+All!D45+All!D46+All!D47)/1000 -> 1.43346 | R41: =(All!E43+All!E44+All!E45+All!E46+All!E47)/1000 -> 1.499269 | S41: =(All!F43+All!F44+All!F45+All!F46+All!F47)/1000 -> 1.490929 | T41: =(All!G43+All!G44+All!G45+All!G46+All!G47)/1000 -> 1.401857 | U41: =(All!H43+All!H44+All!H45+All!H46+All!H47)/1000 -> 1.464719 | V41: =(All!I43+All!I44+All!I45+All!I46+All!I47)/1000 -> 1.411299 | W41: =(All!J43+All!J44+All!J45+All!J46+All!J47)/1000 -> 1.422251 | X41: =(All!K43+All!K44+All!K45+All!K46+All!K47)/1000 -> 1.350972 | Y41: =(All!L43+All!L44+All!L45+All!L46+All!L47)/1000 -> 1.33163 | Z41: =(All!M43+All!M44+All!M45+All!M46+All!M47)/1000 -> 1.303384 | AA41: =(All!N43+All!N44+All!N45+All!N46+All!N47)/1000 -> 1.543287 | AB41: =(All!O43+All!O44+All!O45+All!O46+All!O47)/1000 -> 1.305067 | AC41: =(All!P43+All!P44+All!P45+All!P46+All!P47)/1000 -> 1.164609 | AD41: =(All!Q43+All!Q44+All!Q45+All!Q46+All!Q47)/1000 -> 1.300316 | AE41: =(All!R43+All!R44+All!R45+All!R46+All!R47)/1000 -> 1.280034 | AF41: =(All!S43+All!S44+All!S45+All!S46+All!S47)/1000 -> 1.489413 | AG41: =(All!T43+All!T44+All!T45+All!T46+All!T47)/1000 -> 1.375324 | AH41: =(All!U43+All!U44+All!U45+All!U46+All!U47)/1000 -> 1.460043 | AI41: =(All!V43+All!V44+All!V45+All!V46+All!V47)/1000 -> 1.620664 | AJ41: =(All!W43+All!W44+All!W45+All!W46+All!W47)/1000 -> 1.377248 | AK41: =(All!X43+All!X44+All!X45+All!X46+All!X47)/1000 -> 1.488141 | AL41: =(All!Y43+All!Y44+All!Y45+All!Y46+All!Y47)/1000 -> 1.321967 | AM41: =(All!Z43+All!Z44+All!Z45+All!Z46+All!Z47)/1000 -> 1.321588 | AN41: =(All!AA43+All!AA44+All!AA45+All!AA46+All!AA47)/1000 -> 1.316337 | AO41: =(All!AB43+All!AB44+All!AB45+All!AB46+All!AB47)/1000 -> 1.319812 | AP41: =(All!AC43+All!AC44+All!AC45+All!AC46+All!AC47)/1000 -> 1.330277 | AQ41: =(All!AD43+All!AD44+All!AD45+All!AD46+All!AD47)/1000 -> 1.33038 | AR41: =(All!AE43+All!AE44+All!AE45+All!AE46+All!AE47)/1000 -> 1.343226 | AS41: =(All!AF43+All!AF44+All!AF45+All!AF46+All!AF47)/1000 -> 1.365275 | AT41: =(All!AG43+All!AG44+All!AG45+All!AG46+All!AG47)/1000 -> 1.375854 | AU41: =(All!AH43+All!AH44+All!AH45+All!AH46+All!AH47)/1000 -> 1.388736
P42: Administrative and secretarial | Q42: =(All!D48+All!D49)/1000 -> 3.414527 | R42: =(All!E48+All!E49)/1000 -> 3.668767 | S42: =(All!F48+All!F49)/1000 -> 3.512757 | T42: =(All!G48+All!G49)/1000 -> 3.335191 | U42: =(All!H48+All!H49)/1000 -> 3.444414 | V42: =(All!I48+All!I49)/1000 -> 2.729068 | W42: =(All!J48+All!J49)/1000 -> 3.101454 | X42: =(All!K48+All!K49)/1000 -> 2.507876 | Y42: =(All!L48+All!L49)/1000 -> 2.193714 | Z42: =(All!M48+All!M49)/1000 -> 2.262715 | AA42: =(All!N48+All!N49)/1000 -> 2.338318 | AB42: =(All!O48+All!O49)/1000 -> 2.261443 | AC42: =(All!P48+All!P49)/1000 -> 1.360473 | AD42: =(All!Q48+All!Q49)/1000 -> 2.39711 | AE42: =(All!R48+All!R49)/1000 -> 2.03648 | AF42: =(All!S48+All!S49)/1000 -> 2.576196 | AG42: =(All!T48+All!T49)/1000 -> 2.721356 | AH42: =(All!U48+All!U49)/1000 -> 2.364698 | AI42: =(All!V48+All!V49)/1000 -> 2.531397 | AJ42: =(All!W48+All!W49)/1000 -> 2.690517 | AK42: =(All!X48+All!X49)/1000 -> 1.951482 | AL42: =(All!Y48+All!Y49)/1000 -> 1.645157 | AM42: =(All!Z48+All!Z49)/1000 -> 1.612957 | AN42: =(All!AA48+All!AA49)/1000 -> 1.565435 | AO42: =(All!AB48+All!AB49)/1000 -> 1.550375 | AP42: =(All!AC48+All!AC49)/1000 -> 1.543542 | AQ42: =(All!AD48+All!AD49)/1000 -> 1.526897 | AR42: =(All!AE48+All!AE49)/1000 -> 1.530977 | AS42: =(All!AF48+All!AF49)/1000 -> 1.553906 | AT42: =(All!AG48+All!AG49)/1000 -> 1.532943 | AU42: =(All!AH48+All!AH49)/1000 -> 1.516171
P43: Skilled trades occupations | Q43: =(All!D50+All!D51+All!D52+All!D53)/1000 -> 19.67134 | R43: =(All!E50+All!E51+All!E52+All!E53)/1000 -> 22.714687 | S43: =(All!F50+All!F51+All!F52+All!F53)/1000 -> 22.748222 | T43: =(All!G50+All!G51+All!G52+All!G53)/1000 -> 20.834918 | U43: =(All!H50+All!H51+All!H52+All!H53)/1000 -> 24.620523 | V43: =(All!I50+All!I51+All!I52+All!I53)/1000 -> 24.997752 | W43: =(All!J50+All!J51+All!J52+All!J53)/1000 -> 24.642197 | X43: =(All!K50+All!K51+All!K52+All!K53)/1000 -> 23.420752 | Y43: =(All!L50+All!L51+All!L52+All!L53)/1000 -> 24.062415 | Z43: =(All!M50+All!M51+All!M52+All!M53)/1000 -> 22.677926 | AA43: =(All!N50+All!N51+All!N52+All!N53)/1000 -> 21.653052 | AB43: =(All!O50+All!O51+All!O52+All!O53)/1000 -> 24.86214 | AC43: =(All!P50+All!P51+All!P52+All!P53)/1000 -> 19.652267 | AD43: =(All!Q50+All!Q51+All!Q52+All!Q53)/1000 -> 23.038951 | AE43: =(All!R50+All!R51+All!R52+All!R53)/1000 -> 26.933597 | AF43: =(All!S50+All!S51+All!S52+All!S53)/1000 -> 30.401121 | AG43: =(All!T50+All!T51+All!T52+All!T53)/1000 -> 31.314341 | AH43: =(All!U50+All!U51+All!U52+All!U53)/1000 -> 29.736037 | AI43: =(All!V50+All!V51+All!V52+All!V53)/1000 -> 32.867324 | AJ43: =(All!W50+All!W51+All!W52+All!W53)/1000 -> 26.743083 | AK43: =(All!X50+All!X51+All!X52+All!X53)/1000 -> 27.788722 | AL43: =(All!Y50+All!Y51+All!Y52+All!Y53)/1000 -> 22.82299 | AM43: =(All!Z50+All!Z51+All!Z52+All!Z53)/1000 -> 23.176523 | AN43: =(All!AA50+All!AA51+All!AA52+All!AA53)/1000 -> 23.483366 | AO43: =(All!AB50+All!AB51+All!AB52+All!AB53)/1000 -> 23.629483 | AP43: =(All!AC50+All!AC51+All!AC52+All!AC53)/1000 -> 23.807336 | AQ43: =(All!AD50+All!AD51+All!AD52+All!AD53)/1000 -> 23.69233 | AR43: =(All!AE50+All!AE51+All!AE52+All!AE53)/1000 -> 23.697484 | AS43: =(All!AF50+All!AF51+All!AF52+All!AF53)/1000 -> 23.644108 | AT43: =(All!AG50+All!AG51+All!AG52+All!AG53)/1000 -> 23.65227 | AU43: =(All!AH50+All!AH51+All!AH52+All!AH53)/1000 -> 23.738626
P44: Caring, leisure and other service | Q44: =(All!D54+All!D55)/1000 -> 1.648493 | R44: =(All!E54+All!E55)/1000 -> 2.083969 | S44: =(All!F54+All!F55)/1000 -> 2.159179 | T44: =(All!G54+All!G55)/1000 -> 2.11428 | U44: =(All!H54+All!H55)/1000 -> 2.34849 | V44: =(All!I54+All!I55)/1000 -> 2.303663 | W44: =(All!J54+All!J55)/1000 -> 2.729053 | X44: =(All!K54+All!K55)/1000 -> 2.654846 | Y44: =(All!L54+All!L55)/1000 -> 2.547798 | Z44: =(All!M54+All!M55)/1000 -> 2.69516 | AA44: =(All!N54+All!N55)/1000 -> 2.846497 | AB44: =(All!O54+All!O55)/1000 -> 2.51547 | AC44: =(All!P54+All!P55)/1000 -> 1.633353 | AD44: =(All!Q54+All!Q55)/1000 -> 2.794278 | AE44: =(All!R54+All!R55)/1000 -> 2.461702 | AF44: =(All!S54+All!S55)/1000 -> 2.88653 | AG44: =(All!T54+All!T55)/1000 -> 2.925615 | AH44: =(All!U54+All!U55)/1000 -> 2.219004 | AI44: =(All!V54+All!V55)/1000 -> 2.898432 | AJ44: =(All!W54+All!W55)/1000 -> 2.74881 | AK44: =(All!X54+All!X55)/1000 -> 2.505646 | AL44: =(All!Y54+All!Y55)/1000 -> 2.318664 | AM44: =(All!Z54+All!Z55)/1000 -> 2.384035 | AN44: =(All!AA54+All!AA55)/1000 -> 2.4495 | AO44: =(All!AB54+All!AB55)/1000 -> 2.464567 | AP44: =(All!AC54+All!AC55)/1000 -> 2.482192 | AQ44: =(All!AD54+All!AD55)/1000 -> 2.499143 | AR44: =(All!AE54+All!AE55)/1000 -> 2.51224 | AS44: =(All!AF54+All!AF55)/1000 -> 2.516452 | AT44: =(All!AG54+All!AG55)/1000 -> 2.579649 | AU44: =(All!AH54+All!AH55)/1000 -> 2.653956
P45: Sales and customer service | Q45: =(All!D56+All!D57)/1000 -> 0.649046 | R45: =(All!E56+All!E57)/1000 -> 0.668638 | S45: =(All!F56+All!F57)/1000 -> 0.693865 | T45: =(All!G56+All!G57)/1000 -> 0.646701 | U45: =(All!H56+All!H57)/1000 -> 0.74857 | V45: =(All!I56+All!I57)/1000 -> 0.658544 | W45: =(All!J56+All!J57)/1000 -> 0.666281 | X45: =(All!K56+All!K57)/1000 -> 0.659388 | Y45: =(All!L56+All!L57)/1000 -> 0.575502 | Z45: =(All!M56+All!M57)/1000 -> 0.577617 | AA45: =(All!N56+All!N57)/1000 -> 0.637255 | AB45: =(All!O56+All!O57)/1000 -> 0.550431 | AC45: =(All!P56+All!P57)/1000 -> 0.476751 | AD45: =(All!Q56+All!Q57)/1000 -> 0.587356 | AE45: =(All!R56+All!R57)/1000 -> 0.577586 | AF45: =(All!S56+All!S57)/1000 -> 0.775238 | AG45: =(All!T56+All!T57)/1000 -> 0.7964 | AH45: =(All!U56+All!U57)/1000 -> 0.657986 | AI45: =(All!V56+All!V57)/1000 -> 0.639906 | AJ45: =(All!W56+All!W57)/1000 -> 0.65714 | AK45: =(All!X56+All!X57)/1000 -> 0.592178 | AL45: =(All!Y56+All!Y57)/1000 -> 0.515594 | AM45: =(All!Z56+All!Z57)/1000 -> 0.512917 | AN45: =(All!AA56+All!AA57)/1000 -> 0.507015 | AO45: =(All!AB56+All!AB57)/1000 -> 0.505738 | AP45: =(All!AC56+All!AC57)/1000 -> 0.50547 | AQ45: =(All!AD56+All!AD57)/1000 -> 0.500833 | AR45: =(All!AE56+All!AE57)/1000 -> 0.501451 | AS45: =(All!AF56+All!AF57)/1000 -> 0.504381 | AT45: =(All!AG56+All!AG57)/1000 -> 0.503589 | AU45: =(All!AH56+All!AH57)/1000 -> 0.503154
P46: Process, plant and machine operatives | Q46: =(All!D58+All!D59)/1000 -> 4.457745 | R46: =(All!E58+All!E59)/1000 -> 4.817316 | S46: =(All!F58+All!F59)/1000 -> 4.963953 | T46: =(All!G58+All!G59)/1000 -> 4.427118 | U46: =(All!H58+All!H59)/1000 -> 4.717451 | V46: =(All!I58+All!I59)/1000 -> 4.758619 | W46: =(All!J58+All!J59)/1000 -> 4.221719 | X46: =(All!K58+All!K59)/1000 -> 4.200689 | Y46: =(All!L58+All!L59)/1000 -> 4.1171 | Z46: =(All!M58+All!M59)/1000 -> 3.978139 | AA46: =(All!N58+All!N59)/1000 -> 3.837931 | AB46: =(All!O58+All!O59)/1000 -> 3.289821 | AC46: =(All!P58+All!P59)/1000 -> 3.642981 | AD46: =(All!Q58+All!Q59)/1000 -> 3.925228 | AE46: =(All!R58+All!R59)/1000 -> 3.317017 | AF46: =(All!S58+All!S59)/1000 -> 4.431107 | AG46: =(All!T58+All!T59)/1000 -> 3.385279 | AH46: =(All!U58+All!U59)/1000 -> 3.05901 | AI46: =(All!V58+All!V59)/1000 -> 3.400165 | AJ46: =(All!W58+All!W59)/1000 -> 2.76398 | AK46: =(All!X58+All!X59)/1000 -> 3.092995 | AL46: =(All!Y58+All!Y59)/1000 -> 2.727341 | AM46: =(All!Z58+All!Z59)/1000 -> 2.66582 | AN46: =(All!AA58+All!AA59)/1000 -> 2.591546 | AO46: =(All!AB58+All!AB59)/1000 -> 2.544756 | AP46: =(All!AC58+All!AC59)/1000 -> 2.508412 | AQ46: =(All!AD58+All!AD59)/1000 -> 2.454786 | AR46: =(All!AE58+All!AE59)/1000 -> 2.422124 | AS46: =(All!AF58+All!AF59)/1000 -> 2.390676 | AT46: =(All!AG58+All!AG59)/1000 -> 2.344652 | AU46: =(All!AH58+All!AH59)/1000 -> 2.301438
P47: Elementary occupations | Q47: =(All!D60+All!D61)/1000 -> 15.359804 | R47: =(All!E60+All!E61)/1000 -> 15.980254 | S47: =(All!F60+All!F61)/1000 -> 16.72535 | T47: =(All!G60+All!G61)/1000 -> 15.371797 | U47: =(All!H60+All!H61)/1000 -> 15.06676 | V47: =(All!I60+All!I61)/1000 -> 16.266725 | W47: =(All!J60+All!J61)/1000 -> 14.749206 | X47: =(All!K60+All!K61)/1000 -> 14.47338 | Y47: =(All!L60+All!L61)/1000 -> 13.719677 | Z47: =(All!M60+All!M61)/1000 -> 13.699117 | AA47: =(All!N60+All!N61)/1000 -> 12.44452 | AB47: =(All!O60+All!O61)/1000 -> 13.694918 | AC47: =(All!P60+All!P61)/1000 -> 11.178664 | AD47: =(All!Q60+All!Q61)/1000 -> 12.546892 | AE47: =(All!R60+All!R61)/1000 -> 11.940426 | AF47: =(All!S60+All!S61)/1000 -> 13.154936 | AG47: =(All!T60+All!T61)/1000 -> 12.204444 | AH47: =(All!U60+All!U61)/1000 -> 10.450556 | AI47: =(All!V60+All!V61)/1000 -> 11.54575 | AJ47: =(All!W60+All!W61)/1000 -> 9.787519 | AK47: =(All!X60+All!X61)/1000 -> 10.364552 | AL47: =(All!Y60+All!Y61)/1000 -> 8.947112 | AM47: =(All!Z60+All!Z61)/1000 -> 8.833722 | AN47: =(All!AA60+All!AA61)/1000 -> 8.68221 | AO47: =(All!AB60+All!AB61)/1000 -> 8.571798 | AP47: =(All!AC60+All!AC61)/1000 -> 8.484355 | AQ47: =(All!AD60+All!AD61)/1000 -> 8.330078 | AR47: =(All!AE60+All!AE61)/1000 -> 8.246154 | AS47: =(All!AF60+All!AF61)/1000 -> 8.153919 | AT47: =(All!AG60+All!AG61)/1000 -> 8.113186 | AU47: =(All!AH60+All!AH61)/1000 -> 8.092493
P72: ="Occupational employment, "&CHAR(13)&P73 -> Occupational employment, Mining and quarrying
P73: =names!A5 -> Mining and quarrying | Q73: =Q38 -> 1992 | R73: 1993 | S73: 1994 | T73: 1995 | U73: 1996 | V73: 1997 | W73: 1998 | X73: 1999 | Y73: 2000 | Z73: 2001 | AA73: 2002 | AB73: 2003 | AC73: 2004 | AD73: 2005 | AE73: 2006 | AF73: 2007 | AG73: 2008 | AH73: 2009 | AI73: 2010 | AJ73: 2011 | AK73: 2012 | AL73: 2013 | AM73: 2014 | AN73: 2015 | AO73: 2016 | AP73: 2017 | AQ73: 2018 | AR73: 2019 | AS73: 2020 | AT73: 2021 | AU73: 2022
P74: =P39 -> Managers, directors and senior officials | Q74: =(All!D65+All!D66)/1000 -> 1.936197 | R74: =(All!E65+All!E66)/1000 -> 1.466824 | S74: =(All!F65+All!F66)/1000 -> 1.213416 | T74: =(All!G65+All!G66)/1000 -> 1.294153 | U74: =(All!H65+All!H66)/1000 -> 1.653902 | V74: =(All!I65+All!I66)/1000 -> 1.812178 | W74: =(All!J65+All!J66)/1000 -> 1.922891 | X74: =(All!K65+All!K66)/1000 -> 1.998077 | Y74: =(All!L65+All!L66)/1000 -> 1.837776 | Z74: =(All!M65+All!M66)/1000 -> 1.675889 | AA74: =(All!N65+All!N66)/1000 -> 1.644616 | AB74: =(All!O65+All!O66)/1000 -> 1.679163 | AC74: =(All!P65+All!P66)/1000 -> 1.697524 | AD74: =(All!Q65+All!Q66)/1000 -> 1.844731 | AE74: =(All!R65+All!R66)/1000 -> 2.312213 | AF74: =(All!S65+All!S66)/1000 -> 2.480915 | AG74: =(All!T65+All!T66)/1000 -> 2.526206 | AH74: =(All!U65+All!U66)/1000 -> 2.715583 | AI74: =(All!V65+All!V66)/1000 -> 3.152278 | AJ74: =(All!W65+All!W66)/1000 -> 3.076917 | AK74: =(All!X65+All!X66)/1000 -> 3.332675 | AL74: =(All!Y65+All!Y66)/1000 -> 3.128359 | AM74: =(All!Z65+All!Z66)/1000 -> 3.115925 | AN74: =(All!AA65+All!AA66)/1000 -> 3.148511 | AO74: =(All!AB65+All!AB66)/1000 -> 3.193747 | AP74: =(All!AC65+All!AC66)/1000 -> 3.248434 | AQ74: =(All!AD65+All!AD66)/1000 -> 3.274923 | AR74: =(All!AE65+All!AE66)/1000 -> 3.30252 | AS74: =(All!AF65+All!AF66)/1000 -> 3.329865 | AT74: =(All!AG65+All!AG66)/1000 -> 3.354958 | AU74: =(All!AH65+All!AH66)/1000 -> 3.383902
P75: Professional occupations | Q75: =(All!D67+All!D68+All!D69+All!D70)/1000 -> 5.200651 | R75: =(All!E67+All!E68+All!E69+All!E70)/1000 -> 3.991543 | S75: =(All!F67+All!F68+All!F69+All!F70)/1000 -> 3.436549 | T75: =(All!G67+All!G68+All!G69+All!G70)/1000 -> 3.665036 | U75: =(All!H67+All!H68+All!H69+All!H70)/1000 -> 4.758273 | V75: =(All!I67+All!I68+All!I69+All!I70)/1000 -> 5.404995 | W75: =(All!J67+All!J68+All!J69+All!J70)/1000 -> 5.544407 | X75: =(All!K67+All!K68+All!K69+All!K70)/1000 -> 6.029592 | Y75: =(All!L67+All!L68+All!L69+All!L70)/1000 -> 5.624597 | Z75: =(All!M67+All!M68+All!M69+All!M70)/1000 -> 5.052833 | AA75: =(All!N67+All!N68+All!N69+All!N70)/1000 -> 4.886003 | AB75: =(All!O67+All!O68+All!O69+All!O70)/1000 -> 5.255276 | AC75: =(All!P67+All!P68+All!P69+All!P70)/1000 -> 5.115253 | AD75: =(All!Q67+All!Q68+All!Q69+All!Q70)/1000 -> 5.029853 | AE75: =(All!R67+All!R68+All!R69+All!R70)/1000 -> 7.024781 | AF75: =(All!S67+All!S68+All!S69+All!S70)/1000 -> 7.010866 | AG75: =(All!T67+All!T68+All!T69+All!T70)/1000 -> 6.833522 | AH75: =(All!U67+All!U68+All!U69+All!U70)/1000 -> 8.161125 | AI75: =(All!V67+All!V68+All!V69+All!V70)/1000 -> 8.284037 | AJ75: =(All!W67+All!W68+All!W69+All!W70)/1000 -> 7.955627 | AK75: =(All!X67+All!X68+All!X69+All!X70)/1000 -> 8.692501 | AL75: =(All!Y67+All!Y68+All!Y69+All!Y70)/1000 -> 8.304489 | AM75: =(All!Z67+All!Z68+All!Z69+All!Z70)/1000 -> 8.345517 | AN75: =(All!AA67+All!AA68+All!AA69+All!AA70)/1000 -> 8.510139 | AO75: =(All!AB67+All!AB68+All!AB69+All!AB70)/1000 -> 8.62998 | AP75: =(All!AC67+All!AC68+All!AC69+All!AC70)/1000 -> 8.767498 | AQ75: =(All!AD67+All!AD68+All!AD69+All!AD70)/1000 -> 8.813996 | AR75: =(All!AE67+All!AE68+All!AE69+All!AE70)/1000 -> 8.851797 | AS75: =(All!AF67+All!AF68+All!AF69+All!AF70)/1000 -> 8.895979 | AT75: =(All!AG67+All!AG68+All!AG69+All!AG70)/1000 -> 8.966344 | AU75: =(All!AH67+All!AH68+All!AH69+All!AH70)/1000 -> 9.048277
P76: Associate professional and technical | Q76: =(All!D71+All!D72+All!D73+All!D74+All!D75)/1000 -> 4.352303 | R76: =(All!E71+All!E72+All!E73+All!E74+All!E75)/1000 -> 3.307437 | S76: =(All!F71+All!F72+All!F73+All!F74+All!F75)/1000 -> 2.843551 | T76: =(All!G71+All!G72+All!G73+All!G74+All!G75)/1000 -> 2.946044 | U76: =(All!H71+All!H72+All!H73+All!H74+All!H75)/1000 -> 3.854967 | V76: =(All!I71+All!I72+All!I73+All!I74+All!I75)/1000 -> 4.322921 | W76: =(All!J71+All!J72+All!J73+All!J74+All!J75)/1000 -> 4.596228 | X76: =(All!K71+All!K72+All!K73+All!K74+All!K75)/1000 -> 4.630461 | Y76: =(All!L71+All!L72+All!L73+All!L74+All!L75)/1000 -> 4.374713 | Z76: =(All!M71+All!M72+All!M73+All!M74+All!M75)/1000 -> 3.833204 | AA76: =(All!N71+All!N72+All!N73+All!N74+All!N75)/1000 -> 3.736274 | AB76: =(All!O71+All!O72+All!O73+All!O74+All!O75)/1000 -> 3.352263 | AC76: =(All!P71+All!P72+All!P73+All!P74+All!P75)/1000 -> 3.363602 | AD76: =(All!Q71+All!Q72+All!Q73+All!Q74+All!Q75)/1000 -> 3.459769 | AE76: =(All!R71+All!R72+All!R73+All!R74+All!R75)/1000 -> 4.323893 | AF76: =(All!S71+All!S72+All!S73+All!S74+All!S75)/1000 -> 4.258405 | AG76: =(All!T71+All!T72+All!T73+All!T74+All!T75)/1000 -> 4.133597 | AH76: =(All!U71+All!U72+All!U73+All!U74+All!U75)/1000 -> 4.319262 | AI76: =(All!V71+All!V72+All!V73+All!V74+All!V75)/1000 -> 4.505184 | AJ76: =(All!W71+All!W72+All!W73+All!W74+All!W75)/1000 -> 4.23783 | AK76: =(All!X71+All!X72+All!X73+All!X74+All!X75)/1000 -> 4.749079 | AL76: =(All!Y71+All!Y72+All!Y73+All!Y74+All!Y75)/1000 -> 4.463075 | AM76: =(All!Z71+All!Z72+All!Z73+All!Z74+All!Z75)/1000 -> 4.425509 | AN76: =(All!AA71+All!AA72+All!AA73+All!AA74+All!AA75)/1000 -> 4.460053 | AO76: =(All!AB71+All!AB72+All!AB73+All!AB74+All!AB75)/1000 -> 4.503926 | AP76: =(All!AC71+All!AC72+All!AC73+All!AC74+All!AC75)/1000 -> 4.561386 | AQ76: =(All!AD71+All!AD72+All!AD73+All!AD74+All!AD75)/1000 -> 4.567904 | AR76: =(All!AE71+All!AE72+All!AE73+All!AE74+All!AE75)/1000 -> 4.572197 | AS76: =(All!AF71+All!AF72+All!AF73+All!AF74+All!AF75)/1000 -> 4.578703 | AT76: =(All!AG71+All!AG72+All!AG73+All!AG74+All!AG75)/1000 -> 4.597661 | AU76: =(All!AH71+All!AH72+All!AH73+All!AH74+All!AH75)/1000 -> 4.622588
P77: Administrative and secretarial | Q77: =(All!D76+All!D77)/1000 -> 2.331107 | R77: =(All!E76+All!E77)/1000 -> 1.856686 | S77: =(All!F76+All!F77)/1000 -> 1.848077 | T77: =(All!G76+All!G77)/1000 -> 1.660367 | U77: =(All!H76+All!H77)/1000 -> 2.409641 | V77: =(All!I76+All!I77)/1000 -> 2.703209 | W77: =(All!J76+All!J77)/1000 -> 2.946549 | X77: =(All!K76+All!K77)/1000 -> 3.166884 | Y77: =(All!L76+All!L77)/1000 -> 3.000083 | Z77: =(All!M76+All!M77)/1000 -> 2.298157 | AA77: =(All!N76+All!N77)/1000 -> 2.394489 | AB77: =(All!O76+All!O77)/1000 -> 1.834093 | AC77: =(All!P76+All!P77)/1000 -> 2.122275 | AD77: =(All!Q76+All!Q77)/1000 -> 2.090501 | AE77: =(All!R76+All!R77)/1000 -> 3.348015 | AF77: =(All!S76+All!S77)/1000 -> 3.064208 | AG77: =(All!T76+All!T77)/1000 -> 2.606284 | AH77: =(All!U76+All!U77)/1000 -> 4.330168 | AI77: =(All!V76+All!V77)/1000 -> 3.885867 | AJ77: =(All!W76+All!W77)/1000 -> 3.395062 | AK77: =(All!X76+All!X77)/1000 -> 3.655193 | AL77: =(All!Y76+All!Y77)/1000 -> 3.349273 | AM77: =(All!Z76+All!Z77)/1000 -> 3.228975 | AN77: =(All!AA76+All!AA77)/1000 -> 3.165212 | AO77: =(All!AB76+All!AB77)/1000 -> 3.13065 | AP77: =(All!AC76+All!AC77)/1000 -> 3.10634 | AQ77: =(All!AD76+All!AD77)/1000 -> 3.03605 | AR77: =(All!AE76+All!AE77)/1000 -> 2.967513 | AS77: =(All!AF76+All!AF77)/1000 -> 2.899901 | AT77: =(All!AG76+All!AG77)/1000 -> 2.83379 | AU77: =(All!AH76+All!AH77)/1000 -> 2.771256
P78: Skilled trades occupations | Q78: =(All!D78+All!D79+All!D80+All!D81)/1000 -> 5.699066 | R78: =(All!E78+All!E79+All!E80+All!E81)/1000 -> 4.188859 | S78: =(All!F78+All!F79+All!F80+All!F81)/1000 -> 3.310622 | T78: =(All!G78+All!G79+All!G80+All!G81)/1000 -> 3.362538 | U78: =(All!H78+All!H79+All!H80+All!H81)/1000 -> 4.185738 | V78: =(All!I78+All!I79+All!I80+All!I81)/1000 -> 4.424433 | W78: =(All!J78+All!J79+All!J80+All!J81)/1000 -> 4.539091 | X78: =(All!K78+All!K79+All!K80+All!K81)/1000 -> 4.57474 | Y78: =(All!L78+All!L79+All!L80+All!L81)/1000 -> 4.047505 | Z78: =(All!M78+All!M79+All!M80+All!M81)/1000 -> 3.723119 | AA78: =(All!N78+All!N79+All!N80+All!N81)/1000 -> 3.408759 | AB78: =(All!O78+All!O79+All!O80+All!O81)/1000 -> 3.449851 | AC78: =(All!P78+All!P79+All!P80+All!P81)/1000 -> 3.491532 | AD78: =(All!Q78+All!Q79+All!Q80+All!Q81)/1000 -> 3.836658 | AE78: =(All!R78+All!R79+All!R80+All!R81)/1000 -> 4.514563 | AF78: =(All!S78+All!S79+All!S80+All!S81)/1000 -> 4.934286 | AG78: =(All!T78+All!T79+All!T80+All!T81)/1000 -> 4.875771 | AH78: =(All!U78+All!U79+All!U80+All!U81)/1000 -> 4.63452 | AI78: =(All!V78+All!V79+All!V80+All!V81)/1000 -> 5.055307 | AJ78: =(All!W78+All!W79+All!W80+All!W81)/1000 -> 4.978441 | AK78: =(All!X78+All!X79+All!X80+All!X81)/1000 -> 5.266408 | AL78: =(All!Y78+All!Y79+All!Y80+All!Y81)/1000 -> 4.760663 | AM78: =(All!Z78+All!Z79+All!Z80+All!Z81)/1000 -> 4.602328 | AN78: =(All!AA78+All!AA79+All!AA80+All!AA81)/1000 -> 4.49639 | AO78: =(All!AB78+All!AB79+All!AB80+All!AB81)/1000 -> 4.439807 | AP78: =(All!AC78+All!AC79+All!AC80+All!AC81)/1000 -> 4.39101 | AQ78: =(All!AD78+All!AD79+All!AD80+All!AD81)/1000 -> 4.314306 | AR78: =(All!AE78+All!AE79+All!AE80+All!AE81)/1000 -> 4.252488 | AS78: =(All!AF78+All!AF79+All!AF80+All!AF81)/1000 -> 4.186722 | AT78: =(All!AG78+All!AG79+All!AG80+All!AG81)/1000 -> 4.077959 | AU78: =(All!AH78+All!AH79+All!AH80+All!AH81)/1000 -> 3.976278
P79: Caring, leisure and other service | Q79: =(All!D82+All!D83)/1000 -> 0.094112 | R79: =(All!E82+All!E83)/1000 -> 0.080844 | S79: =(All!F82+All!F83)/1000 -> 0.075777 | T79: =(All!G82+All!G83)/1000 -> 0.083833 | U79: =(All!H82+All!H83)/1000 -> 0.110436 | V79: =(All!I82+All!I83)/1000 -> 0.121191 | W79: =(All!J82+All!J83)/1000 -> 0.127269 | X79: =(All!K82+All!K83)/1000 -> 0.19143 | Y79: =(All!L82+All!L83)/1000 -> 0.141945 | Z79: =(All!M82+All!M83)/1000 -> 0.122142 | AA79: =(All!N82+All!N83)/1000 -> 0.123103 | AB79: =(All!O82+All!O83)/1000 -> 0.112921 | AC79: =(All!P82+All!P83)/1000 -> 0.132907 | AD79: =(All!Q82+All!Q83)/1000 -> 0.141139 | AE79: =(All!R82+All!R83)/1000 -> 0.392232 | AF79: =(All!S82+All!S83)/1000 -> 0.336637 | AG79: =(All!T82+All!T83)/1000 -> 0.172924 | AH79: =(All!U82+All!U83)/1000 -> 0.309145 | AI79: =(All!V82+All!V83)/1000 -> 0.359967 | AJ79: =(All!W82+All!W83)/1000 -> 0.370809 | AK79: =(All!X82+All!X83)/1000 -> 0.429959 | AL79: =(All!Y82+All!Y83)/1000 -> 0.431511 | AM79: =(All!Z82+All!Z83)/1000 -> 0.447016 | AN79: =(All!AA82+All!AA83)/1000 -> 0.470662 | AO79: =(All!AB82+All!AB83)/1000 -> 0.478822 | AP79: =(All!AC82+All!AC83)/1000 -> 0.488797 | AQ79: =(All!AD82+All!AD83)/1000 -> 0.493202 | AR79: =(All!AE82+All!AE83)/1000 -> 0.496799 | AS79: =(All!AF82+All!AF83)/1000 -> 0.499453 | AT79: =(All!AG82+All!AG83)/1000 -> 0.50954 | AU79: =(All!AH82+All!AH83)/1000 -> 0.520337
P80: Sales and customer service | Q80: =(All!D84+All!D85)/1000 -> 0.288405 | R80: =(All!E84+All!E85)/1000 -> 0.232625 | S80: =(All!F84+All!F85)/1000 -> 0.222201 | T80: =(All!G84+All!G85)/1000 -> 0.218796 | U80: =(All!H84+All!H85)/1000 -> 0.306031 | V80: =(All!I84+All!I85)/1000 -> 0.347189 | W80: =(All!J84+All!J85)/1000 -> 0.392177 | X80: =(All!K84+All!K85)/1000 -> 0.44406 | Y80: =(All!L84+All!L85)/1000 -> 0.430716 | Z80: =(All!M84+All!M85)/1000 -> 0.352855 | AA80: =(All!N84+All!N85)/1000 -> 0.359332 | AB80: =(All!O84+All!O85)/1000 -> 0.324934 | AC80: =(All!P84+All!P85)/1000 -> 0.356843 | AD80: =(All!Q84+All!Q85)/1000 -> 0.370306 | AE80: =(All!R84+All!R85)/1000 -> 0.701599 | AF80: =(All!S84+All!S85)/1000 -> 0.664612 | AG80: =(All!T84+All!T85)/1000 -> 0.506087 | AH80: =(All!U84+All!U85)/1000 -> 0.718021 | AI80: =(All!V84+All!V85)/1000 -> 0.76778 | AJ80: =(All!W84+All!W85)/1000 -> 0.700791 | AK80: =(All!X84+All!X85)/1000 -> 0.762416 | AL80: =(All!Y84+All!Y85)/1000 -> 0.700752 | AM80: =(All!Z84+All!Z85)/1000 -> 0.681254 | AN80: =(All!AA84+All!AA85)/1000 -> 0.673204 | AO80: =(All!AB84+All!AB85)/1000 -> 0.67794 | AP80: =(All!AC84+All!AC85)/1000 -> 0.684249 | AQ80: =(All!AD84+All!AD85)/1000 -> 0.679583 | AR80: =(All!AE84+All!AE85)/1000 -> 0.677076 | AS80: =(All!AF84+All!AF85)/1000 -> 0.67503 | AT80: =(All!AG84+All!AG85)/1000 -> 0.669875 | AU80: =(All!AH84+All!AH85)/1000 -> 0.664983
P81: Process, plant and machine operatives | Q81: =(All!D86+All!D87)/1000 -> 7.198991 | R81: =(All!E86+All!E87)/1000 -> 5.51198 | S81: =(All!F86+All!F87)/1000 -> 4.618592 | T81: =(All!G86+All!G87)/1000 -> 4.862483 | U81: =(All!H86+All!H87)/1000 -> 6.177982 | V81: =(All!I86+All!I87)/1000 -> 6.297432 | W81: =(All!J86+All!J87)/1000 -> 6.807297 | X81: =(All!K86+All!K87)/1000 -> 6.750463 | Y81: =(All!L86+All!L87)/1000 -> 6.185491 | Z81: =(All!M86+All!M87)/1000 -> 5.738319 | AA81: =(All!N86+All!N87)/1000 -> 5.03371 | AB81: =(All!O86+All!O87)/1000 -> 4.916723 | AC81: =(All!P86+All!P87)/1000 -> 4.80385 | AD81: =(All!Q86+All!Q87)/1000 -> 5.350247 | AE81: =(All!R86+All!R87)/1000 -> 5.946597 | AF81: =(All!S86+All!S87)/1000 -> 6.72463 | AG81: =(All!T86+All!T87)/1000 -> 6.275165 | AH81: =(All!U86+All!U87)/1000 -> 6.244529 | AI81: =(All!V86+All!V87)/1000 -> 6.127085 | AJ81: =(All!W86+All!W87)/1000 -> 6.142871 | AK81: =(All!X86+All!X87)/1000 -> 6.305396 | AL81: =(All!Y86+All!Y87)/1000 -> 5.798003 | AM81: =(All!Z86+All!Z87)/1000 -> 5.643968 | AN81: =(All!AA86+All!AA87)/1000 -> 5.537799 | AO81: =(All!AB86+All!AB87)/1000 -> 5.458694 | AP81: =(All!AC86+All!AC87)/1000 -> 5.390372 | AQ81: =(All!AD86+All!AD87)/1000 -> 5.285476 | AR81: =(All!AE86+All!AE87)/1000 -> 5.19005 | AS81: =(All!AF86+All!AF87)/1000 -> 5.09405 | AT81: =(All!AG86+All!AG87)/1000 -> 4.985453 | AU81: =(All!AH86+All!AH87)/1000 -> 4.885139
P82: Elementary occupations | Q82: =(All!D88+All!D89)/1000 -> 1.397167 | R82: =(All!E88+All!E89)/1000 -> 1.061205 | S82: =(All!F88+All!F89)/1000 -> 0.864214 | T82: =(All!G88+All!G89)/1000 -> 0.900748 | U82: =(All!H88+All!H89)/1000 -> 1.100028 | V82: =(All!I88+All!I89)/1000 -> 1.158451 | W82: =(All!J88+All!J89)/1000 -> 1.201092 | X82: =(All!K88+All!K89)/1000 -> 1.293293 | Y82: =(All!L88+All!L89)/1000 -> 1.086174 | Z82: =(All!M88+All!M89)/1000 -> 1.035482 | AA82: =(All!N88+All!N89)/1000 -> 0.867717 | AB82: =(All!O88+All!O89)/1000 -> 0.842775 | AC82: =(All!P88+All!P89)/1000 -> 0.772214 | AD82: =(All!Q88+All!Q89)/1000 -> 0.786795 | AE82: =(All!R88+All!R89)/1000 -> 0.958105 | AF82: =(All!S88+All!S89)/1000 -> 0.986441 | AG82: =(All!T88+All!T89)/1000 -> 0.744444 | AH82: =(All!U88+All!U89)/1000 -> 0.682647 | AI82: =(All!V88+All!V89)/1000 -> 0.576496 | AJ82: =(All!W88+All!W89)/1000 -> 0.553655 | AK82: =(All!X88+All!X89)/1000 -> 0.734375 | AL82: =(All!Y88+All!Y89)/1000 -> 0.652872 | AM82: =(All!Z88+All!Z89)/1000 -> 0.632506 | AN82: =(All!AA88+All!AA89)/1000 -> 0.621029 | AO82: =(All!AB88+All!AB89)/1000 -> 0.617435 | AP82: =(All!AC88+All!AC89)/1000 -> 0.613913 | AQ82: =(All!AD88+All!AD89)/1000 -> 0.604561 | AR82: =(All!AE88+All!AE89)/1000 -> 0.597561 | AS82: =(All!AF88+All!AF89)/1000 -> 0.590296 | AT82: =(All!AG88+All!AG89)/1000 -> 0.585421 | AU82: =(All!AH88+All!AH89)/1000 -> 0.58124
P107: ="Occupational employment, "&CHAR(13)&P108 -> Occupational employment, Food drink and tobacco
P108: =names!A6 -> Food drink and tobacco | Q108: =Q73 -> 1992 | R108: 1993 | S108: 1994 | T108: 1995 | U108: 1996 | V108: 1997 | W108: 1998 | X108: 1999 | Y108: 2000 | Z108: 2001 | AA108: 2002 | AB108: 2003 | AC108: 2004 | AD108: 2005 | AE108: 2006 | AF108: 2007 | AG108: 2008 | AH108: 2009 | AI108: 2010 | AJ108: 2011 | AK108: 2012 | AL108: 2013 | AM108: 2014 | AN108: 2015 | AO108: 2016 | AP108: 2017 | AQ108: 2018 | AR108: 2019 | AS108: 2020 | AT108: 2021 | AU108: 2022
P109: =P74 -> Managers, directors and senior officials | Q109: =(All!D93+All!D94)/1000 -> 3.234467 | R109: =(All!E93+All!E94)/1000 -> 3.081099 | S109: =(All!F93+All!F94)/1000 -> 3.033073 | T109: =(All!G93+All!G94)/1000 -> 3.131995 | U109: =(All!H93+All!H94)/1000 -> 3.319359 | V109: =(All!I93+All!I94)/1000 -> 3.620461 | W109: =(All!J93+All!J94)/1000 -> 3.663185 | X109: =(All!K93+All!K94)/1000 -> 3.701236 | Y109: =(All!L93+All!L94)/1000 -> 3.834959 | Z109: =(All!M93+All!M94)/1000 -> 4.039072 | AA109: =(All!N93+All!N94)/1000 -> 3.94097 | AB109: =(All!O93+All!O94)/1000 -> 4.260418 | AC109: =(All!P93+All!P94)/1000 -> 4.328662 | AD109: =(All!Q93+All!Q94)/1000 -> 4.605912 | AE109: =(All!R93+All!R94)/1000 -> 4.480871 | AF109: =(All!S93+All!S94)/1000 -> 4.384532 | AG109: =(All!T93+All!T94)/1000 -> 4.14976 | AH109: =(All!U93+All!U94)/1000 -> 4.859393 | AI109: =(All!V93+All!V94)/1000 -> 3.632968 | AJ109: =(All!W93+All!W94)/1000 -> 3.523442 | AK109: =(All!X93+All!X94)/1000 -> 4.006751 | AL109: =(All!Y93+All!Y94)/1000 -> 4.207654 | AM109: =(All!Z93+All!Z94)/1000 -> 4.300948 | AN109: =(All!AA93+All!AA94)/1000 -> 4.383266 | AO109: =(All!AB93+All!AB94)/1000 -> 4.481758 | AP109: =(All!AC93+All!AC94)/1000 -> 4.573264 | AQ109: =(All!AD93+All!AD94)/1000 -> 4.639414 | AR109: =(All!AE93+All!AE94)/1000 -> 4.695416 | AS109: =(All!AF93+All!AF94)/1000 -> 4.759336 | AT109: =(All!AG93+All!AG94)/1000 -> 4.814171 | AU109: =(All!AH93+All!AH94)/1000 -> 4.873233
P110: Professional occupations | Q110: =(All!D95+All!D96+All!D97+All!D98)/1000 -> 2.406266 | R110: =(All!E95+All!E96+All!E97+All!E98)/1000 -> 2.289776 | S110: =(All!F95+All!F96+All!F97+All!F98)/1000 -> 2.260758 | T110: =(All!G95+All!G96+All!G97+All!G98)/1000 -> 2.328238 | U110: =(All!H95+All!H96+All!H97+All!H98)/1000 -> 2.498339 | V110: =(All!I95+All!I96+All!I97+All!I98)/1000 -> 2.738381 | W110: =(All!J95+All!J96+All!J97+All!J98)/1000 -> 2.710158 | X110: =(All!K95+All!K96+All!K97+All!K98)/1000 -> 2.714829 | Y110: =(All!L95+All!L96+All!L97+All!L98)/1000 -> 2.736106 | Z110: =(All!M95+All!M96+All!M97+All!M98)/1000 -> 2.928334 | AA110: =(All!N95+All!N96+All!N97+All!N98)/1000 -> 2.92078 | AB110: =(All!O95+All!O96+All!O97+All!O98)/1000 -> 2.866608 | AC110: =(All!P95+All!P96+All!P97+All!P98)/1000 -> 3.07233 | AD110: =(All!Q95+All!Q96+All!Q97+All!Q98)/1000 -> 3.072479 | AE110: =(All!R95+All!R96+All!R97+All!R98)/1000 -> 2.960021 | AF110: =(All!S95+All!S96+All!S97+All!S98)/1000 -> 3.205332 | AG110: =(All!T95+All!T96+All!T97+All!T98)/1000 -> 3.136061 | AH110: =(All!U95+All!U96+All!U97+All!U98)/1000 -> 3.192488 | AI110: =(All!V95+All!V96+All!V97+All!V98)/1000 -> 2.570183 | AJ110: =(All!W95+All!W96+All!W97+All!W98)/1000 -> 2.43982 | AK110: =(All!X95+All!X96+All!X97+All!X98)/1000 -> 2.857099 | AL110: =(All!Y95+All!Y96+All!Y97+All!Y98)/1000 -> 3.032767 | AM110: =(All!Z95+All!Z96+All!Z97+All!Z98)/1000 -> 3.107153 | AN110: =(All!AA95+All!AA96+All!AA97+All!AA98)/1000 -> 3.17663 | AO110: =(All!AB95+All!AB96+All!AB97+All!AB98)/1000 -> 3.23396 | AP110: =(All!AC95+All!AC96+All!AC97+All!AC98)/1000 -> 3.284955 | AQ110: =(All!AD95+All!AD96+All!AD97+All!AD98)/1000 -> 3.318484 | AR110: =(All!AE95+All!AE96+All!AE97+All!AE98)/1000 -> 3.339963 | AS110: =(All!AF95+All!AF96+All!AF97+All!AF98)/1000 -> 3.367624 | AT110: =(All!AG95+All!AG96+All!AG97+All!AG98)/1000 -> 3.400064 | AU110: =(All!AH95+All!AH96+All!AH97+All!AH98)/1000 -> 3.436715
P111: Associate professional and technical | Q111: =(All!D99+All!D100+All!D101+All!D102+All!D103)/1000 -> 4.230724 | R111: =(All!E99+All!E100+All!E101+All!E102+All!E103)/1000 -> 4.047463 | S111: =(All!F99+All!F100+All!F101+All!F102+All!F103)/1000 -> 3.969695 | T111: =(All!G99+All!G100+All!G101+All!G102+All!G103)/1000 -> 3.943636 | U111: =(All!H99+All!H100+All!H101+All!H102+All!H103)/1000 -> 4.241133 | V111: =(All!I99+All!I100+All!I101+All!I102+All!I103)/1000 -> 4.595952 | W111: =(All!J99+All!J100+All!J101+All!J102+All!J103)/1000 -> 4.480073 | X111: =(All!K99+All!K100+All!K101+All!K102+All!K103)/1000 -> 4.408108 | Y111: =(All!L99+All!L100+All!L101+All!L102+All!L103)/1000 -> 4.367975 | Z111: =(All!M99+All!M100+All!M101+All!M102+All!M103)/1000 -> 4.541286 | AA111: =(All!N99+All!N100+All!N101+All!N102+All!N103)/1000 -> 4.697994 | AB111: =(All!O99+All!O100+All!O101+All!O102+All!O103)/1000 -> 4.352194 | AC111: =(All!P99+All!P100+All!P101+All!P102+All!P103)/1000 -> 4.725067 | AD111: =(All!Q99+All!Q100+All!Q101+All!Q102+All!Q103)/1000 -> 4.085897 | AE111: =(All!R99+All!R100+All!R101+All!R102+All!R103)/1000 -> 3.964106 | AF111: =(All!S99+All!S100+All!S101+All!S102+All!S103)/1000 -> 4.014915 | AG111: =(All!T99+All!T100+All!T101+All!T102+All!T103)/1000 -> 3.94511 | AH111: =(All!U99+All!U100+All!U101+All!U102+All!U103)/1000 -> 4.122775 | AI111: =(All!V99+All!V100+All!V101+All!V102+All!V103)/1000 -> 4.352342 | AJ111: =(All!W99+All!W100+All!W101+All!W102+All!W103)/1000 -> 4.200136 | AK111: =(All!X99+All!X100+All!X101+All!X102+All!X103)/1000 -> 4.608861 | AL111: =(All!Y99+All!Y100+All!Y101+All!Y102+All!Y103)/1000 -> 4.802675 | AM111: =(All!Z99+All!Z100+All!Z101+All!Z102+All!Z103)/1000 -> 4.835848 | AN111: =(All!AA99+All!AA100+All!AA101+All!AA102+All!AA103)/1000 -> 4.870575 | AO111: =(All!AB99+All!AB100+All!AB101+All!AB102+All!AB103)/1000 -> 4.935489 | AP111: =(All!AC99+All!AC100+All!AC101+All!AC102+All!AC103)/1000 -> 4.998025 | AQ111: =(All!AD99+All!AD100+All!AD101+All!AD102+All!AD103)/1000 -> 5.027902 | AR111: =(All!AE99+All!AE100+All!AE101+All!AE102+All!AE103)/1000 -> 5.042621 | AS111: =(All!AF99+All!AF100+All!AF101+All!AF102+All!AF103)/1000 -> 5.066151 | AT111: =(All!AG99+All!AG100+All!AG101+All!AG102+All!AG103)/1000 -> 5.085502 | AU111: =(All!AH99+All!AH100+All!AH101+All!AH102+All!AH103)/1000 -> 5.110724
P112: Administrative and secretarial | Q112: =(All!D104+All!D105)/1000 -> 5.429972 | R112: =(All!E104+All!E105)/1000 -> 5.288862 | S112: =(All!F104+All!F105)/1000 -> 5.202693 | T112: =(All!G104+All!G105)/1000 -> 4.871576 | U112: =(All!H104+All!H105)/1000 -> 5.562989 | V112: =(All!I104+All!I105)/1000 -> 6.210599 | W112: =(All!J104+All!J105)/1000 -> 5.790958 | X112: =(All!K104+All!K105)/1000 -> 5.405945 | Y112: =(All!L104+All!L105)/1000 -> 5.217818 | Z112: =(All!M104+All!M105)/1000 -> 5.742217 | AA112: =(All!N104+All!N105)/1000 -> 4.978364 | AB112: =(All!O104+All!O105)/1000 -> 4.444122 | AC112: =(All!P104+All!P105)/1000 -> 4.863664 | AD112: =(All!Q104+All!Q105)/1000 -> 4.675814 | AE112: =(All!R104+All!R105)/1000 -> 4.282878 | AF112: =(All!S104+All!S105)/1000 -> 4.356503 | AG112: =(All!T104+All!T105)/1000 -> 3.839963 | AH112: =(All!U104+All!U105)/1000 -> 3.891922 | AI112: =(All!V104+All!V105)/1000 -> 4.21629 | AJ112: =(All!W104+All!W105)/1000 -> 4.03255 | AK112: =(All!X104+All!X105)/1000 -> 4.447711 | AL112: =(All!Y104+All!Y105)/1000 -> 4.624357 | AM112: =(All!Z104+All!Z105)/1000 -> 4.639487 | AN112: =(All!AA104+All!AA105)/1000 -> 4.654963 | AO112: =(All!AB104+All!AB105)/1000 -> 4.625312 | AP112: =(All!AC104+All!AC105)/1000 -> 4.593628 | AQ112: =(All!AD104+All!AD105)/1000 -> 4.531977 | AR112: =(All!AE104+All!AE105)/1000 -> 4.456135 | AS112: =(All!AF104+All!AF105)/1000 -> 4.38629 | AT112: =(All!AG104+All!AG105)/1000 -> 4.366965 | AU112: =(All!AH104+All!AH105)/1000 -> 4.353302
P113: Skilled trades occupations | Q113: =(All!D106+All!D107+All!D108+All!D109)/1000 -> 11.686762 | R113: =(All!E106+All!E107+All!E108+All!E109)/1000 -> 10.792632 | S113: =(All!F106+All!F107+All!F108+All!F109)/1000 -> 10.146688 | T113: =(All!G106+All!G107+All!G108+All!G109)/1000 -> 9.869064 | U113: =(All!H106+All!H107+All!H108+All!H109)/1000 -> 10.274391 | V113: =(All!I106+All!I107+All!I108+All!I109)/1000 -> 10.754399 | W113: =(All!J106+All!J107+All!J108+All!J109)/1000 -> 10.46119 | X113: =(All!K106+All!K107+All!K108+All!K109)/1000 -> 10.349293 | Y113: =(All!L106+All!L107+All!L108+All!L109)/1000 -> 10.284982 | Z113: =(All!M106+All!M107+All!M108+All!M109)/1000 -> 10.527085 | AA113: =(All!N106+All!N107+All!N108+All!N109)/1000 -> 10.111244 | AB113: =(All!O106+All!O107+All!O108+All!O109)/1000 -> 10.278854 | AC113: =(All!P106+All!P107+All!P108+All!P109)/1000 -> 8.951642 | AD113: =(All!Q106+All!Q107+All!Q108+All!Q109)/1000 -> 8.501325 | AE113: =(All!R106+All!R107+All!R108+All!R109)/1000 -> 6.829927 | AF113: =(All!S106+All!S107+All!S108+All!S109)/1000 -> 8.670081 | AG113: =(All!T106+All!T107+All!T108+All!T109)/1000 -> 8.471405 | AH113: =(All!U106+All!U107+All!U108+All!U109)/1000 -> 7.576931 | AI113: =(All!V106+All!V107+All!V108+All!V109)/1000 -> 7.862727 | AJ113: =(All!W106+All!W107+All!W108+All!W109)/1000 -> 7.070775 | AK113: =(All!X106+All!X107+All!X108+All!X109)/1000 -> 8.004943 | AL113: =(All!Y106+All!Y107+All!Y108+All!Y109)/1000 -> 7.783001 | AM113: =(All!Z106+All!Z107+All!Z108+All!Z109)/1000 -> 7.480474 | AN113: =(All!AA106+All!AA107+All!AA108+All!AA109)/1000 -> 7.154489 | AO113: =(All!AB106+All!AB107+All!AB108+All!AB109)/1000 -> 7.004243 | AP113: =(All!AC106+All!AC107+All!AC108+All!AC109)/1000 -> 6.832243 | AQ113: =(All!AD106+All!AD107+All!AD108+All!AD109)/1000 -> 6.622938 | AR113: =(All!AE106+All!AE107+All!AE108+All!AE109)/1000 -> 6.421896 | AS113: =(All!AF106+All!AF107+All!AF108+All!AF109)/1000 -> 6.237265 | AT113: =(All!AG106+All!AG107+All!AG108+All!AG109)/1000 -> 5.988939 | AU113: =(All!AH106+All!AH107+All!AH108+All!AH109)/1000 -> 5.754606
P114: Caring, leisure and other service | Q114: =(All!D110+All!D111)/1000 -> 0.384838 | R114: =(All!E110+All!E111)/1000 -> 0.378345 | S114: =(All!F110+All!F111)/1000 -> 0.373543 | T114: =(All!G110+All!G111)/1000 -> 0.340679 | U114: =(All!H110+All!H111)/1000 -> 0.374703 | V114: =(All!I110+All!I111)/1000 -> 0.446885 | W114: =(All!J110+All!J111)/1000 -> 0.412476 | X114: =(All!K110+All!K111)/1000 -> 0.42601 | Y114: =(All!L110+All!L111)/1000 -> 0.38036 | Z114: =(All!M110+All!M111)/1000 -> 0.461131 | AA114: =(All!N110+All!N111)/1000 -> 0.441483 | AB114: =(All!O110+All!O111)/1000 -> 0.347106 | AC114: =(All!P110+All!P111)/1000 -> 0.405777 | AD114: =(All!Q110+All!Q111)/1000 -> 0.40773 | AE114: =(All!R110+All!R111)/1000 -> 0.358933 | AF114: =(All!S110+All!S111)/1000 -> 0.421055 | AG114: =(All!T110+All!T111)/1000 -> 0.343267 | AH114: =(All!U110+All!U111)/1000 -> 0.368424 | AI114: =(All!V110+All!V111)/1000 -> 0.35899 | AJ114: =(All!W110+All!W111)/1000 -> 0.348858 | AK114: =(All!X110+All!X111)/1000 -> 0.410722 | AL114: =(All!Y110+All!Y111)/1000 -> 0.443651 | AM114: =(All!Z110+All!Z111)/1000 -> 0.4596 | AN114: =(All!AA110+All!AA111)/1000 -> 0.475772 | AO114: =(All!AB110+All!AB111)/1000 -> 0.485154 | AP114: =(All!AC110+All!AC111)/1000 -> 0.493377 | AQ114: =(All!AD110+All!AD111)/1000 -> 0.502273 | AR114: =(All!AE110+All!AE111)/1000 -> 0.508081 | AS114: =(All!AF110+All!AF111)/1000 -> 0.512653 | AT114: =(All!AG110+All!AG111)/1000 -> 0.521498 | AU114: =(All!AH110+All!AH111)/1000 -> 0.531537
P115: Sales and customer service | Q115: =(All!D112+All!D113)/1000 -> 2.05786 | R115: =(All!E112+All!E113)/1000 -> 2.040426 | S115: =(All!F112+All!F113)/1000 -> 2.051096 | T115: =(All!G112+All!G113)/1000 -> 1.936975 | U115: =(All!H112+All!H113)/1000 -> 2.280665 | V115: =(All!I112+All!I113)/1000 -> 2.614955 | W115: =(All!J112+All!J113)/1000 -> 2.466289 | X115: =(All!K112+All!K113)/1000 -> 2.381707 | Y115: =(All!L112+All!L113)/1000 -> 2.345217 | Z115: =(All!M112+All!M113)/1000 -> 2.47769 | AA115: =(All!N112+All!N113)/1000 -> 2.256623 | AB115: =(All!O112+All!O113)/1000 -> 2.241427 | AC115: =(All!P112+All!P113)/1000 -> 2.283997 | AD115: =(All!Q112+All!Q113)/1000 -> 2.260569 | AE115: =(All!R112+All!R113)/1000 -> 1.986963 | AF115: =(All!S112+All!S113)/1000 -> 2.067824 | AG115: =(All!T112+All!T113)/1000 -> 1.917705 | AH115: =(All!U112+All!U113)/1000 -> 1.981468 | AI115: =(All!V112+All!V113)/1000 -> 2.498688 | AJ115: =(All!W112+All!W113)/1000 -> 2.38984 | AK115: =(All!X112+All!X113)/1000 -> 2.796154 | AL115: =(All!Y112+All!Y113)/1000 -> 2.946939 | AM115: =(All!Z112+All!Z113)/1000 -> 3.011349 | AN115: =(All!AA112+All!AA113)/1000 -> 3.056884 | AO115: =(All!AB112+All!AB113)/1000 -> 3.084859 | AP115: =(All!AC112+All!AC113)/1000 -> 3.103401 | AQ115: =(All!AD112+All!AD113)/1000 -> 3.099512 | AR115: =(All!AE112+All!AE113)/1000 -> 3.092513 | AS115: =(All!AF112+All!AF113)/1000 -> 3.093 | AT115: =(All!AG112+All!AG113)/1000 -> 3.118285 | AU115: =(All!AH112+All!AH113)/1000 -> 3.141435
P116: Process, plant and machine operatives | Q116: =(All!D114+All!D115)/1000 -> 20.339442 | R116: =(All!E114+All!E115)/1000 -> 19.13127 | S116: =(All!F114+All!F115)/1000 -> 18.33856 | T116: =(All!G114+All!G115)/1000 -> 17.276439 | U116: =(All!H114+All!H115)/1000 -> 18.547371 | V116: =(All!I114+All!I115)/1000 -> 19.71251 | W116: =(All!J114+All!J115)/1000 -> 18.51926 | X116: =(All!K114+All!K115)/1000 -> 18.209859 | Y116: =(All!L114+All!L115)/1000 -> 17.67383 | Z116: =(All!M114+All!M115)/1000 -> 17.952992 | AA116: =(All!N114+All!N115)/1000 -> 16.953928 | AB116: =(All!O114+All!O115)/1000 -> 15.906137 | AC116: =(All!P114+All!P115)/1000 -> 15.513859 | AD116: =(All!Q114+All!Q115)/1000 -> 14.991569 | AE116: =(All!R114+All!R115)/1000 -> 13.959521 | AF116: =(All!S114+All!S115)/1000 -> 14.118257 | AG116: =(All!T114+All!T115)/1000 -> 13.275448 | AH116: =(All!U114+All!U115)/1000 -> 11.441898 | AI116: =(All!V114+All!V115)/1000 -> 13.218766 | AJ116: =(All!W114+All!W115)/1000 -> 12.195831 | AK116: =(All!X114+All!X115)/1000 -> 12.832355 | AL116: =(All!Y114+All!Y115)/1000 -> 12.727198 | AM116: =(All!Z114+All!Z115)/1000 -> 12.278284 | AN116: =(All!AA114+All!AA115)/1000 -> 11.808711 | AO116: =(All!AB114+All!AB115)/1000 -> 11.554005 | AP116: =(All!AC114+All!AC115)/1000 -> 11.265567 | AQ116: =(All!AD114+All!AD115)/1000 -> 10.904007 | AR116: =(All!AE114+All!AE115)/1000 -> 10.529309 | AS116: =(All!AF114+All!AF115)/1000 -> 10.175193 | AT116: =(All!AG114+All!AG115)/1000 -> 9.708449 | AU116: =(All!AH114+All!AH115)/1000 -> 9.268882
P117: Elementary occupations | Q117: =(All!D116+All!D117)/1000 -> 10.695668 | R117: =(All!E116+All!E117)/1000 -> 9.986125 | S117: =(All!F116+All!F117)/1000 -> 9.437894 | T117: =(All!G116+All!G117)/1000 -> 8.573395 | U117: =(All!H116+All!H117)/1000 -> 9.115051 | V117: =(All!I116+All!I117)/1000 -> 9.682858 | W117: =(All!J116+All!J117)/1000 -> 8.97541 | X117: =(All!K116+All!K117)/1000 -> 8.659016 | Y117: =(All!L116+All!L117)/1000 -> 8.378753 | Z117: =(All!M116+All!M117)/1000 -> 8.378194 | AA117: =(All!N116+All!N117)/1000 -> 8.549613 | AB117: =(All!O116+All!O117)/1000 -> 7.586136 | AC117: =(All!P116+All!P117)/1000 -> 7.341002 | AD117: =(All!Q116+All!Q117)/1000 -> 8.381707 | AE117: =(All!R116+All!R117)/1000 -> 7.946783 | AF117: =(All!S116+All!S117)/1000 -> 7.033502 | AG117: =(All!T116+All!T117)/1000 -> 7.20528 | AH117: =(All!U116+All!U117)/1000 -> 7.913702 | AI117: =(All!V116+All!V117)/1000 -> 8.648047 | AJ117: =(All!W116+All!W117)/1000 -> 8.06875 | AK117: =(All!X116+All!X117)/1000 -> 8.757405 | AL117: =(All!Y116+All!Y117)/1000 -> 8.77176 | AM117: =(All!Z116+All!Z117)/1000 -> 8.708856 | AN117: =(All!AA116+All!AA117)/1000 -> 8.621707 | AO117: =(All!AB116+All!AB117)/1000 -> 8.685217 | AP117: =(All!AC116+All!AC117)/1000 -> 8.715538 | AQ117: =(All!AD116+All!AD117)/1000 -> 8.677494 | AR117: =(All!AE116+All!AE117)/1000 -> 8.641067 | AS117: =(All!AF116+All!AF117)/1000 -> 8.619488 | AT117: =(All!AG116+All!AG117)/1000 -> 8.590128 | AU117: =(All!AH116+All!AH117)/1000 -> 8.570564
P142: ="Occupational employment, "&CHAR(13)&P143 -> Occupational employment, Engineering
P143: =names!A7 -> Engineering | Q143: =Q108 -> 1992 | R143: 1993 | S143: 1994 | T143: 1995 | U143: 1996 | V143: 1997 | W143: 1998 | X143: 1999 | Y143: 2000 | Z143: 2001 | AA143: 2002 | AB143: 2003 | AC143: 2004 | AD143: 2005 | AE143: 2006 | AF143: 2007 | AG143: 2008 | AH143: 2009 | AI143: 2010 | AJ143: 2011 | AK143: 2012 | AL143: 2013 | AM143: 2014 | AN143: 2015 | AO143: 2016 | AP143: 2017 | AQ143: 2018 | AR143: 2019 | AS143: 2020 | AT143: 2021 | AU143: 2022
P144: =P109 -> Managers, directors and senior officials | Q144: =(All!D121+All!D122)/1000 -> 4.319292 | R144: =(All!E121+All!E122)/1000 -> 4.108723 | S144: =(All!F121+All!F122)/1000 -> 4.253519 | T144: =(All!G121+All!G122)/1000 -> 4.782126 | U144: =(All!H121+All!H122)/1000 -> 5.103644 | V144: =(All!I121+All!I122)/1000 -> 5.329328 | W144: =(All!J121+All!J122)/1000 -> 5.589197 | X144: =(All!K121+All!K122)/1000 -> 5.392729 | Y144: =(All!L121+All!L122)/1000 -> 5.690561 | Z144: =(All!M121+All!M122)/1000 -> 5.455593 | AA144: =(All!N121+All!N122)/1000 -> 4.905306 | AB144: =(All!O121+All!O122)/1000 -> 4.485089 | AC144: =(All!P121+All!P122)/1000 -> 4.326317 | AD144: =(All!Q121+All!Q122)/1000 -> 4.098973 | AE144: =(All!R121+All!R122)/1000 -> 4.265614 | AF144: =(All!S121+All!S122)/1000 -> 4.179977 | AG144: =(All!T121+All!T122)/1000 -> 4.071237 | AH144: =(All!U121+All!U122)/1000 -> 3.185213 | AI144: =(All!V121+All!V122)/1000 -> 3.083052 | AJ144: =(All!W121+All!W122)/1000 -> 3.088656 | AK144: =(All!X121+All!X122)/1000 -> 3.243661 | AL144: =(All!Y121+All!Y122)/1000 -> 3.168918 | AM144: =(All!Z121+All!Z122)/1000 -> 3.238578 | AN144: =(All!AA121+All!AA122)/1000 -> 3.312286 | AO144: =(All!AB121+All!AB122)/1000 -> 3.384131 | AP144: =(All!AC121+All!AC122)/1000 -> 3.45673 | AQ144: =(All!AD121+All!AD122)/1000 -> 3.530747 | AR144: =(All!AE121+All!AE122)/1000 -> 3.596256 | AS144: =(All!AF121+All!AF122)/1000 -> 3.653932 | AT144: =(All!AG121+All!AG122)/1000 -> 3.714991 | AU144: =(All!AH121+All!AH122)/1000 -> 3.772205
P145: Professional occupations | Q145: =(All!D123+All!D124+All!D125+All!D126)/1000 -> 8.227277 | R145: =(All!E123+All!E124+All!E125+All!E126)/1000 -> 7.863319 | S145: =(All!F123+All!F124+All!F125+All!F126)/1000 -> 8.40536 | T145: =(All!G123+All!G124+All!G125+All!G126)/1000 -> 9.695532 | U145: =(All!H123+All!H124+All!H125+All!H126)/1000 -> 10.712249 | V145: =(All!I123+All!I124+All!I125+All!I126)/1000 -> 11.531025 | W145: =(All!J123+All!J124+All!J125+All!J126)/1000 -> 12.271342 | X145: =(All!K123+All!K124+All!K125+All!K126)/1000 -> 11.894765 | Y145: =(All!L123+All!L124+All!L125+All!L126)/1000 -> 12.40677 | Z145: =(All!M123+All!M124+All!M125+All!M126)/1000 -> 11.928798 | AA145: =(All!N123+All!N124+All!N125+All!N126)/1000 -> 10.814078 | AB145: =(All!O123+All!O124+All!O125+All!O126)/1000 -> 9.792012 | AC145: =(All!P123+All!P124+All!P125+All!P126)/1000 -> 9.751828 | AD145: =(All!Q123+All!Q124+All!Q125+All!Q126)/1000 -> 9.477435 | AE145: =(All!R123+All!R124+All!R125+All!R126)/1000 -> 9.993903 | AF145: =(All!S123+All!S124+All!S125+All!S126)/1000 -> 9.428784 | AG145: =(All!T123+All!T124+All!T125+All!T126)/1000 -> 8.748515 | AH145: =(All!U123+All!U124+All!U125+All!U126)/1000 -> 6.999043 | AI145: =(All!V123+All!V124+All!V125+All!V126)/1000 -> 6.86194 | AJ145: =(All!W123+All!W124+All!W125+All!W126)/1000 -> 6.869816 | AK145: =(All!X123+All!X124+All!X125+All!X126)/1000 -> 7.173195 | AL145: =(All!Y123+All!Y124+All!Y125+All!Y126)/1000 -> 7.145155 | AM145: =(All!Z123+All!Z124+All!Z125+All!Z126)/1000 -> 7.373647 | AN145: =(All!AA123+All!AA124+All!AA125+All!AA126)/1000 -> 7.634677 | AO145: =(All!AB123+All!AB124+All!AB125+All!AB126)/1000 -> 7.825035 | AP145: =(All!AC123+All!AC124+All!AC125+All!AC126)/1000 -> 7.990248 | AQ145: =(All!AD123+All!AD124+All!AD125+All!AD126)/1000 -> 8.150205 | AR145: =(All!AE123+All!AE124+All!AE125+All!AE126)/1000 -> 8.279169 | AS145: =(All!AF123+All!AF124+All!AF125+All!AF126)/1000 -> 8.378396 | AT145: =(All!AG123+All!AG124+All!AG125+All!AG126)/1000 -> 8.523151 | AU145: =(All!AH123+All!AH124+All!AH125+All!AH126)/1000 -> 8.655996
P146: Associate professional and technical | Q146: =(All!D127+All!D128+All!D129+All!D130+All!D131)/1000 -> 7.316265 | R146: =(All!E127+All!E128+All!E129+All!E130+All!E131)/1000 -> 7.026944 | S146: =(All!F127+All!F128+All!F129+All!F130+All!F131)/1000 -> 7.430511 | T146: =(All!G127+All!G128+All!G129+All!G130+All!G131)/1000 -> 8.435659 | U146: =(All!H127+All!H128+All!H129+All!H130+All!H131)/1000 -> 9.222056 | V146: =(All!I127+All!I128+All!I129+All!I130+All!I131)/1000 -> 9.839568 | W146: =(All!J127+All!J128+All!J129+All!J130+All!J131)/1000 -> 10.260121 | X146: =(All!K127+All!K128+All!K129+All!K130+All!K131)/1000 -> 9.942908 | Y146: =(All!L127+All!L128+All!L129+All!L130+All!L131)/1000 -> 10.151392 | Z146: =(All!M127+All!M128+All!M129+All!M130+All!M131)/1000 -> 9.704719 | AA146: =(All!N127+All!N128+All!N129+All!N130+All!N131)/1000 -> 8.355536 | AB146: =(All!O127+All!O128+All!O129+All!O130+All!O131)/1000 -> 7.475397 | AC146: =(All!P127+All!P128+All!P129+All!P130+All!P131)/1000 -> 6.847052 | AD146: =(All!Q127+All!Q128+All!Q129+All!Q130+All!Q131)/1000 -> 6.337218 | AE146: =(All!R127+All!R128+All!R129+All!R130+All!R131)/1000 -> 6.30031 | AF146: =(All!S127+All!S128+All!S129+All!S130+All!S131)/1000 -> 6.530487 | AG146: =(All!T127+All!T128+All!T129+All!T130+All!T131)/1000 -> 5.69075 | AH146: =(All!U127+All!U128+All!U129+All!U130+All!U131)/1000 -> 4.597075 | AI146: =(All!V127+All!V128+All!V129+All!V130+All!V131)/1000 -> 4.10309 | AJ146: =(All!W127+All!W128+All!W129+All!W130+All!W131)/1000 -> 4.074891 | AK146: =(All!X127+All!X128+All!X129+All!X130+All!X131)/1000 -> 4.270633 | AL146: =(All!Y127+All!Y128+All!Y129+All!Y130+All!Y131)/1000 -> 4.186782 | AM146: =(All!Z127+All!Z128+All!Z129+All!Z130+All!Z131)/1000 -> 4.269156 | AN146: =(All!AA127+All!AA128+All!AA129+All!AA130+All!AA131)/1000 -> 4.369573 | AO146: =(All!AB127+All!AB128+All!AB129+All!AB130+All!AB131)/1000 -> 4.447975 | AP146: =(All!AC127+All!AC128+All!AC129+All!AC130+All!AC131)/1000 -> 4.524372 | AQ146: =(All!AD127+All!AD128+All!AD129+All!AD130+All!AD131)/1000 -> 4.597532 | AR146: =(All!AE127+All!AE128+All!AE129+All!AE130+All!AE131)/1000 -> 4.653524 | AS146: =(All!AF127+All!AF128+All!AF129+All!AF130+All!AF131)/1000 -> 4.695576 | AT146: =(All!AG127+All!AG128+All!AG129+All!AG130+All!AG131)/1000 -> 4.762536 | AU146: =(All!AH127+All!AH128+All!AH129+All!AH130+All!AH131)/1000 -> 4.823873
P147: Administrative and secretarial | Q147: =(All!D132+All!D133)/1000 -> 4.644009 | R147: =(All!E132+All!E133)/1000 -> 4.43645 | S147: =(All!F132+All!F133)/1000 -> 4.571398 | T147: =(All!G132+All!G133)/1000 -> 4.911761 | U147: =(All!H132+All!H133)/1000 -> 5.372311 | V147: =(All!I132+All!I133)/1000 -> 5.601794 | W147: =(All!J132+All!J133)/1000 -> 5.848104 | X147: =(All!K132+All!K133)/1000 -> 5.688614 | Y147: =(All!L132+All!L133)/1000 -> 5.63234 | Z147: =(All!M132+All!M133)/1000 -> 5.405906 | AA147: =(All!N132+All!N133)/1000 -> 4.625846 | AB147: =(All!O132+All!O133)/1000 -> 3.962197 | AC147: =(All!P132+All!P133)/1000 -> 3.239214 | AD147: =(All!Q132+All!Q133)/1000 -> 2.997363 | AE147: =(All!R132+All!R133)/1000 -> 3.027523 | AF147: =(All!S132+All!S133)/1000 -> 2.84147 | AG147: =(All!T132+All!T133)/1000 -> 2.641486 | AH147: =(All!U132+All!U133)/1000 -> 1.93832 | AI147: =(All!V132+All!V133)/1000 -> 1.78144 | AJ147: =(All!W132+All!W133)/1000 -> 1.947172 | AK147: =(All!X132+All!X133)/1000 -> 2.064216 | AL147: =(All!Y132+All!Y133)/1000 -> 2.005663 | AM147: =(All!Z132+All!Z133)/1000 -> 2.023903 | AN147: =(All!AA132+All!AA133)/1000 -> 2.03979 | AO147: =(All!AB132+All!AB133)/1000 -> 2.053572 | AP147: =(All!AC132+All!AC133)/1000 -> 2.06802 | AQ147: =(All!AD132+All!AD133)/1000 -> 2.081725 | AR147: =(All!AE132+All!AE133)/1000 -> 2.08964 | AS147: =(All!AF132+All!AF133)/1000 -> 2.092708 | AT147: =(All!AG132+All!AG133)/1000 -> 2.108909 | AU147: =(All!AH132+All!AH133)/1000 -> 2.122777
P148: Skilled trades occupations | Q148: =(All!D134+All!D135+All!D136+All!D137)/1000 -> 19.195511 | R148: =(All!E134+All!E135+All!E136+All!E137)/1000 -> 17.784031 | S148: =(All!F134+All!F135+All!F136+All!F137)/1000 -> 17.241683 | T148: =(All!G134+All!G135+All!G136+All!G137)/1000 -> 18.008846 | U148: =(All!H134+All!H135+All!H136+All!H137)/1000 -> 18.600308 | V148: =(All!I134+All!I135+All!I136+All!I137)/1000 -> 18.12032 | W148: =(All!J134+All!J135+All!J136+All!J137)/1000 -> 18.117646 | X148: =(All!K134+All!K135+All!K136+All!K137)/1000 -> 16.841134 | Y148: =(All!L134+All!L135+All!L136+All!L137)/1000 -> 17.157214 | Z148: =(All!M134+All!M135+All!M136+All!M137)/1000 -> 15.974698 | AA148: =(All!N134+All!N135+All!N136+All!N137)/1000 -> 13.668326 | AB148: =(All!O134+All!O135+All!O136+All!O137)/1000 -> 12.289613 | AC148: =(All!P134+All!P135+All!P136+All!P137)/1000 -> 11.581744 | AD148: =(All!Q134+All!Q135+All!Q136+All!Q137)/1000 -> 10.291094 | AE148: =(All!R134+All!R135+All!R136+All!R137)/1000 -> 9.66014 | AF148: =(All!S134+All!S135+All!S136+All!S137)/1000 -> 9.627339 | AG148: =(All!T134+All!T135+All!T136+All!T137)/1000 -> 8.788421 | AH148: =(All!U134+All!U135+All!U136+All!U137)/1000 -> 7.062533 | AI148: =(All!V134+All!V135+All!V136+All!V137)/1000 -> 6.29688 | AJ148: =(All!W134+All!W135+All!W136+All!W137)/1000 -> 6.068358 | AK148: =(All!X134+All!X135+All!X136+All!X137)/1000 -> 6.154433 | AL148: =(All!Y134+All!Y135+All!Y136+All!Y137)/1000 -> 5.761159 | AM148: =(All!Z134+All!Z135+All!Z136+All!Z137)/1000 -> 5.666545 | AN148: =(All!AA134+All!AA135+All!AA136+All!AA137)/1000 -> 5.543908 | AO148: =(All!AB134+All!AB135+All!AB136+All!AB137)/1000 -> 5.518007 | AP148: =(All!AC134+All!AC135+All!AC136+All!AC137)/1000 -> 5.492627 | AQ148: =(All!AD134+All!AD135+All!AD136+All!AD137)/1000 -> 5.475476 | AR148: =(All!AE134+All!AE135+All!AE136+All!AE137)/1000 -> 5.460666 | AS148: =(All!AF134+All!AF135+All!AF136+All!AF137)/1000 -> 5.435283 | AT148: =(All!AG134+All!AG135+All!AG136+All!AG137)/1000 -> 5.319237 | AU148: =(All!AH134+All!AH135+All!AH136+All!AH137)/1000 -> 5.200073
P149: Caring, leisure and other service | Q149: =(All!D138+All!D139)/1000 -> 0.302218 | R149: =(All!E138+All!E139)/1000 -> 0.310701 | S149: =(All!F138+All!F139)/1000 -> 0.328137 | T149: =(All!G138+All!G139)/1000 -> 0.361086 | U149: =(All!H138+All!H139)/1000 -> 0.402101 | V149: =(All!I138+All!I139)/1000 -> 0.441365 | W149: =(All!J138+All!J139)/1000 -> 0.488035 | X149: =(All!K138+All!K139)/1000 -> 0.515615 | Y149: =(All!L138+All!L139)/1000 -> 0.46925 | Z149: =(All!M138+All!M139)/1000 -> 0.550591 | AA149: =(All!N138+All!N139)/1000 -> 0.490445 | AB149: =(All!O138+All!O139)/1000 -> 0.432659 | AC149: =(All!P138+All!P139)/1000 -> 0.388222 | AD149: =(All!Q138+All!Q139)/1000 -> 0.3941 | AE149: =(All!R138+All!R139)/1000 -> 0.381615 | AF149: =(All!S138+All!S139)/1000 -> 0.412654 | AG149: =(All!T138+All!T139)/1000 -> 0.459377 | AH149: =(All!U138+All!U139)/1000 -> 0.297078 | AI149: =(All!V138+All!V139)/1000 -> 0.262076 | AJ149: =(All!W138+All!W139)/1000 -> 0.305366 | AK149: =(All!X138+All!X139)/1000 -> 0.345901 | AL149: =(All!Y138+All!Y139)/1000 -> 0.357253 | AM149: =(All!Z138+All!Z139)/1000 -> 0.37894 | AN149: =(All!AA138+All!AA139)/1000 -> 0.401368 | AO149: =(All!AB138+All!AB139)/1000 -> 0.415347 | AP149: =(All!AC138+All!AC139)/1000 -> 0.429393 | AQ149: =(All!AD138+All!AD139)/1000 -> 0.446709 | AR149: =(All!AE138+All!AE139)/1000 -> 0.462017 | AS149: =(All!AF138+All!AF139)/1000 -> 0.47602 | AT149: =(All!AG138+All!AG139)/1000 -> 0.495244 | AU149: =(All!AH138+All!AH139)/1000 -> 0.515246
P150: Sales and customer service | Q150: =(All!D140+All!D141)/1000 -> 0.812738 | R150: =(All!E140+All!E141)/1000 -> 0.800034 | S150: =(All!F140+All!F141)/1000 -> 0.844238 | T150: =(All!G140+All!G141)/1000 -> 0.941595 | U150: =(All!H140+All!H141)/1000 -> 1.058219 | V150: =(All!I140+All!I141)/1000 -> 1.137567 | W150: =(All!J140+All!J141)/1000 -> 1.214302 | X150: =(All!K140+All!K141)/1000 -> 1.211145 | Y150: =(All!L140+All!L141)/1000 -> 1.243303 | Z150: =(All!M140+All!M141)/1000 -> 1.206617 | AA150: =(All!N140+All!N141)/1000 -> 1.077678 | AB150: =(All!O140+All!O141)/1000 -> 0.958593 | AC150: =(All!P140+All!P141)/1000 -> 0.946069 | AD150: =(All!Q140+All!Q141)/1000 -> 0.930545 | AE150: =(All!R140+All!R141)/1000 -> 0.916502 | AF150: =(All!S140+All!S141)/1000 -> 0.865349 | AG150: =(All!T140+All!T141)/1000 -> 0.900235 | AH150: =(All!U140+All!U141)/1000 -> 0.696486 | AI150: =(All!V140+All!V141)/1000 -> 0.731153 | AJ150: =(All!W140+All!W141)/1000 -> 0.736284 | AK150: =(All!X140+All!X141)/1000 -> 0.789145 | AL150: =(All!Y140+All!Y141)/1000 -> 0.774318 | AM150: =(All!Z140+All!Z141)/1000 -> 0.793753 | AN150: =(All!AA140+All!AA141)/1000 -> 0.814295 | AO150: =(All!AB140+All!AB141)/1000 -> 0.835097 | AP150: =(All!AC140+All!AC141)/1000 -> 0.853269 | AQ150: =(All!AD140+All!AD141)/1000 -> 0.869983 | AR150: =(All!AE140+All!AE141)/1000 -> 0.886199 | AS150: =(All!AF140+All!AF141)/1000 -> 0.899487 | AT150: =(All!AG140+All!AG141)/1000 -> 0.919329 | AU150: =(All!AH140+All!AH141)/1000 -> 0.937181
P151: Process, plant and machine operatives | Q151: =(All!D142+All!D143)/1000 -> 13.369868 | R151: =(All!E142+All!E143)/1000 -> 12.595324 | S151: =(All!F142+All!F143)/1000 -> 12.611306 | T151: =(All!G142+All!G143)/1000 -> 13.476869 | U151: =(All!H142+All!H143)/1000 -> 14.205176 | V151: =(All!I142+All!I143)/1000 -> 14.27752 | W151: =(All!J142+All!J143)/1000 -> 14.385924 | X151: =(All!K142+All!K143)/1000 -> 13.483728 | Y151: =(All!L142+All!L143)/1000 -> 13.755065 | Z151: =(All!M142+All!M143)/1000 -> 12.962765 | AA151: =(All!N142+All!N143)/1000 -> 10.255617 | AB151: =(All!O142+All!O143)/1000 -> 8.431358 | AC151: =(All!P142+All!P143)/1000 -> 7.477444 | AD151: =(All!Q142+All!Q143)/1000 -> 7.649161 | AE151: =(All!R142+All!R143)/1000 -> 6.612231 | AF151: =(All!S142+All!S143)/1000 -> 6.48918 | AG151: =(All!T142+All!T143)/1000 -> 5.60206 | AH151: =(All!U142+All!U143)/1000 -> 3.883684 | AI151: =(All!V142+All!V143)/1000 -> 3.693847 | AJ151: =(All!W142+All!W143)/1000 -> 3.511621 | AK151: =(All!X142+All!X143)/1000 -> 3.572515 | AL151: =(All!Y142+All!Y143)/1000 -> 3.333022 | AM151: =(All!Z142+All!Z143)/1000 -> 3.270344 | AN151: =(All!AA142+All!AA143)/1000 -> 3.184579 | AO151: =(All!AB142+All!AB143)/1000 -> 3.112228 | AP151: =(All!AC142+All!AC143)/1000 -> 3.03137 | AQ151: =(All!AD142+All!AD143)/1000 -> 2.951893 | AR151: =(All!AE142+All!AE143)/1000 -> 2.870003 | AS151: =(All!AF142+All!AF143)/1000 -> 2.783553 | AT151: =(All!AG142+All!AG143)/1000 -> 2.673488 | AU151: =(All!AH142+All!AH143)/1000 -> 2.564268
P152: Elementary occupations | Q152: =(All!D144+All!D145)/1000 -> 3.858821 | R152: =(All!E144+All!E145)/1000 -> 3.682473 | S152: =(All!F144+All!F145)/1000 -> 3.648847 | T152: =(All!G144+All!G145)/1000 -> 3.847526 | U152: =(All!H144+All!H145)/1000 -> 3.978935 | V152: =(All!I144+All!I145)/1000 -> 3.974514 | W152: =(All!J144+All!J145)/1000 -> 4.107328 | X152: =(All!K144+All!K145)/1000 -> 3.988361 | Y152: =(All!L144+All!L145)/1000 -> 3.944105 | Z152: =(All!M144+All!M145)/1000 -> 3.814313 | AA152: =(All!N144+All!N145)/1000 -> 3.235169 | AB152: =(All!O144+All!O145)/1000 -> 3.015083 | AC152: =(All!P144+All!P145)/1000 -> 2.96711 | AD152: =(All!Q144+All!Q145)/1000 -> 2.62311 | AE152: =(All!R144+All!R145)/1000 -> 2.437164 | AF152: =(All!S144+All!S145)/1000 -> 2.81076 | AG152: =(All!T144+All!T145)/1000 -> 2.773921 | AH152: =(All!U144+All!U145)/1000 -> 2.128569 | AI152: =(All!V144+All!V145)/1000 -> 1.968524 | AJ152: =(All!W144+All!W145)/1000 -> 2.005836 | AK152: =(All!X144+All!X145)/1000 -> 2.163303 | AL152: =(All!Y144+All!Y145)/1000 -> 2.04673 | AM152: =(All!Z144+All!Z145)/1000 -> 2.078134 | AN152: =(All!AA144+All!AA145)/1000 -> 2.103524 | AO152: =(All!AB144+All!AB145)/1000 -> 2.104607 | AP152: =(All!AC144+All!AC145)/1000 -> 2.103972 | AQ152: =(All!AD144+All!AD145)/1000 -> 2.102728 | AR152: =(All!AE144+All!AE145)/1000 -> 2.101528 | AS152: =(All!AF144+All!AF145)/1000 -> 2.099045 | AT152: =(All!AG144+All!AG145)/1000 -> 2.121112 | AU152: =(All!AH144+All!AH145)/1000 -> 2.141378
P177: ="Occupational employment, "&CHAR(13)&P178 -> Occupational employment, Rest of manufacturing
P178: =names!A8 -> Rest of manufacturing | Q178: =Q143 -> 1992 | R178: 1993 | S178: 1994 | T178: 1995 | U178: 1996 | V178: 1997 | W178: 1998 | X178: 1999 | Y178: 2000 | Z178: 2001 | AA178: 2002 | AB178: 2003 | AC178: 2004 | AD178: 2005 | AE178: 2006 | AF178: 2007 | AG178: 2008 | AH178: 2009 | AI178: 2010 | AJ178: 2011 | AK178: 2012 | AL178: 2013 | AM178: 2014 | AN178: 2015 | AO178: 2016 | AP178: 2017 | AQ178: 2018 | AR178: 2019 | AS178: 2020 | AT178: 2021 | AU178: 2022
P179: =P144 -> Managers, directors and senior officials | Q179: =(All!D149+All!D150)/1000 -> 13.050038 | R179: =(All!E149+All!E150)/1000 -> 12.428927 | S179: =(All!F149+All!F150)/1000 -> 12.431312 | T179: =(All!G149+All!G150)/1000 -> 13.080931 | U179: =(All!H149+All!H150)/1000 -> 13.445955 | V179: =(All!I149+All!I150)/1000 -> 13.490738 | W179: =(All!J149+All!J150)/1000 -> 13.715163 | X179: =(All!K149+All!K150)/1000 -> 13.620729 | Y179: =(All!L149+All!L150)/1000 -> 13.433899 | Z179: =(All!M149+All!M150)/1000 -> 12.603825 | AA179: =(All!N149+All!N150)/1000 -> 13.044954 | AB179: =(All!O149+All!O150)/1000 -> 12.172442 | AC179: =(All!P149+All!P150)/1000 -> 12.078444 | AD179: =(All!Q149+All!Q150)/1000 -> 11.343482 | AE179: =(All!R149+All!R150)/1000 -> 12.106739 | AF179: =(All!S149+All!S150)/1000 -> 11.885324 | AG179: =(All!T149+All!T150)/1000 -> 11.3992 | AH179: =(All!U149+All!U150)/1000 -> 11.692078 | AI179: =(All!V149+All!V150)/1000 -> 9.523656 | AJ179: =(All!W149+All!W150)/1000 -> 9.972342 | AK179: =(All!X149+All!X150)/1000 -> 11.357663 | AL179: =(All!Y149+All!Y150)/1000 -> 11.349146 | AM179: =(All!Z149+All!Z150)/1000 -> 11.469021 | AN179: =(All!AA149+All!AA150)/1000 -> 11.578669 | AO179: =(All!AB149+All!AB150)/1000 -> 11.652461 | AP179: =(All!AC149+All!AC150)/1000 -> 11.709557 | AQ179: =(All!AD149+All!AD150)/1000 -> 11.748931 | AR179: =(All!AE149+All!AE150)/1000 -> 11.763813 | AS179: =(All!AF149+All!AF150)/1000 -> 11.774778 | AT179: =(All!AG149+All!AG150)/1000 -> 11.802136 | AU179: =(All!AH149+All!AH150)/1000 -> 11.833013
P180: Professional occupations | Q180: =(All!D151+All!D152+All!D153+All!D154)/1000 -> 17.169739 | R180: =(All!E151+All!E152+All!E153+All!E154)/1000 -> 16.178793 | S180: =(All!F151+All!F152+All!F153+All!F154)/1000 -> 16.310894 | T180: =(All!G151+All!G152+All!G153+All!G154)/1000 -> 17.368675 | U180: =(All!H151+All!H152+All!H153+All!H154)/1000 -> 18.690245 | V180: =(All!I151+All!I152+All!I153+All!I154)/1000 -> 19.08864 | W180: =(All!J151+All!J152+All!J153+All!J154)/1000 -> 19.400308 | X180: =(All!K151+All!K152+All!K153+All!K154)/1000 -> 18.881385 | Y180: =(All!L151+All!L152+All!L153+All!L154)/1000 -> 18.047847 | Z180: =(All!M151+All!M152+All!M153+All!M154)/1000 -> 17.836844 | AA180: =(All!N151+All!N152+All!N153+All!N154)/1000 -> 17.439352 | AB180: =(All!O151+All!O152+All!O153+All!O154)/1000 -> 16.62129 | AC180: =(All!P151+All!P152+All!P153+All!P154)/1000 -> 17.077134 | AD180: =(All!Q151+All!Q152+All!Q153+All!Q154)/1000 -> 16.535161 | AE180: =(All!R151+All!R152+All!R153+All!R154)/1000 -> 18.106381 | AF180: =(All!S151+All!S152+All!S153+All!S154)/1000 -> 18.238914 | AG180: =(All!T151+All!T152+All!T153+All!T154)/1000 -> 17.882735 | AH180: =(All!U151+All!U152+All!U153+All!U154)/1000 -> 17.345845 | AI180: =(All!V151+All!V152+All!V153+All!V154)/1000 -> 16.49945 | AJ180: =(All!W151+All!W152+All!W153+All!W154)/1000 -> 17.121574 | AK180: =(All!X151+All!X152+All!X153+All!X154)/1000 -> 19.015502 | AL180: =(All!Y151+All!Y152+All!Y153+All!Y154)/1000 -> 19.671844 | AM180: =(All!Z151+All!Z152+All!Z153+All!Z154)/1000 -> 20.021972 | AN180: =(All!AA151+All!AA152+All!AA153+All!AA154)/1000 -> 20.497894 | AO180: =(All!AB151+All!AB152+All!AB153+All!AB154)/1000 -> 20.657178 | AP180: =(All!AC151+All!AC152+All!AC153+All!AC154)/1000 -> 20.732898 | AQ180: =(All!AD151+All!AD152+All!AD153+All!AD154)/1000 -> 20.819878 | AR180: =(All!AE151+All!AE152+All!AE153+All!AE154)/1000 -> 20.834338 | AS180: =(All!AF151+All!AF152+All!AF153+All!AF154)/1000 -> 20.84364 | AT180: =(All!AG151+All!AG152+All!AG153+All!AG154)/1000 -> 20.939915 | AU180: =(All!AH151+All!AH152+All!AH153+All!AH154)/1000 -> 21.034965
P181: Associate professional and technical | Q181: =(All!D155+All!D156+All!D157+All!D158+All!D159)/1000 -> 20.74807 | R181: =(All!E155+All!E156+All!E157+All!E158+All!E159)/1000 -> 19.882003 | S181: =(All!F155+All!F156+All!F157+All!F158+All!F159)/1000 -> 19.976458 | T181: =(All!G155+All!G156+All!G157+All!G158+All!G159)/1000 -> 21.015876 | U181: =(All!H155+All!H156+All!H157+All!H158+All!H159)/1000 -> 21.992481 | V181: =(All!I155+All!I156+All!I157+All!I158+All!I159)/1000 -> 22.589264 | W181: =(All!J155+All!J156+All!J157+All!J158+All!J159)/1000 -> 22.641621 | X181: =(All!K155+All!K156+All!K157+All!K158+All!K159)/1000 -> 21.532272 | Y181: =(All!L155+All!L156+All!L157+All!L158+All!L159)/1000 -> 20.823217 | Z181: =(All!M155+All!M156+All!M157+All!M158+All!M159)/1000 -> 19.754132 | AA181: =(All!N155+All!N156+All!N157+All!N158+All!N159)/1000 -> 19.4058 | AB181: =(All!O155+All!O156+All!O157+All!O158+All!O159)/1000 -> 17.542849 | AC181: =(All!P155+All!P156+All!P157+All!P158+All!P159)/1000 -> 17.609491 | AD181: =(All!Q155+All!Q156+All!Q157+All!Q158+All!Q159)/1000 -> 15.827695 | AE181: =(All!R155+All!R156+All!R157+All!R158+All!R159)/1000 -> 16.616266 | AF181: =(All!S155+All!S156+All!S157+All!S158+All!S159)/1000 -> 16.424908 | AG181: =(All!T155+All!T156+All!T157+All!T158+All!T159)/1000 -> 15.110268 | AH181: =(All!U155+All!U156+All!U157+All!U158+All!U159)/1000 -> 15.227587 | AI181: =(All!V155+All!V156+All!V157+All!V158+All!V159)/1000 -> 12.904115 | AJ181: =(All!W155+All!W156+All!W157+All!W158+All!W159)/1000 -> 13.404794 | AK181: =(All!X155+All!X156+All!X157+All!X158+All!X159)/1000 -> 14.935265 | AL181: =(All!Y155+All!Y156+All!Y157+All!Y158+All!Y159)/1000 -> 15.040217 | AM181: =(All!Z155+All!Z156+All!Z157+All!Z158+All!Z159)/1000 -> 15.131132 | AN181: =(All!AA155+All!AA156+All!AA157+All!AA158+All!AA159)/1000 -> 15.21838 | AO181: =(All!AB155+All!AB156+All!AB157+All!AB158+All!AB159)/1000 -> 15.27393 | AP181: =(All!AC155+All!AC156+All!AC157+All!AC158+All!AC159)/1000 -> 15.291967 | AQ181: =(All!AD155+All!AD156+All!AD157+All!AD158+All!AD159)/1000 -> 15.296128 | AR181: =(All!AE155+All!AE156+All!AE157+All!AE158+All!AE159)/1000 -> 15.251711 | AS181: =(All!AF155+All!AF156+All!AF157+All!AF158+All!AF159)/1000 -> 15.204307 | AT181: =(All!AG155+All!AG156+All!AG157+All!AG158+All!AG159)/1000 -> 15.224139 | AU181: =(All!AH155+All!AH156+All!AH157+All!AH158+All!AH159)/1000 -> 15.25208
P182: Administrative and secretarial | Q182: =(All!D160+All!D161)/1000 -> 17.500948 | R182: =(All!E160+All!E161)/1000 -> 16.945931 | S182: =(All!F160+All!F161)/1000 -> 16.618648 | T182: =(All!G160+All!G161)/1000 -> 16.359241 | U182: =(All!H160+All!H161)/1000 -> 17.125093 | V182: =(All!I160+All!I161)/1000 -> 17.367341 | W182: =(All!J160+All!J161)/1000 -> 16.692795 | X182: =(All!K160+All!K161)/1000 -> 16.206324 | Y182: =(All!L160+All!L161)/1000 -> 15.12539 | Z182: =(All!M160+All!M161)/1000 -> 13.537615 | AA182: =(All!N160+All!N161)/1000 -> 13.314845 | AB182: =(All!O160+All!O161)/1000 -> 13.178775 | AC182: =(All!P160+All!P161)/1000 -> 11.792054 | AD182: =(All!Q160+All!Q161)/1000 -> 10.825401 | AE182: =(All!R160+All!R161)/1000 -> 10.582304 | AF182: =(All!S160+All!S161)/1000 -> 10.644393 | AG182: =(All!T160+All!T161)/1000 -> 9.317293 | AH182: =(All!U160+All!U161)/1000 -> 9.362896 | AI182: =(All!V160+All!V161)/1000 -> 8.309419 | AJ182: =(All!W160+All!W161)/1000 -> 8.022967 | AK182: =(All!X160+All!X161)/1000 -> 8.626214 | AL182: =(All!Y160+All!Y161)/1000 -> 8.467898 | AM182: =(All!Z160+All!Z161)/1000 -> 8.334288 | AN182: =(All!AA160+All!AA161)/1000 -> 8.202058 | AO182: =(All!AB160+All!AB161)/1000 -> 8.069226 | AP182: =(All!AC160+All!AC161)/1000 -> 7.940619 | AQ182: =(All!AD160+All!AD161)/1000 -> 7.789853 | AR182: =(All!AE160+All!AE161)/1000 -> 7.635122 | AS182: =(All!AF160+All!AF161)/1000 -> 7.477929 | AT182: =(All!AG160+All!AG161)/1000 -> 7.367952 | AU182: =(All!AH160+All!AH161)/1000 -> 7.263415
P183: Skilled trades occupations | Q183: =(All!D162+All!D163+All!D164+All!D165)/1000 -> 69.259193 | R183: =(All!E162+All!E163+All!E164+All!E165)/1000 -> 63.793453 | S183: =(All!F162+All!F163+All!F164+All!F165)/1000 -> 61.003085 | T183: =(All!G162+All!G163+All!G164+All!G165)/1000 -> 60.570733 | U183: =(All!H162+All!H163+All!H164+All!H165)/1000 -> 60.562465 | V183: =(All!I162+All!I163+All!I164+All!I165)/1000 -> 59.37328 | W183: =(All!J162+All!J163+All!J164+All!J165)/1000 -> 57.086628 | X183: =(All!K162+All!K163+All!K164+All!K165)/1000 -> 53.48004 | Y183: =(All!L162+All!L163+All!L164+All!L165)/1000 -> 49.519643 | Z183: =(All!M162+All!M163+All!M164+All!M165)/1000 -> 46.958604 | AA183: =(All!N162+All!N163+All!N164+All!N165)/1000 -> 44.569198 | AB183: =(All!O162+All!O163+All!O164+All!O165)/1000 -> 43.204446 | AC183: =(All!P162+All!P163+All!P164+All!P165)/1000 -> 41.81555 | AD183: =(All!Q162+All!Q163+All!Q164+All!Q165)/1000 -> 37.487621 | AE183: =(All!R162+All!R163+All!R164+All!R165)/1000 -> 37.32576 | AF183: =(All!S162+All!S163+All!S164+All!S165)/1000 -> 37.834759 | AG183: =(All!T162+All!T163+All!T164+All!T165)/1000 -> 36.053349 | AH183: =(All!U162+All!U163+All!U164+All!U165)/1000 -> 36.463308 | AI183: =(All!V162+All!V163+All!V164+All!V165)/1000 -> 29.865187 | AJ183: =(All!W162+All!W163+All!W164+All!W165)/1000 -> 31.225925 | AK183: =(All!X162+All!X163+All!X164+All!X165)/1000 -> 33.88938 | AL183: =(All!Y162+All!Y163+All!Y164+All!Y165)/1000 -> 32.989165 | AM183: =(All!Z162+All!Z163+All!Z164+All!Z165)/1000 -> 32.266591 | AN183: =(All!AA162+All!AA163+All!AA164+All!AA165)/1000 -> 31.255575 | AO183: =(All!AB162+All!AB163+All!AB164+All!AB165)/1000 -> 30.527717 | AP183: =(All!AC162+All!AC163+All!AC164+All!AC165)/1000 -> 29.840731 | AQ183: =(All!AD162+All!AD163+All!AD164+All!AD165)/1000 -> 29.105595 | AR183: =(All!AE162+All!AE163+All!AE164+All!AE165)/1000 -> 28.448463 | AS183: =(All!AF162+All!AF163+All!AF164+All!AF165)/1000 -> 27.743728 | AT183: =(All!AG162+All!AG163+All!AG164+All!AG165)/1000 -> 26.857375 | AU183: =(All!AH162+All!AH163+All!AH164+All!AH165)/1000 -> 26.008265
P184: Caring, leisure and other service | Q184: =(All!D166+All!D167)/1000 -> 1.684783 | R184: =(All!E166+All!E167)/1000 -> 1.692457 | S184: =(All!F166+All!F167)/1000 -> 1.629508 | T184: =(All!G166+All!G167)/1000 -> 1.628809 | U184: =(All!H166+All!H167)/1000 -> 1.71037 | V184: =(All!I166+All!I167)/1000 -> 1.783351 | W184: =(All!J166+All!J167)/1000 -> 1.754574 | X184: =(All!K166+All!K167)/1000 -> 1.671453 | Y184: =(All!L166+All!L167)/1000 -> 1.434143 | Z184: =(All!M166+All!M167)/1000 -> 1.443479 | AA184: =(All!N166+All!N167)/1000 -> 1.449949 | AB184: =(All!O166+All!O167)/1000 -> 1.370657 | AC184: =(All!P166+All!P167)/1000 -> 1.335856 | AD184: =(All!Q166+All!Q167)/1000 -> 1.212457 | AE184: =(All!R166+All!R167)/1000 -> 1.219086 | AF184: =(All!S166+All!S167)/1000 -> 1.348865 | AG184: =(All!T166+All!T167)/1000 -> 1.251165 | AH184: =(All!U166+All!U167)/1000 -> 1.213283 | AI184: =(All!V166+All!V167)/1000 -> 1.028415 | AJ184: =(All!W166+All!W167)/1000 -> 1.038541 | AK184: =(All!X166+All!X167)/1000 -> 1.297278 | AL184: =(All!Y166+All!Y167)/1000 -> 1.37269 | AM184: =(All!Z166+All!Z167)/1000 -> 1.429998 | AN184: =(All!AA166+All!AA167)/1000 -> 1.563659 | AO184: =(All!AB166+All!AB167)/1000 -> 1.578197 | AP184: =(All!AC166+All!AC167)/1000 -> 1.59268 | AQ184: =(All!AD166+All!AD167)/1000 -> 1.624768 | AR184: =(All!AE166+All!AE167)/1000 -> 1.627356 | AS184: =(All!AF166+All!AF167)/1000 -> 1.624949 | AT184: =(All!AG166+All!AG167)/1000 -> 1.661746 | AU184: =(All!AH166+All!AH167)/1000 -> 1.69838
P185: Sales and customer service | Q185: =(All!D168+All!D169)/1000 -> 4.406404 | R185: =(All!E168+All!E169)/1000 -> 4.367088 | S185: =(All!F168+All!F169)/1000 -> 4.340611 | T185: =(All!G168+All!G169)/1000 -> 4.362508 | U185: =(All!H168+All!H169)/1000 -> 4.740305 | V185: =(All!I168+All!I169)/1000 -> 4.830205 | W185: =(All!J168+All!J169)/1000 -> 4.788759 | X185: =(All!K168+All!K169)/1000 -> 4.582071 | Y185: =(All!L168+All!L169)/1000 -> 4.337463 | Z185: =(All!M168+All!M169)/1000 -> 3.974421 | AA185: =(All!N168+All!N169)/1000 -> 3.922392 | AB185: =(All!O168+All!O169)/1000 -> 3.719686 | AC185: =(All!P168+All!P169)/1000 -> 3.426394 | AD185: =(All!Q168+All!Q169)/1000 -> 3.279108 | AE185: =(All!R168+All!R169)/1000 -> 3.070634 | AF185: =(All!S168+All!S169)/1000 -> 3.213153 | AG185: =(All!T168+All!T169)/1000 -> 3.166239 | AH185: =(All!U168+All!U169)/1000 -> 2.709712 | AI185: =(All!V168+All!V169)/1000 -> 2.949909 | AJ185: =(All!W168+All!W169)/1000 -> 2.917657 | AK185: =(All!X168+All!X169)/1000 -> 3.251061 | AL185: =(All!Y168+All!Y169)/1000 -> 3.159395 | AM185: =(All!Z168+All!Z169)/1000 -> 3.137497 | AN185: =(All!AA168+All!AA169)/1000 -> 3.123711 | AO185: =(All!AB168+All!AB169)/1000 -> 3.121131 | AP185: =(All!AC168+All!AC169)/1000 -> 3.104643 | AQ185: =(All!AD168+All!AD169)/1000 -> 3.085358 | AR185: =(All!AE168+All!AE169)/1000 -> 3.064661 | AS185: =(All!AF168+All!AF169)/1000 -> 3.048466 | AT185: =(All!AG168+All!AG169)/1000 -> 3.037021 | AU185: =(All!AH168+All!AH169)/1000 -> 3.025112
P186: Process, plant and machine operatives | Q186: =(All!D170+All!D171)/1000 -> 61.972278 | R186: =(All!E170+All!E171)/1000 -> 59.215575 | S186: =(All!F170+All!F171)/1000 -> 56.268951 | T186: =(All!G170+All!G171)/1000 -> 55.498475 | U186: =(All!H170+All!H171)/1000 -> 55.643176 | V186: =(All!I170+All!I171)/1000 -> 55.213963 | W186: =(All!J170+All!J171)/1000 -> 50.683435 | X186: =(All!K170+All!K171)/1000 -> 45.267761 | Y186: =(All!L170+All!L171)/1000 -> 40.718577 | Z186: =(All!M170+All!M171)/1000 -> 37.758153 | AA186: =(All!N170+All!N171)/1000 -> 34.392449 | AB186: =(All!O170+All!O171)/1000 -> 31.127986 | AC186: =(All!P170+All!P171)/1000 -> 29.239538 | AD186: =(All!Q170+All!Q171)/1000 -> 27.967105 | AE186: =(All!R170+All!R171)/1000 -> 25.869124 | AF186: =(All!S170+All!S171)/1000 -> 25.717198 | AG186: =(All!T170+All!T171)/1000 -> 22.785989 | AH186: =(All!U170+All!U171)/1000 -> 22.090609 | AI186: =(All!V170+All!V171)/1000 -> 19.026472 | AJ186: =(All!W170+All!W171)/1000 -> 19.398325 | AK186: =(All!X170+All!X171)/1000 -> 20.093388 | AL186: =(All!Y170+All!Y171)/1000 -> 19.033087 | AM186: =(All!Z170+All!Z171)/1000 -> 18.384459 | AN186: =(All!AA170+All!AA171)/1000 -> 17.389236 | AO186: =(All!AB170+All!AB171)/1000 -> 16.85237 | AP186: =(All!AC170+All!AC171)/1000 -> 16.275279 | AQ186: =(All!AD170+All!AD171)/1000 -> 15.653926 | AR186: =(All!AE170+All!AE171)/1000 -> 15.057201 | AS186: =(All!AF170+All!AF171)/1000 -> 14.469042 | AT186: =(All!AG170+All!AG171)/1000 -> 13.794859 | AU186: =(All!AH170+All!AH171)/1000 -> 13.186934
P187: Elementary occupations | Q187: =(All!D172+All!D173)/1000 -> 21.218549 | R187: =(All!E172+All!E173)/1000 -> 20.430771 | S187: =(All!F172+All!F173)/1000 -> 19.561533 | T187: =(All!G172+All!G173)/1000 -> 19.195749 | U187: =(All!H172+All!H173)/1000 -> 19.39591 | V187: =(All!I172+All!I173)/1000 -> 19.250218 | W187: =(All!J172+All!J173)/1000 -> 18.514716 | X187: =(All!K172+All!K173)/1000 -> 17.215967 | Y187: =(All!L172+All!L173)/1000 -> 16.29182 | Z187: =(All!M172+All!M173)/1000 -> 15.063927 | AA187: =(All!N172+All!N173)/1000 -> 15.297062 | AB187: =(All!O172+All!O173)/1000 -> 13.064871 | AC187: =(All!P172+All!P173)/1000 -> 13.46954 | AD187: =(All!Q172+All!Q173)/1000 -> 12.83197 | AE187: =(All!R172+All!R173)/1000 -> 12.526704 | AF187: =(All!S172+All!S173)/1000 -> 11.901484 | AG187: =(All!T172+All!T173)/1000 -> 11.291761 | AH187: =(All!U172+All!U173)/1000 -> 11.279684 | AI187: =(All!V172+All!V173)/1000 -> 10.088377 | AJ187: =(All!W172+All!W173)/1000 -> 10.330874 | AK187: =(All!X172+All!X173)/1000 -> 11.389248 | AL187: =(All!Y172+All!Y173)/1000 -> 10.922555 | AM187: =(All!Z172+All!Z173)/1000 -> 10.74704 | AN187: =(All!AA172+All!AA173)/1000 -> 10.533817 | AO187: =(All!AB172+All!AB173)/1000 -> 10.358791 | AP187: =(All!AC172+All!AC173)/1000 -> 10.157629 | AQ187: =(All!AD172+All!AD173)/1000 -> 9.925562 | AR187: =(All!AE172+All!AE173)/1000 -> 9.713335 | AS187: =(All!AF172+All!AF173)/1000 -> 9.501161 | AT187: =(All!AG172+All!AG173)/1000 -> 9.378856 | AU187: =(All!AH172+All!AH173)/1000 -> 9.265834
P212: ="Occupational employment, "&CHAR(13)&P213 -> Occupational employment, Electricity and gas
P213: =names!A9 -> Electricity and gas | Q213: =Q178 -> 1992 | R213: 1993 | S213: 1994 | T213: 1995 | U213: 1996 | V213: 1997 | W213: 1998 | X213: 1999 | Y213: 2000 | Z213: 2001 | AA213: 2002 | AB213: 2003 | AC213: 2004 | AD213: 2005 | AE213: 2006 | AF213: 2007 | AG213: 2008 | AH213: 2009 | AI213: 2010 | AJ213: 2011 | AK213: 2012 | AL213: 2013 | AM213: 2014 | AN213: 2015 | AO213: 2016 | AP213: 2017 | AQ213: 2018 | AR213: 2019 | AS213: 2020 | AT213: 2021 | AU213: 2022
P214: =P179 -> Managers, directors and senior officials | Q214: =(All!D177+All!D178)/1000 -> 0.984679 | R214: =(All!E177+All!E178)/1000 -> 0.921425 | S214: =(All!F177+All!F178)/1000 -> 0.869553 | T214: =(All!G177+All!G178)/1000 -> 0.843176 | U214: =(All!H177+All!H178)/1000 -> 0.978537 | V214: =(All!I177+All!I178)/1000 -> 0.91208 | W214: =(All!J177+All!J178)/1000 -> 0.795324 | X214: =(All!K177+All!K178)/1000 -> 0.711897 | Y214: =(All!L177+All!L178)/1000 -> 0.907192 | Z214: =(All!M177+All!M178)/1000 -> 0.75962 | AA214: =(All!N177+All!N178)/1000 -> 0.850519 | AB214: =(All!O177+All!O178)/1000 -> 0.785163 | AC214: =(All!P177+All!P178)/1000 -> 0.642111 | AD214: =(All!Q177+All!Q178)/1000 -> 0.806444 | AE214: =(All!R177+All!R178)/1000 -> 0.676657 | AF214: =(All!S177+All!S178)/1000 -> 1.068482 | AG214: =(All!T177+All!T178)/1000 -> 1.057522 | AH214: =(All!U177+All!U178)/1000 -> 1.422007 | AI214: =(All!V177+All!V178)/1000 -> 1.697933 | AJ214: =(All!W177+All!W178)/1000 -> 1.609262 | AK214: =(All!X177+All!X178)/1000 -> 1.567831 | AL214: =(All!Y177+All!Y178)/1000 -> 1.621794 | AM214: =(All!Z177+All!Z178)/1000 -> 1.673624 | AN214: =(All!AA177+All!AA178)/1000 -> 1.725099 | AO214: =(All!AB177+All!AB178)/1000 -> 1.785671 | AP214: =(All!AC177+All!AC178)/1000 -> 1.830057 | AQ214: =(All!AD177+All!AD178)/1000 -> 1.869583 | AR214: =(All!AE177+All!AE178)/1000 -> 1.904453 | AS214: =(All!AF177+All!AF178)/1000 -> 1.940366 | AT214: =(All!AG177+All!AG178)/1000 -> 1.963099 | AU214: =(All!AH177+All!AH178)/1000 -> 1.985192
P215: Professional occupations | Q215: =(All!D179+All!D180+All!D181+All!D182)/1000 -> 2.54908 | R215: =(All!E179+All!E180+All!E181+All!E182)/1000 -> 2.455336 | S215: =(All!F179+All!F180+All!F181+All!F182)/1000 -> 2.39527 | T215: =(All!G179+All!G180+All!G181+All!G182)/1000 -> 2.390738 | U215: =(All!H179+All!H180+All!H181+All!H182)/1000 -> 2.865503 | V215: =(All!I179+All!I180+All!I181+All!I182)/1000 -> 2.690771 | W215: =(All!J179+All!J180+All!J181+All!J182)/1000 -> 2.347569 | X215: =(All!K179+All!K180+All!K181+All!K182)/1000 -> 2.115315 | Y215: =(All!L179+All!L180+All!L181+All!L182)/1000 -> 2.508416 | Z215: =(All!M179+All!M180+All!M181+All!M182)/1000 -> 2.130171 | AA215: =(All!N179+All!N180+All!N181+All!N182)/1000 -> 2.420102 | AB215: =(All!O179+All!O180+All!O181+All!O182)/1000 -> 1.886245 | AC215: =(All!P179+All!P180+All!P181+All!P182)/1000 -> 1.885456 | AD215: =(All!Q179+All!Q180+All!Q181+All!Q182)/1000 -> 1.916403 | AE215: =(All!R179+All!R180+All!R181+All!R182)/1000 -> 1.86982 | AF215: =(All!S179+All!S180+All!S181+All!S182)/1000 -> 2.998348 | AG215: =(All!T179+All!T180+All!T181+All!T182)/1000 -> 2.535864 | AH215: =(All!U179+All!U180+All!U181+All!U182)/1000 -> 4.111188 | AI215: =(All!V179+All!V180+All!V181+All!V182)/1000 -> 4.694631 | AJ215: =(All!W179+All!W180+All!W181+All!W182)/1000 -> 4.73677 | AK215: =(All!X179+All!X180+All!X181+All!X182)/1000 -> 4.471643 | AL215: =(All!Y179+All!Y180+All!Y181+All!Y182)/1000 -> 4.746559 | AM215: =(All!Z179+All!Z180+All!Z181+All!Z182)/1000 -> 4.956499 | AN215: =(All!AA179+All!AA180+All!AA181+All!AA182)/1000 -> 5.179559 | AO215: =(All!AB179+All!AB180+All!AB181+All!AB182)/1000 -> 5.36544 | AP215: =(All!AC179+All!AC180+All!AC181+All!AC182)/1000 -> 5.505912 | AQ215: =(All!AD179+All!AD180+All!AD181+All!AD182)/1000 -> 5.623696 | AR215: =(All!AE179+All!AE180+All!AE181+All!AE182)/1000 -> 5.719518 | AS215: =(All!AF179+All!AF180+All!AF181+All!AF182)/1000 -> 5.822954 | AT215: =(All!AG179+All!AG180+All!AG181+All!AG182)/1000 -> 5.92015 | AU215: =(All!AH179+All!AH180+All!AH181+All!AH182)/1000 -> 6.018915
P216: Associate professional and technical | Q216: =(All!D183+All!D184+All!D185+All!D186+All!D187)/1000 -> 1.985938 | R216: =(All!E183+All!E184+All!E185+All!E186+All!E187)/1000 -> 1.860339 | S216: =(All!F183+All!F184+All!F185+All!F186+All!F187)/1000 -> 1.723753 | T216: =(All!G183+All!G184+All!G185+All!G186+All!G187)/1000 -> 1.662502 | U216: =(All!H183+All!H184+All!H185+All!H186+All!H187)/1000 -> 1.875938 | V216: =(All!I183+All!I184+All!I185+All!I186+All!I187)/1000 -> 1.757317 | W216: =(All!J183+All!J184+All!J185+All!J186+All!J187)/1000 -> 1.548788 | X216: =(All!K183+All!K184+All!K185+All!K186+All!K187)/1000 -> 1.370147 | Y216: =(All!L183+All!L184+All!L185+All!L186+All!L187)/1000 -> 1.665335 | Z216: =(All!M183+All!M184+All!M185+All!M186+All!M187)/1000 -> 1.566015 | AA216: =(All!N183+All!N184+All!N185+All!N186+All!N187)/1000 -> 1.526744 | AB216: =(All!O183+All!O184+All!O185+All!O186+All!O187)/1000 -> 1.133026 | AC216: =(All!P183+All!P184+All!P185+All!P186+All!P187)/1000 -> 1.212589 | AD216: =(All!Q183+All!Q184+All!Q185+All!Q186+All!Q187)/1000 -> 1.189849 | AE216: =(All!R183+All!R184+All!R185+All!R186+All!R187)/1000 -> 1.057701 | AF216: =(All!S183+All!S184+All!S185+All!S186+All!S187)/1000 -> 1.36522 | AG216: =(All!T183+All!T184+All!T185+All!T186+All!T187)/1000 -> 1.4509 | AH216: =(All!U183+All!U184+All!U185+All!U186+All!U187)/1000 -> 1.937919 | AI216: =(All!V183+All!V184+All!V185+All!V186+All!V187)/1000 -> 2.447184 | AJ216: =(All!W183+All!W184+All!W185+All!W186+All!W187)/1000 -> 2.344015 | AK216: =(All!X183+All!X184+All!X185+All!X186+All!X187)/1000 -> 2.241352 | AL216: =(All!Y183+All!Y184+All!Y185+All!Y186+All!Y187)/1000 -> 2.314801 | AM216: =(All!Z183+All!Z184+All!Z185+All!Z186+All!Z187)/1000 -> 2.363944 | AN216: =(All!AA183+All!AA184+All!AA185+All!AA186+All!AA187)/1000 -> 2.419286 | AO216: =(All!AB183+All!AB184+All!AB185+All!AB186+All!AB187)/1000 -> 2.48729 | AP216: =(All!AC183+All!AC184+All!AC185+All!AC186+All!AC187)/1000 -> 2.530915 | AQ216: =(All!AD183+All!AD184+All!AD185+All!AD186+All!AD187)/1000 -> 2.564303 | AR216: =(All!AE183+All!AE184+All!AE185+All!AE186+All!AE187)/1000 -> 2.588537 | AS216: =(All!AF183+All!AF184+All!AF185+All!AF186+All!AF187)/1000 -> 2.614843 | AT216: =(All!AG183+All!AG184+All!AG185+All!AG186+All!AG187)/1000 -> 2.627661 | AU216: =(All!AH183+All!AH184+All!AH185+All!AH186+All!AH187)/1000 -> 2.640606
P217: Administrative and secretarial | Q217: =(All!D188+All!D189)/1000 -> 2.29717 | R217: =(All!E188+All!E189)/1000 -> 2.231381 | S217: =(All!F188+All!F189)/1000 -> 2.016162 | T217: =(All!G188+All!G189)/1000 -> 1.928116 | U217: =(All!H188+All!H189)/1000 -> 1.958699 | V217: =(All!I188+All!I189)/1000 -> 1.877235 | W217: =(All!J188+All!J189)/1000 -> 1.807383 | X217: =(All!K188+All!K189)/1000 -> 1.592742 | Y217: =(All!L188+All!L189)/1000 -> 1.858358 | Z217: =(All!M188+All!M189)/1000 -> 2.601228 | AA217: =(All!N188+All!N189)/1000 -> 2.505084 | AB217: =(All!O188+All!O189)/1000 -> 1.569499 | AC217: =(All!P188+All!P189)/1000 -> 2.104719 | AD217: =(All!Q188+All!Q189)/1000 -> 1.692883 | AE217: =(All!R188+All!R189)/1000 -> 1.701868 | AF217: =(All!S188+All!S189)/1000 -> 1.942241 | AG217: =(All!T188+All!T189)/1000 -> 1.977331 | AH217: =(All!U188+All!U189)/1000 -> 1.876731 | AI217: =(All!V188+All!V189)/1000 -> 3.404222 | AJ217: =(All!W188+All!W189)/1000 -> 2.995904 | AK217: =(All!X188+All!X189)/1000 -> 3.021403 | AL217: =(All!Y188+All!Y189)/1000 -> 3.070837 | AM217: =(All!Z188+All!Z189)/1000 -> 3.093046 | AN217: =(All!AA188+All!AA189)/1000 -> 3.115619 | AO217: =(All!AB188+All!AB189)/1000 -> 3.097477 | AP217: =(All!AC188+All!AC189)/1000 -> 3.052167 | AQ217: =(All!AD188+All!AD189)/1000 -> 2.995469 | AR217: =(All!AE188+All!AE189)/1000 -> 2.930507 | AS217: =(All!AF188+All!AF189)/1000 -> 2.86653 | AT217: =(All!AG188+All!AG189)/1000 -> 2.822043 | AU217: =(All!AH188+All!AH189)/1000 -> 2.779097
P218: Skilled trades occupations | Q218: =(All!D190+All!D191+All!D192+All!D193)/1000 -> 4.979701 | R218: =(All!E190+All!E191+All!E192+All!E193)/1000 -> 4.481024 | S218: =(All!F190+All!F191+All!F192+All!F193)/1000 -> 4.093343 | T218: =(All!G190+All!G191+All!G192+All!G193)/1000 -> 3.795371 | U218: =(All!H190+All!H191+All!H192+All!H193)/1000 -> 4.389507 | V218: =(All!I190+All!I191+All!I192+All!I193)/1000 -> 3.97315 | W218: =(All!J190+All!J191+All!J192+All!J193)/1000 -> 3.300818 | X218: =(All!K190+All!K191+All!K192+All!K193)/1000 -> 3.002248 | Y218: =(All!L190+All!L191+All!L192+All!L193)/1000 -> 2.866544 | Z218: =(All!M190+All!M191+All!M192+All!M193)/1000 -> 2.646137 | AA218: =(All!N190+All!N191+All!N192+All!N193)/1000 -> 2.818656 | AB218: =(All!O190+All!O191+All!O192+All!O193)/1000 -> 2.095313 | AC218: =(All!P190+All!P191+All!P192+All!P193)/1000 -> 2.053956 | AD218: =(All!Q190+All!Q191+All!Q192+All!Q193)/1000 -> 1.712572 | AE218: =(All!R190+All!R191+All!R192+All!R193)/1000 -> 1.816808 | AF218: =(All!S190+All!S191+All!S192+All!S193)/1000 -> 2.598278 | AG218: =(All!T190+All!T191+All!T192+All!T193)/1000 -> 2.369037 | AH218: =(All!U190+All!U191+All!U192+All!U193)/1000 -> 3.787967 | AI218: =(All!V190+All!V191+All!V192+All!V193)/1000 -> 4.127463 | AJ218: =(All!W190+All!W191+All!W192+All!W193)/1000 -> 4.318042 | AK218: =(All!X190+All!X191+All!X192+All!X193)/1000 -> 3.73374 | AL218: =(All!Y190+All!Y191+All!Y192+All!Y193)/1000 -> 3.771637 | AM218: =(All!Z190+All!Z191+All!Z192+All!Z193)/1000 -> 3.810302 | AN218: =(All!AA190+All!AA191+All!AA192+All!AA193)/1000 -> 3.819559 | AO218: =(All!AB190+All!AB191+All!AB192+All!AB193)/1000 -> 3.874765 | AP218: =(All!AC190+All!AC191+All!AC192+All!AC193)/1000 -> 3.891838 | AQ218: =(All!AD190+All!AD191+All!AD192+All!AD193)/1000 -> 3.905835 | AR218: =(All!AE190+All!AE191+All!AE192+All!AE193)/1000 -> 3.930447 | AS218: =(All!AF190+All!AF191+All!AF192+All!AF193)/1000 -> 3.955249 | AT218: =(All!AG190+All!AG191+All!AG192+All!AG193)/1000 -> 3.895196 | AU218: =(All!AH190+All!AH191+All!AH192+All!AH193)/1000 -> 3.833734
P219: Caring, leisure and other service | Q219: =(All!D194+All!D195)/1000 -> 0.277533 | R219: =(All!E194+All!E195)/1000 -> 0.275886 | S219: =(All!F194+All!F195)/1000 -> 0.240063 | T219: =(All!G194+All!G195)/1000 -> 0.22963 | U219: =(All!H194+All!H195)/1000 -> 0.235735 | V219: =(All!I194+All!I195)/1000 -> 0.234441 | W219: =(All!J194+All!J195)/1000 -> 0.251838 | X219: =(All!K194+All!K195)/1000 -> 0.235283 | Y219: =(All!L194+All!L195)/1000 -> 0.331041 | Z219: =(All!M194+All!M195)/1000 -> 0.372938 | AA219: =(All!N194+All!N195)/1000 -> 0.529169 | AB219: =(All!O194+All!O195)/1000 -> 0.202132 | AC219: =(All!P194+All!P195)/1000 -> 0.318428 | AD219: =(All!Q194+All!Q195)/1000 -> 0.266043 | AE219: =(All!R194+All!R195)/1000 -> 0.237086 | AF219: =(All!S194+All!S195)/1000 -> 0.308066 | AG219: =(All!T194+All!T195)/1000 -> 0.308827 | AH219: =(All!U194+All!U195)/1000 -> 0.355797 | AI219: =(All!V194+All!V195)/1000 -> 0.531908 | AJ219: =(All!W194+All!W195)/1000 -> 0.580516 | AK219: =(All!X194+All!X195)/1000 -> 0.558466 | AL219: =(All!Y194+All!Y195)/1000 -> 0.580309 | AM219: =(All!Z194+All!Z195)/1000 -> 0.593903 | AN219: =(All!AA194+All!AA195)/1000 -> 0.607372 | AO219: =(All!AB194+All!AB195)/1000 -> 0.618749 | AP219: =(All!AC194+All!AC195)/1000 -> 0.622103 | AQ219: =(All!AD194+All!AD195)/1000 -> 0.626258 | AR219: =(All!AE194+All!AE195)/1000 -> 0.625996 | AS219: =(All!AF194+All!AF195)/1000 -> 0.623153 | AT219: =(All!AG194+All!AG195)/1000 -> 0.618374 | AU219: =(All!AH194+All!AH195)/1000 -> 0.613515
P220: Sales and customer service | Q220: =(All!D196+All!D197)/1000 -> 2.154607 | R220: =(All!E196+All!E197)/1000 -> 2.092685 | S220: =(All!F196+All!F197)/1000 -> 1.911216 | T220: =(All!G196+All!G197)/1000 -> 1.835751 | U220: =(All!H196+All!H197)/1000 -> 2.042049 | V220: =(All!I196+All!I197)/1000 -> 2.01379 | W220: =(All!J196+All!J197)/1000 -> 1.943116 | X220: =(All!K196+All!K197)/1000 -> 1.787224 | Y220: =(All!L196+All!L197)/1000 -> 1.924997 | Z220: =(All!M196+All!M197)/1000 -> 2.682926 | AA220: =(All!N196+All!N197)/1000 -> 2.618995 | AB220: =(All!O196+All!O197)/1000 -> 1.580916 | AC220: =(All!P196+All!P197)/1000 -> 2.056521 | AD220: =(All!Q196+All!Q197)/1000 -> 1.805438 | AE220: =(All!R196+All!R197)/1000 -> 1.751087 | AF220: =(All!S196+All!S197)/1000 -> 2.04191 | AG220: =(All!T196+All!T197)/1000 -> 2.081448 | AH220: =(All!U196+All!U197)/1000 -> 2.173596 | AI220: =(All!V196+All!V197)/1000 -> 3.622477 | AJ220: =(All!W196+All!W197)/1000 -> 3.524209 | AK220: =(All!X196+All!X197)/1000 -> 3.248719 | AL220: =(All!Y196+All!Y197)/1000 -> 3.334239 | AM220: =(All!Z196+All!Z197)/1000 -> 3.407437 | AN220: =(All!AA196+All!AA197)/1000 -> 3.483403 | AO220: =(All!AB196+All!AB197)/1000 -> 3.562763 | AP220: =(All!AC196+All!AC197)/1000 -> 3.608736 | AQ220: =(All!AD196+All!AD197)/1000 -> 3.6355 | AR220: =(All!AE196+All!AE197)/1000 -> 3.655244 | AS220: =(All!AF196+All!AF197)/1000 -> 3.67317 | AT220: =(All!AG196+All!AG197)/1000 -> 3.691636 | AU220: =(All!AH196+All!AH197)/1000 -> 3.708545
P221: Process, plant and machine operatives | Q221: =(All!D198+All!D199)/1000 -> 1.152444 | R221: =(All!E198+All!E199)/1000 -> 1.103817 | S221: =(All!F198+All!F199)/1000 -> 1.066337 | T221: =(All!G198+All!G199)/1000 -> 1.039919 | U221: =(All!H198+All!H199)/1000 -> 1.237699 | V221: =(All!I198+All!I199)/1000 -> 1.140765 | W221: =(All!J198+All!J199)/1000 -> 0.949415 | X221: =(All!K198+All!K199)/1000 -> 0.850798 | Y221: =(All!L198+All!L199)/1000 -> 0.834003 | Z221: =(All!M198+All!M199)/1000 -> 0.737259 | AA221: =(All!N198+All!N199)/1000 -> 0.771487 | AB221: =(All!O198+All!O199)/1000 -> 0.611345 | AC221: =(All!P198+All!P199)/1000 -> 0.34725 | AD221: =(All!Q198+All!Q199)/1000 -> 0.445953 | AE221: =(All!R198+All!R199)/1000 -> 0.539479 | AF221: =(All!S198+All!S199)/1000 -> 0.528281 | AG221: =(All!T198+All!T199)/1000 -> 0.443083 | AH221: =(All!U198+All!U199)/1000 -> 0.923754 | AI221: =(All!V198+All!V199)/1000 -> 1.214667 | AJ221: =(All!W198+All!W199)/1000 -> 1.310115 | AK221: =(All!X198+All!X199)/1000 -> 1.159446 | AL221: =(All!Y198+All!Y199)/1000 -> 1.182611 | AM221: =(All!Z198+All!Z199)/1000 -> 1.203427 | AN221: =(All!AA198+All!AA199)/1000 -> 1.217827 | AO221: =(All!AB198+All!AB199)/1000 -> 1.227076 | AP221: =(All!AC198+All!AC199)/1000 -> 1.225118 | AQ221: =(All!AD198+All!AD199)/1000 -> 1.219874 | AR221: =(All!AE198+All!AE199)/1000 -> 1.212778 | AS221: =(All!AF198+All!AF199)/1000 -> 1.205555 | AT221: =(All!AG198+All!AG199)/1000 -> 1.190688 | AU221: =(All!AH198+All!AH199)/1000 -> 1.175112
P222: Elementary occupations | Q222: =(All!D200+All!D201)/1000 -> 0.483848 | R222: =(All!E200+All!E201)/1000 -> 0.457109 | S222: =(All!F200+All!F201)/1000 -> 0.445302 | T222: =(All!G200+All!G201)/1000 -> 0.413795 | U222: =(All!H200+All!H201)/1000 -> 0.469332 | V222: =(All!I200+All!I201)/1000 -> 0.43645 | W222: =(All!J200+All!J201)/1000 -> 0.384749 | X222: =(All!K200+All!K201)/1000 -> 0.337344 | Y222: =(All!L200+All!L201)/1000 -> 0.380114 | Z222: =(All!M200+All!M201)/1000 -> 0.442704 | AA222: =(All!N200+All!N201)/1000 -> 0.422244 | AB222: =(All!O200+All!O201)/1000 -> 0.293362 | AC222: =(All!P200+All!P201)/1000 -> 0.331969 | AD222: =(All!Q200+All!Q201)/1000 -> 0.254413 | AE222: =(All!R200+All!R201)/1000 -> 0.217496 | AF222: =(All!S200+All!S201)/1000 -> 0.304172 | AG222: =(All!T200+All!T201)/1000 -> 0.382988 | AH222: =(All!U200+All!U201)/1000 -> 0.41904 | AI222: =(All!V200+All!V201)/1000 -> 0.490512 | AJ222: =(All!W200+All!W201)/1000 -> 0.499167 | AK222: =(All!X200+All!X201)/1000 -> 0.428399 | AL222: =(All!Y200+All!Y201)/1000 -> 0.422213 | AM222: =(All!Z200+All!Z201)/1000 -> 0.424821 | AN222: =(All!AA200+All!AA201)/1000 -> 0.426277 | AO222: =(All!AB200+All!AB201)/1000 -> 0.431767 | AP222: =(All!AC200+All!AC201)/1000 -> 0.432153 | AQ222: =(All!AD200+All!AD201)/1000 -> 0.430481 | AR222: =(All!AE200+All!AE201)/1000 -> 0.428521 | AS222: =(All!AF200+All!AF201)/1000 -> 0.426179 | AT222: =(All!AG200+All!AG201)/1000 -> 0.425152 | AU222: =(All!AH200+All!AH201)/1000 -> 0.424285
P247: ="Occupational employment, "&CHAR(13)&P248 -> Occupational employment, Water and sewerage
P248: =names!A10 -> Water and sewerage | Q248: =Q213 -> 1992 | R248: 1993 | S248: 1994 | T248: 1995 | U248: 1996 | V248: 1997 | W248: 1998 | X248: 1999 | Y248: 2000 | Z248: 2001 | AA248: 2002 | AB248: 2003 | AC248: 2004 | AD248: 2005 | AE248: 2006 | AF248: 2007 | AG248: 2008 | AH248: 2009 | AI248: 2010 | AJ248: 2011 | AK248: 2012 | AL248: 2013 | AM248: 2014 | AN248: 2015 | AO248: 2016 | AP248: 2017 | AQ248: 2018 | AR248: 2019 | AS248: 2020 | AT248: 2021 | AU248: 2022
P249: =P214 -> Managers, directors and senior officials | Q249: =(All!D205+All!D206)/1000 -> 0.597083 | R249: =(All!E205+All!E206)/1000 -> 0.64045 | S249: =(All!F205+All!F206)/1000 -> 0.641138 | T249: =(All!G205+All!G206)/1000 -> 0.634057 | U249: =(All!H205+All!H206)/1000 -> 0.899914 | V249: =(All!I205+All!I206)/1000 -> 0.793958 | W249: =(All!J205+All!J206)/1000 -> 0.979619 | X249: =(All!K205+All!K206)/1000 -> 0.994777 | Y249: =(All!L205+All!L206)/1000 -> 1.01897 | Z249: =(All!M205+All!M206)/1000 -> 1.107772 | AA249: =(All!N205+All!N206)/1000 -> 0.993328 | AB249: =(All!O205+All!O206)/1000 -> 0.975426 | AC249: =(All!P205+All!P206)/1000 -> 0.963351 | AD249: =(All!Q205+All!Q206)/1000 -> 0.964623 | AE249: =(All!R205+All!R206)/1000 -> 0.826792 | AF249: =(All!S205+All!S206)/1000 -> 1.069849 | AG249: =(All!T205+All!T206)/1000 -> 1.176784 | AH249: =(All!U205+All!U206)/1000 -> 1.198386 | AI249: =(All!V205+All!V206)/1000 -> 0.978084 | AJ249: =(All!W205+All!W206)/1000 -> 1.172943 | AK249: =(All!X205+All!X206)/1000 -> 1.324041 | AL249: =(All!Y205+All!Y206)/1000 -> 1.375942 | AM249: =(All!Z205+All!Z206)/1000 -> 1.408721 | AN249: =(All!AA205+All!AA206)/1000 -> 1.443561 | AO249: =(All!AB205+All!AB206)/1000 -> 1.473916 | AP249: =(All!AC205+All!AC206)/1000 -> 1.512538 | AQ249: =(All!AD205+All!AD206)/1000 -> 1.551234 | AR249: =(All!AE205+All!AE206)/1000 -> 1.591429 | AS249: =(All!AF205+All!AF206)/1000 -> 1.626875 | AT249: =(All!AG205+All!AG206)/1000 -> 1.668811 | AU249: =(All!AH205+All!AH206)/1000 -> 1.709367
P250: Professional occupations | Q250: =(All!D207+All!D208+All!D209+All!D210)/1000 -> 1.14181 | R250: =(All!E207+All!E208+All!E209+All!E210)/1000 -> 1.209319 | S250: =(All!F207+All!F208+All!F209+All!F210)/1000 -> 1.215498 | T250: =(All!G207+All!G208+All!G209+All!G210)/1000 -> 1.2049 | U250: =(All!H207+All!H208+All!H209+All!H210)/1000 -> 1.618895 | V250: =(All!I207+All!I208+All!I209+All!I210)/1000 -> 1.476974 | W250: =(All!J207+All!J208+All!J209+All!J210)/1000 -> 1.874885 | X250: =(All!K207+All!K208+All!K209+All!K210)/1000 -> 1.846671 | Y250: =(All!L207+All!L208+All!L209+All!L210)/1000 -> 1.82144 | Z250: =(All!M207+All!M208+All!M209+All!M210)/1000 -> 1.96184 | AA250: =(All!N207+All!N208+All!N209+All!N210)/1000 -> 1.533955 | AB250: =(All!O207+All!O208+All!O209+All!O210)/1000 -> 1.664078 | AC250: =(All!P207+All!P208+All!P209+All!P210)/1000 -> 1.402108 | AD250: =(All!Q207+All!Q208+All!Q209+All!Q210)/1000 -> 1.290671 | AE250: =(All!R207+All!R208+All!R209+All!R210)/1000 -> 1.487428 | AF250: =(All!S207+All!S208+All!S209+All!S210)/1000 -> 1.707733 | AG250: =(All!T207+All!T208+All!T209+All!T210)/1000 -> 1.549296 | AH250: =(All!U207+All!U208+All!U209+All!U210)/1000 -> 1.513041 | AI250: =(All!V207+All!V208+All!V209+All!V210)/1000 -> 1.187941 | AJ250: =(All!W207+All!W208+All!W209+All!W210)/1000 -> 1.280319 | AK250: =(All!X207+All!X208+All!X209+All!X210)/1000 -> 1.415376 | AL250: =(All!Y207+All!Y208+All!Y209+All!Y210)/1000 -> 1.483308 | AM250: =(All!Z207+All!Z208+All!Z209+All!Z210)/1000 -> 1.52491 | AN250: =(All!AA207+All!AA208+All!AA209+All!AA210)/1000 -> 1.566782 | AO250: =(All!AB207+All!AB208+All!AB209+All!AB210)/1000 -> 1.600923 | AP250: =(All!AC207+All!AC208+All!AC209+All!AC210)/1000 -> 1.649472 | AQ250: =(All!AD207+All!AD208+All!AD209+All!AD210)/1000 -> 1.703134 | AR250: =(All!AE207+All!AE208+All!AE209+All!AE210)/1000 -> 1.747557 | AS250: =(All!AF207+All!AF208+All!AF209+All!AF210)/1000 -> 1.763763 | AT250: =(All!AG207+All!AG208+All!AG209+All!AG210)/1000 -> 1.811286 | AU250: =(All!AH207+All!AH208+All!AH209+All!AH210)/1000 -> 1.857562
... 102 more rows

Sheet Figure 7.1
AT1: Share of all occupations, 1992-2022 | DA1: Data is written here by the initial setup process (module DataQ) and the appropriate occupation copied to BL116 when an occupation is selected
AT2: Replacement demand, 2012-2022 | AZ2: When an occupation is selected, data for that occupation is written here.
F3: Click on an occupation from the list and the charts will be customised for that occupation | AT3: Qualification shares, 2012 | BB3: Chart data | CJ3: Employment by broad ind sector for current occupation | DA3: Emp x qualification for occupation 1 for every industry
AT4: Employment by gender and status, 2012 | BB4: Shares of total employment for selected occupation for every sector | CJ4: (obviously not reproduced for every industry - that wouldn't make sense) | DA4: 2012 | DB4: =LEFT(names!$D$4,4) -> QCF8 | DC4: =LEFT(names!$D$5,4) -> QCF7 | DD4: =LEFT(names!$D$6,4) -> QCF6 | DE4: =LEFT(names!$D$7,4) -> QCF5 | DF4: =LEFT(names!$D$8,4) -> QCF4 | DG4: =LEFT(names!$D$9,4) -> QCF3 | DH4: =LEFT(names!$D$10,4) -> QCF2 | DI4: =LEFT(names!$D$11,4) -> QCF1 | DJ4: =LEFT(names!$D$12,7) -> No Qual
BB5: 1992 | BC5: 1993 | BD5: 1994 | BE5: 1995 | BF5: 1996 | BG5: 1997 | BH5: 1998 | BI5: 1999 | BJ5: 2000 | BK5: 2001 | BL5: 2002 | BM5: 2003 | BN5: 2004 | BO5: 2005 | BP5: 2006 | BQ5: 2007 | BR5: 2008 | BS5: 2009 | BT5: 2010 | BU5: 2011 | BV5: 2012 | BW5: 2013 | BX5: 2014 | BY5: 2015 | BZ5: 2016 | CA5: 2017 | CB5: 2018 | CC5: 2019 | CD5: 2020 | CE5: 2021 | CF5: 2022 | CJ5: Industries, 2012 | DA5: =names!$A$3 -> All industries | DB5: 1863.36175 | DC5: 15922.82749 | DD5: 51410.00577 | DE5: 12421.82313 | DF5: 15324.92942 | DG5: 26920.83181 | DH5: 17783.72669 | DI5: 9491.584665 | DJ5: 2917.835042
AZ6: =names!$A$3 -> All industries | BA6: Males | BB6: 84.27267278 | BC6: 83.27631437 | BD6: 82.5208928 | BE6: 81.81896784 | BF6: 80.90853509 | BG6: 80.23076975 | BH6: 79.07731738 | BI6: 77.70311945 | BJ6: 77.18254596 | BK6: 76.18663601 | BL6: 76.63299537 | BM6: 75.02362312 | BN6: 74.77948804 | BO6: 74.52266445 | BP6: 73.3937129 | BQ6: 73.77156532 | BR6: 73.72346837 | BS6: 72.78808978 | BT6: 72.21064693 | BU6: 71.65367894 | BV6: 71.22149938 | BW6: 70.77060136 | BX6: 70.34721754 | BY6: 69.96360933 | BZ6: 69.57048746 | CA6: 69.16559163 | CB6: 68.74996954 | CC6: 68.33231022 | CD6: 67.92836756 | CE6: 68.33231022 | CF6: 67.92836756 | CJ6: Primary sector & utilities | CK6: 12042.821 | DA6: =names!$A$4 -> Agriculture | DB6: 12.48223132 | DC6: 43.61089555 | DD6: 190.9303482 | DE6: 5.754573103 | DF6: 97.57651994 | DG6: 101.2619479 | DH6: 68.88398386 | DI6: 35.69565503 | DJ6: 3.724925332
BA7: Females | BB7: 15.72732722 | BC7: 16.72368563 | BD7: 17.47910727 | BE7: 18.18103223 | BF7: 19.09146498 | BG7: 19.76923032 | BH7: 20.92268262 | BI7: 22.29688055 | BJ7: 22.81745411 | BK7: 23.81336405 | BL7: 23.36700463 | BM7: 24.97637693 | BN7: 25.22051201 | BO7: 25.4773356 | BP7: 26.60628715 | BQ7: 26.22843468 | BR7: 26.27653163 | BS7: 27.21191022 | BT7: 27.78935307 | BU7: 28.34632106 | BV7: 28.77850067 | BW7: 29.22939869 | BX7: 29.65278251 | BY7: 30.03639072 | BZ7: 30.42951258 | CA7: 30.83440837 | CB7: 31.25003046 | CC7: 31.66768978 | CD7: 32.07163248 | CE7: 31.66768978 | CF7: 32.07163248 | CJ7: Manufacturing | CK7: 952326.64 | DA7: =names!$A$5 -> Mining and quarrying | DB7: 0 | DC7: 654.5747805 | DD7: 703.528406 | DE7: 266.3598876 | DF7: 194.861369 | DG7: 411.6094685 | DH7: 461.2942631 | DI7: 116.2478626 | DJ7: 29.6654556
AZ8: =names!$A$4 -> Agriculture | BA8: Males | BB8: 85.61114222 | BC8: 84.55401604 | BD8: 85.96880622 | BE8: 87.18635081 | BF8: 87.21338146 | BG8: 86.30131749 | BH8: 81.62303236 | BI8: 84.02085256 | BJ8: 81.73542499 | BK8: 82.52592824 | BL8: 82.20955844 | BM8: 80.18853405 | BN8: 78.1286708 | BO8: 76.23467918 | BP8: 83.40831542 | BQ8: 81.25765251 | BR8: 77.54177634 | BS8: 84.77047932 | BT8: 72.17124636 | BU8: 71.56894572 | BV8: 71.04451266 | BW8: 70.62650821 | BX8: 70.20422903 | BY8: 69.61831158 | BZ8: 69.28525022 | CA8: 68.99074425 | CB8: 68.7183475 | CC8: 68.47553094 | CD8: 68.2347732 | CE8: 68.47553094 | CF8: 68.2347732 | CJ8: Construction | CK8: 36108.381 | DA8: =names!$A$6 -> Food drink and tobacco | DB8: 0 | DC8: 242.1741068 | DD8: 1283.408781 | DE8: 336.7261628 | DF8: 401.8001073 | DG8: 520.8717864 | DH8: 472.1047941 | DI8: 182.8017303 | DJ8: 57.24073287
BA9: Females | BB9: 14.38886746 | BC9: 15.44598396 | BD9: 14.03119378 | BE9: 12.81364919 | BF9: 12.78661854 | BG9: 13.69868251 | BH9: 18.37696764 | BI9: 15.97914744 | BJ9: 18.26458629 | BK9: 17.47408433 | BL9: 17.79044156 | BM9: 19.81146595 | BN9: 21.8713292 | BO9: 23.76532082 | BP9: 16.59168458 | BQ9: 18.74234749 | BR9: 22.45822366 | BS9: 15.22952068 | BT9: 27.82875364 | BU9: 28.43107011 | BV9: 28.95548734 | BW9: 29.37349179 | BX9: 29.79577097 | BY9: 30.38167217 | BZ9: 30.71474978 | CA9: 31.00923964 | CB9: 31.2816525 | CC9: 31.52446906 | CD9: 31.76521079 | CE9: 31.52446906 | CF9: 31.76521079 | CJ9: Trade, accomod. &, transport | CK9: 344012.585 | DA9: =names!$A$7 -> Engineering | DB9: 39.05190016 | DC9: 271.7689051 | DD9: 933.2396643 | DE9: 151.0902032 | DF9: 489.0267433 | DG9: 529.4419558 | DH9: 330.6156022 | DI9: 151.714069 | DJ9: 47.70406808
AZ10: =names!$A$5 -> Mining and quarrying | BA10: Males | BB10: 96.79092883 | BC10: 96.83809813 | BD10: 96.43824093 | BE10: 96.32596982 | BF10: 96.91787979 | BG10: 96.19998857 | BH10: 95.28286088 | BI10: 93.4464746 | BJ10: 93.41584672 | BK10: 92.15990562 | BL10: 91.77735599 | BM10: 93.4501535 | BN10: 92.90638475 | BO10: 91.68486395 | BP10: 91.67965059 | BQ10: 92.65392472 | BR10: 93.58129594 | BS10: 92.52458443 | BT10: 92.88452037 | BU10: 92.74310019 | BV10: 92.55685564 | BW10: 92.3780174 | BX10: 92.122503 | BY10: 91.60122088 | BZ10: 91.46459078 | CA10: 91.31999677 | CB10: 91.18193878 | CC10: 91.0378945 | CD10: 90.89768131 | CE10: 91.0378945 | CF10: 90.89768131 | CJ10: Business & other services | CK10: 666530.986 | DA10: =names!$A$8 -> Rest of manufacturing | DB10: 136.9985403 | DC10: 845.383555 | DD10: 3057.003717 | DE10: 598.4759894 | DF10: 1658.017658 | DG10: 1705.703616 | DH10: 1097.681657 | DI10: 587.4063373 | DJ10: 221.2707363
BA11: Females | BB11: 3.209071169 | BC11: 3.161901865 | BD11: 3.561780006 | BE11: 3.674050291 | BF11: 3.082137905 | BG11: 3.800029758 | BH11: 4.717139116 | BI11: 6.553525404 | BJ11: 6.584170957 | BK11: 7.840094385 | BL11: 8.22264401 | BM11: 6.549868032 | BN11: 7.093615254 | BO11: 8.315136047 | BP11: 8.320331256 | BQ11: 7.34607528 | BR11: 6.418688524 | BS11: 7.475415571 | BT11: 7.115462249 | BU11: 7.256899814 | BV11: 7.44314436 | BW11: 7.6219826 | BX11: 7.877497004 | BY11: 8.398779116 | BZ11: 8.535392161 | CA11: 8.679986078 | CB11: 8.818061217 | CC11: 8.962122863 | CD11: 9.102318695 | CE11: 8.962122863 | CF11: 9.102318695 | CJ11: Non-market services | CK11: 64923.74 | DA11: =names!$A$9 -> Electricity and gas | DB11: 18.69996209 | DC11: 194.0069689 | DD11: 460.0191641 | DE11: 92.55805359 | DF11: 227.8894755 | DG11: 243.5226995 | DH11: 52.8064038 | DI11: 69.43658513 | DJ11: 10.02281607
AZ12: =names!$A$6 -> Food drink and tobacco | BA12: Males | BB12: 81.44024522 | BC12: 81.00520285 | BD12: 80.32148793 | BE12: 80.22632499 | BF12: 80.85113718 | BG12: 78.49492475 | BH12: 79.45767821 | BI12: 81.6604753 | BJ12: 82.01953038 | BK12: 80.78970845 | BL12: 86.44808646 | BM12: 82.86070416 | BN12: 79.92227946 | BO12: 78.36379291 | BP12: 81.48435149 | BQ12: 79.43374771 | BR12: 78.2397898 | BS12: 79.88941141 | BT12: 72.63096885 | BU12: 72.40798333 | BV12: 72.04924893 | BW12: 71.72709569 | BX12: 71.45414834 | BY12: 71.22155248 | BZ12: 70.92862863 | CA12: 70.65794152 | CB12: 70.36222357 | CC12: 70.07876693 | CD12: 69.81780651 | CE12: 70.07876693 | CF12: 69.81780651 | DA12: =names!$A$10 -> Water and sewerage | DB12: 6.039027063 | DC12: 127.090816 | DD12: 348.0078721 | DE12: 11.29811379 | DF12: 90.5837451 | DG12: 0 | DH12: 74.41195426 | DI12: 64.05561932 | DJ12: 47.7547153
BA13: Females | BB13: 18.55975478 | BC13: 18.99479715 | BD13: 19.67851207 | BE13: 19.77367501 | BF13: 19.14886706 | BG13: 21.50507525 | BH13: 20.54232179 | BI13: 18.3395247 | BJ13: 17.98046962 | BK13: 19.21029155 | BL13: 13.55191714 | BM13: 17.13929584 | BN13: 20.07772054 | BO13: 21.63620709 | BP13: 18.51564851 | BQ13: 20.56625229 | BR13: 21.7602102 | BS13: 20.11058859 | BT13: 27.36903115 | BU13: 27.59201667 | BV13: 27.95075107 | BW13: 28.27290431 | BX13: 28.54585166 | BY13: 28.77844752 | BZ13: 29.07136823 | CA13: 29.34205542 | CB13: 29.63777643 | CC13: 29.92123599 | CD13: 30.18219349 | CE13: 29.92123599 | CF13: 30.18219349 | DA13: =names!$A$11 -> Construction | DB13: 45.9794932 | DC13: 1190.972593 | DD13: 3081.739341 | DE13: 930.2871498 | DF13: 2452.877527 | DG13: 3484.490425 | DH13: 1935.49027 | DI13: 882.7275561 | DJ13: 391.7620891
G14: Charts all refer to the selected occupation - current selection is :- | AZ14: =names!$A$7 -> Engineering | BA14: Males | BB14: 93.03444328 | BC14: 92.59839634 | BD14: 92.25295887 | BE14: 92.1958487 | BF14: 91.92671448 | BG14: 91.84531786 | BH14: 90.83199922 | BI14: 90.37378545 | BJ14: 89.98209206 | BK14: 90.06730191 | BL14: 89.45303618 | BM14: 89.9326645 | BN14: 89.5803232 | BO14: 89.48801144 | BP14: 88.94795597 | BQ14: 88.92753822 | BR14: 88.36548075 | BS14: 89.81177489 | BT14: 88.48141235 | BU14: 88.26521917 | BV14: 87.95657072 | BW14: 87.62312951 | BX14: 87.30543105 | BY14: 86.99637602 | BZ14: 86.68451107 | CA14: 86.38421349 | CB14: 86.07179698 | CC14: 85.79621208 | CD14: 85.49518794 | CE14: 85.79621208 | CF14: 85.49518794 | CJ14: Employment change by broad industrial sector | DA14: =names!$A$12 -> Wholesale and retail trade | DB14: 36.98081372 | DC14: 1211.336207 | DD14: 7744.013142 | DE14: 1776.085655 | DF14: 2702.082558 | DG14: 6897.71093 | DH14: 5043.986862 | DI14: 3635.756743 | DJ14: 963.8600604
BA15: Females | BB15: 6.965558507 | BC15: 7.401603664 | BD15: 7.747039315 | BE15: 7.804151297 | BF15: 8.073285521 | BG15: 8.154682138 | BH15: 9.168000783 | BI15: 9.626216079 | BJ15: 10.01790946 | BK15: 9.932698086 | BL15: 10.5469654 | BM15: 10.0673355 | BN15: 10.4196768 | BO15: 10.51198856 | BP15: 11.05204403 | BQ15: 11.07246178 | BR15: 11.63451925 | BS15: 10.18822711 | BT15: 11.51858765 | BU15: 11.73478083 | BV15: 12.04342928 | BW15: 12.37687049 | BX15: 12.69456895 | BY15: 13.0036219 | BZ15: 13.31549102 | CA15: 13.61578651 | CB15: 13.92820302 | CC15: 14.20379005 | CD15: 14.50481206 | CE15: 14.20379005 | CF15: 14.50481206 | CJ15: Industries, 2012 - 2022 | DA15: =names!$A$13 -> Transport and storage | DB15: 45.68078106 | DC15: 502.1146137 | DD15: 2282.137565 | DE15: 260.6431907 | DF15: 518.2029922 | DG15: 1355.464137 | DH15: 1154.84078 | DI15: 630.1276333 | DJ15: 219.4108174
B16: 11 Corporate managers and directors | AZ16: =names!$A$8 -> Rest of manufacturing | BA16: Males | BB16: 91.53733815 | BC16: 90.9302091 | BD16: 90.54853319 | BE16: 90.16451628 | BF16: 90.05279296 | BG16: 89.55343272 | BH16: 88.59963781 | BI16: 88.5789321 | BJ16: 88.62643841 | BK16: 88.0637277 | BL16: 87.97594307 | BM16: 87.18584584 | BN16: 87.0955283 | BO16: 86.48421142 | BP16: 87.30140943 | BQ16: 85.8668539 | BR16: 86.31108827 | BS16: 86.53488746 | BT16: 85.58940465 | BU16: 85.293681 | BV16: 84.97180142 | BW16: 84.6537987 | BX16: 84.36955977 | BY16: 84.0780895 | BZ16: 83.81248282 | CA16: 83.53780033 | CB16: 83.25114801 | CC16: 82.93900422 | CD16: 82.60550272 | CE16: 82.93900422 | CF16: 82.60550272 | CJ16: =CJ11 -> Non-market services | CK16: 18.863837 | DA16: =names!$A$14 -> Accommodation and food | DB16: 3.410305602 | DC16: 319.5642173 | DD16: 1015.900018 | DE16: 126.4114665 | DF16: 315.4010902 | DG16: 556.6576272 | DH16: 546.8596335 | DI16: 232.4064559 | DJ16: 77.33397487
BA17: Females | BB17: 8.462661848 | BC17: 9.069790365 | BD17: 9.451466284 | BE17: 9.835483723 | BF17: 9.94720704 | BG17: 10.44656728 | BH17: 11.40036219 | BI17: 11.4210679 | BJ17: 11.37356159 | BK17: 11.9362723 | BL17: 12.02405693 | BM17: 12.81415416 | BN17: 12.9044717 | BO17: 13.51578858 | BP17: 12.69859057 | BQ17: 14.1331461 | BR17: 13.68891173 | BS17: 13.46511254 | BT17: 14.41059535 | BU17: 14.706319 | BV17: 15.02819858 | BW17: 15.3462013 | BX17: 15.63044023 | BY17: 15.92190993 | BZ17: 16.18751718 | CA17: 16.46220022 | CB17: 16.74885144 | CC17: 17.06099523 | CD17: 17.39449728 | CE17: 17.06099523 | CF17: 17.39449728 | CJ17: =CJ10 -> Business & other services | CK17: 92.314818 | DA17: =names!$A$15 -> Media | DB17: 9.098008134 | DC17: 89.09634856 | DD17: 381.6287895 | DE17: 46.85373489 | DF17: 58.19780625 | DG17: 160.4729227 | DH17: 102.5680259 | DI17: 55.99561829 | DJ17: 13.03708048
J18: All industries | AZ18: =names!$A$9 -> Electricity and gas | BA18: Males | BB18: 89.83818205 | BC18: 88.69100278 | BD18: 88.02774974 | BE18: 88.99138332 | BF18: 88.47047367 | BG18: 87.44862367 | BH18: 85.69090738 | BI18: 83.01710984 | BJ18: 82.16461562 | BK18: 79.0296354 | BL18: 80.39826071 | BM18: 80.87132658 | BN18: 74.5419982 | BO18: 83.21861982 | BP18: 77.01282423 | BQ18: 81.15113278 | BR18: 83.25876861 | BS18: 80.27948975 | BT18: 81.41256338 | BU18: 81.10021631 | BV18: 80.79422994 | BW18: 80.50196302 | BX18: 80.31000672 | BY18: 80.13977732 | BZ18: 79.9636979 | CA18: 79.81177508 | CB18: 79.64770439 | CC18: 79.4991 | CD18: 79.34770452 | CE18: 79.4991 | CF18: 79.34770452 | CJ18: =CJ9 -> Trade, accomod. &, transport | CK18: 45.968075 | DA18: =names!$A$16 -> Information technology | DB18: 44.76913263 | DC18: 767.8299808 | DD18: 3003.343543 | DE18: 431.8294197 | DF18: 780.8105981 | DG18: 877.1919552 | DH18: 652.1717299 | DI18: 285.8555829 | DJ18: 33.1856891
BA19: Females | BB19: 10.16181795 | BC19: 11.30899722 | BD19: 11.97225026 | BE19: 11.00861668 | BF19: 11.52954298 | BG19: 12.55137633 | BH19: 14.30910865 | BI19: 16.98290746 | BJ19: 17.83538438 | BK19: 20.9703646 | BL19: 19.60173929 | BM19: 19.12867342 | BN19: 25.4580018 | BO19: 16.78138018 | BP19: 22.98717577 | BQ19: 18.84886722 | BR19: 16.74121949 | BS19: 19.72051025 | BT19: 18.58743662 | BU19: 18.89978369 | BV19: 19.20577006 | BW19: 19.49803698 | BX19: 19.68998347 | BY19: 19.86022268 | BZ19: 20.0363021 | CA19: 20.18823515 | CB19: 20.35229561 | CC19: 20.5009 | CD19: 20.65229548 | CE19: 20.5009 | CF19: 20.65229548 | CJ19: =CJ8 -> Construction | CK19: 8.671405 | DA19: =names!$A$17 -> Finance and insurance | DB19: 138.6172489 | DC19: 1446.969322 | DD19: 4417.649488 | DE19: 738.9587126 | DF19: 599.1608475 | DG19: 1689.539191 | DH19: 1155.697713 | DI19: 473.4477841 | DJ19: 34.18081204
AZ20: =names!$A$10 -> Water and sewerage | BA20: Males | BB20: 90.02120904 | BC20: 89.63059066 | BD20: 89.03881229 | BE20: 87.75225586 | BF20: 88.19459978 | BG20: 87.50287664 | BH20: 86.41346237 | BI20: 86.21091406 | BJ20: 85.58734004 | BK20: 82.67181598 | BL20: 80.26992581 | BM20: 84.14059739 | BN20: 85.54160763 | BO20: 86.23887766 | BP20: 85.58634201 | BQ20: 88.65072951 | BR20: 88.10970124 | BS20: 84.73762604 | BT20: 84.05467669 | BU20: 83.32633124 | BV20: 82.6787852 | BW20: 82.24368782 | BX20: 81.66516311 | BY20: 81.01391481 | BZ20: 80.11889243 | CA20: 79.05199581 | CB20: 77.80025756 | CC20: 76.48260762 | CD20: 75.64748516 | CE20: 76.48260762 | CF20: 75.64748516 | CJ20: =CJ7 -> Manufacturing | CK20: 165.06681 | DA20: =names!$A$18 -> Real estate | DB20: 5.81742365 | DC20: 253.1494812 | DD20: 769.5588012 | DE20: 134.3860598 | DF20: 410.7840126 | DG20: 572.6661442 | DH20: 194.7961133 | DI20: 170.028092 | DJ20: 40.25062511
BA21: Females | BB21: 9.978807256 | BC21: 10.36940934 | BD21: 10.96118771 | BE21: 12.24772813 | BF21: 11.80540022 | BG21: 12.49712336 | BH21: 13.58653763 | BI21: 13.78908594 | BJ21: 14.41265996 | BK21: 17.32818402 | BL21: 19.73007419 | BM21: 15.85940261 | BN21: 14.45839237 | BO21: 13.76112234 | BP21: 14.41365799 | BQ21: 11.34928201 | BR21: 11.89029876 | BS21: 15.26236521 | BT21: 15.94532331 | BU21: 16.67366876 | BV21: 17.3212148 | BW21: 17.75631218 | BX21: 18.33483689 | BY21: 18.98608519 | BZ21: 19.88110757 | CA21: 20.94801198 | CB21: 22.19974244 | CC21: 23.51739973 | CD21: 24.35251484 | CE21: 23.51739973 | CF21: 24.35251484 | CJ21: =CJ6 -> Primary sector & utilities | CK21: -0.067098 | DA21: =names!$A$19 -> Professional services | DB21: 712.9873824 | DC21: 2434.451781 | DD21: 7726.578612 | DE21: 418.4826131 | DF21: 1544.035462 | DG21: 2093.072911 | DH21: 1260.402839 | DI21: 489.0008426 | DJ21: 175.4044254
AZ22: =names!$A$11 -> Construction | BA22: Males | BB22: 95.14541092 | BC22: 94.48102249 | BD22: 93.77148184 | BE22: 93.80763259 | BF22: 92.7400337 | BG22: 93.75126572 | BH22: 92.28727795 | BI22: 91.9633511 | BJ22: 91.82687739 | BK22: 91.14560937 | BL22: 90.69629405 | BM22: 88.80011611 | BN22: 89.46346888 | BO22: 88.47032985 | BP22: 88.40360788 | BQ22: 88.640802 | BR22: 88.31462157 | BS22: 90.00424871 | BT22: 88.00014336 | BU22: 87.66412408 | BV22: 87.3761805 | BW22: 86.98792684 | BX22: 86.61733909 | BY22: 86.27809285 | BZ22: 86.00690308 | CA22: 85.71607607 | CB22: 85.41028578 | CC22: 85.10658815 | CD22: 84.81679227 | CE22: 85.10658815 | CF22: 84.81679227 | DA22: =names!$A$20 -> Support services | DB22: 42.00056439 | DC22: 950.4819934 | DD22: 3171.813029 | DE22: 360.0295069 | DF22: 1074.758725 | DG22: 1815.817996 | DH22: 1053.732836 | DI22: 724.4480993 | DJ22: 281.8473978
BA23: Females | BB23: 4.854589081 | BC23: 5.518977509 | BD23: 6.228518164 | BE23: 6.192367409 | BF23: 7.259966298 | BG23: 6.248734282 | BH23: 7.712722954 | BI23: 8.036648896 | BJ23: 8.173121766 | BK23: 8.854391459 | BL23: 9.303705951 | BM23: 11.19988389 | BN23: 10.53653112 | BO23: 11.52967088 | BP23: 11.59639212 | BQ23: 11.35919865 | BR23: 11.68537905 | BS23: 9.995751288 | BT23: 11.99985599 | BU23: 12.33587527 | BV23: 12.6238195 | BW23: 13.01207316 | BX23: 13.38266091 | BY23: 13.72190772 | BZ23: 13.99309747 | CA23: 14.2839234 | CB23: 14.58971473 | CC23: 14.89341235 | CD23: 15.18320773 | CE23: 14.89341235 | CF23: 15.18320773 | DA23: =names!$A$21 -> Public admin. and defence | DB23: 89.56974906 | DC23: 1518.585193 | DD23: 2424.52454 | DE23: 994.3595116 | DF23: 503.4349924 | DG23: 985.4089163 | DH23: 612.5760701 | DI23: 206.0597908 | DJ23: 35.35274929
AZ24: =names!$A$12 -> Wholesale and retail trade | BA24: Males | BB24: 85.12815434 | BC24: 84.37396308 | BD24: 83.96308748 | BE24: 83.71383071 | BF24: 82.62610279 | BG24: 81.88839207 | BH24: 79.5438405 | BI24: 76.53678794 | BJ24: 76.50681772 | BK24: 74.8165948 | BL24: 75.86551933 | BM24: 75.64735659 | BN24: 74.47357892 | BO24: 73.96749852 | BP24: 72.63553679 | BQ24: 73.99759622 | BR24: 72.96950913 | BS24: 71.81929625 | BT24: 74.85267537 | BU24: 73.97536676 | BV24: 73.01309667 | BW24: 71.93167553 | BX24: 70.88069332 | BY24: 69.95541902 | BZ24: 69.3668026 | CA24: 68.75516959 | CB24: 68.12344113 | CC24: 67.50467033 | CD24: 66.93866829 | CE24: 67.50467033 | CF24: 66.93866829 | DA24: =names!$A$22 -> Education | DB24: 57.59374534 | DC24: 181.0874252 | DD24: 640.5919396 | DE24: 364.24768 | DF24: 240.958446 | DG24: 475.0633873 | DH24: 224.6733847 | DI24: 104.7798852 | DJ24: 23.1837951
BA25: Females | BB25: 14.87184566 | BC25: 15.62603692 | BD25: 16.03691252 | BE25: 16.28616929 | BF25: 17.37389721 | BG25: 18.11160793 | BH25: 20.45615921 | BI25: 23.46321233 | BJ25: 23.49318228 | BK25: 25.1834052 | BL25: 24.13448091 | BM25: 24.35264341 | BN25: 25.52642108 | BO25: 26.03250148 | BP25: 27.36446321 | BQ25: 26.00240378 | BR25: 27.03049087 | BS25: 28.18070375 | BT25: 25.14732463 | BU25: 26.02463301 | BV25: 26.98690333 | BW25: 28.06832447 | BX25: 29.11930668 | BY25: 30.04458077 | BZ25: 30.6331976 | CA25: 31.24483041 | CB25: 31.87655867 | CC25: 32.49532987 | CD25: 33.06133171 | CE25: 32.49532987 | CF25: 33.06133171 | CJ25: =TableQ!A3 -> QCF group | CK25: Base year level | DA25: =names!$A$23 -> Health and social work | DB25: 331.799845 | DC25: 2193.039061 | DD25: 5981.52023 | DE25: 4070.464617 | DF25: 594.1609362 | DG25: 1596.159915 | DH25: 787.3563294 | DI25: 170.0260522 | DJ25: 149.7209709
AZ26: =names!$A$13 -> Transport and storage | BA26: Males | BB26: 93.62819187 | BC26: 92.77584106 | BD26: 92.44533773 | BE26: 92.13494294 | BF26: 91.14609925 | BG26: 90.4787476 | BH26: 88.49977126 | BI26: 83.2225191 | BJ26: 82.30972644 | BK26: 82.83203316 | BL26: 81.80305084 | BM26: 80.68570618 | BN26: 81.10562194 | BO26: 80.42424226 | BP26: 80.2610255 | BQ26: 80.72687454 | BR26: 82.83786026 | BS26: 81.60465381 | BT26: 81.93445546 | BU26: 81.48947399 | BV26: 80.97248031 | BW26: 80.51394314 | BX26: 80.09352899 | BY26: 79.67831874 | BZ26: 79.11843743 | CA26: 78.57968966 | CB26: 78.02427555 | CC26: 77.42236092 | CD26: 76.83336527 | CE26: 77.42236092 | CF26: 76.83336527 | CK26: 2012 | DA26: =names!$A$24 -> Arts and entertainment | DB26: 31.95169061 | DC26: 270.9192198 | DD26: 1143.329038 | DE26: 130.7190975 | DF26: 204.574645 | DG26: 538.6164409 | DH26: 308.2783835 | DI26: 136.3461469 | DJ26: 56.59774616
BA27: Females | BB27: 6.371808126 | BC27: 7.224158937 | BD27: 7.554662266 | BE27: 7.865057061 | BF27: 8.853900751 | BG27: 9.521250996 | BH27: 11.50022874 | BI27: 16.7774809 | BJ27: 17.69027494 | BK27: 17.16796556 | BL27: 18.19694916 | BM27: 19.31429382 | BN27: 18.89437806 | BO27: 19.57575774 | BP27: 19.73897569 | BQ27: 19.27312546 | BR27: 17.16213974 | BS27: 18.39534619 | BT27: 18.06554454 | BU27: 18.51052601 | BV27: 19.02751969 | BW27: 19.48605574 | BX27: 19.90647101 | BY27: 20.32168126 | BZ27: 20.88156257 | CA27: 21.42031034 | CB27: 21.97572445 | CC27: 22.57763908 | CD27: 23.16663473 | CE27: 22.57763908 | CF27: 23.16663473 | CJ27: =TableQ!A5 -> QCF 7-8 | CK27: 1878259.585 | DA27: =names!$A$25 -> Other services | DB27: 53.83390591 | DC27: 214.6200259 | DD27: 649.5397368 | DE27: 175.8017274 | DF27: 165.7331673 | DG27: 310.0874353 | DH27: 192.4970609 | DI27: 87.22052268 | DJ27: 5.323359194
AZ28: =names!$A$14 -> Accommodation and food | BA28: Males | BB28: 61.30943184 | BC28: 60.7394892 | BD28: 60.51998849 | BE28: 58.32487639 | BF28: 56.48703088 | BG28: 57.74361626 | BH28: 62.08879378 | BI28: 67.01008326 | BJ28: 63.98104105 | BK28: 66.78577148 | BL28: 65.50407821 | BM28: 56.84805679 | BN28: 48.12830323 | BO28: 64.08039627 | BP28: 59.22457618 | BQ28: 63.83424316 | BR28: 59.457427 | BS28: 59.96763818 | BT28: 66.05873089 | BU28: 65.50356792 | BV28: 64.86023286 | BW28: 64.05329958 | BX28: 63.24758008 | BY28: 62.30350397 | BZ28: 61.59525714 | CA28: 60.88631603 | CB28: 60.18426283 | CC28: 59.51141524 | CD28: 58.82155623 | CE28: 59.51141524 | CF28: 58.82155623 | CJ28: =TableQ!A6 -> QCF 4-6 | CK28: 7417568.277
BA29: Females | BB29: 38.69056816 | BC29: 39.2605108 | BD29: 39.48001151 | BE29: 41.67512361 | BF29: 43.51296912 | BG29: 42.2563789 | BH29: 37.91120169 | BI29: 32.98992078 | BJ29: 36.01895895 | BK29: 33.21422852 | BL29: 34.49592179 | BM29: 43.15194321 | BN29: 51.87169677 | BO29: 35.91960373 | BP29: 40.77542382 | BQ29: 36.16575961 | BR29: 40.54257036 | BS29: 40.03236182 | BT29: 33.94126911 | BU29: 34.49643208 | BV29: 35.13976714 | BW29: 35.94670042 | BX29: 36.75241992 | BY29: 37.69649603 | BZ29: 38.40474286 | CA29: 39.11368397 | CB29: 39.81573479 | CC29: 40.48858476 | CD29: 41.17844377 | CE29: 40.48858476 | CF29: 41.17844377 | CJ29: =TableQ!A7 -> QCF 3 | CK29: 5973784.73
AZ30: =names!$A$15 -> Media | BA30: Males | BB30: 69.69627715 | BC30: 69.41954126 | BD30: 69.24036084 | BE30: 68.93989393 | BF30: 66.80933751 | BG30: 66.56042593 | BH30: 66.49447657 | BI30: 71.52604761 | BJ30: 67.90460793 | BK30: 67.10485116 | BL30: 68.58251781 | BM30: 71.62513437 | BN30: 73.88888059 | BO30: 71.66386936 | BP30: 70.81129628 | BQ30: 68.62342656 | BR30: 65.24504186 | BS30: 67.06854185 | BT30: 69.19293516 | BU30: 68.80301642 | BV30: 68.3247965 | BW30: 67.80771941 | BX30: 67.11864617 | BY30: 66.41433657 | BZ30: 65.7079867 | CA30: 65.05892337 | CB30: 64.40704128 | CC30: 63.99229208 | CD30: 63.49981828 | CE30: 63.99229208 | CF30: 63.49981828 | CJ30: =TableQ!A8 -> QCF 2 | CK30: 6685148.396
BA31: Females | BB31: 30.30372285 | BC31: 30.58045874 | BD31: 30.75963916 | BE31: 31.06010607 | BF31: 33.19066249 | BG31: 33.43957407 | BH31: 33.50551815 | BI31: 28.47395239 | BJ31: 32.09539207 | BK31: 32.89515332 | BL31: 31.41748219 | BM31: 28.37486944 | BN31: 26.11111941 | BO31: 28.33613064 | BP31: 29.18870754 | BQ31: 31.37657344 | BR31: 34.75495814 | BS31: 32.9314621 | BT31: 30.80706484 | BU31: 31.19698358 | BV31: 31.6752035 | BW31: 32.19228059 | BX31: 32.88135383 | BY31: 33.58566343 | BZ31: 34.29201655 | CA31: 34.94107663 | CB31: 35.59295872 | CC31: 36.00770792 | CD31: 36.50017876 | CE31: 36.00770792 | CF31: 36.50017876 | CJ31: =TableQ!A9 -> QCF 1 | CK31: 5357778.981
AZ32: =names!$A$16 -> Information technology | BA32: Males | BB32: 91.83645732 | BC32: 91.46869603 | BD32: 90.79533373 | BE32: 90.78950488 | BF32: 90.66449277 | BG32: 90.72231585 | BH32: 86.88684825 | BI32: 80.73923812 | BJ32: 80.62077153 | BK32: 78.08151447 | BL32: 81.81087096 | BM32: 81.67200908 | BN32: 82.09452283 | BO32: 82.78872606 | BP32: 78.37013919 | BQ32: 79.79708761 | BR32: 81.1582737 | BS32: 80.02551311 | BT32: 79.0154872 | BU32: 78.87372382 | BV32: 78.72074097 | BW32: 78.58392638 | BX32: 78.46229401 | BY32: 78.37463039 | BZ32: 78.2581813 | CA32: 78.15055414 | CB32: 78.03254461 | CC32: 77.93456576 | CD32: 77.88344771 | CE32: 77.93456576 | CF32: 77.88344771 | CJ32: =TableQ!A10 -> No Qual | CK32: 3124402.429
BA33: Females | BB33: 8.16354268 | BC33: 8.531303966 | BD33: 9.204668283 | BE33: 9.210493232 | BF33: 9.335507225 | BG33: 9.277685682 | BH33: 13.11315175 | BI33: 19.26076188 | BJ33: 19.37922847 | BK33: 21.91848553 | BL33: 18.18913002 | BM33: 18.32799188 | BN33: 17.90547717 | BO33: 17.21127487 | BP33: 21.62986081 | BQ33: 20.20291239 | BR33: 18.8417263 | BS33: 19.97448689 | BT33: 20.9845128 | BU33: 21.12627709 | BV33: 21.27925993 | BW33: 21.41607273 | BX33: 21.53770599 | BY33: 21.62536961 | BZ33: 21.74181956 | CA33: 21.84944501 | CB33: 21.96745539 | CC33: 22.06543424 | CD33: 22.11655229 | CE33: 22.06543424 | CF33: 22.11655229 | DA33: Emp x qualification for occupation 2 for every industry
AZ34: =names!$A$17 -> Finance and insurance | BA34: Males | BB34: 77.22597262 | BC34: 76.57445287 | BD34: 75.91816029 | BE34: 74.83997295 | BF34: 74.33096099 | BG34: 73.84073012 | BH34: 75.94217184 | BI34: 75.23966454 | BJ34: 74.61874865 | BK34: 72.34223021 | BL34: 73.47651609 | BM34: 72.02926066 | BN34: 69.99885963 | BO34: 71.00973122 | BP34: 72.44748111 | BQ34: 70.57282825 | BR34: 71.01820073 | BS34: 71.36912139 | BT34: 69.33262796 | BU34: 69.01769303 | BV34: 68.64515191 | BW34: 68.2126719 | BX34: 67.82900929 | BY34: 67.44722761 | BZ34: 67.06213604 | CA34: 66.68816074 | CB34: 66.31592833 | CC34: 65.96946381 | CD34: 65.63327467 | CE34: 65.96946381 | CF34: 65.63327467 | DA34: 2012 | DB34: =DB4 -> QCF8 | DC34: =DC4 -> QCF7 | DD34: QCF6 | DE34: QCF5 | DF34: QCF4 | DG34: QCF3 | DH34: QCF2 | DI34: QCF1 | DJ34: No Qual
BA35: Females | BB35: 22.77402738 | BC35: 23.42554713 | BD35: 24.08183971 | BE35: 25.16002705 | BF35: 25.66903809 | BG35: 26.15926899 | BH35: 24.05782816 | BI35: 24.76033546 | BJ35: 25.38125135 | BK35: 27.65776979 | BL35: 26.52348317 | BM35: 27.97073865 | BN35: 30.00114037 | BO35: 28.99026878 | BP35: 27.55251889 | BQ35: 29.42717175 | BR35: 28.98179927 | BS35: 28.63087922 | BT35: 30.66737204 | BU35: 30.98230697 | BV35: 31.35484809 | BW35: 31.78732871 | BX35: 32.17099071 | BY35: 32.55277239 | BZ35: 32.93786396 | CA35: 33.31183926 | CB35: 33.68407167 | CC35: 34.03053563 | CD35: 34.36672588 | CE35: 34.03053563 | CF35: 34.36672588 | DA35: =names!$A$3 -> All industries | DB35: 797.8950214 | DC35: 6020.277961 | DD35: 20609.39356 | DE35: 7691.071879 | DF35: 7441.876156 | DG35: 16333.71999 | DH35: 13132.84461 | DI35: 8292.457977 | DJ35: 3874.056223
AZ36: =names!$A$18 -> Real estate | BA36: Males | BB36: 80.15074333 | BC36: 79.32089843 | BD36: 77.86983265 | BE36: 76.50426795 | BF36: 76.92072307 | BG36: 75.79521732 | BH36: 73.43453418 | BI36: 72.89740613 | BJ36: 72.83941562 | BK36: 71.02487891 | BL36: 74.81835918 | BM36: 72.41349341 | BN36: 71.96925916 | BO36: 72.55425579 | BP36: 72.9318379 | BQ36: 66.98099204 | BR36: 66.07700951 | BS36: 64.24091742 | BT36: 65.44102429 | BU36: 65.11202698 | BV36: 64.96943294 | BW36: 64.76916418 | BX36: 64.23449547 | BY36: 63.77172156 | BZ36: 62.82700003 | CA36: 62.02807266 | CB36: 61.34383137 | CC36: 60.64964908 | CD36: 60.19884508 | CE36: 60.64964908 | CF36: 60.19884508 | DA36: =names!$A$4 -> Agriculture | DB36: 19.50328068 | DC36: 142.0683069 | DD36: 481.9313853 | DE36: 263.0400632 | DF36: 256.2558051 | DG36: 636.209876 | DH36: 456.0669905 | DI36: 227.1841451 | DJ36: 268.5581541
BA37: Females | BB37: 19.84924834 | BC37: 20.67910157 | BD37: 22.13016735 | BE37: 23.49573205 | BF37: 23.07927693 | BG37: 24.20478268 | BH37: 26.5654581 | BI37: 27.10259387 | BJ37: 27.16058438 | BK37: 28.97512109 | BL37: 25.18164082 | BM37: 27.58651271 | BN37: 28.03074084 | BO37: 27.44574421 | BP37: 27.0681621 | BQ37: 33.01901128 | BR37: 33.92299357 | BS37: 35.75908258 | BT37: 34.55897571 | BU37: 34.88797302 | BV37: 35.03056706 | BW37: 35.23083582 | BX37: 35.76550453 | BY37: 36.22827844 | BZ37: 37.17299997 | CA37: 37.97192734 | CB37: 38.65616863 | CC37: 39.35035092 | CD37: 39.80115492 | CE37: 39.35035092 | CF37: 39.80115492 | DA37: =names!$A$5 -> Mining and quarrying | DB37: 0 | DC37: 35.83820369 | DD37: 24.84147241 | DE37: 23.08463108 | DF37: 24.54678153 | DG37: 100.0782094 | DH37: 24.57574606 | DI37: 4.151314906 | DJ37: 53.10177986
AZ38: =names!$A$19 -> Professional services | BA38: Males | BB38: 84.01427112 | BC38: 82.87057906 | BD38: 81.27223368 | BE38: 79.37260644 | BF38: 79.78034272 | BG38: 78.08621329 | BH38: 76.77573863 | BI38: 76.19274584 | BJ38: 74.39393252 | BK38: 75.55505549 | BL38: 76.55965713 | BM38: 73.81627886 | BN38: 74.81511314 | BO38: 72.31986212 | BP38: 71.45650814 | BQ38: 72.13384955 | BR38: 71.72071489 | BS38: 70.41733379 | BT38: 70.17219449 | BU38: 69.94753348 | BV38: 69.61994426 | BW38: 69.30174334 | BX38: 69.06356307 | BY38: 68.8635929 | BZ38: 68.75166191 | CA38: 68.63814379 | CB38: 68.52348011 | CC38: 68.41604681 | CD38: 68.26895158 | CE38: 68.41604681 | CF38: 68.26895158 | DA38: =names!$A$6 -> Food drink and tobacco | DB38: 0 | DC38: 40.87720457 | DD38: 234.6945768 | DE38: 128.39148 | DF38: 62.64645647 | DG38: 74.502103 | DH38: 93.81165413 | DI38: 35.10411179 | DJ38: 40.49888174
BA39: Females | BB39: 15.98572791 | BC39: 17.12942094 | BD39: 18.72776535 | BE39: 20.62739356 | BF39: 20.21965627 | BG39: 21.91378569 | BH39: 23.22426137 | BI39: 23.80725416 | BJ39: 25.60606748 | BK39: 24.44494373 | BL39: 23.44034287 | BM39: 26.18372114 | BN39: 25.18488751 | BO39: 27.68013788 | BP39: 28.54349186 | BQ39: 27.86615045 | BR39: 28.27928511 | BS39: 29.5826667 | BT39: 29.82780551 | BU39: 30.05246652 | BV39: 30.38005618 | BW39: 30.69825666 | BX39: 30.93643693 | BY39: 31.1364071 | BZ39: 31.24833809 | CA39: 31.36185621 | CB39: 31.47651989 | CC39: 31.58395319 | CD39: 31.73104842 | CE39: 31.58395319 | CF39: 31.73104842 | DA39: =names!$A$7 -> Engineering | DB39: 0.6945611384 | DC39: 20.45056485 | DD39: 29.06188659 | DE39: 21.35257682 | DF39: 40.93225219 | DG39: 54.31044963 | DH39: 24.63387214 | DI39: 25.69440082 | DJ39: 8.134642178
AZ40: =names!$A$20 -> Support services | BA40: Males | BB40: 77.57942706 | BC40: 76.64603147 | BD40: 75.36860031 | BE40: 73.10595364 | BF40: 69.75905509 | BG40: 68.89563893 | BH40: 69.60815468 | BI40: 70.73527188 | BJ40: 69.74148882 | BK40: 70.2479296 | BL40: 72.01915787 | BM40: 69.01443485 | BN40: 72.31965122 | BO40: 73.77842527 | BP40: 69.72591708 | BQ40: 73.66144717 | BR40: 76.06971571 | BS40: 72.93055199 | BT40: 69.87860491 | BU40: 69.74561189 | BV40: 69.48875383 | BW40: 69.2041068 | BX40: 68.86155907 | BY40: 68.56423436 | BZ40: 68.15348929 | CA40: 67.75819604 | CB40: 67.32903324 | CC40: 66.95753313 | CD40: 66.56791136 | CE40: 66.95753313 | CF40: 66.56791136 | DA40: =names!$A$8 -> Rest of manufacturing | DB40: 36.80050038 | DC40: 80.30331927 | DD40: 430.0279654 | DE40: 128.4475806 | DF40: 183.7685624 | DG40: 350.4634767 | DH40: 67.53732167 | DI40: 100.848632 | DJ40: 63.00699066
BA41: Females | BB41: 22.42057294 | BC41: 23.35396853 | BD41: 24.63139809 | BE41: 26.89404496 | BF41: 30.24094627 | BG41: 31.10436107 | BH41: 30.39184532 | BI41: 29.26472812 | BJ41: 30.25851118 | BK41: 29.7520704 | BL41: 27.98084286 | BM41: 30.98556515 | BN41: 27.68034878 | BO41: 26.22157473 | BP41: 30.27408222 | BQ41: 26.33855341 | BR41: 23.93028429 | BS41: 27.06944801 | BT41: 30.1213944 | BU41: 30.25438811 | BV41: 30.51124617 | BW41: 30.79589257 | BX41: 31.13844093 | BY41: 31.43576564 | BZ41: 31.84651071 | CA41: 32.24180396 | CB41: 32.67096676 | CC41: 33.04246687 | CD41: 33.43208864 | CE41: 33.04246687 | CF41: 33.43208864 | DA41: =names!$A$9 -> Electricity and gas | DB41: 1.106117656 | DC41: 30.57469338 | DD41: 52.6998889 | DE41: 8.633248291 | DF41: 58.45471688 | DG41: 30.24211323 | DH41: 28.40682063 | DI41: 41.86367417 | DJ41: 0.85107926
AZ42: =names!$A$21 -> Public admin. and defence | BA42: Males | BB42: 85.38471081 | BC42: 83.70029444 | BD42: 82.44761522 | BE42: 81.41635999 | BF42: 78.96513893 | BG42: 77.77612449 | BH42: 76.72519497 | BI42: 75.18196827 | BJ42: 75.19235102 | BK42: 74.42265833 | BL42: 73.57342792 | BM42: 71.45969301 | BN42: 70.49172773 | BO42: 69.45558838 | BP42: 66.01328737 | BQ42: 64.99521146 | BR42: 64.00582106 | BS42: 62.52236052 | BT42: 65.96130773 | BU42: 65.67621317 | BV42: 65.24485282 | BW42: 64.75850523 | BX42: 64.29943305 | BY42: 63.91487226 | BZ42: 63.53694996 | CA42: 63.17660382 | CB42: 62.81366722 | CC42: 62.47505155 | CD42: 62.13996906 | CE42: 62.47505155 | CF42: 62.13996906 | DA42: =names!$A$10 -> Water and sewerage | DB42: 63.82312089 | DC42: 176.5796654 | DD42: 35.34362432 | DE42: 48.8685829 | DF42: 6.414030369 | DG42: 93.05358229 | DH42: 103.4842996 | DI42: 16.7170653 | DJ42: 62.41643437
BA43: Females | BB43: 14.61528919 | BC43: 16.29970556 | BD43: 17.55238478 | BE43: 18.58364001 | BF43: 21.03486263 | BG43: 22.22387551 | BH43: 23.27480503 | BI43: 24.81803173 | BJ43: 24.80764898 | BK43: 25.57734167 | BL43: 26.42657208 | BM43: 28.54030576 | BN43: 29.50827101 | BO43: 30.54441162 | BP43: 33.98671376 | BQ43: 35.0047874 | BR43: 35.99417785 | BS43: 37.47763948 | BT43: 34.03869227 | BU43: 34.3237879 | BV43: 34.75514609 | BW43: 35.24149477 | BX43: 35.70056695 | BY43: 36.08512774 | BZ43: 36.46305004 | CA43: 36.82339618 | CB43: 37.18633278 | CC43: 37.52494845 | CD43: 37.86003094 | CE43: 37.52494845 | CF43: 37.86003094 | DA43: =names!$A$11 -> Construction | DB43: 21.24119273 | DC43: 126.2711632 | DD43: 432.7006915 | DE43: 175.6728594 | DF43: 109.5643721 | DG43: 349.6068752 | DH43: 251.7894982 | DI43: 53.69557301 | DJ43: 121.8362834
AZ44: =names!$A$22 -> Education | BA44: Males | BB44: 73.13859446 | BC44: 71.45577631 | BD44: 69.60420479 | BE44: 68.00046916 | BF44: 65.76467164 | BG44: 64.79180603 | BH44: 60.86688396 | BI44: 66.45625172 | BJ44: 65.8797673 | BK44: 62.71435259 | BL44: 63.49251271 | BM44: 55.830188 | BN44: 52.8028951 | BO44: 57.88224126 | BP44: 52.20261438 | BQ44: 54.34755348 | BR44: 58.24409135 | BS44: 63.13451319 | BT44: 65.39094147 | BU44: 65.2251766 | BV44: 64.90583623 | BW44: 64.6302618 | BX44: 64.4073092 | BY44: 64.32761184 | BZ44: 64.12074291 | CA44: 63.93344806 | CB44: 63.75250832 | CC44: 63.61256691 | CD44: 63.46458682 | CE44: 63.61256691 | CF44: 63.46458682 | DA44: =names!$A$12 -> Wholesale and retail trade | DB44: 91.82709799 | DC44: 578.5539271 | DD44: 2632.101225 | DE44: 644.9930722 | DF44: 1024.311739 | DG44: 2566.639759 | DH44: 2662.539714 | DI44: 1124.974461 | DJ44: 879.7748609
BA45: Females | BB45: 26.8613978 | BC45: 28.5442161 | BD45: 30.39579521 | BE45: 31.99953084 | BF45: 34.23533538 | BG45: 35.20819397 | BH45: 39.13310892 | BI45: 33.54375427 | BJ45: 34.1202327 | BK45: 37.2856528 | BL45: 36.50748729 | BM45: 44.169812 | BN45: 47.1971049 | BO45: 42.11775874 | BP45: 47.79738224 | BQ45: 45.65244652 | BR45: 41.75590556 | BS45: 36.86548681 | BT45: 34.60905853 | BU45: 34.7748234 | BV45: 35.09416377 | BW45: 35.3697382 | BX45: 35.5926908 | BY45: 35.67239078 | BZ45: 35.87925709 | CA45: 36.06655194 | CB45: 36.2474943 | CC45: 36.3874357 | CD45: 36.53541318 | CE45: 36.3874357 | CF45: 36.53541318 | DA45: =names!$A$13 -> Transport and storage | DB45: 10.05334566 | DC45: 73.22981347 | DD45: 203.2316318 | DE45: 96.14240967 | DF45: 143.6980138 | DG45: 710.9116638 | DH45: 313.4124359 | DI45: 180.4245832 | DJ45: 122.3854008
AZ46: =names!$A$23 -> Health and social work | BA46: Males | BB46: 41.01954663 | BC46: 39.98891175 | BD46: 39.97727058 | BE46: 39.63035163 | BF46: 38.98636964 | BG46: 37.91297357 | BH46: 38.8725709 | BI46: 38.71501681 | BJ46: 39.01406794 | BK46: 39.83727256 | BL46: 36.0115279 | BM46: 32.42812052 | BN46: 36.66833897 | BO46: 44.14532846 | BP46: 37.7557763 | BQ46: 38.09931586 | BR46: 39.15029024 | BS46: 34.94747165 | BT46: 36.10764002 | BU46: 36.13481448 | BV46: 36.08268705 | BW46: 36.12736527 | BX46: 36.1875703 | BY46: 36.29686251 | BZ46: 36.20040963 | CA46: 36.20507599 | CB46: 36.22307821 | CC46: 36.28504052 | CD46: 36.37085205 | CE46: 36.28504052 | CF46: 36.37085205 | DA46: =names!$A$14 -> Accommodation and food | DB46: 187.4035454 | DC46: 1135.279362 | DD46: 5838.030724 | DE46: 2445.584906 | DF46: 2344.553666 | DG46: 5210.652099 | DH46: 5204.516773 | DI46: 4170.316961 | DJ46: 1134.810371
BA47: Females | BB47: 58.98045337 | BC47: 60.01108825 | BD47: 60.02272942 | BE47: 60.36964837 | BF47: 61.01363036 | BG47: 62.08702643 | BH47: 61.12743043 | BI47: 61.28498319 | BJ47: 60.98593206 | BK47: 60.16272854 | BL47: 63.9884721 | BM47: 67.57187948 | BN47: 63.33166103 | BO47: 55.85467231 | BP47: 62.2442237 | BQ47: 61.90068414 | BR47: 60.84970976 | BS47: 65.05252835 | BT47: 63.89236066 | BU47: 63.86518552 | BV47: 63.9173123 | BW47: 63.87263473 | BX47: 63.8124297 | BY47: 63.70313749 | BZ47: 63.79959037 | CA47: 63.79492401 | CB47: 63.77692179 | CC47: 63.71495948 | CD47: 63.62914734 | CE47: 63.71495948 | CF47: 63.62914734 | DA47: =names!$A$15 -> Media | DB47: 6.034752167 | DC47: 34.81002726 | DD47: 229.5668611 | DE47: 34.06129538 | DF47: 53.2989008 | DG47: 118.7094733 | DH47: 62.74528399 | DI47: 22.64272615 | DJ47: 23.22270967
AZ48: =names!$A$24 -> Arts and entertainment | BA48: Males | BB48: 71.29933835 | BC48: 70.8651007 | BD48: 70.78864338 | BE48: 69.3076616 | BF48: 67.54869326 | BG48: 67.23242253 | BH48: 68.00839579 | BI48: 70.93051771 | BJ48: 71.43537034 | BK48: 69.45140668 | BL48: 72.5239411 | BM48: 69.43231416 | BN48: 67.18413295 | BO48: 69.97334195 | BP48: 71.51151164 | BQ48: 63.80357911 | BR48: 65.24351989 | BS48: 67.52724493 | BT48: 61.75116199 | BU48: 60.17183652 | BV48: 58.37865587 | BW48: 56.61828251 | BX48: 54.8968346 | BY48: 53.00705697 | BZ48: 51.41724412 | CA48: 49.9585897 | CB48: 48.53851903 | CC48: 47.03165834 | CD48: 45.6292556 | CE48: 47.03165834 | CF48: 45.6292556 | DA48: =names!$A$16 -> Information technology | DB48: 15.49932382 | DC48: 32.68991789 | DD48: 157.3594557 | DE48: 43.95738999 | DF48: 65.41838645 | DG48: 152.8526012 | DH48: 30.25243565 | DI48: 18.30766817 | DJ48: 14.93573612
BA49: Females | BB49: 28.70066165 | BC49: 29.13491065 | BD49: 29.21135662 | BE49: 30.6923384 | BF49: 32.45130674 | BG49: 32.76757747 | BH49: 31.99160421 | BI49: 29.06948229 | BJ49: 28.56462966 | BK49: 30.54859332 | BL49: 27.4760589 | BM49: 30.56769095 | BN49: 32.81587148 | BO49: 30.02665805 | BP49: 28.48848836 | BQ49: 36.19642089 | BR49: 34.75648011 | BS49: 32.47275909 | BT49: 38.24883801 | BU49: 39.82816348 | BV49: 41.62134413 | BW49: 43.38171749 | BX49: 45.1031654 | BY49: 46.99294303 | BZ49: 48.58275588 | CA49: 50.04141294 | CB49: 51.46148353 | CC49: 52.96833918 | CD49: 54.370742 | CE49: 52.96833918 | CF49: 54.370742 | DA49: =names!$A$17 -> Finance and insurance | DB49: 18.10965483 | DC49: 106.2725895 | DD49: 264.8945542 | DE49: 72.47512278 | DF49: 65.28558934 | DG49: 171.9192044 | DH49: 98.00576099 | DI49: 64.97317905 | DJ49: 4.304668513
AZ50: =names!$A$25 -> Other services | BA50: Males | BB50: 71.90101443 | BC50: 71.52022651 | BD50: 71.63195188 | BE50: 71.12899068 | BF50: 70.36518214 | BG50: 69.56332685 | BH50: 70.55176225 | BI50: 73.04434408 | BJ50: 72.96726699 | BK50: 73.43070932 | BL50: 72.8921501 | BM50: 73.82365949 | BN50: 73.03535107 | BO50: 70.48295753 | BP50: 74.71491314 | BQ50: 72.67324452 | BR50: 69.7599308 | BS50: 66.84420488 | BT50: 66.69294324 | BU50: 65.33097684 | BV50: 63.73159775 | BW50: 62.10939238 | BX50: 60.65802263 | BY50: 59.30737422 | BZ50: 58.3682068 | CA50: 57.33993309 | CB50: 56.30095556 | CC50: 55.42095971 | CD50: 54.22685191 | CE50: 55.42095971 | CF50: 54.22685191 | DA50: =names!$A$18 -> Real estate | DB50: 77.4079703 | DC50: 532.4870985 | DD50: 1201.265056 | DE50: 528.0201118 | DF50: 323.298552 | DG50: 830.1158389 | DH50: 347.3295038 | DI50: 298.3738202 | DJ50: 128.3486535
BA51: Females | BB51: 28.09898557 | BC51: 28.47977349 | BD51: 28.36804155 | BE51: 28.87100932 | BF51: 29.63481786 | BG51: 30.43666746 | BH51: 29.44823775 | BI51: 26.95565592 | BJ51: 27.03273301 | BK51: 26.56929068 | BL51: 27.1078499 | BM51: 26.17633704 | BN51: 26.96464893 | BO51: 29.51704247 | BP51: 25.28508686 | BQ51: 27.32675548 | BR51: 30.2400692 | BS51: 33.15579512 | BT51: 33.30705676 | BU51: 34.66902316 | BV51: 36.26840225 | BW51: 37.89061052 | BX51: 39.34197737 | BY51: 40.69262578 | BZ51: 41.63179585 | CA51: 42.66006691 | CB51: 43.69904444 | CC51: 44.57904273 | CD51: 45.77314809 | CE51: 44.57904273 | CF51: 45.77314809 | DA51: =names!$A$19 -> Professional services | DB51: 129.0431457 | DC51: 972.2406228 | DD51: 2558.431126 | DE51: 82.58163513 | DF51: 517.3640361 | DG51: 509.0424028 | DH51: 277.6203764 | DI51: 75.85602038 | DJ51: 63.55690723
DA52: =names!$A$20 -> Support services | DB52: 26.7000787 | DC52: 678.41394 | DD52: 1952.501467 | DE52: 796.1752377 | DF52: 723.1785622 | DG52: 1381.785017 | DH52: 1232.341665 | DI52: 832.5582926 | DJ52: 424.2105753
DA53: =names!$A$21 -> Public admin. and defence | DB53: 23.56456802 | DC53: 234.5487564 | DD53: 518.3534004 | DE53: 212.9570388 | DF53: 151.3759754 | DG53: 337.4348224 | DH53: 64.36155336 | DI53: 18.05151432 | DJ53: 5.768041111
DA54: =names!$A$22 -> Education | DB54: 1.23679019 | DC54: 159.6884153 | DD54: 329.5068265 | DE54: 283.674426 | DF54: 214.5068317 | DG54: 266.7359785 | DH54: 228.0539903 | DI54: 101.1467506 | DJ54: 58.98025383
DA55: =names!$A$23 -> Health and social work | DB55: 18.41238406 | DC55: 296.9633237 | DD55: 1074.949952 | DE55: 872.8688453 | DF55: 281.0688315 | DG55: 814.7938088 | DH55: 122.5944671 | DI55: 147.4560933 | DJ55: 20.76857493
DA56: =names!$A$24 -> Arts and entertainment | DB56: 31.52165788 | DC56: 417.9914302 | DD56: 1404.621979 | DE56: 230.3257524 | DF56: 523.0584626 | DG56: 786.9373433 | DH56: 739.3979684 | DI56: 373.7144858 | DJ56: 346.8427757
DA57: =names!$A$25 -> Other services | DB57: 17.91193318 | DC57: 114.1456162 | DD57: 523.2778132 | DE57: 549.7636136 | DF57: 268.8756315 | DG57: 786.7232942 | DH57: 699.3664782 | DI57: 358.402504 | DJ57: 27.74244924
BB59: Selected occupation as % of all occupations, separately for men and women
BB60: 1992 | BC60: 1993 | BD60: 1994 | BE60: 1995 | BF60: 1996 | BG60: 1997 | BH60: 1998 | BI60: 1999 | BJ60: 2000 | BK60: 2001 | BL60: 2002 | BM60: 2003 | BN60: 2004 | BO60: 2005 | BP60: 2006 | BQ60: 2007 | BR60: 2008 | BS60: 2009 | BT60: 2010 | BU60: 2011 | BV60: 2012 | BW60: 2013 | BX60: 2014 | BY60: 2015 | BZ60: 2016 | CA60: 2017 | CB60: 2018 | CC60: 2019 | CD60: 2020 | CE60: 2021 | CF60: 2022
AZ61: =names!$A$3 -> All industries | BA61: Males | BB61: 7.539115394 | BC61: 7.611604693 | BD61: 7.619693542 | BE61: 7.675710471 | BF61: 7.697782521 | BG61: 7.775482772 | BH61: 7.872591098 | BI61: 7.863378136 | BJ61: 8.074644843 | BK61: 8.168683585 | BL61: 8.572284682 | BM61: 8.479979108 | BN61: 8.61635402 | BO61: 8.786344685 | BP61: 8.581268794 | BQ61: 8.931649487 | BR61: 9.093185181 | BS61: 9.103173604 | BT61: 9.024293131 | BU61: 9.103499532 | BV61: 9.181781155 | BW61: 9.26073374 | BX61: 9.342535195 | BY61: 9.428548668 | BZ61: 9.491583631 | CA61: 9.55231562 | CB61: 9.611524737 | CC61: 9.670236996 | CD61: 9.72816541 | CE61: 9.670236996 | CF61: 9.72816541
BA62: Females | BB62: 1.587500801 | BC62: 1.686287302 | BD62: 1.776967007 | BE62: 1.879646264 | BF62: 1.96245367 | BG62: 2.105153934 | BH62: 2.326579549 | BI62: 2.582752892 | BJ62: 2.683602314 | BK62: 2.889024192 | BL62: 2.928491704 | BM62: 3.202843707 | BN62: 3.281028395 | BO62: 3.360820691 | BP62: 3.500565753 | BQ62: 3.595962363 | BR62: 3.723721095 | BS62: 3.848506868 | BT62: 3.908126251 | BU62: 4.022137177 | BV62: 4.152773528 | BW62: 4.289727583 | BX62: 4.428842193 | BY62: 4.561704031 | BZ62: 4.666900644 | CA62: 4.769108248 | CB62: 4.873825846 | CC62: 4.975978052 | CD62: 5.077307502 | CE62: 4.975978052 | CF62: 5.077307502
AZ63: =names!$A$4 -> Agriculture | BA63: Males | BB63: 2.12960966 | BC63: 2.100837556 | BD63: 2.048645299 | BE63: 2.059760895 | BF63: 1.960706167 | BG63: 1.999973566 | BH63: 2.078123131 | BI63: 2.204872154 | BJ63: 2.33672147 | BK63: 2.358407941 | BL63: 2.423533743 | BM63: 2.309003732 | BN63: 1.804401169 | BO63: 2.407131453 | BP63: 2.950669564 | BQ63: 2.612176674 | BR63: 2.339870144 | BS63: 2.454606563 | BT63: 1.329979963 | BU63: 1.307740896 | BV63: 1.298428493 | BW63: 1.29930901 | BX63: 1.299646537 | BY63: 1.300988037 | BZ63: 1.315380931 | CA63: 1.329383919 | CB63: 1.343735927 | CC63: 1.356542966 | CD63: 1.367023184 | CE63: 1.356542966 | CF63: 1.367023184 | DA63: Emp x qualification for occupation 3 for every industry
BA64: Females | BB64: 1.040402775 | BC64: 1.104565195 | BD64: 1.108402421 | BE64: 1.058292917 | BF64: 1.04334655 | BG64: 1.174448549 | BH64: 1.355799356 | BI64: 1.328739395 | BJ64: 1.606863951 | BK64: 1.447024163 | BL64: 1.616738387 | BM64: 1.762460078 | BN64: 1.710359423 | BO64: 1.945336832 | BP64: 1.732520301 | BQ64: 1.700566481 | BR64: 1.740069328 | BS64: 1.552275585 | BT64: 1.589840177 | BU64: 1.602834019 | BV64: 1.619947521 | BW64: 1.642074873 | BX64: 1.663204799 | BY64: 1.701696766 | BZ64: 1.737589438 | CA64: 1.770704088 | CB64: 1.803153091 | CC64: 1.831595058 | CD64: 1.857196339 | CE64: 1.831595058 | CF64: 1.857196339 | DA64: 2012 | DB64: =DB34 -> QCF8 | DC64: =DC34 -> QCF7 | DD64: QCF6 | DE64: QCF5 | DF64: QCF4 | DG64: QCF3 | DH64: QCF2 | DI64: QCF1 | DJ64: No Qual
AZ65: =names!$A$5 -> Mining and quarrying | BA65: Males | BB65: 4.921638423 | BC65: 5.771828181 | BD65: 6.859216737 | BE65: 7.530636338 | BF65: 7.342637083 | BG65: 7.102619189 | BH65: 7.12005409 | BI65: 7.169140301 | BJ65: 7.773814287 | BK65: 7.428962011 | BL65: 7.757616566 | BM65: 7.979390029 | BN65: 8.38527197 | BO65: 9.075395723 | BP65: 9.388387181 | BQ65: 9.816826808 | BR65: 10.26225618 | BS65: 10.08301307 | BT65: 10.75312374 | BU65: 10.85623659 | BV65: 11.00701308 | BW65: 11.17647144 | BX65: 11.33027767 | BY65: 11.48604002 | BZ65: 11.65009998 | CA65: 11.8046278 | CB65: 11.95986826 | CC65: 12.11219794 | CD65: 12.26735612 | CE65: 12.11219794 | CF65: 12.26735612 | DA65: =names!$A$3 -> All industries | DB65: 5942.907023 | DC65: 23608.89161 | DD65: 60186.88334 | DE65: 7099.126685 | DF65: 17601.58157 | DG65: 17615.54198 | DH65: 10445.15393 | DI65: 4690.849498 | DJ65: 1426.727425
BA66: Females | BB66: 2.306196297 | BC66: 2.5332 | BD66: 2.956142485 | BE66: 3.136824034 | BF66: 3.28504338 | BG66: 3.100792464 | BH66: 3.257071458 | BI66: 3.714753004 | BJ66: 3.795495771 | BK66: 4.083226517 | BL66: 4.24224494 | BM66: 4.471865354 | BN66: 4.339378309 | BO66: 4.727079061 | BP66: 5.148208469 | BQ66: 5.182202813 | BR66: 5.229540564 | BS66: 5.44891375 | BT66: 5.240345711 | BU66: 5.355160321 | BV66: 5.489590702 | BW66: 5.6644171 | BX66: 5.894029089 | BY66: 6.348182402 | BZ66: 6.506373569 | CA66: 6.664949947 | CB66: 6.819164554 | CC66: 6.97472973 | CD66: 7.134436995 | CE66: 6.97472973 | CF66: 7.134436995 | DA66: =names!$A$4 -> Agriculture | DB66: 10.3523756 | DC66: 124.6484316 | DD66: 193.6180886 | DE66: 11.04027418 | DF66: 167.6734088 | DG66: 16.69523356 | DH66: 68.79003972 | DI66: 48.15229709 | DJ66: 38.48667549
AZ67: =names!$A$6 -> Food drink and tobacco | BA67: Males | BB67: 6.773169827 | BC67: 6.841243797 | BD67: 6.86558666 | BE67: 6.922455661 | BF67: 7.207741855 | BG67: 7.117346182 | BH67: 7.327303811 | BI67: 7.294652857 | BJ67: 7.403385109 | BK67: 7.492643981 | BL67: 7.662233713 | BM67: 8.576622376 | BN67: 8.93413307 | BO67: 9.768189866 | BP67: 9.888107784 | BQ67: 9.417654474 | BR67: 9.555030981 | BS67: 11.83740352 | BT67: 7.592038695 | BU67: 7.719152158 | BV67: 7.863845417 | BW67: 8.030848447 | BX67: 8.20012476 | BY67: 8.381274534 | BZ67: 8.535315882 | CA67: 8.690343119 | CB67: 8.842124932 | CC67: 8.993282772 | CD67: 9.146915363 | CE67: 8.993282772 | CF67: 9.146915363 | DA67: =names!$A$5 -> Mining and quarrying | DB67: 220.716949 | DC67: 1194.85887 | DD67: 2477.254277 | DE67: 0 | DF67: 420.2560625 | DG67: 967.5467057 | DH67: 352.6089707 | DI67: 284.4990963 | DJ67: 99.30755376
BA68: Females | BB68: 1.639934616 | BC68: 1.776005562 | BD68: 1.889835184 | BE68: 1.940978132 | BF68: 2.099031378 | BG68: 2.203598112 | BH68: 2.569656052 | BI68: 2.864972426 | BJ68: 2.99434715 | BK68: 3.278340069 | BL68: 2.305844231 | BM68: 3.491558181 | BN68: 4.430328407 | BO68: 5.199133449 | BP68: 4.424174899 | BQ68: 4.912118661 | BR68: 5.211481667 | BS68: 5.414193409 | BT68: 5.102635941 | BU68: 5.296508057 | BV68: 5.547196096 | BW68: 5.813437447 | BX68: 6.076169116 | BY68: 6.344338222 | BZ68: 6.623509398 | CA68: 6.904929004 | CB68: 7.202025046 | CC68: 7.50405525 | CD68: 7.810041573 | CE68: 7.50405525 | CF68: 7.810041573 | DA68: =names!$A$6 -> Food drink and tobacco | DB68: 3.068257138 | DC68: 127.1051055 | DD68: 396.2473409 | DE68: 109.0020597 | DF68: 449.0114504 | DG68: 453.5910778 | DH68: 161.0209409 | DI68: 66.81031458 | DJ68: 18.0044797
AZ69: =names!$A$7 -> Engineering | BA69: Males | BB69: 9.674271159 | BC69: 9.841940171 | BD69: 10.00507334 | BE69: 10.26192233 | BF69: 10.42892459 | BG69: 10.61023497 | BH69: 10.72506112 | BI69: 10.77522024 | BJ69: 11.12545459 | BK69: 11.33316791 | BL69: 11.86257721 | BM69: 12.3089333 | BN69: 11.9564677 | BO69: 12.085033 | BP69: 12.38328255 | BQ69: 12.57013436 | BR69: 13.49292808 | BS69: 13.47973308 | BT69: 14.06110529 | BU69: 14.2896712 | BV69: 14.51690963 | BW69: 14.72797877 | BX69: 14.92558418 | BY69: 15.14935797 | BZ69: 15.33740534 | CA69: 15.5052665 | CB69: 15.6707445 | CC69: 15.83329792 | CD69: 15.99129487 | CE69: 15.83329792 | CF69: 15.99129487 | DA69: =names!$A$7 -> Engineering | DB69: 125.7811361 | DC69: 519.4463903 | DD69: 1954.321661 | DE69: 55.53864146 | DF69: 1108.239887 | DG69: 1057.933138 | DH69: 346.02586 | DI69: 169.6188508 | DJ69: 89.6167764
BA70: Females | BB70: 2.196784935 | BC70: 2.386899282 | BD70: 2.533986932 | BE70: 2.729927714 | BF70: 2.939927856 | BG70: 3.114892488 | BH70: 3.371231797 | BI70: 3.52424302 | BJ70: 3.744957012 | BK70: 3.913283496 | BL70: 4.310040085 | BM70: 4.628061959 | BN70: 4.836769378 | BO70: 5.069543646 | BP70: 5.495362063 | BQ70: 5.492270681 | BR70: 6.14284171 | BS70: 5.815489469 | BT70: 6.352726045 | BU70: 6.538922946 | BV70: 6.768136864 | BW70: 6.999727363 | BX70: 7.235863477 | BY70: 7.474307585 | BZ70: 7.697127245 | CA70: 7.945339769 | CB70: 8.201847783 | CC70: 8.442684596 | CD70: 8.699940975 | CE70: 8.442684596 | CF70: 8.699940975 | DA70: =names!$A$8 -> Rest of manufacturing | DB70: 628.6778672 | DC70: 1566.238953 | DD70: 4997.784143 | DE70: 682.6872149 | DF70: 2698.023587 | DG70: 2039.401975 | DH70: 1037.540579 | DI70: 540.236062 | DJ70: 88.84995573
AZ71: =names!$A$8 -> Rest of manufacturing | BA71: Males | BB71: 7.997961305 | BC71: 8.185696943 | BD71: 8.251153387 | BE71: 8.33843842 | BF71: 8.465796724 | BG71: 8.575141444 | BH71: 8.71969521 | BI71: 8.985793639 | BJ71: 9.244585245 | BK71: 9.402451586 | BL71: 10.07243199 | BM71: 9.813824151 | BN71: 9.964319408 | BO71: 9.924002058 | BP71: 10.71504767 | BQ71: 10.46932116 | BR71: 10.57798815 | BS71: 10.8983434 | BT71: 10.19844294 | BU71: 10.35156113 | BV71: 10.51507643 | BW71: 10.70460962 | BX71: 10.89757483 | BY71: 11.09185064 | BZ71: 11.24959135 | CA71: 11.4051907 | CB71: 11.56393448 | CC71: 11.72291768 | CD71: 11.89057498 | CE71: 11.72291768 | CF71: 11.89057498 | DA71: =names!$A$9 -> Electricity and gas | DB71: 126.3646246 | DC71: 584.8656812 | DD71: 1282.803293 | DE71: 200.9617242 | DF71: 740.3390658 | DG71: 560.6011732 | DH71: 191.4774374 | DI71: 63.03347972 | DJ71: 0.744092996
BA72: Females | BB72: 1.826416896 | BC72: 1.990573446 | BD72: 2.153100274 | BE72: 2.337212603 | BF72: 2.475649029 | BG72: 2.672315312 | BH72: 3.02621467 | BI72: 3.269443803 | BJ72: 3.4561669 | BK72: 3.732702966 | BL72: 4.045187287 | BM72: 4.546075391 | BN72: 4.753364707 | BO72: 5.160336936 | BP72: 5.342145204 | BQ72: 5.745431892 | BR72: 5.872802058 | BS72: 6.24236688 | BT72: 6.420087826 | BU72: 6.652605723 | BV72: 6.916664527 | BW72: 7.21327427 | BX72: 7.514053104 | BY72: 7.813055863 | BZ72: 8.076036756 | CA72: 8.337802671 | CB72: 8.608131152 | CC72: 8.87640409 | CD72: 9.156714134 | CE72: 8.87640409 | CF72: 9.156714134 | DA72: =names!$A$10 -> Water and sewerage | DB72: 12.12785613 | DC72: 11.41206173 | DD72: 345.0853025 | DE72: 48.68267546 | DF72: 215.8132957 | DG72: 25.8051553 | DH72: 58.14886907 | DI72: 8.383589422 | DJ72: 37.44360682
AZ73: =names!$A$9 -> Electricity and gas | BA73: Males | BB73: 6.396473119 | BC73: 6.43737758 | BD73: 6.53485204 | BE73: 6.551166268 | BF73: 6.616553751 | BG73: 6.691420892 | BH73: 6.776554163 | BI73: 6.682028105 | BJ73: 6.821420268 | BK73: 6.879101265 | BL73: 7.801903725 | BM73: 9.827757386 | BN73: 7.328689994 | BO73: 10.61939485 | BP73: 8.675977347 | BQ73: 9.94543554 | BR73: 10.51071321 | BS73: 9.807251977 | BT73: 9.971033258 | BU73: 10.06403948 | BV73: 10.17499303 | BW73: 10.30573479 | BX73: 10.45586144 | BY73: 10.60204457 | BZ73: 10.73203429 | CA73: 10.85966902 | CB73: 10.98214902 | CC73: 11.1009139 | CD73: 11.22225896 | CE73: 11.1009139 | CF73: 11.22225896 | DA73: =names!$A$11 -> Construction | DB73: 86.3078632 | DC73: 1080.207908 | DD73: 2395.804198 | DE73: 388.3652387 | DF73: 1240.963308 | DG73: 1909.081866 | DH73: 939.4505015 | DI73: 236.5328826 | DJ73: 145.4418053
BA74: Females | BB74: 2.440624591 | BC74: 2.550508492 | BD74: 2.639328597 | BE74: 2.683582662 | BF74: 2.758344289 | BG74: 3.039795211 | BH74: 3.31919774 | BI74: 3.361016369 | BJ74: 3.586607465 | BK74: 3.926778604 | BL74: 4.304156535 | BM74: 4.537174425 | BN74: 4.589732899 | BO74: 5.018406429 | BP74: 5.335825897 | BQ74: 5.967872605 | BR74: 6.284261988 | BS74: 6.594471848 | BT74: 6.765405384 | BU74: 6.940543395 | BV74: 7.139476792 | BW74: 7.35514267 | BX74: 7.543238067 | BY74: 7.71554812 | BZ74: 7.885244483 | CA74: 8.044083962 | CB74: 8.202270338 | CC74: 8.352759832 | CD74: 8.505578157 | CE74: 8.352759832 | CF74: 8.505578157 | DA74: =names!$A$12 -> Wholesale and retail trade | DB74: 144.0049808 | DC74: 408.4368539 | DD74: 3149.978704 | DE74: 385.6489291 | DF74: 778.4582834 | DG74: 1845.089317 | DH74: 1191.40264 | DI74: 749.5520942 | DJ74: 316.2161488
AZ75: =names!$A$10 -> Water and sewerage | BA75: Males | BB75: 4.593389206 | BC75: 4.633870405 | BD75: 4.651598174 | BE75: 4.660151322 | BF75: 4.856490191 | BG75: 4.779486961 | BH75: 4.545666501 | BI75: 4.561751498 | BJ75: 4.778889257 | BK75: 4.886714352 | BL75: 4.845710462 | BM75: 5.205040065 | BN75: 5.054411627 | BO75: 5.024847562 | BP75: 5.322711107 | BQ75: 6.071583108 | BR75: 6.063294542 | BS75: 7.984162929 | BT75: 7.235003689 | BU75: 7.324103391 | BV75: 7.430610752 | BW75: 7.550797409 | BX75: 7.676030843 | BY75: 7.78616408 | BZ75: 7.858703272 | CA75: 7.922672634 | CB75: 7.979106796 | CC75: 8.050887551 | CD75: 8.11668302 | CE75: 8.050887551 | CF75: 8.11668302 | DA75: =names!$A$13 -> Transport and storage | DB75: 90.7924228 | DC75: 453.8736366 | DD75: 1148.957175 | DE75: 146.1114446 | DF75: 906.2506789 | DG75: 650.1366601 | DH75: 595.8681405 | DI75: 242.5148729 | DJ75: 74.40575554
BA76: Females | BB76: 1.554669848 | BC76: 1.660296464 | BD76: 1.815260337 | BE76: 1.98736298 | BF76: 1.937303113 | BG76: 2.042601057 | BH76: 2.256717471 | BI76: 2.286476132 | BJ76: 2.639650067 | BK76: 2.531890942 | BL76: 2.490933483 | BM76: 3.117390941 | BN76: 3.109591793 | BO76: 3.394978966 | BP76: 3.510776665 | BQ76: 3.979852947 | BR76: 4.07560451 | BS76: 4.166167515 | BT76: 4.256956002 | BU76: 4.37074871 | BV76: 4.534366981 | BW76: 4.707234153 | BX76: 4.875168575 | BY76: 5.027102559 | BZ76: 5.157485949 | CA76: 5.281414312 | CB76: 5.416098516 | CC76: 5.544528596 | CD76: 5.695542114 | CE76: 5.544528596 | CF76: 5.695542114 | DA76: =names!$A$14 -> Accommodation and food | DB76: 2.492024362 | DC76: 242.9781105 | DD76: 276.9808469 | DE76: 55.0310574 | DF76: 198.5778069 | DG76: 351.6431493 | DH76: 188.7972111 | DI76: 51.99611465 | DJ76: 43.90281449
AZ77: =names!$A$11 -> Construction | BA77: Males | BB77: 5.955776775 | BC77: 5.931300206 | BD77: 5.930960624 | BE77: 5.932488804 | BF77: 5.942193492 | BG77: 6.319267181 | BH77: 6.351478238 | BI77: 6.211943745 | BJ77: 6.392214067 | BK77: 6.41607762 | BL77: 6.023580053 | BM77: 5.679198362 | BN77: 6.570966963 | BO77: 6.304098311 | BP77: 6.537921358 | BQ77: 6.628126577 | BR77: 7.036133407 | BS77: 7.82722256 | BT77: 7.306201186 | BU77: 7.347339792 | BV77: 7.491890217 | BW77: 7.591497582 | BX77: 7.713715151 | BY77: 7.8460038 | BZ77: 7.970285355 | CA77: 8.089023256 | CB77: 8.196625175 | CC77: 8.297168757 | CD77: 8.400824373 | CE77: 8.297168757 | CF77: 8.400824373 | DA77: =names!$A$15 -> Media | DB77: 18.59695426 | DC77: 374.0623872 | DD77: 1129.914351 | DE77: 128.5951761 | DF77: 161.099216 | DG77: 207.2898722 | DH77: 132.6923819 | DI77: 61.68831525 | DJ77: 14.39515611
BA78: Females | BB78: 2.270888643 | BC78: 2.52444729 | BD78: 2.760090411 | BE78: 2.913434111 | BF78: 3.251805374 | BG78: 3.461482717 | BH78: 3.723138275 | BI78: 3.80280048 | BJ78: 3.979016351 | BK78: 4.356553404 | BL78: 4.631158477 | BM78: 5.309873358 | BN78: 5.829544767 | BO78: 6.107079561 | BP78: 6.222415393 | BQ78: 6.635636808 | BR78: 7.083991151 | BS78: 7.233166677 | BT78: 8.27064347 | BU78: 8.543536907 | BV78: 8.893778368 | BW78: 9.276189257 | BX78: 9.673731637 | BY78: 10.06656862 | BZ78: 10.39475454 | CA78: 10.72872831 | CB78: 11.06514834 | CC78: 11.39385361 | CD78: 11.71835635 | CE78: 11.39385361 | CF78: 11.71835635 | DA78: =names!$A$16 -> Information technology | DB78: 404.9197283 | DC78: 3989.965264 | DD78: 10339.02442 | DE78: 1128.537331 | DF78: 2342.327421 | DG78: 1940.849203 | DH78: 1234.647747 | DI78: 813.1573012 | DJ78: 188.9408477
AZ79: =names!$A$12 -> Wholesale and retail trade | BA79: Males | BB79: 11.04115811 | BC79: 11.1295366 | BD79: 11.12554162 | BE79: 11.22101708 | BF79: 11.39934729 | BG79: 11.47098326 | BH79: 11.60546868 | BI79: 11.54580166 | BJ79: 11.86540378 | BK79: 12.19908269 | BL79: 12.89479975 | BM79: 12.78093759 | BN79: 12.70847355 | BO79: 12.46150284 | BP79: 12.04305068 | BQ79: 12.72851517 | BR79: 12.38645494 | BS79: 12.28824797 | BT79: 13.19575797 | BU79: 13.3366378 | BV79: 13.48706404 | BW79: 13.6515337 | BX79: 13.797261 | BY79: 13.95754486 | BZ79: 14.05664734 | CA79: 14.15148325 | CB79: 14.24240204 | CC79: 14.33550003 | CD79: 14.43863788 | CE79: 14.33550003 | CF79: 14.43863788 | DA79: =names!$A$17 -> Finance and insurance | DB79: 47.78962005 | DC79: 1124.642605 | DD79: 2828.659071 | DE79: 400.4910779 | DF79: 613.9347253 | DG79: 938.5929237 | DH79: 820.2813242 | DI79: 224.2370615 | DJ79: 8.971696708
